Workbook

Sheet Instructions
I2: Validation - Croisement des tables
B3: Instructions:
A4: 1 | B4: Dupliquer votre modèle de détermination avant de passer aux étapes suivantes. | I4: Ovoltotrec | J4: Rapport GTYF | K4: Rapport ECONO
A5: 2 | B5: Coller les OUTPUTs ci-dessous dans votre modèle de détermination. | I5: =VLOOKUP("Ovoltotrec",Output!$C:$AM,8,FALSE) -> 5160421.93 | J5: =VLOOKUP("OVOLTOTREC",GTYF!$C:$AQ,8,FALSE)=I5 -> TRUE | K5: =VLOOKUP("OVOLTOTREC",Econo!$C:$AQ,8,FALSE)=I5 -> TRUE
B6: Outputs pour Cahier_Détermination_2023
A7: 3 | B7: Ajouter l'agrégat FCIMPROD_SNAT au thème 5 de la section LANSCAPE de votre modèle et les courbes SNAT
B8: *AGGREGATE FCIMPROD_SNAT FCxxxx
A9: 4 | B9: Copier coller la syntaxe TARGET_GTYF_DET, TARGET_ECONO, TARGET AREA, TARGET DETAIL (voir plus bas) dans la section "Reports" du scénario de détermination.
B10: *TARGET GTYF_DET.dbf
B11: *TARGET_ECONO.dbf
B12: *TARGET AREA.dbf et *TARGET DETAIL.dbf
A13: 5 | B13: Insérer la syntaxe économique dans les sections Output, Lanscape, …
A14: 6 | B14: Compiler le scénario (Faire une fleche sur vos scénarios)
A15: 7 | B15: Ouvrir vos rapports Output, GTYF et ECONO directement de WS. Contrôle A --> Contrôle C
A16: 8 | B16: Copier/coller vos rapports Output, GTYF et ECONO dans les onglets appropriés. Attention de respecter le nombres de colonnes. Les onglets Output, GTYF et ECONO sont préformatés et contiennent des formules aux colonnes AM à AP.
A17: 9 | B17: Valider que la cellule I5 indique vrai lorsque vous aurez collé vos données dans les onglets "Output", "GTYF" et ÉCONO" pour s'assurer que les données proviennent de la même optimisation.
A18: 10 | B18: Utiliser le fichier DBF pour copier/coller votre calendrier de COS dans l'onglet Cedule_COS et y ajouter les COS absents (COS fermés ou toujours ouverts) et compléter leur calendrier par des "0" ou des "1".
A19: 11 | B19: Compléter toutes les cellules et onglets de couleur | D19: jaune
A20: 12 | B20: Notez que les tableaux 9, 10, 13, 15 et 17 ont des instructions particulières

Sheet Suivi_modif
B2: Modifications apportées au cahier:
B3: Version originale (v1) | C3: Version de départ
B4: Version modifiée 2 novembre 2021 (v2) | C4: Correction du calcul de % de sapin en P0 (cellule O9)
B6: Modifications version subséquente apportées au cahier adapté p2_p3 | H6: Inclus ?
B7: Version modifiée 4 novembre 2021 (v3) | C7: Correction du % récolte volume sur pied destiné à l'aménagement (Tableau - CelluleV59) | H7: OUI | I7: joufr3 11/11/2021
B8: Version modifiée 4 novembre 2021 (v3) | C8: Correction des valideurs Vrai/Faux (Tableau - Cellule W101, W102, W103) | H8: OUI | I8: joufr3 11/11/2021
B9: Version modifiée 8 novembre 2021 (v4) | C9: Onglet "UTA" - Amélioration de la syntaxe des rechercheV | H9: OUI | I9: joufr3 11/11/2021
B10: Version modifiée 8 novembre 2021 (v4) | C10: Tableau 3 - ligne 50: changé la police de caractère pour du Arial | H10: OUI | I10: joufr3 11/11/2021
B11: Version modifiée 9 novembre 2021 (v5) | C11: Onglet "Target_ECONO": La syntaxe du rapport a été corrigée. | H11: OUI | I11: fait par LABBE1 et scénario résolu 1 flèche 10/11/2021
B12: Version modifiée 11 novembre 2021 (v6) | C12: Tableau 1 - Entente Crie - Correction pour considérer le code "EXEC" pour les UA avec Entente Crie | H12: non-intégrée car pas d'impact pour UA vague 3
B13: Version modifiée 15 novembre 2021 (v7) | C13: Tableau 3 - ligne 49 en caractère gras - ligne 51 en caractère normal | H13: OUI | I13: benan3 15/11/2021
B14: Version modifiée 19 novembre 2021 (v8) | C14: Tableau 9 - Dernière ligne du tableau effacée | H14: OUI | I14: benan3 19/11/2021
B15: Version modifiée 22 novembre 2021 (v9) | C15: Tableau 4 - Première colonne (ha/an) changé la mise en forme pour avoir des 0 ha/an au lieu de "-" Voir figure --> Format: Nombre - Utiliser séparateur de millier - sans décimales | H15: OUI | I15: benan3 22/11/2021
C16: Tableau 8 - Arrondi ajouté dans formules cellules G102 et G103 | H16: OUI | I16: Joufr3 25/11/2021
C17: Tableau 10 - format % dans la cellule H143 | H17: OUI | I17: benan3 8/12/2021
B19: Modifications JOUFR3 11/11/2021
B20: Comme il n'y a pas de SNAT en vague 3, la formule aux cellules AB5 à AB19, AB21 et AB22 dans l'onglet "Figures" a été corrigée en ajoutant les caractères en rouge : SIERREUR(RECHERCHEV(ZXX;Output!$C:$AQ;6;FAUX);0)
B21: Comme il n'y a pas de SNAT en vague 3, la formule aux cellules AF163 à AI174 et AF174 à AI176 dans l'onglet "Tableaux" a été corrigée en ajoutant les caractères en rouge : =SIERREUR(RECHERCHEV($AEXXX;Output!$C:$AQ;AF$160;FAUX);0)
B23: Modifications à apporter au cahier lorsque on le complète :
B24: Données tableau "coupes_partielles_P2_a_P6.xlsx" à intégrer dans le tableau 9 dans les colonnes E et G et ajout de "-" pour les colonnes E et G sans valeur.
B27: Validation par CARMI5 2021-11-12
B29: 1. Validation des intrants, Somme des OUTPUT P0@P30 du cahier = Somme des OUTPUT P0@P30 du modèle :
B30: Onglet OUTPUT | C30: OK
B31: Onglet GTYF | C31: OK
B32: Onglet Econo | C32: OK
B33: 2. Validation des tableaux, Confrontation avec le cahier d'analyse de la détermination (BENAN) et le fichier de consignation
B34: Validation des catégories de superficie | C34: Ok | D34: Cahier BENAN
B35: Tableau 1 | C35: OK | D35: Cahier BENAN
B36: Tableau 3 | C36: OK | D36: Pour 2023-28 P2@P3 au lieu de P2@P6 aucune validation possible
B37: Tableau 4 | C37: OK | D37: Pour 2023-28 P2@P3 au lieu de P2@P6 aucune validation possible. Modifie Cellule N83 par N79-L49
B38: Tableau 8 | C38: OK | D38: Pour 2023-28 P2@P3 au lieu de P2@P6 aucune validation possible. Pour 2018-23 fichier de consignation
B39: Tableau 9 | C39: OK | D39: Fonctionnement et affichage
B40: Tableau 10 | C40: OK | D40: Pour 2023-28 P2@P3 au lieu de P2@P6 aucune validation possible. Pour 2018-23 fichier de consignation
B41: Tableau 13 | C41: OK | D41: Écart sur le TOTAL <= 200, masque la ligne Pin gris et Mélezes car < 1%
B42: 3. Validation des figures, Confrontation avec le cahier d'analyse de la détermination (BENAN) et le fichier de consignation
B43: Figure 2 | C43: OK | D43: Fonctionnement et affichage
B44: Figure 3 | C44: OK | D44: Fonctionnement et affichage
B45: Figure 4 | C45: OK | D45: Fonctionnement et affichage
B46: Figure 5 | C46: OK | D46: Fonctionnement et affichage
B47: Figure 6 | C47: OK | D47: Fonctionnement et affichage
B48: Figure 7 | C48: OK | D48: Fonctionnement et affichage
B49: Figure 9b | C49: OK | D49: Fonctionnement et affichage. Apparence semblable au cahier de BENAN
B50: Figure 9c | C50: OK | D50: Fonctionnement et affichage. Apparence semblable au cahier de BENAN
B51: Figure 10a | C51: OK | D51: Fonctionnement et affichage. Apparence semblable au cahier de BENAN
B52: Figure 10c | C52: OK | D52: Fonctionnement et affichage.
B53: Figure 11b | C53: OK | D53: Fonctionnement et affichage.
B54: Figure 14 | C54: OK | D54: Fonctionnement et affichage. Apparence semblable au cahier de BENAN
B55: Figure 15a | C55: OK | D55: Fonctionnement et affichage.
B56: Figure 19 | C56: OK | D56: Fonctionnement et affichage. Nombre d'UTR conforme au modèle
B57: Figure 20 | C57: OK | D57: Fonctionnement et affichage.
B58: Figure 21 | C58: OK | D58: Fonctionnement et affichage.
B59: Figure 22 | C59: OK | D59: Fonctionnement et affichage.
B60: 4. Validation des UTA
B61: Conforme au nombre d'UTA du modèle | C61: OK

Sheet Tableaux
T1: Instructions : Compléter les cellules oranges | AB1: Avec l'utilisation de l'outil à Éric
B2: PROER1 : vous pouvez utiliser l'outil FoxPro pour compléter les cellules oranges : | T2: 1) Cellule V11 : Inscrire la superficie totale brute de la carte WS | AB2: 585055
B3: l'outil intérroge la carte Woodstock et met les valeurs dans un fichier Excel | T3: 2) Cellule V15 : Inscrire la superficie WS des GS RP1 et RP2 (ça ne devrait être que du EXEX et EXTI) | AB3: 0
B4: interroge_carte_WS_pour cahier_analyse.FXP | T4: 3) Cellule V24 : Inscrire la superficie WS des GS RP3 à RP9 sur INC | AB4: 0
B5: T:\Donnees\Courant\CPF_2023-2028\Comite_Vague_2\30_Phase1\32_Sce1\Outils | T5: 4) Cellule V25 : Inscrire la superficie WS des GS SNAT sur INC (qui ne sont pas des RP) | AB5: 0
T6: 5) Cellules L20 à S21 : Inscrire la superficie de la carte WS pour chacune des cases oranges
B7: Catégories | I7: Superficie | Z7: Total | AA7: Sup_aff | AB7: 4498.3
I8: ha | J8: % | V8: Période | Z8: Total | AA8: Sup_empche | AB8: 6203.2
B9: Superficie totale du territoire d'analyse (EXHU exclu) | I9: =V11-V16 -> 585036.3 | J9: =IFERROR(I9/I9,"-") -> 1 | S9: =LEFT(B$25,10) -> Tableau 1. | T9: Output | U9: Superficie | V9: 0 | Z9: Total | AA9: Sup_ecot | AB9: 5339.6
B10: Pertes (emprise chemin, écotone, improductif) | I10: =U20+V20+Y20 -> 14833 | J10: =I10/I9 -> 0.02535398231 | S10: =LEFT(B$25,10) -> Tableau 1. | T10: OSUPTOT | U10: WS | V10: =VLOOKUP(T10,Output!$C:$H,6,FALSE) -> 570221.6 | Z10: INC | AA10: Sup_brivAB | AB10: 25309.1
B11: Territoire improductif (EXEX + EXTI) | I11: =SUM(V13:V14) -> 72077.1 | J11: =I11/I9 -> 0.1232010732 | S11: Tableau 1. | U11: Brute | V11: =AB2 -> 585055 | X11: Sup_soustraite : | Y11: =T20+U20+V20+Y20+AA20 -> 31635 | Z11: INC | AA11: Sup_brivCD | AB11: 4936.3
B12: sans possibilité de remise en production | I12: =I11-I13 -> 72077.1 | J12: - | S12: Tableau 1. | U12: pertes | V12: =U20+V20+Y20 -> 14833 | X12: Sup nette : | Y12: =V11-Y11 -> 553420 | Z12: Total | AA12: Sup_impro | AB12: 3290.5
B13: avec possibilité de remise en production (RP1 et RP2) | I13: =V15 -> 0 | J13: - | S13: Tableau 1. | T13: OSUPEXEX | U13: EXEX | V13: =VLOOKUP(T13,Output!$C:$H,6,FALSE) -> 59343.9 | Z13: Total | AA13: Sup_pentf | AB13: 12304
S14: Tableau 1. | T14: OSUPEXTI | U14: EXTI | V14: =VLOOKUP(T14,Output!$C:$H,6,FALSE) -> 12733.2 | Z14: INC | AA14: Sup_pentf | AB14: 10777.3
B15: Territoire inclus dans l’UA mais exclu des activités d'aménagement (EXIN) | I15: =V17 -> 73400.5 | J15: =I15/I9 -> 0.125463155 | S15: Tableau 1. | U15: RP1/RP2 | V15: =AB3 -> 0
B16: pentes abruptes et sommets (codes F et S) --> potentiellement récoltables | I16: =AA21 -> 10777 | J16: - | S16: Tableau 1. | T16: OSUPEXHU | U16: EXHU | V16: =VLOOKUP(T16,Output!$C:$H,6,FALSE) -> 18.7
B17: bandes riveraines (densité AB) --> potentiellement récoltables | I17: =W21 -> 25309 | J17: - | S17: Tableau 1. | T17: OSUPEXIN | U17: EXIN | V17: =VLOOKUP(T17,Output!$C:$H,6,FALSE) -> 73400.5
B18: bandes riveraines (densité CD) --> potentiellement récoltables | I18: =X21 -> 4936 | J18: - | S18: Tableau 1. | T18: ↓ | U18: ↓ | V18: ↓ | Y18: ↓ | AA18: ↓
B19: autres | I19: =I15-I16-I17-I18 -> 32378.5 | S19: Tableau 1. | T19: Sup_aff | U19: Sup_empche | V19: Sup_ecot | W19: Sup_brivAB | X19: Sup_brivCD | Y19: Sup_impro | Z19: Sup_aut | AA19: Sup_pentf
B20: Territoire destiné à l'aménagement forestier (INC) | I20: =V22 -> 424725.3 | J20: =I20/I9 -> 0.7259811058 | S20: Tableau 1. | T20: 4498 | U20: 6203 | V20: 5340 | Y20: 3290 | AA20: 12304 | AB20: Total
B21: forestier exploitable | I21: =V22-I22-I23 -> 424725.3 | J21: - | S21: Tableau 1. | W21: 25309 | X21: 4936 | AA21: 10777 | AB21: INC
B22: forestier inexploitable avec possibilité de remise en production (RP3 à RP15) | I22: =V24 -> 0 | J22: - | S22: Tableau 1. | T22: OSUPINC | U22: INC | V22: =VLOOKUP(T22,Output!$C:$H,6,FALSE) -> 424725.3
B23: forestier inexploitable sans possibilité de remise en production (SNAT) | I23: =V25 -> 0 | J23: - | S23: Tableau 1.
S24: Tableau 1. | U24: RP3 à RP9 | V24: =AB4 -> 0
B25: Tableau 1. Répartition de la superficie de l'unité d'aménagement pas catégorie de territoire | S25: Tableau 1. | U25: SNAT | V25: =AB5 -> 0
B26: Catégories | F26: Superficies
F27: Hectares | G27: %
B28: Superficie totale de l’unité d’aménagement | F28: =ROUND(I9,-1) -> 585040 | G28: =F28/F28 -> 1
B29: Retraits de superficie
B30: Territoire non forestier | F30: =ROUND(I10+I11,-1) -> 86910 | G30: =F30/F28 -> 0.148553945
B31: Territoire forestier peu productif (30 à 50 m³/ha) | F31: =ROUND(I22+I23,-1) -> 0 | G31: =F31/F28 -> 0
B32: Territoire forestier exclu de l’aménagement | F32: =ROUND(F28-F30-F31-F33,-1) -> 73400 | G32: =F32/F28 -> 0.1254615069 | N32: À compléter UA : | O32: UA:
B33: Superficie destinée à l’aménagement forestier | F33: =ROUND(I21,-1) -> 424730 | G33: =F33/F28 -> 0.7259845481 | O33: 07152 | T33: Légende | U33: Output | V33: P2@P3
S34: =LEFT(B$46,10) -> Tableau 3. | T34: Sepm | U34: OVOLGSEPMREC | V34: =IFERROR(VLOOKUP($U34,Output!$C:$AR,42,FALSE)/5,0) -> 270562.096
S35: Tableau 3.
S36: Tableau 3. | T36: Tho | U36: OVOLTHOREC | V36: =IFERROR(VLOOKUP($U36,Output!$C:$AR,42,FALSE)/5,0) -> 23873.562
S37: Tableau 3. | T37: Pru | U37: OVOLPRUREC | V37: =IFERROR(VLOOKUP($U37,Output!$C:$AR,42,FALSE)/5,0) -> 8077.828
S38: Tableau 3. | T38: Pins | U38: OVOLGPINSREC | V38: =IFERROR(VLOOKUP($U38,Output!$C:$AR,42,FALSE)/5,0) -> 61722.914
S39: Tableau 3. | T39: Peu | U39: OVOLGPEUREC | V39: =IFERROR(VLOOKUP($U39,Output!$C:$AR,42,FALSE)/5,0) -> 177431.54
S40: Tableau 3. | T40: Bop | U40: OVOLGBPREC | V40: =IFERROR(VLOOKUP($U40,Output!$C:$AR,42,FALSE)/5,0) -> 199199.085
S41: Tableau 3. | T41: Boj | U41: OVOLBOJREC | V41: =IFERROR(VLOOKUP($U41,Output!$C:$AR,42,FALSE)/5,0) -> 87448.14
S42: Tableau 3. | T42: Ers | U42: OVOLERSREC | V42: =IFERROR(VLOOKUP($U42,Output!$C:$AR,42,FALSE)/5,0) -> 69802.416
S43: Tableau 3. | T43: Err | U43: OVOLGEROREC | V43: =IFERROR(VLOOKUP($U43,Output!$C:$AR,42,FALSE)/5,0) -> 84528.216
S44: Tableau 3. | T44: Autre .F. (Auf) | V44: =V47-V42-V41 -> 49434.082
S45: Tableau 3. | T45: résineux | U45: OVOLGRREC | V45: =IFERROR(VLOOKUP($U45,Output!$C:$AR,42,FALSE)/5,0) -> 364240
B46: Tableau 3. Possibilités forestières par essence ou par groupe d’essences et écart avec la période 2018-2023 | S46: Tableau 3. | T46: intolérant | U46: OVOLGFIREC | V46: =IFERROR(VLOOKUP($U46,Output!$C:$AR,42,FALSE)/5,0) -> 461152.66
B47: Périodes | C47: ="Possibilités forestières (m"&CHAR(179)&" bruts/an)" -> Possibilités forestières (m³ bruts/an) | S47: Tableau 3. | T47: Tolérant | U47: OVOLGFTREC | V47: =IFERROR(VLOOKUP($U47,Output!$C:$AR,42,FALSE)/5,0) -> 206684.638
C48: SEPM | D48: Thuya | E48: Pruche | F48: Pins blanc et rouge | G48: Peupliers | H48: Bouleau à papier | I48: Bouleau jaune | J48: Érables à sucre et rouge | K48: Autres feuillus durs | L48: Total | N48: Possibilité forestière unitaire (PAC / Sup destinée à l'aménagement) | S48: Tableau 3. | T48: Total récoltés | U48: OVOLTOTREC | V48: =IFERROR(VLOOKUP($U48,Output!$C:$AR,42,FALSE)/5,0) -> 1032082.498
B49: 2023-2028 | C49: =ROUND(V$34,-2) -> 270600 | D49: =ROUND(V$36,-2) -> 23900 | E49: =ROUND(V$37,-2) -> 8100 | F49: =ROUND(V$38,-2) -> 61700 | G49: =ROUND(V$39,-2) -> 177400 | H49: =ROUND(V$40,-2) -> 199200 | I49: =ROUND(V$41,-2) -> 87400 | J49: =ROUND(V$50,-2) -> 154300 | K49: =ROUND(V$44,-2) -> 49400 | L49: =SUM(C49:K49) -> 1032000 | N49: =V57 -> 2.429973155 | S49: Tableau 3. | T49: FN sur pied | U49: OVOLGFNREC | V49: =IFERROR(VLOOKUP($U49,Output!$C:$AR,42,FALSE)/5,0) -> 24498.164
C50: =C49/$L$49 -> 0.2622093023 | D50: 0.02315891473 | E50: 0.007848837209 | F50: 0.05978682171 | G50: 0.1718992248 | H50: 0.1930232558 | I50: 0.08468992248 | J50: 0.1495155039 | K50: 0.04786821705 | L50: =SUM(C50:K50) -> 1 | S50: Tableau 3. | T50: ER | V50: =V42+V43 -> 154330.632
B51: 2018-2023 | C51: =VLOOKUP($O$33,DataLocal!$A$6:$W$35,13,FALSE) -> 174000 | D51: =VLOOKUP($O$33,DataLocal!$A$6:$W$35,14,FALSE) -> 40400 | E51: =VLOOKUP($O$33,DataLocal!$A$6:$W$35,15,FALSE) -> 5000 | F51: =VLOOKUP($O$33,DataLocal!$A$6:$W$35,16,FALSE) -> 77800 | G51: =VLOOKUP($O$33,DataLocal!$A$6:$W$35,17,FALSE) -> 82500 | H51: =VLOOKUP($O$33,DataLocal!$A$6:$W$35,18,FALSE) -> 79700 | I51: =VLOOKUP($O$33,DataLocal!$A$6:$W$35,19,FALSE) -> 69300 | J51: =VLOOKUP($O$33,DataLocal!$A$6:$W$35,20,FALSE) -> 116900 | K51: =VLOOKUP($O$33,DataLocal!$A$6:$W$35,21,FALSE) -> 38400 | L51: =VLOOKUP($O$33,DataLocal!$A$6:$W$35,23,FALSE) -> 684000 | N51: % du volume sur pied initial | S51: Tableau 3. | U51: OVOLSABREC | V51: =IFERROR(VLOOKUP($U51,Output!$C:$AR,42,FALSE)/5,0) -> 109263.697
B52: Écart | C52: =IFERROR((C49/C$51)-1,0) -> 0.5551724138 | D52: -0.4084158416 | E52: 0.62 | F52: -0.206940874 | G52: 1.15030303 | H52: 1.499372647 | I52: 0.2611832612 | J52: 0.3199315654 | K52: 0.2864583333 | L52: 0.5087719298 | N52: =V59 -> 0.01644981054 | S52: Tableau 3. | U52: OVOLGEPXREC | V52: =IFERROR(VLOOKUP($U52,Output!$C:$AR,42,FALSE)/5,0) -> 151795.514
B53: ="Répartition de la composante SEPM des possibilités forestières 2023-2028 : sapin ("&IFERROR(ROUND(V51/V34*100,0),0)&"%), épinettes ("&IFERROR(ROUND(V52/V34*100,0),0)&"%), pin gris ("&IFERROR(ROUND(V53/V34*100,0),0)&"%) et mélèzes ("&IFERROR(ROUND(V54/V34*100,0),0)&"%)." -> Répartition de la composante SEPM des possibilités forestières 2023-2028 : sapin (40%), épinettes (56%), pin gris (3%) et mélèzes (0%). | S53: Tableau 3. | U53: OVOLGPGREC | V53: =IFERROR(VLOOKUP($U53,Output!$C:$AR,42,FALSE)/5,0) -> 8337.414
B54: ="Répartition de la composante Érables à sucre et rouge des possibilités forestières 2023-2028 : érable à sucre("&IFERROR(ROUND(V42/(V42+V43)*100,0),0)&"%) et érable rouge ("&IFERROR(ROUND(V43/(V42+V43)*100,0),0)&"%)." -> Répartition de la composante Érables à sucre et rouge des possibilités forestières 2023-2028 : érable à sucre(45%) et érable rouge (55%). | S54: Tableau 3. | U54: OVOLGMLREC | V54: =IFERROR(VLOOKUP($U54,Output!$C:$AR,42,FALSE)/5,0) -> 1167.881
B55: Copier/Coller le tableau ci-dessus avec les lignes 53 et 54 | S55: Tableau 3. | U55: OSUPINC | V55: =IFERROR(VLOOKUP($U55,Output!$C:$AM,6,FALSE),0) -> 424725.3
S56: Tableau 3. | U56: OVOLTOTPIEDINC | V56: =IFERROR(VLOOKUP($U56,Output!$C:$AM,7,FALSE),0) -> 63544339.09
S57: Tableau 3. | U57: Possibilité forestière unitaire | V57: =IFERROR(V48/F33,0) -> 2.429973155
S58: Tableau 3. | U58: % récolte volume sur pied
U59: % récolte volume sur pied destiné à l'aménagement | V59: =V48/Figures!V19 -> 0.01644981054
B61: Tableau 4. Répartition des superficies récoltées et des possibilités forestières par grand type de forêt
B62: Grands types de forêt | D62: Superficie récoltée* | H62: Possibilités forestières* | S62: =LEFT(B$61,10) -> Tableau 4. | V62: Output total non arrondi | W62: Écart entre la somme du tableau et le output total
D63: Coupes totales | F63: Coupes partielles | H63: Résineux | J63: Feuillus tolérants | L63: Feuillus intolérants | N63: Total | S63: Tableau 4. | T63: Total | Z63: P2 à P3
D64: ha/an | E64: % | F64: ha/an | G64: % | H64: m³ bruts/an | I64: % | J64: ="m"&CHAR(179)&" bruts/an" -> m³ bruts/an | K64: % | L64: ="m"&CHAR(179)&" bruts/an" -> m³ bruts/an | M64: % | N64: ="m"&CHAR(179)&" bruts/an" -> m³ bruts/an | O64: % | S64: Tableau 4. | T64: ha/an | U64: % | Y64: Famille de courbe | Z64: OSUPINC | AA64: OSUPREALREGAFIN | AB64: OSUPREALREGAPAR | AC64: OSUPREALREGAPRE | AD64: OVOLGRREC | AE64: OVOLGAURREC | AF64: OVOLGFIREC | AG64: OVOLGFTREC | AH64: OVOLTOTREC
B65: Bétulaies blanches | D65: =ROUND(AA65/5,-1) -> 640 | E65: =IFERROR(D65/D$79,0) -> 0.1584158416 | F65: =ROUND(AB65/5,-1) -> 0 | G65: =IFERROR(F65/F$79,0) -> 0 | H65: =ROUND(AD65/5,-2) -> 21100 | I65: =IFERROR(H65/H$79,0) -> 0.05793520044 | J65: =ROUND(AG65/5,-2) -> 11300 | K65: =IFERROR(J65/J$79,0) -> 0.0546157564 | L65: =ROUND(AF65/5,-2) -> 85500 | M65: =L65/L$79 -> 0.1854261548 | N65: =H65+J65+L65 -> 117900 | O65: =N65/$N$79 -> 0.11422205 | S65: Tableau 4. | T65: =D65+F65 -> 640 | U65: =IFERROR(T65/T$79,0) -> 0.08926080893 | V65: =(AA65+AB65)/5 -> 637.509 | W65: =T65-V65 -> 2.491 | Y65: (FCTYF_BOP) | Z65: =VLOOKUP(Z$64&$Y65,GTYF!$C:$AP,6,FALSE) -> 14889.8 | AA65: =VLOOKUP(AA$64&$Y65,GTYF!$C:$AR,42,FALSE) -> 3187.545 | AB65: =VLOOKUP(AB$64&$Y65,GTYF!$C:$AR,42,FALSE) -> 0 | AC65: =VLOOKUP(AC$64&$Y65,GTYF!$C:$AR,42,FALSE) -> 3187.545 | AD65: =VLOOKUP(AD$64&$Y65,GTYF!$C:$AR,42,FALSE) -> 105618.18 | AE65: =VLOOKUP(AE$64&$Y65,GTYF!$C:$AR,42,FALSE) -> 9138.115 | AF65: =VLOOKUP(AF$64&$Y65,GTYF!$C:$AR,42,FALSE) -> 427446.105 | AG65: =VLOOKUP(AG$64&$Y65,GTYF!$C:$AR,42,FALSE) -> 56733.155 | AH65: =VLOOKUP(AH$64&$Y65,GTYF!$C:$AR,42,FALSE) -> 589797.44
B66: Bétulaies blanches à résineux | D66: 900 | E66: =IFERROR(D66/D$79,0) -> 0.2227722772 | F66: 0 | G66: =IFERROR(F66/F$79,0) -> 0 | H66: =ROUND(AD66/5,-2) -> 65600 | I66: =IFERROR(H66/H$79,0) -> 0.1801208127 | J66: =ROUND(AG66/5,-2) -> 9600 | K66: 0.04639922668 | L66: =ROUND(AF66/5,-2) -> 96600 | M66: =L66/L$79 -> 0.2094990241 | N66: =H66+J66+L66 -> 171800 | O66: 0.1664406123 | S66: Tableau 4. | T66: 900 | U66: =IFERROR(T66/T$79,0) -> 0.1255230126 | V66: =(AA66+AB66)/5 -> 900.684 | W66: -0.684 | Y66: (FCTYF_BOPR) | Z66: =VLOOKUP(Z$64&$Y66,GTYF!$C:$AP,6,FALSE) -> 28005.3 | AA66: =VLOOKUP(AA$64&$Y66,GTYF!$C:$AR,42,FALSE) -> 4503.42 | AB66: =VLOOKUP(AB$64&$Y66,GTYF!$C:$AR,42,FALSE) -> 0 | AC66: =VLOOKUP(AC$64&$Y66,GTYF!$C:$AR,42,FALSE) -> 4503.42 | AD66: =VLOOKUP(AD$64&$Y66,GTYF!$C:$AR,42,FALSE) -> 328112.025 | AE66: =VLOOKUP(AE$64&$Y66,GTYF!$C:$AR,42,FALSE) -> 99271.34 | AF66: =VLOOKUP(AF$64&$Y66,GTYF!$C:$AR,42,FALSE) -> 483196.305 | AG66: =VLOOKUP(AG$64&$Y66,GTYF!$C:$AR,42,FALSE) -> 47839.065 | AH66: =VLOOKUP(AH$64&$Y66,GTYF!$C:$AR,42,FALSE) -> 859147.395
B67: Cédrières | D67: 0 | E67: 0 | F67: 30 | G67: 0.009584664537 | H67: =ROUND(AD67/5,-2) -> 2100 | I67: 0.005766062603 | J67: 800 | K67: 0.003866602223 | L67: 600 | M67: 0.001301236174 | N67: 3500 | O67: 0.003390815733 | S67: Tableau 4. | T67: 30 | U67: 0.004184100418 | V67: =(AA67+AB67)/5 -> 34.488 | W67: -4.488 | Y67: (FCTYF_THO) | Z67: =VLOOKUP(Z$64&$Y67,GTYF!$C:$AP,6,FALSE) -> 16071.3 | AA67: =VLOOKUP(AA$64&$Y67,GTYF!$C:$AR,42,FALSE) -> 0 | AB67: =VLOOKUP(AB$64&$Y67,GTYF!$C:$AR,42,FALSE) -> 172.44 | AC67: =VLOOKUP(AC$64&$Y67,GTYF!$C:$AR,42,FALSE) -> 172.44 | AD67: =VLOOKUP(AD$64&$Y67,GTYF!$C:$AR,42,FALSE) -> 10412.035 | AE67: =VLOOKUP(AE$64&$Y67,GTYF!$C:$AR,42,FALSE) -> 7890.935 | AF67: =VLOOKUP(AF$64&$Y67,GTYF!$C:$AR,42,FALSE) -> 3002.21 | AG67: =VLOOKUP(AG$64&$Y67,GTYF!$C:$AR,42,FALSE) -> 3809.24 | AH67: =VLOOKUP(AH$64&$Y67,GTYF!$C:$AR,42,FALSE) -> 17223.485
B68: Érablières rouges | D68: 110 | E68: 0.02722772277 | F68: 0 | G68: 0 | H68: 4000 | I68: 0.01098297639 | J68: 8100 | K68: 0.03914934751 | L68: 9400 | M68: 0.0203860334 | N68: 21500 | O68: 0.02082929665 | S68: Tableau 4. | T68: 110 | U68: 0.01534170153 | V68: =(AA68+AB68)/5 -> 107.38 | W68: 2.62 | Y68: (FCTYF_ERO) | Z68: =VLOOKUP(Z$64&$Y68,GTYF!$C:$AP,6,FALSE) -> 15034.5 | AA68: =VLOOKUP(AA$64&$Y68,GTYF!$C:$AR,42,FALSE) -> 536.9 | AB68: =VLOOKUP(AB$64&$Y68,GTYF!$C:$AR,42,FALSE) -> 0 | AC68: =VLOOKUP(AC$64&$Y68,GTYF!$C:$AR,42,FALSE) -> 536.9 | AD68: =VLOOKUP(AD$64&$Y68,GTYF!$C:$AR,42,FALSE) -> 20070.78 | AE68: =VLOOKUP(AE$64&$Y68,GTYF!$C:$AR,42,FALSE) -> 3497.12 | AF68: =VLOOKUP(AF$64&$Y68,GTYF!$C:$AR,42,FALSE) -> 47057.93 | AG68: =VLOOKUP(AG$64&$Y68,GTYF!$C:$AR,42,FALSE) -> 40274.14 | AH68: =VLOOKUP(AH$64&$Y68,GTYF!$C:$AR,42,FALSE) -> 107402.85
B69: Feuillus tolérants | D69: 0 | E69: 0 | F69: 1810 | G69: 0.5782747604 | H69: 9200 | I69: 0.02526084569 | J69: 109700 | K69: 0.5302078299 | L69: 20500 | M69: 0.04445890262 | N69: 139400 | O69: 0.1350513466 | S69: Tableau 4. | T69: 1810 | U69: 0.2524407252 | V69: 1807.672 | W69: 2.328 | Y69: (FCTYF_FT) | Z69: =VLOOKUP(Z$64&$Y69,GTYF!$C:$AP,6,FALSE) -> 124277.8 | AA69: =VLOOKUP(AA$64&$Y69,GTYF!$C:$AR,42,FALSE) -> 0 | AB69: =VLOOKUP(AB$64&$Y69,GTYF!$C:$AR,42,FALSE) -> 9038.36 | AC69: =VLOOKUP(AC$64&$Y69,GTYF!$C:$AR,42,FALSE) -> 9038.36 | AD69: =VLOOKUP(AD$64&$Y69,GTYF!$C:$AR,42,FALSE) -> 46206.87 | AE69: =VLOOKUP(AE$64&$Y69,GTYF!$C:$AR,42,FALSE) -> 8493.07 | AF69: =VLOOKUP(AF$64&$Y69,GTYF!$C:$AR,42,FALSE) -> 102745.125 | AG69: =VLOOKUP(AG$64&$Y69,GTYF!$C:$AR,42,FALSE) -> 548280.045 | AH69: =VLOOKUP(AH$64&$Y69,GTYF!$C:$AR,42,FALSE) -> 697241.77
B70: Feuillus tolérants à résineux | D70: 30 | E70: 0.007425742574 | F70: 590 | G70: 0.1884984026 | H70: 18500 | I70: 0.05079626579 | J70: 37700 | K70: 0.1822136298 | L70: 8600 | M70: 0.01865105183 | N70: 64800 | O70: 0.06277853129 | S70: Tableau 4. | T70: 620 | U70: 0.08647140865 | V70: 615.949 | W70: 4.051 | Y70: (FCTYF_FTR) | Z70: =VLOOKUP(Z$64&$Y70,GTYF!$C:$AP,6,FALSE) -> 47810.4 | AA70: =VLOOKUP(AA$64&$Y70,GTYF!$C:$AR,42,FALSE) -> 144.85 | AB70: =VLOOKUP(AB$64&$Y70,GTYF!$C:$AR,42,FALSE) -> 2934.895 | AC70: =VLOOKUP(AC$64&$Y70,GTYF!$C:$AR,42,FALSE) -> 3079.745 | AD70: =VLOOKUP(AD$64&$Y70,GTYF!$C:$AR,42,FALSE) -> 92402.185 | AE70: =VLOOKUP(AE$64&$Y70,GTYF!$C:$AR,42,FALSE) -> 17934.09 | AF70: =VLOOKUP(AF$64&$Y70,GTYF!$C:$AR,42,FALSE) -> 43078.185 | AG70: =VLOOKUP(AG$64&$Y70,GTYF!$C:$AR,42,FALSE) -> 188689.195 | AH70: =VLOOKUP(AH$64&$Y70,GTYF!$C:$AR,42,FALSE) -> 324176.81
B71: Pessières | D71: =ROUND(AA71/5,-1) -> 540 | E71: 0.1336633663 | F71: 10 | G71: 0.003194888179 | H71: 80900 | I71: 0.2221306974 | J71: 1600 | K71: 0.007733204447 | L71: 8300 | M71: 0.01800043375 | N71: 90800 | O71: 0.08796744817 | S71: Tableau 4. | T71: 550 | U71: 0.07670850767 | V71: 548.669 | W71: =T71-V71 -> 1.331 | Y71: (FCTYF_EPX) | Z71: =VLOOKUP(Z$64&$Y71,GTYF!$C:$AP,6,FALSE) -> 39020.2 | AA71: =VLOOKUP(AA$64&$Y71,GTYF!$C:$AR,42,FALSE) -> 2705.845 | AB71: =VLOOKUP(AB$64&$Y71,GTYF!$C:$AR,42,FALSE) -> 37.5 | AC71: =VLOOKUP(AC$64&$Y71,GTYF!$C:$AR,42,FALSE) -> 2743.345 | AD71: =VLOOKUP(AD$64&$Y71,GTYF!$C:$AR,42,FALSE) -> 404304.305 | AE71: =VLOOKUP(AE$64&$Y71,GTYF!$C:$AR,42,FALSE) -> 43661.91 | AF71: =VLOOKUP(AF$64&$Y71,GTYF!$C:$AR,42,FALSE) -> 41569.865 | AG71: =VLOOKUP(AG$64&$Y71,GTYF!$C:$AR,42,FALSE) -> 7859.4 | AH71: =VLOOKUP(AH$64&$Y71,GTYF!$C:$AR,42,FALSE) -> 453733.94
B72: Peupleraies | D72: 870 | E72: 0.2153465347 | F72: 0 | G72: 0 | H72: 25900 | I72: 0.0711147721 | J72: 9500 | K72: 0.0459159014 | L72: 142000 | M72: 0.3079592279 | N72: 177400 | O72: 0.1718659175 | S72: Tableau 4. | T72: 870 | U72: 0.1213389121 | V72: 874.575 | W72: -4.575 | Y72: (FCTYF_PEU) | Z72: =VLOOKUP(Z$64&$Y72,GTYF!$C:$AP,6,FALSE) -> 22682.8 | AA72: =VLOOKUP(AA$64&$Y72,GTYF!$C:$AR,42,FALSE) -> 4372.875 | AB72: =VLOOKUP(AB$64&$Y72,GTYF!$C:$AR,42,FALSE) -> 0 | AC72: =VLOOKUP(AC$64&$Y72,GTYF!$C:$AR,42,FALSE) -> 4372.875 | AD72: =VLOOKUP(AD$64&$Y72,GTYF!$C:$AR,42,FALSE) -> 129415.225 | AE72: =VLOOKUP(AE$64&$Y72,GTYF!$C:$AR,42,FALSE) -> 17456.41 | AF72: =VLOOKUP(AF$64&$Y72,GTYF!$C:$AR,42,FALSE) -> 709938.805 | AG72: =VLOOKUP(AG$64&$Y72,GTYF!$C:$AR,42,FALSE) -> 47316.91 | AH72: =VLOOKUP(AH$64&$Y72,GTYF!$C:$AR,42,FALSE) -> 886670.935
B73: Peupleraies à résineux | D73: 320 | E73: 0.07920792079 | F73: 0 | G73: 0 | H73: 21300 | I73: 0.05848434926 | J73: 1100 | K73: 0.005316578057 | L73: 39300 | M73: 0.08523096942 | N73: 61700 | O73: 0.05977523736 | S73: Tableau 4. | T73: 320 | U73: 0.04463040446 | V73: 320.085 | W73: -0.085 | Y73: (FCTYF_PEUR) | Z73: =VLOOKUP(Z$64&$Y73,GTYF!$C:$AP,6,FALSE) -> 7813 | AA73: =VLOOKUP(AA$64&$Y73,GTYF!$C:$AR,42,FALSE) -> 1600.425 | AB73: =VLOOKUP(AB$64&$Y73,GTYF!$C:$AR,42,FALSE) -> 0 | AC73: =VLOOKUP(AC$64&$Y73,GTYF!$C:$AR,42,FALSE) -> 1600.425 | AD73: =VLOOKUP(AD$64&$Y73,GTYF!$C:$AR,42,FALSE) -> 106749.13 | AE73: =VLOOKUP(AE$64&$Y73,GTYF!$C:$AR,42,FALSE) -> 36836.25 | AF73: =VLOOKUP(AF$64&$Y73,GTYF!$C:$AR,42,FALSE) -> 196477.185 | AG73: =VLOOKUP(AG$64&$Y73,GTYF!$C:$AR,42,FALSE) -> 5475.645 | AH73: =VLOOKUP(AH$64&$Y73,GTYF!$C:$AR,42,FALSE) -> 308701.955
B74: Pinèdes blanches | D74: 0 | E74: 0 | F74: 690 | G74: 0.2204472843 | H74: 44700 | I74: 0.1227347611 | J74: 5100 | K74: 0.02464958917 | L74: 20300 | M74: 0.04402515723 | N74: 70100 | O74: 0.06791319512 | S74: Tableau 4. | T74: 690 | U74: 0.09623430962 | V74: 693.036 | W74: -3.036 | Y74: (FCTYF_PIN) | Z74: =VLOOKUP(Z$64&$Y74,GTYF!$C:$AP,6,FALSE) -> 47200.4 | AA74: =VLOOKUP(AA$64&$Y74,GTYF!$C:$AR,42,FALSE) -> 0 | AB74: =VLOOKUP(AB$64&$Y74,GTYF!$C:$AR,42,FALSE) -> 3465.18 | AC74: =VLOOKUP(AC$64&$Y74,GTYF!$C:$AR,42,FALSE) -> 3465.18 | AD74: =VLOOKUP(AD$64&$Y74,GTYF!$C:$AR,42,FALSE) -> 223273.485 | AE74: =VLOOKUP(AE$64&$Y74,GTYF!$C:$AR,42,FALSE) -> 186227.965 | AF74: =VLOOKUP(AF$64&$Y74,GTYF!$C:$AR,42,FALSE) -> 101490.975 | AG74: =VLOOKUP(AG$64&$Y74,GTYF!$C:$AR,42,FALSE) -> 25368.16 | AH74: =VLOOKUP(AH$64&$Y74,GTYF!$C:$AR,42,FALSE) -> 350141.265
B75: Pinèdes grises | D75: 0 | E75: 0 | F75: 0 | G75: 0 | H75: 0 | I75: 0 | J75: 0 | K75: 0 | L75: 0 | M75: 0 | N75: 0 | O75: 0 | S75: Tableau 4. | T75: 0 | U75: 0 | V75: 0 | W75: 0 | Y75: (FCTYF_PIG) | Z75: =VLOOKUP(Z$64&$Y75,GTYF!$C:$AP,6,FALSE) -> 0 | AA75: =VLOOKUP(AA$64&$Y75,GTYF!$C:$AR,42,FALSE) -> 0 | AB75: =VLOOKUP(AB$64&$Y75,GTYF!$C:$AR,42,FALSE) -> 0 | AC75: =VLOOKUP(AC$64&$Y75,GTYF!$C:$AR,42,FALSE) -> 0 | AD75: =VLOOKUP(AD$64&$Y75,GTYF!$C:$AR,42,FALSE) -> 0 | AE75: =VLOOKUP(AE$64&$Y75,GTYF!$C:$AR,42,FALSE) -> 0 | AF75: =VLOOKUP(AF$64&$Y75,GTYF!$C:$AR,42,FALSE) -> 0 | AG75: =VLOOKUP(AG$64&$Y75,GTYF!$C:$AR,42,FALSE) -> 0 | AH75: =VLOOKUP(AH$64&$Y75,GTYF!$C:$AR,42,FALSE) -> 0
B76: Prucheraies | D76: 0 | E76: 0 | F76: 0 | G76: 0 | H76: 0 | I76: 0 | J76: 0 | K76: 0 | L76: 0 | M76: 0 | N76: 0 | O76: 0 | S76: Tableau 4. | T76: 0 | U76: 0 | V76: 0 | W76: 0 | Y76: (FCTYF_PRU) | Z76: =VLOOKUP(Z$64&$Y76,GTYF!$C:$AP,6,FALSE) -> 1874.8 | AA76: =VLOOKUP(AA$64&$Y76,GTYF!$C:$AR,42,FALSE) -> 0 | AB76: =VLOOKUP(AB$64&$Y76,GTYF!$C:$AR,42,FALSE) -> 0 | AC76: =VLOOKUP(AC$64&$Y76,GTYF!$C:$AR,42,FALSE) -> 0 | AD76: =VLOOKUP(AD$64&$Y76,GTYF!$C:$AR,42,FALSE) -> 0 | AE76: =VLOOKUP(AE$64&$Y76,GTYF!$C:$AR,42,FALSE) -> 0 | AF76: =VLOOKUP(AF$64&$Y76,GTYF!$C:$AR,42,FALSE) -> 0 | AG76: =VLOOKUP(AG$64&$Y76,GTYF!$C:$AR,42,FALSE) -> 0 | AH76: =VLOOKUP(AH$64&$Y76,GTYF!$C:$AR,42,FALSE) -> 0
B77: Résineux à feuillus | D77: 510 | E77: 0.1262376238 | F77: 0 | G77: 0 | H77: 55500 | I77: 0.1523887974 | J77: 12000 | K77: 0.05799903335 | L77: 28200 | M77: 0.0611581002 | N77: 95700 | O77: 0.0927145902 | S77: Tableau 4. | T77: 510 | U77: 0.07112970711 | V77: 514.081 | W77: -4.081 | Y77: (FCTYF_RF) | Z77: =VLOOKUP(Z$64&$Y77,GTYF!$C:$AP,6,FALSE) -> 54016.8 | AA77: =VLOOKUP(AA$64&$Y77,GTYF!$C:$AR,42,FALSE) -> 2570.405 | AB77: =VLOOKUP(AB$64&$Y77,GTYF!$C:$AR,42,FALSE) -> 0 | AC77: =VLOOKUP(AC$64&$Y77,GTYF!$C:$AR,42,FALSE) -> 2570.405 | AD77: =VLOOKUP(AD$64&$Y77,GTYF!$C:$AR,42,FALSE) -> 277667.07 | AE77: =VLOOKUP(AE$64&$Y77,GTYF!$C:$AR,42,FALSE) -> 37740.225 | AF77: =VLOOKUP(AF$64&$Y77,GTYF!$C:$AR,42,FALSE) -> 140857.82 | AG77: =VLOOKUP(AG$64&$Y77,GTYF!$C:$AR,42,FALSE) -> 60025.865 | AH77: =VLOOKUP(AH$64&$Y77,GTYF!$C:$AR,42,FALSE) -> 478550.76
B78: Sapinières | D78: 120 | E78: 0.0297029703 | F78: 0 | G78: 0 | H78: 15400 | I78: 0.04228445909 | J78: =ROUND(AG78/5,-2) -> 400 | K78: 0.001933301112 | L78: 1800 | M78: 0.003903708523 | N78: 17600 | O78: 0.01705095912 | S78: Tableau 4. | T78: 120 | U78: 0.01673640167 | V78: 115.484 | W78: 4.516 | Y78: (FCTYF_SAB) | Z78: =VLOOKUP(Z$64&$Y78,GTYF!$C:$AP,6,FALSE) -> 6028.2 | AA78: =VLOOKUP(AA$64&$Y78,GTYF!$C:$AR,42,FALSE) -> 577.42 | AB78: =VLOOKUP(AB$64&$Y78,GTYF!$C:$AR,42,FALSE) -> 0 | AC78: =VLOOKUP(AC$64&$Y78,GTYF!$C:$AR,42,FALSE) -> 577.42 | AD78: =VLOOKUP(AD$64&$Y78,GTYF!$C:$AR,42,FALSE) -> 76968.715 | AE78: =VLOOKUP(AE$64&$Y78,GTYF!$C:$AR,42,FALSE) -> 234.655 | AF78: =VLOOKUP(AF$64&$Y78,GTYF!$C:$AR,42,FALSE) -> 8902.79 | AG78: =VLOOKUP(AG$64&$Y78,GTYF!$C:$AR,42,FALSE) -> 1752.375 | AH78: =VLOOKUP(AH$64&$Y78,GTYF!$C:$AR,42,FALSE) -> 87623.875
B79: Total | D79: =SUM(D65:D78) -> 4040 | E79: =SUM(E65:E78) -> 1 | F79: =SUM(F65:F78) -> 3130 | G79: =SUM(G65:G78) -> 1 | H79: =SUM(H65:H78) -> 364200 | I79: =SUM(I65:I78) -> 1 | J79: 206900 | K79: 1 | L79: 461100 | M79: 1 | N79: =SUM(N65:N78) -> 1032200 | O79: 1 | S79: Tableau 4. | T79: =SUM(T65:T78) -> 7170 | U79: =SUM(U65:U78) -> 1 | V79: =SUM(V65:V78) -> 7169.612 | W79: 0.388 | Y79: Somme | Z79: =SUM(Z65:Z78) -> 424725.3 | AA79: =SUM(AA65:AA78) -> 20199.685 | AB79: =SUM(AB65:AB78) -> 15648.375 | AC79: =SUM(AC65:AC78) -> 35848.06
B80: * Les superficies sont arrondies à la dizaine près et les volumes à la centaine près. Cette opération peut engendrer de légères distorsions sur les sommes | S80: Tableau 4. | Y80: Total (Output) | Z80: =VLOOKUP(Z$64,Output!$C:$AP,6,FALSE) -> 424725.3
Y81: Écart | Z81: =Z79-Z80 -> 0
N82: Écart de possibilité
N83: =N79-L49 -> 200 | O83: Valideur
B84: Tableau 8. Traitements commerciaux supportant les possibilités forestières
B85: Traitements commerciaux (récolte) | G85: Superficie annuelle moyenne (ha/an) | H85: Superficie antérieure (ha/an) | I85: Écart (ha/an)
T88: Légende | U88: Name | V88: PERIOD2@3
B89: Coupe avec protection de la régénération et des sols (CPRS) | G89: =IFERROR(ROUND(V89,-1),0)-G90-G91 -> 3980 | H89: =IFERROR(ROUND(VLOOKUP(O33,DataLocal!$A:$BH,37,FALSE),-1),0) -> 2380 | I89: =G89-H89 -> 1600 | S89: =LEFT(B$84,10) -> Tableau 8. | T89: Coupes avec protection de la régénération et des sols (CPRS) | U89: OSUPCT | V89: =IFERROR(VLOOKUP(U89,Output!$C:$AR,42,FALSE)/5,"0000") -> 4039.938
B90: Coupe avec protection des petites tiges marchandes (CPPTM) | G90: =IFERROR(ROUND(V90,-1),0) -> 0 | H90: =IFERROR(ROUND(VLOOKUP(O33,DataLocal!$A:$BH,38,FALSE),-1),0) -> 0 | I90: =G90-H90 -> 0 | S90: Tableau 8. | T90: Coupe avec protection des petites tiges marchandes (CPPTM) | U90: OSUPREALACPPTM | V90: =IFERROR(VLOOKUP(U90,Output!$C:$AR,42,FALSE)/5,"0000") -> 0
B91: Coupe avec réserve de semenciers (CRS) | G91: =IFERROR(ROUND(V91,-1),0) -> 60 | H91: =IFERROR(ROUND(VLOOKUP(33,DataLocal!$A:$BH,39,FALSE),-1),0) -> 0 | I91: 60 | S91: Tableau 8. | T91: Coupe avec réserve de semenciers (CRS) | U91: OSUPREALACRS | V91: =IFERROR(VLOOKUP(U91,Output!$C:$AR,42,FALSE)/5,"0000") -> 57.38
B92: Total des coupes finales | G92: =SUM(G89:G91) -> 4040 | H92: =SUM(H89:H91) -> 2380 | I92: 1660 | S92: Tableau 8.
B93: Éclaircie commerciale | G93: =IFERROR(ROUND(V93,-1),0) -> 10 | H93: =IFERROR(ROUND(VLOOKUP(O33,DataLocal!$A:$BH,40,FALSE),-1),0) -> 720 | I93: -710 | S93: Tableau 8. | T93: Éclaircie commerciale (EC) | U93: OSUPEC_SEPM | V93: =IFERROR(VLOOKUP(U93,Output!$C:$AR,42,FALSE)/5,"0000") -> 7.5
B94: Coupe progressive régulière | G94: =IFERROR(ROUND(V94+V95,-1),0) -> 0 | H94: =IFERROR(ROUND(VLOOKUP(O33,DataLocal!$A:$BH,41,FALSE),-1),0) -> 440 | I94: -440 | S94: Tableau 8. | T94: Coupe progressive régulière initiale (CPROG) | U94: OSUPCPROG_INI | V94: =IFERROR(VLOOKUP(U94,Output!$C:$AR,42,FALSE)/5,"0000") -> 0000
B95: Coupe progressive irrégulière à régénération lente (CPIL) | G95: =IFERROR(ROUND(V96+V97,-1),0) -> 1960 | H95: =IFERROR(ROUND(VLOOKUP(O33,DataLocal!$A:$BH,42,FALSE),-1),0) -> 1300 | I95: 660 | S95: Tableau 8. | T95: Coupe progressive régulière finale (CPROG) | U95: OSUPCPROG_FIN | V95: =IFERROR(VLOOKUP(U95,Output!$C:$AR,42,FALSE)/5,"0000") -> 0000
B96: Coupe progressive irrégulière à couvert permanent (CPICP) | G96: =IFERROR(ROUND(V98,-1),0) -> 1160 | H96: =IFERROR(ROUND(VLOOKUP(O33,DataLocal!$A:$BH,43,FALSE),-1),0) -> 1340 | I96: -180 | S96: Tableau 8. | T96: Coupe progessive irrégulière initiale (CPIRL) | U96: OSUPCPIRL_INI | V96: =IFERROR(VLOOKUP(U96,Output!$C:$AR,42,FALSE)/5,"0000") -> 1911.225
B97: Coupes de jardinage ou d'amélioration | G97: =IFERROR(ROUND(V99,-1),0) -> 0 | H97: =IFERROR(ROUND(VLOOKUP(O33,DataLocal!$A:$BH,44,FALSE),-1),0) -> 500 | I97: -500 | T97: Coupe progessive irrégulière finale (CPIRL) | U97: OSUPCPIRL_FIN | V97: =IFERROR(VLOOKUP(U97,Output!$C:$AR,42,FALSE)/5,"0000") -> 50
B98: Total des coupes partielles | G98: =SUM(G93:G97) -> 3130 | H98: =SUM(H93:H97) -> 4300 | I98: -1170 | S98: =LEFT(B$84,10) -> Tableau 8. | T98: Coupe à couvert permanent (CPICP) | U98: OSUPCPICP | V98: =IFERROR(VLOOKUP(U98,Output!$C:$AR,42,FALSE)/5,"0000") -> 1160.95
B99: Total des activités de récolte | G99: =G92+G98 -> 7170 | H99: =H98+H92 -> 6680 | I99: 490 | S99: =LEFT(B$84,10) -> Tableau 8. | T99: Coupe de jardinage (CJ) | U99: OSUPCJ | V99: =IFERROR(VLOOKUP(U99,Output!$C:$AR,42,FALSE)/5,"0000") -> 0000
B100: % des coupes totales / récolte | G100: =IFERROR(G92/G99,0) -> 0.5634588563 | H100: =IFERROR(H92/H99,0) -> 0.3562874251 | I100: =ROUND(G100-H100,2) -> 0.21 | W100: Valideur
B101: % des coupes partielles / récolte | G101: =IFERROR(G98/G99,0) -> 0.4365411437 | H101: =IFERROR(H98/H99,0) -> 0.6437125749 | I101: =ROUND(G101-H101,2) -> -0.21 | S101: =LEFT(B$84,10) -> Tableau 8. | U101: OSUPREALREGAPAR | V101: =VLOOKUP(U101,Output!$C:$AR,42,FALSE)/5 -> 3129.676 | W101: =ROUND(SUM(V93:V99),0)=ROUND(V101,0) -> TRUE
B102: Coupes partielles de peuplements résineux | G102: =ROUND(((AB67+AB71+AB75+AB76+AB77+AB78)/5),-1) -> 40 | H102: =IFERROR(ROUND(VLOOKUP(O33,DataLocal!$A:$BH,45,FALSE),-1),0) -> 1020 | I102: -980 | S102: =LEFT(B$84,10) -> Tableau 8. | U102: OSUPREALREGAFIN | V102: =VLOOKUP(U102,Output!$C:$AR,42,FALSE)/5 -> 4039.938 | W102: =ROUND((V89),0)=ROUND(V102,0) -> TRUE
B103: Coupes partielles de peuplements de feuillus tolérants et de pins | G103: =ROUND(((AB69+AB70+AB74)/5),-1) -> 3090 | H103: =IFERROR(ROUND(VLOOKUP(O33,DataLocal!$A:$BH,46,FALSE),-1),0) -> 3280 | I103: -190 | J103: Arrondi ajouté dans formules cellules G102 et G103 | S103: =LEFT(B$84,10) -> Tableau 8. | U103: OSUPREALREGAPRE | V103: =VLOOKUP(U103,Output!$C:$AR,42,FALSE)/5 -> 7169.613 | W103: =ROUND(V89+SUM(V93:V99),0)=ROUND(V103,0) -> TRUE
B109: Tableau 9. Variables descriptives reliées aux coupes partielles et totales par grand type de forêt | L109: La CRV est-elle compabilisée avec les coupes partielles (regaPar)?
B110: Grands types de forêt | E110: Coupes partielles | H110: Coupes totales | L110: Si Oui - Remplacer alors les valeurs (colonne H et I) par celles-ci
E111: Rotation moyenne | F111: Prélèvement moyen | G111: Surface terrière moyenne avant coupe | H111: Âge moyen des peuplements | I111: Volume moyen toutes essences | J111: Dimension des bois SEPM | M111: Âge moyen des peuplements | N111: Volume moyen toutes essences | P111: Àge moyen des peuplements (valeur originale)
S113: Référence Tableau 63 du cahier d'analyse VF
E115: Années | F115: ="m"&CHAR(179)&"/ha" -> m³/ha | G115: ="m"&CHAR(178)&"/ha" -> m²/ha | H115: Années | I115: ="m"&CHAR(179)&"/an" -> m³/an | J115: ="dcm"&CHAR(179)&"/tige" -> dcm³/tige | M115: Années | N115: ="m"&CHAR(179)&"/an" -> m³/an | P115: Années | S115: =LEFT(B$109,10) -> Tableau 9. | V115: OSUPREALREGAPRE | W115: OSUPINC | X115: OVOLGSEPMRECREGAFIN | Y115: ONBTGSEPMRECREGAFIN | Z115: OVOLTOTRECACT | AA115: OVOLTOTRECACFP | AB115: OVOLTOTRECACRS | AC115: OVOLTOTRECACPPTM | AD115: OSUPREALREGAFIN | AE115: OVOLTOTRECACRV | AF115: OAGETOTRECACT | AG115: OAGETOTRECACFP | AH115: OAGETOTRECACRS | AI115: OAGETOTRECACPPTM | AJ115: OSUPREALREGAFIN | AK115: OAGETOTRECACRV | AM115: OVOLTOTRECaEC | AN115: OVOLTOTRECaEC2 | AO115: OVOLTOTRECaEC3 | AP115: OVOLTOTRECaCA | AQ115: OVOLTOTRECaCA2 | AR115: OVOLTOTRECaCPROG | AS115: OVOLTOTRECaCPIL | AT115: OVOLTOTRECaCPIP | AU115: OVOLTOTRECaCPFORT | AV115: OVOLTOTRECaCPFAIBL | AW115: OVOLTOTRECaCP | AX115: OVOLTOTRECaCPJ | AY115: OVOLTOTRECaCJ | AZ115: SOMME | BA115: OSUPREALREGAPAR
B116: =T116 -> Bétulaies blanches | E116: - | F116: =IFERROR($AZ116/$BA116,"-") -> - | G116: - | H116: =IFERROR(($AF116+$AG116+$AH116+$AI116+$AK116)/$AJ116*5,"-") -> 110.7242015 | I116: =IFERROR(($Z116+$AA116+$AB116+$AC116+$AE116)/$AD116,"-") -> 185.0318788 | J116: =(IFERROR(X116/Y116*1000,"-")) -> 145.6378237 | M116: =IFERROR(($AF116+$AG116+$AH116+$AI116)/$AJ116*5,"-") -> 110.7242015 | N116: =IFERROR(($Z116+$AA116+$AB116+$AC116)/$AD116,"-") -> 185.0318788 | P116: 110.7242015 | S116: =LEFT(B$109,10) -> Tableau 9. | T116: Bétulaies blanches | U116: (FCTYF_BOP) | V116: =VLOOKUP(V$115&$U116,GTYF!$C:$AR,42,FALSE) -> 3187.545 | W116: =VLOOKUP(W$115&$U116,GTYF!$C:$AQ,6,FALSE) -> 14889.8 | X116: =VLOOKUP(X$115&$U116,GTYF!$C:$AR,42,FALSE) -> 96480.065 | Y116: =VLOOKUP(Y$115&$U116,GTYF!$C:$AR,42,FALSE) -> 662465.715 | Z116: =VLOOKUP(Z$115&$U116,GTYF!$C:$AR,42,FALSE) -> 589797.44 | AA116: =VLOOKUP(AA$115&$U116,GTYF!$C:$AR,42,FALSE) -> 0 | AB116: =VLOOKUP(AB$115&$U116,GTYF!$C:$AR,42,FALSE) -> 0 | AC116: =VLOOKUP(AC$115&$U116,GTYF!$C:$AR,42,FALSE) -> 0 | AD116: =VLOOKUP(AD$115&$U116,GTYF!$C:$AR,42,FALSE) -> 3187.545 | AE116: =VLOOKUP(AE$115&$U116,GTYF!$C:$AR,42,FALSE) -> 0 | AF116: =VLOOKUP(AF$115&$U116,GTYF!$C:$AR,42,FALSE) -> 70587.675 | AG116: =VLOOKUP(AG$115&$U116,GTYF!$C:$AR,42,FALSE) -> 0 | AH116: =VLOOKUP(AH$115&$U116,GTYF!$C:$AR,42,FALSE) -> 0 | AI116: =VLOOKUP(AI$115&$U116,GTYF!$C:$AR,42,FALSE) -> 0 | AJ116: =VLOOKUP(AJ$115&$U116,GTYF!$C:$AR,42,FALSE) -> 3187.545 | AK116: =VLOOKUP(AK$115&$U116,GTYF!$C:$AR,42,FALSE) -> 0 | AM116: =VLOOKUP(AM$115&$U116,GTYF!$C:$AR,42,FALSE) -> 0 | AN116: =VLOOKUP(AN$115&$U116,GTYF!$C:$AR,42,FALSE) -> 0 | AO116: =VLOOKUP(AO$115&$U116,GTYF!$C:$AR,42,FALSE) -> 0 | AP116: =VLOOKUP(AP$115&$U116,GTYF!$C:$AR,42,FALSE) -> 0 | AQ116: =VLOOKUP(AQ$115&$U116,GTYF!$C:$AR,42,FALSE) -> 0 | AR116: =VLOOKUP(AR$115&$U116,GTYF!$C:$AR,42,FALSE) -> 0 | AS116: =VLOOKUP(AS$115&$U116,GTYF!$C:$AR,42,FALSE) -> 0 | AT116: =VLOOKUP(AT$115&$U116,GTYF!$C:$AR,42,FALSE) -> 0 | AU116: =VLOOKUP(AU$115&$U116,GTYF!$C:$AR,42,FALSE) -> 0 | AV116: =VLOOKUP(AV$115&$U116,GTYF!$C:$AR,42,FALSE) -> 0 | AW116: =VLOOKUP(AW$115&$U116,GTYF!$C:$AR,42,FALSE) -> 0 | AX116: =VLOOKUP(AX$115&$U116,GTYF!$C:$AR,42,FALSE) -> 0 | AY116: =VLOOKUP(AY$115&$U116,GTYF!$C:$AR,42,FALSE) -> 0 | AZ116: =SUM(AM116:AY116) -> 0 | BA116: =VLOOKUP(BA$115&$U116,GTYF!$C:$AR,42,FALSE) -> 0
B117: Bétulaies blanches à résineux | E117: - | F117: - | G117: - | H117: =IFERROR(($AF117+$AG117+$AH117+$AI117+$AK117)/$AJ117*5,"-") -> 93.03067447 | I117: =IFERROR(($Z117+$AA117+$AB117+$AC117+$AE117)/$AD117,"-") -> 190.7766531 | J117: =(IFERROR(X117/Y117*1000,"-")) -> 139.0982381 | M117: =IFERROR(($AF117+$AG117+$AH117+$AI117)/$AJ117*5,"-") -> 93.03067447 | N117: =IFERROR(($Z117+$AA117+$AB117+$AC117)/$AD117,"-") -> 190.7766531 | P117: 93.03067447 | S117: Tableau 9. | T117: Bétulaies blanches à résineux | U117: (FCTYF_BOPR) | V117: =VLOOKUP(V$115&$U117,GTYF!$C:$AR,42,FALSE) -> 4503.42 | W117: =VLOOKUP(W$115&$U117,GTYF!$C:$AQ,6,FALSE) -> 28005.3 | X117: =VLOOKUP(X$115&$U117,GTYF!$C:$AR,42,FALSE) -> 228840.69 | Y117: =VLOOKUP(Y$115&$U117,GTYF!$C:$AR,42,FALSE) -> 1645173.175 | Z117: =VLOOKUP(Z$115&$U117,GTYF!$C:$AR,42,FALSE) -> 859147.395 | AA117: =VLOOKUP(AA$115&$U117,GTYF!$C:$AR,42,FALSE) -> 0 | AB117: =VLOOKUP(AB$115&$U117,GTYF!$C:$AR,42,FALSE) -> 0 | AC117: =VLOOKUP(AC$115&$U117,GTYF!$C:$AR,42,FALSE) -> 0 | AD117: =VLOOKUP(AD$115&$U117,GTYF!$C:$AR,42,FALSE) -> 4503.42 | AE117: =VLOOKUP(AE$115&$U117,GTYF!$C:$AR,42,FALSE) -> 0 | AF117: =VLOOKUP(AF$115&$U117,GTYF!$C:$AR,42,FALSE) -> 83791.24 | AG117: =VLOOKUP(AG$115&$U117,GTYF!$C:$AR,42,FALSE) -> 0 | AH117: =VLOOKUP(AH$115&$U117,GTYF!$C:$AR,42,FALSE) -> 0 | AI117: =VLOOKUP(AI$115&$U117,GTYF!$C:$AR,42,FALSE) -> 0 | AJ117: =VLOOKUP(AJ$115&$U117,GTYF!$C:$AR,42,FALSE) -> 4503.42 | AK117: =VLOOKUP(AK$115&$U117,GTYF!$C:$AR,42,FALSE) -> 0 | AM117: =VLOOKUP(AM$115&$U117,GTYF!$C:$AR,42,FALSE) -> 0 | AN117: =VLOOKUP(AN$115&$U117,GTYF!$C:$AR,42,FALSE) -> 0 | AO117: =VLOOKUP(AO$115&$U117,GTYF!$C:$AR,42,FALSE) -> 0 | AP117: =VLOOKUP(AP$115&$U117,GTYF!$C:$AR,42,FALSE) -> 0 | AQ117: =VLOOKUP(AQ$115&$U117,GTYF!$C:$AR,42,FALSE) -> 0 | AR117: =VLOOKUP(AR$115&$U117,GTYF!$C:$AR,42,FALSE) -> 0 | AS117: =VLOOKUP(AS$115&$U117,GTYF!$C:$AR,42,FALSE) -> 0 | AT117: =VLOOKUP(AT$115&$U117,GTYF!$C:$AR,42,FALSE) -> 0 | AU117: =VLOOKUP(AU$115&$U117,GTYF!$C:$AR,42,FALSE) -> 0 | AV117: =VLOOKUP(AV$115&$U117,GTYF!$C:$AR,42,FALSE) -> 0 | AW117: =VLOOKUP(AW$115&$U117,GTYF!$C:$AR,42,FALSE) -> 0 | AX117: =VLOOKUP(AX$115&$U117,GTYF!$C:$AR,42,FALSE) -> 0 | AY117: =VLOOKUP(AY$115&$U117,GTYF!$C:$AR,42,FALSE) -> 0 | AZ117: =SUM(AM117:AY117) -> 0 | BA117: =VLOOKUP(BA$115&$U117,GTYF!$C:$AR,42,FALSE) -> 0
B118: Cédrières | E118: ND | F118: 83 | G118: 38 | H118: =IFERROR(($AF118+$AG118+$AH118+$AI118+$AK118)/$AJ118*5,"-") -> - | I118: - | J118: =(IFERROR(X118/Y118*1000,"-")) -> - | M118: - | N118: - | P118: - | S118: Tableau 9. | T118: Cédrières | U118: (FCTYF_THO) | V118: =VLOOKUP(V$115&$U118,GTYF!$C:$AR,42,FALSE) -> 172.44 | W118: =VLOOKUP(W$115&$U118,GTYF!$C:$AQ,6,FALSE) -> 16071.3 | X118: =VLOOKUP(X$115&$U118,GTYF!$C:$AR,42,FALSE) -> 0 | Y118: =VLOOKUP(Y$115&$U118,GTYF!$C:$AR,42,FALSE) -> 0 | Z118: =VLOOKUP(Z$115&$U118,GTYF!$C:$AR,42,FALSE) -> 0 | AA118: =VLOOKUP(AA$115&$U118,GTYF!$C:$AR,42,FALSE) -> 0 | AB118: =VLOOKUP(AB$115&$U118,GTYF!$C:$AR,42,FALSE) -> 0 | AC118: =VLOOKUP(AC$115&$U118,GTYF!$C:$AR,42,FALSE) -> 0 | AD118: =VLOOKUP(AD$115&$U118,GTYF!$C:$AR,42,FALSE) -> 0 | AE118: =VLOOKUP(AE$115&$U118,GTYF!$C:$AR,42,FALSE) -> 0 | AF118: =VLOOKUP(AF$115&$U118,GTYF!$C:$AR,42,FALSE) -> 0 | AG118: =VLOOKUP(AG$115&$U118,GTYF!$C:$AR,42,FALSE) -> 0 | AH118: =VLOOKUP(AH$115&$U118,GTYF!$C:$AR,42,FALSE) -> 0 | AI118: =VLOOKUP(AI$115&$U118,GTYF!$C:$AR,42,FALSE) -> 0 | AJ118: =VLOOKUP(AJ$115&$U118,GTYF!$C:$AR,42,FALSE) -> 0 | AK118: =VLOOKUP(AK$115&$U118,GTYF!$C:$AR,42,FALSE) -> 0 | AM118: =VLOOKUP(AM$115&$U118,GTYF!$C:$AR,42,FALSE) -> 0 | AN118: =VLOOKUP(AN$115&$U118,GTYF!$C:$AR,42,FALSE) -> 0 | AO118: =VLOOKUP(AO$115&$U118,GTYF!$C:$AR,42,FALSE) -> 0 | AP118: =VLOOKUP(AP$115&$U118,GTYF!$C:$AR,42,FALSE) -> 0 | AQ118: =VLOOKUP(AQ$115&$U118,GTYF!$C:$AR,42,FALSE) -> 0 | AR118: =VLOOKUP(AR$115&$U118,GTYF!$C:$AR,42,FALSE) -> 0 | AS118: =VLOOKUP(AS$115&$U118,GTYF!$C:$AR,42,FALSE) -> 0 | AT118: =VLOOKUP(AT$115&$U118,GTYF!$C:$AR,42,FALSE) -> 0 | AU118: =VLOOKUP(AU$115&$U118,GTYF!$C:$AR,42,FALSE) -> 0 | AV118: =VLOOKUP(AV$115&$U118,GTYF!$C:$AR,42,FALSE) -> 17223.485 | AW118: =VLOOKUP(AW$115&$U118,GTYF!$C:$AR,42,FALSE) -> 0 | AX118: =VLOOKUP(AX$115&$U118,GTYF!$C:$AR,42,FALSE) -> 0 | AY118: =VLOOKUP(AY$115&$U118,GTYF!$C:$AR,42,FALSE) -> 0 | AZ118: 17223.485 | BA118: =VLOOKUP(BA$115&$U118,GTYF!$C:$AR,42,FALSE) -> 172.44
B119: Érablières rouges | E119: - | F119: - | G119: - | H119: >120 | I119: 200.0425591 | J119: ND | M119: 166.3009871 | N119: 200.0425591 | P119: 166.3009871 | S119: Tableau 9. | T119: Érablières rouges | U119: (FCTYF_ERO) | V119: =VLOOKUP(V$115&$U119,GTYF!$C:$AR,42,FALSE) -> 536.9 | W119: =VLOOKUP(W$115&$U119,GTYF!$C:$AQ,6,FALSE) -> 15034.5 | X119: =VLOOKUP(X$115&$U119,GTYF!$C:$AR,42,FALSE) -> 16573.66 | Y119: =VLOOKUP(Y$115&$U119,GTYF!$C:$AR,42,FALSE) -> 65869.53 | Z119: =VLOOKUP(Z$115&$U119,GTYF!$C:$AR,42,FALSE) -> 53727.3 | AA119: =VLOOKUP(AA$115&$U119,GTYF!$C:$AR,42,FALSE) -> 0 | AB119: =VLOOKUP(AB$115&$U119,GTYF!$C:$AR,42,FALSE) -> 53675.55 | AC119: =VLOOKUP(AC$115&$U119,GTYF!$C:$AR,42,FALSE) -> 0 | AD119: =VLOOKUP(AD$115&$U119,GTYF!$C:$AR,42,FALSE) -> 536.9 | AE119: =VLOOKUP(AE$115&$U119,GTYF!$C:$AR,42,FALSE) -> 0 | AF119: =VLOOKUP(AF$115&$U119,GTYF!$C:$AR,42,FALSE) -> 8375 | AG119: =VLOOKUP(AG$115&$U119,GTYF!$C:$AR,42,FALSE) -> 0 | AH119: =VLOOKUP(AH$115&$U119,GTYF!$C:$AR,42,FALSE) -> 9482.4 | AI119: =VLOOKUP(AI$115&$U119,GTYF!$C:$AR,42,FALSE) -> 0 | AJ119: =VLOOKUP(AJ$115&$U119,GTYF!$C:$AR,42,FALSE) -> 536.9 | AK119: =VLOOKUP(AK$115&$U119,GTYF!$C:$AR,42,FALSE) -> 0 | AM119: =VLOOKUP(AM$115&$U119,GTYF!$C:$AR,42,FALSE) -> 0 | AN119: =VLOOKUP(AN$115&$U119,GTYF!$C:$AR,42,FALSE) -> 0 | AO119: =VLOOKUP(AO$115&$U119,GTYF!$C:$AR,42,FALSE) -> 0 | AP119: =VLOOKUP(AP$115&$U119,GTYF!$C:$AR,42,FALSE) -> 0 | AQ119: =VLOOKUP(AQ$115&$U119,GTYF!$C:$AR,42,FALSE) -> 0 | AR119: =VLOOKUP(AR$115&$U119,GTYF!$C:$AR,42,FALSE) -> 0 | AS119: =VLOOKUP(AS$115&$U119,GTYF!$C:$AR,42,FALSE) -> 0 | AT119: =VLOOKUP(AT$115&$U119,GTYF!$C:$AR,42,FALSE) -> 0 | AU119: =VLOOKUP(AU$115&$U119,GTYF!$C:$AR,42,FALSE) -> 0 | AV119: =VLOOKUP(AV$115&$U119,GTYF!$C:$AR,42,FALSE) -> 0 | AW119: =VLOOKUP(AW$115&$U119,GTYF!$C:$AR,42,FALSE) -> 0 | AX119: =VLOOKUP(AX$115&$U119,GTYF!$C:$AR,42,FALSE) -> 0 | AY119: =VLOOKUP(AY$115&$U119,GTYF!$C:$AR,42,FALSE) -> 0 | AZ119: 0 | BA119: =VLOOKUP(BA$115&$U119,GTYF!$C:$AR,42,FALSE) -> 0
B120: Feuillus tolérants | E120: 50 | F120: 77 | G120: 25 | H120: - | I120: - | J120: - | M120: =IFERROR(($AF120+$AG120+$AH120+$AI120)/$AJ120*5,"-") -> - | N120: - | P120: - | S120: Tableau 9. | T120: Feuillus tolérants | U120: (FCTYF_FT) | V120: =VLOOKUP(V$115&$U120,GTYF!$C:$AR,42,FALSE) -> 9038.36 | W120: =VLOOKUP(W$115&$U120,GTYF!$C:$AQ,6,FALSE) -> 124277.8 | X120: =VLOOKUP(X$115&$U120,GTYF!$C:$AR,42,FALSE) -> 409.68 | Y120: =VLOOKUP(Y$115&$U120,GTYF!$C:$AR,42,FALSE) -> 5085.615 | Z120: =VLOOKUP(Z$115&$U120,GTYF!$C:$AR,42,FALSE) -> 0 | AA120: =VLOOKUP(AA$115&$U120,GTYF!$C:$AR,42,FALSE) -> 0 | AB120: =VLOOKUP(AB$115&$U120,GTYF!$C:$AR,42,FALSE) -> 0 | AC120: =VLOOKUP(AC$115&$U120,GTYF!$C:$AR,42,FALSE) -> 0 | AD120: =VLOOKUP(AD$115&$U120,GTYF!$C:$AR,42,FALSE) -> 0 | AE120: =VLOOKUP(AE$115&$U120,GTYF!$C:$AR,42,FALSE) -> 32066.9 | AF120: =VLOOKUP(AF$115&$U120,GTYF!$C:$AR,42,FALSE) -> 0 | AG120: =VLOOKUP(AG$115&$U120,GTYF!$C:$AR,42,FALSE) -> 0 | AH120: =VLOOKUP(AH$115&$U120,GTYF!$C:$AR,42,FALSE) -> 0 | AI120: =VLOOKUP(AI$115&$U120,GTYF!$C:$AR,42,FALSE) -> 0 | AJ120: =VLOOKUP(AJ$115&$U120,GTYF!$C:$AR,42,FALSE) -> 0 | AK120: =VLOOKUP(AK$115&$U120,GTYF!$C:$AR,42,FALSE) -> 3466.505 | AM120: =VLOOKUP(AM$115&$U120,GTYF!$C:$AR,42,FALSE) -> 0 | AN120: =VLOOKUP(AN$115&$U120,GTYF!$C:$AR,42,FALSE) -> 0 | AO120: =VLOOKUP(AO$115&$U120,GTYF!$C:$AR,42,FALSE) -> 0 | AP120: =VLOOKUP(AP$115&$U120,GTYF!$C:$AR,42,FALSE) -> 0 | AQ120: =VLOOKUP(AQ$115&$U120,GTYF!$C:$AR,42,FALSE) -> 0 | AR120: =VLOOKUP(AR$115&$U120,GTYF!$C:$AR,42,FALSE) -> 0 | AS120: =VLOOKUP(AS$115&$U120,GTYF!$C:$AR,42,FALSE) -> 158337.795 | AT120: =VLOOKUP(AT$115&$U120,GTYF!$C:$AR,42,FALSE) -> 35857.115 | AU120: =VLOOKUP(AU$115&$U120,GTYF!$C:$AR,42,FALSE) -> 116278.045 | AV120: =VLOOKUP(AV$115&$U120,GTYF!$C:$AR,42,FALSE) -> 354701.91 | AW120: =VLOOKUP(AW$115&$U120,GTYF!$C:$AR,42,FALSE) -> 0 | AX120: =VLOOKUP(AX$115&$U120,GTYF!$C:$AR,42,FALSE) -> 0 | AY120: =VLOOKUP(AY$115&$U120,GTYF!$C:$AR,42,FALSE) -> 0 | AZ120: 665174.865 | BA120: =VLOOKUP(BA$115&$U120,GTYF!$C:$AR,42,FALSE) -> 9038.36
B121: Feuillus tolérants à résineux | E121: 42 | F121: 94 | G121: 28 | H121: >120 | I121: 171.516776 | J121: ND | M121: 142.3676217 | N121: 171.516776 | P121: 142.3676217 | S121: Tableau 9. | T121: Feuillus tolérants à résineux | U121: (FCTYF_FTR) | V121: =VLOOKUP(V$115&$U121,GTYF!$C:$AR,42,FALSE) -> 3079.745 | W121: =VLOOKUP(W$115&$U121,GTYF!$C:$AQ,6,FALSE) -> 47810.4 | X121: =VLOOKUP(X$115&$U121,GTYF!$C:$AR,42,FALSE) -> 9084.505 | Y121: =VLOOKUP(Y$115&$U121,GTYF!$C:$AR,42,FALSE) -> 40611.005 | Z121: =VLOOKUP(Z$115&$U121,GTYF!$C:$AR,42,FALSE) -> 24844.205 | AA121: =VLOOKUP(AA$115&$U121,GTYF!$C:$AR,42,FALSE) -> 0 | AB121: =VLOOKUP(AB$115&$U121,GTYF!$C:$AR,42,FALSE) -> 0 | AC121: =VLOOKUP(AC$115&$U121,GTYF!$C:$AR,42,FALSE) -> 0 | AD121: =VLOOKUP(AD$115&$U121,GTYF!$C:$AR,42,FALSE) -> 144.85 | AE121: =VLOOKUP(AE$115&$U121,GTYF!$C:$AR,42,FALSE) -> 0 | AF121: =VLOOKUP(AF$115&$U121,GTYF!$C:$AR,42,FALSE) -> 4124.39 | AG121: =VLOOKUP(AG$115&$U121,GTYF!$C:$AR,42,FALSE) -> 0 | AH121: =VLOOKUP(AH$115&$U121,GTYF!$C:$AR,42,FALSE) -> 0 | AI121: =VLOOKUP(AI$115&$U121,GTYF!$C:$AR,42,FALSE) -> 0 | AJ121: =VLOOKUP(AJ$115&$U121,GTYF!$C:$AR,42,FALSE) -> 144.85 | AK121: =VLOOKUP(AK$115&$U121,GTYF!$C:$AR,42,FALSE) -> 0 | AM121: =VLOOKUP(AM$115&$U121,GTYF!$C:$AR,42,FALSE) -> 0 | AN121: =VLOOKUP(AN$115&$U121,GTYF!$C:$AR,42,FALSE) -> 0 | AO121: =VLOOKUP(AO$115&$U121,GTYF!$C:$AR,42,FALSE) -> 0 | AP121: =VLOOKUP(AP$115&$U121,GTYF!$C:$AR,42,FALSE) -> 0 | AQ121: =VLOOKUP(AQ$115&$U121,GTYF!$C:$AR,42,FALSE) -> 0 | AR121: =VLOOKUP(AR$115&$U121,GTYF!$C:$AR,42,FALSE) -> 0 | AS121: =VLOOKUP(AS$115&$U121,GTYF!$C:$AR,42,FALSE) -> 299332.6 | AT121: =VLOOKUP(AT$115&$U121,GTYF!$C:$AR,42,FALSE) -> 0 | AU121: =VLOOKUP(AU$115&$U121,GTYF!$C:$AR,42,FALSE) -> 0 | AV121: =VLOOKUP(AV$115&$U121,GTYF!$C:$AR,42,FALSE) -> 0 | AW121: =VLOOKUP(AW$115&$U121,GTYF!$C:$AR,42,FALSE) -> 0 | AX121: =VLOOKUP(AX$115&$U121,GTYF!$C:$AR,42,FALSE) -> 0 | AY121: =VLOOKUP(AY$115&$U121,GTYF!$C:$AR,42,FALSE) -> 0 | AZ121: =SUM(AM121:AY121) -> 299332.6 | BA121: =VLOOKUP(BA$115&$U121,GTYF!$C:$AR,42,FALSE) -> 2934.895
B122: Pessières | E122: 34 | F122: 49 | G122: 32 | H122: 82.72530393 | I122: 167.161068 | J122: 159.8001326 | M122: 82.72530393 | N122: 167.161068 | P122: 82.72530393 | S122: Tableau 9. | T122: Pessières | U122: (FCTYF_EPX) | V122: =VLOOKUP(V$115&$U122,GTYF!$C:$AR,42,FALSE) -> 2743.345 | W122: =VLOOKUP(W$115&$U122,GTYF!$C:$AQ,6,FALSE) -> 39020.2 | X122: =VLOOKUP(X$115&$U122,GTYF!$C:$AR,42,FALSE) -> 359331.77 | Y122: =VLOOKUP(Y$115&$U122,GTYF!$C:$AR,42,FALSE) -> 2248632.49 | Z122: =VLOOKUP(Z$115&$U122,GTYF!$C:$AR,42,FALSE) -> 452311.94 | AA122: =VLOOKUP(AA$115&$U122,GTYF!$C:$AR,42,FALSE) -> 0 | AB122: =VLOOKUP(AB$115&$U122,GTYF!$C:$AR,42,FALSE) -> 0 | AC122: =VLOOKUP(AC$115&$U122,GTYF!$C:$AR,42,FALSE) -> 0 | AD122: =VLOOKUP(AD$115&$U122,GTYF!$C:$AR,42,FALSE) -> 2705.845 | AE122: =VLOOKUP(AE$115&$U122,GTYF!$C:$AR,42,FALSE) -> 0 | AF122: =VLOOKUP(AF$115&$U122,GTYF!$C:$AR,42,FALSE) -> 44768.37 | AG122: =VLOOKUP(AG$115&$U122,GTYF!$C:$AR,42,FALSE) -> 0 | AH122: =VLOOKUP(AH$115&$U122,GTYF!$C:$AR,42,FALSE) -> 0 | AI122: =VLOOKUP(AI$115&$U122,GTYF!$C:$AR,42,FALSE) -> 0 | AJ122: =VLOOKUP(AJ$115&$U122,GTYF!$C:$AR,42,FALSE) -> 2705.845 | AK122: =VLOOKUP(AK$115&$U122,GTYF!$C:$AR,42,FALSE) -> 0 | AM122: =VLOOKUP(AM$115&$U122,GTYF!$C:$AR,42,FALSE) -> 1422 | AN122: =VLOOKUP(AN$115&$U122,GTYF!$C:$AR,42,FALSE) -> 0 | AO122: =VLOOKUP(AO$115&$U122,GTYF!$C:$AR,42,FALSE) -> 0 | AP122: =VLOOKUP(AP$115&$U122,GTYF!$C:$AR,42,FALSE) -> 0 | AQ122: =VLOOKUP(AQ$115&$U122,GTYF!$C:$AR,42,FALSE) -> 0 | AR122: =VLOOKUP(AR$115&$U122,GTYF!$C:$AR,42,FALSE) -> 0 | AS122: =VLOOKUP(AS$115&$U122,GTYF!$C:$AR,42,FALSE) -> 0 | AT122: =VLOOKUP(AT$115&$U122,GTYF!$C:$AR,42,FALSE) -> 0 | AU122: =VLOOKUP(AU$115&$U122,GTYF!$C:$AR,42,FALSE) -> 0 | AV122: =VLOOKUP(AV$115&$U122,GTYF!$C:$AR,42,FALSE) -> 0 | AW122: =VLOOKUP(AW$115&$U122,GTYF!$C:$AR,42,FALSE) -> 0 | AX122: =VLOOKUP(AX$115&$U122,GTYF!$C:$AR,42,FALSE) -> 0 | AY122: =VLOOKUP(AY$115&$U122,GTYF!$C:$AR,42,FALSE) -> 0 | AZ122: 1422 | BA122: =VLOOKUP(BA$115&$U122,GTYF!$C:$AR,42,FALSE) -> 37.5
B123: Peupleraies | E123: - | F123: - | G123: - | H123: 81.34573936 | I123: 202.7661287 | J123: 119.8810922 | M123: 81.34573936 | N123: 202.7661287 | P123: 81.34573936 | S123: Tableau 9. | T123: Peupleraies | U123: (FCTYF_PEU) | V123: =VLOOKUP(V$115&$U123,GTYF!$C:$AR,42,FALSE) -> 4372.875 | W123: =VLOOKUP(W$115&$U123,GTYF!$C:$AQ,6,FALSE) -> 22682.8 | X123: =VLOOKUP(X$115&$U123,GTYF!$C:$AR,42,FALSE) -> 111958.815 | Y123: =VLOOKUP(Y$115&$U123,GTYF!$C:$AR,42,FALSE) -> 933915.54 | Z123: =VLOOKUP(Z$115&$U123,GTYF!$C:$AR,42,FALSE) -> 886670.935 | AA123: =VLOOKUP(AA$115&$U123,GTYF!$C:$AR,42,FALSE) -> 0 | AB123: =VLOOKUP(AB$115&$U123,GTYF!$C:$AR,42,FALSE) -> 0 | AC123: =VLOOKUP(AC$115&$U123,GTYF!$C:$AR,42,FALSE) -> 0 | AD123: =VLOOKUP(AD$115&$U123,GTYF!$C:$AR,42,FALSE) -> 4372.875 | AE123: =VLOOKUP(AE$115&$U123,GTYF!$C:$AR,42,FALSE) -> 0 | AF123: =VLOOKUP(AF$115&$U123,GTYF!$C:$AR,42,FALSE) -> 71142.95 | AG123: =VLOOKUP(AG$115&$U123,GTYF!$C:$AR,42,FALSE) -> 0 | AH123: =VLOOKUP(AH$115&$U123,GTYF!$C:$AR,42,FALSE) -> 0 | AI123: =VLOOKUP(AI$115&$U123,GTYF!$C:$AR,42,FALSE) -> 0 | AJ123: =VLOOKUP(AJ$115&$U123,GTYF!$C:$AR,42,FALSE) -> 4372.875 | AK123: =VLOOKUP(AK$115&$U123,GTYF!$C:$AR,42,FALSE) -> 0 | AM123: =VLOOKUP(AM$115&$U123,GTYF!$C:$AR,42,FALSE) -> 0 | AN123: =VLOOKUP(AN$115&$U123,GTYF!$C:$AR,42,FALSE) -> 0 | AO123: =VLOOKUP(AO$115&$U123,GTYF!$C:$AR,42,FALSE) -> 0 | AP123: =VLOOKUP(AP$115&$U123,GTYF!$C:$AR,42,FALSE) -> 0 | AQ123: =VLOOKUP(AQ$115&$U123,GTYF!$C:$AR,42,FALSE) -> 0 | AR123: =VLOOKUP(AR$115&$U123,GTYF!$C:$AR,42,FALSE) -> 0 | AS123: =VLOOKUP(AS$115&$U123,GTYF!$C:$AR,42,FALSE) -> 0 | AT123: =VLOOKUP(AT$115&$U123,GTYF!$C:$AR,42,FALSE) -> 0 | AU123: =VLOOKUP(AU$115&$U123,GTYF!$C:$AR,42,FALSE) -> 0 | AV123: =VLOOKUP(AV$115&$U123,GTYF!$C:$AR,42,FALSE) -> 0 | AW123: =VLOOKUP(AW$115&$U123,GTYF!$C:$AR,42,FALSE) -> 0 | AX123: =VLOOKUP(AX$115&$U123,GTYF!$C:$AR,42,FALSE) -> 0 | AY123: =VLOOKUP(AY$115&$U123,GTYF!$C:$AR,42,FALSE) -> 0 | AZ123: 0 | BA123: =VLOOKUP(BA$115&$U123,GTYF!$C:$AR,42,FALSE) -> 0
B124: Peupleraies à résineux | E124: - | F124: - | G124: - | H124: 54.30090445 | I124: 192.8874861 | J124: 114.5943234 | M124: 54.30090445 | N124: 192.8874861 | P124: 54.30090445 | S124: Tableau 9. | T124: Peupleraies à résineux | U124: (FCTYF_PEUR) | V124: =VLOOKUP(V$115&$U124,GTYF!$C:$AR,42,FALSE) -> 1600.425 | W124: =VLOOKUP(W$115&$U124,GTYF!$C:$AQ,6,FALSE) -> 7813 | X124: =VLOOKUP(X$115&$U124,GTYF!$C:$AR,42,FALSE) -> 69912.88 | Y124: =VLOOKUP(Y$115&$U124,GTYF!$C:$AR,42,FALSE) -> 610090.255 | Z124: =VLOOKUP(Z$115&$U124,GTYF!$C:$AR,42,FALSE) -> 308701.955 | AA124: =VLOOKUP(AA$115&$U124,GTYF!$C:$AR,42,FALSE) -> 0 | AB124: =VLOOKUP(AB$115&$U124,GTYF!$C:$AR,42,FALSE) -> 0 | AC124: =VLOOKUP(AC$115&$U124,GTYF!$C:$AR,42,FALSE) -> 0 | AD124: =VLOOKUP(AD$115&$U124,GTYF!$C:$AR,42,FALSE) -> 1600.425 | AE124: =VLOOKUP(AE$115&$U124,GTYF!$C:$AR,42,FALSE) -> 0 | AF124: =VLOOKUP(AF$115&$U124,GTYF!$C:$AR,42,FALSE) -> 17380.905 | AG124: =VLOOKUP(AG$115&$U124,GTYF!$C:$AR,42,FALSE) -> 0 | AH124: =VLOOKUP(AH$115&$U124,GTYF!$C:$AR,42,FALSE) -> 0 | AI124: =VLOOKUP(AI$115&$U124,GTYF!$C:$AR,42,FALSE) -> 0 | AJ124: =VLOOKUP(AJ$115&$U124,GTYF!$C:$AR,42,FALSE) -> 1600.425 | AK124: =VLOOKUP(AK$115&$U124,GTYF!$C:$AR,42,FALSE) -> 0 | AM124: =VLOOKUP(AM$115&$U124,GTYF!$C:$AR,42,FALSE) -> 0 | AN124: =VLOOKUP(AN$115&$U124,GTYF!$C:$AR,42,FALSE) -> 0 | AO124: =VLOOKUP(AO$115&$U124,GTYF!$C:$AR,42,FALSE) -> 0 | AP124: =VLOOKUP(AP$115&$U124,GTYF!$C:$AR,42,FALSE) -> 0 | AQ124: =VLOOKUP(AQ$115&$U124,GTYF!$C:$AR,42,FALSE) -> 0 | AR124: =VLOOKUP(AR$115&$U124,GTYF!$C:$AR,42,FALSE) -> 0 | AS124: =VLOOKUP(AS$115&$U124,GTYF!$C:$AR,42,FALSE) -> 0 | AT124: =VLOOKUP(AT$115&$U124,GTYF!$C:$AR,42,FALSE) -> 0 | AU124: =VLOOKUP(AU$115&$U124,GTYF!$C:$AR,42,FALSE) -> 0 | AV124: =VLOOKUP(AV$115&$U124,GTYF!$C:$AR,42,FALSE) -> 0 | AW124: =VLOOKUP(AW$115&$U124,GTYF!$C:$AR,42,FALSE) -> 0 | AX124: =VLOOKUP(AX$115&$U124,GTYF!$C:$AR,42,FALSE) -> 0 | AY124: =VLOOKUP(AY$115&$U124,GTYF!$C:$AR,42,FALSE) -> 0 | AZ124: 0 | BA124: =VLOOKUP(BA$115&$U124,GTYF!$C:$AR,42,FALSE) -> 0
B125: Pinèdes blanches | E125: 48 | F125: 102 | G125: 29 | H125: - | I125: - | J125: - | M125: - | N125: - | P125: - | S125: Tableau 9. | T125: Pinèdes blanches | U125: (FCTYF_PIN) | V125: =VLOOKUP(V$115&$U125,GTYF!$C:$AR,42,FALSE) -> 3465.18 | W125: =VLOOKUP(W$115&$U125,GTYF!$C:$AQ,6,FALSE) -> 47200.4 | X125: =VLOOKUP(X$115&$U125,GTYF!$C:$AR,42,FALSE) -> 0 | Y125: =VLOOKUP(Y$115&$U125,GTYF!$C:$AR,42,FALSE) -> 0 | Z125: =VLOOKUP(Z$115&$U125,GTYF!$C:$AR,42,FALSE) -> 0 | AA125: =VLOOKUP(AA$115&$U125,GTYF!$C:$AR,42,FALSE) -> 0 | AB125: =VLOOKUP(AB$115&$U125,GTYF!$C:$AR,42,FALSE) -> 0 | AC125: =VLOOKUP(AC$115&$U125,GTYF!$C:$AR,42,FALSE) -> 0 | AD125: =VLOOKUP(AD$115&$U125,GTYF!$C:$AR,42,FALSE) -> 0 | AE125: =VLOOKUP(AE$115&$U125,GTYF!$C:$AR,42,FALSE) -> 0 | AF125: =VLOOKUP(AF$115&$U125,GTYF!$C:$AR,42,FALSE) -> 0 | AG125: =VLOOKUP(AG$115&$U125,GTYF!$C:$AR,42,FALSE) -> 0 | AH125: =VLOOKUP(AH$115&$U125,GTYF!$C:$AR,42,FALSE) -> 0 | AI125: =VLOOKUP(AI$115&$U125,GTYF!$C:$AR,42,FALSE) -> 0 | AJ125: =VLOOKUP(AJ$115&$U125,GTYF!$C:$AR,42,FALSE) -> 0 | AK125: =VLOOKUP(AK$115&$U125,GTYF!$C:$AR,42,FALSE) -> 0 | AM125: =VLOOKUP(AM$115&$U125,GTYF!$C:$AR,42,FALSE) -> 0 | AN125: =VLOOKUP(AN$115&$U125,GTYF!$C:$AR,42,FALSE) -> 0 | AO125: =VLOOKUP(AO$115&$U125,GTYF!$C:$AR,42,FALSE) -> 0 | AP125: =VLOOKUP(AP$115&$U125,GTYF!$C:$AR,42,FALSE) -> 0 | AQ125: =VLOOKUP(AQ$115&$U125,GTYF!$C:$AR,42,FALSE) -> 0 | AR125: =VLOOKUP(AR$115&$U125,GTYF!$C:$AR,42,FALSE) -> 0 | AS125: =VLOOKUP(AS$115&$U125,GTYF!$C:$AR,42,FALSE) -> 67885.34 | AT125: =VLOOKUP(AT$115&$U125,GTYF!$C:$AR,42,FALSE) -> 0 | AU125: =VLOOKUP(AU$115&$U125,GTYF!$C:$AR,42,FALSE) -> 282255.925 | AV125: =VLOOKUP(AV$115&$U125,GTYF!$C:$AR,42,FALSE) -> 0 | AW125: =VLOOKUP(AW$115&$U125,GTYF!$C:$AR,42,FALSE) -> 0 | AX125: =VLOOKUP(AX$115&$U125,GTYF!$C:$AR,42,FALSE) -> 0 | AY125: =VLOOKUP(AY$115&$U125,GTYF!$C:$AR,42,FALSE) -> 0 | AZ125: 350141.265 | BA125: =VLOOKUP(BA$115&$U125,GTYF!$C:$AR,42,FALSE) -> 3465.18
B126: Pinèdes grises | E126: - | F126: - | G126: - | H126: - | I126: - | J126: - | M126: - | N126: - | P126: - | S126: Tableau 9. | T126: Pinèdes grises | U126: (FCTYF_PIG) | V126: =VLOOKUP(V$115&$U126,GTYF!$C:$AR,42,FALSE) -> 0 | W126: =VLOOKUP(W$115&$U126,GTYF!$C:$AQ,6,FALSE) -> 0 | X126: =VLOOKUP(X$115&$U126,GTYF!$C:$AR,42,FALSE) -> 0 | Y126: =VLOOKUP(Y$115&$U126,GTYF!$C:$AR,42,FALSE) -> 0 | Z126: =VLOOKUP(Z$115&$U126,GTYF!$C:$AR,42,FALSE) -> 0 | AA126: =VLOOKUP(AA$115&$U126,GTYF!$C:$AR,42,FALSE) -> 0 | AB126: =VLOOKUP(AB$115&$U126,GTYF!$C:$AR,42,FALSE) -> 0 | AC126: =VLOOKUP(AC$115&$U126,GTYF!$C:$AR,42,FALSE) -> 0 | AD126: =VLOOKUP(AD$115&$U126,GTYF!$C:$AR,42,FALSE) -> 0 | AE126: =VLOOKUP(AE$115&$U126,GTYF!$C:$AR,42,FALSE) -> 0 | AF126: =VLOOKUP(AF$115&$U126,GTYF!$C:$AR,42,FALSE) -> 0 | AG126: =VLOOKUP(AG$115&$U126,GTYF!$C:$AR,42,FALSE) -> 0 | AH126: =VLOOKUP(AH$115&$U126,GTYF!$C:$AR,42,FALSE) -> 0 | AI126: =VLOOKUP(AI$115&$U126,GTYF!$C:$AR,42,FALSE) -> 0 | AJ126: =VLOOKUP(AJ$115&$U126,GTYF!$C:$AR,42,FALSE) -> 0 | AK126: =VLOOKUP(AK$115&$U126,GTYF!$C:$AR,42,FALSE) -> 0 | AM126: =VLOOKUP(AM$115&$U126,GTYF!$C:$AR,42,FALSE) -> 0 | AN126: =VLOOKUP(AN$115&$U126,GTYF!$C:$AR,42,FALSE) -> 0 | AO126: =VLOOKUP(AO$115&$U126,GTYF!$C:$AR,42,FALSE) -> 0 | AP126: =VLOOKUP(AP$115&$U126,GTYF!$C:$AR,42,FALSE) -> 0 | AQ126: =VLOOKUP(AQ$115&$U126,GTYF!$C:$AR,42,FALSE) -> 0 | AR126: =VLOOKUP(AR$115&$U126,GTYF!$C:$AR,42,FALSE) -> 0 | AS126: =VLOOKUP(AS$115&$U126,GTYF!$C:$AR,42,FALSE) -> 0 | AT126: =VLOOKUP(AT$115&$U126,GTYF!$C:$AR,42,FALSE) -> 0 | AU126: =VLOOKUP(AU$115&$U126,GTYF!$C:$AR,42,FALSE) -> 0 | AV126: =VLOOKUP(AV$115&$U126,GTYF!$C:$AR,42,FALSE) -> 0 | AW126: =VLOOKUP(AW$115&$U126,GTYF!$C:$AR,42,FALSE) -> 0 | AX126: =VLOOKUP(AX$115&$U126,GTYF!$C:$AR,42,FALSE) -> 0 | AY126: =VLOOKUP(AY$115&$U126,GTYF!$C:$AR,42,FALSE) -> 0 | AZ126: 0 | BA126: =VLOOKUP(BA$115&$U126,GTYF!$C:$AR,42,FALSE) -> 0
B127: Prucheraies | E127: - | F127: - | G127: - | H127: - | I127: - | J127: - | M127: - | N127: - | P127: - | S127: Tableau 9. | T127: Prucheraies | U127: (FCTYF_PRU) | V127: =VLOOKUP(V$115&$U127,GTYF!$C:$AR,42,FALSE) -> 0 | W127: =VLOOKUP(W$115&$U127,GTYF!$C:$AQ,6,FALSE) -> 1874.8 | X127: =VLOOKUP(X$115&$U127,GTYF!$C:$AR,42,FALSE) -> 0 | Y127: =VLOOKUP(Y$115&$U127,GTYF!$C:$AR,42,FALSE) -> 0 | Z127: =VLOOKUP(Z$115&$U127,GTYF!$C:$AR,42,FALSE) -> 0 | AA127: =VLOOKUP(AA$115&$U127,GTYF!$C:$AR,42,FALSE) -> 0 | AB127: =VLOOKUP(AB$115&$U127,GTYF!$C:$AR,42,FALSE) -> 0 | AC127: =VLOOKUP(AC$115&$U127,GTYF!$C:$AR,42,FALSE) -> 0 | AD127: =VLOOKUP(AD$115&$U127,GTYF!$C:$AR,42,FALSE) -> 0 | AE127: =VLOOKUP(AE$115&$U127,GTYF!$C:$AR,42,FALSE) -> 0 | AF127: =VLOOKUP(AF$115&$U127,GTYF!$C:$AR,42,FALSE) -> 0 | AG127: =VLOOKUP(AG$115&$U127,GTYF!$C:$AR,42,FALSE) -> 0 | AH127: =VLOOKUP(AH$115&$U127,GTYF!$C:$AR,42,FALSE) -> 0 | AI127: =VLOOKUP(AI$115&$U127,GTYF!$C:$AR,42,FALSE) -> 0 | AJ127: =VLOOKUP(AJ$115&$U127,GTYF!$C:$AR,42,FALSE) -> 0 | AK127: =VLOOKUP(AK$115&$U127,GTYF!$C:$AR,42,FALSE) -> 0 | AM127: =VLOOKUP(AM$115&$U127,GTYF!$C:$AR,42,FALSE) -> 0 | AN127: =VLOOKUP(AN$115&$U127,GTYF!$C:$AR,42,FALSE) -> 0 | AO127: =VLOOKUP(AO$115&$U127,GTYF!$C:$AR,42,FALSE) -> 0 | AP127: =VLOOKUP(AP$115&$U127,GTYF!$C:$AR,42,FALSE) -> 0 | AQ127: =VLOOKUP(AQ$115&$U127,GTYF!$C:$AR,42,FALSE) -> 0 | AR127: =VLOOKUP(AR$115&$U127,GTYF!$C:$AR,42,FALSE) -> 0 | AS127: =VLOOKUP(AS$115&$U127,GTYF!$C:$AR,42,FALSE) -> 0 | AT127: =VLOOKUP(AT$115&$U127,GTYF!$C:$AR,42,FALSE) -> 0 | AU127: =VLOOKUP(AU$115&$U127,GTYF!$C:$AR,42,FALSE) -> 0 | AV127: =VLOOKUP(AV$115&$U127,GTYF!$C:$AR,42,FALSE) -> 0 | AW127: =VLOOKUP(AW$115&$U127,GTYF!$C:$AR,42,FALSE) -> 0 | AX127: =VLOOKUP(AX$115&$U127,GTYF!$C:$AR,42,FALSE) -> 0 | AY127: =VLOOKUP(AY$115&$U127,GTYF!$C:$AR,42,FALSE) -> 0 | AZ127: 0 | BA127: =VLOOKUP(BA$115&$U127,GTYF!$C:$AR,42,FALSE) -> 0
B128: Résineux à feuillus | E128: - | F128: - | G128: - | H128: 86.24759522 | I128: 186.1771822 | J128: 199.4686679 | M128: 86.24759522 | N128: 186.1771822 | P128: 86.24759522 | S128: Tableau 9. | T128: Résineux à feuillus | U128: (FCTYF_RF) | V128: =VLOOKUP(V$115&$U128,GTYF!$C:$AR,42,FALSE) -> 2570.405 | W128: =VLOOKUP(W$115&$U128,GTYF!$C:$AQ,6,FALSE) -> 54016.8 | X128: =VLOOKUP(X$115&$U128,GTYF!$C:$AR,42,FALSE) -> 239926.845 | Y128: =VLOOKUP(Y$115&$U128,GTYF!$C:$AR,42,FALSE) -> 1202829.735 | Z128: =VLOOKUP(Z$115&$U128,GTYF!$C:$AR,42,FALSE) -> 478550.76 | AA128: =VLOOKUP(AA$115&$U128,GTYF!$C:$AR,42,FALSE) -> 0 | AB128: =VLOOKUP(AB$115&$U128,GTYF!$C:$AR,42,FALSE) -> 0 | AC128: =VLOOKUP(AC$115&$U128,GTYF!$C:$AR,42,FALSE) -> 0 | AD128: =VLOOKUP(AD$115&$U128,GTYF!$C:$AR,42,FALSE) -> 2570.405 | AE128: =VLOOKUP(AE$115&$U128,GTYF!$C:$AR,42,FALSE) -> 0 | AF128: =VLOOKUP(AF$115&$U128,GTYF!$C:$AR,42,FALSE) -> 44338.25 | AG128: =VLOOKUP(AG$115&$U128,GTYF!$C:$AR,42,FALSE) -> 0 | AH128: =VLOOKUP(AH$115&$U128,GTYF!$C:$AR,42,FALSE) -> 0 | AI128: =VLOOKUP(AI$115&$U128,GTYF!$C:$AR,42,FALSE) -> 0 | AJ128: =VLOOKUP(AJ$115&$U128,GTYF!$C:$AR,42,FALSE) -> 2570.405 | AK128: =VLOOKUP(AK$115&$U128,GTYF!$C:$AR,42,FALSE) -> 0 | AM128: =VLOOKUP(AM$115&$U128,GTYF!$C:$AR,42,FALSE) -> 0 | AN128: =VLOOKUP(AN$115&$U128,GTYF!$C:$AR,42,FALSE) -> 0 | AO128: =VLOOKUP(AO$115&$U128,GTYF!$C:$AR,42,FALSE) -> 0 | AP128: =VLOOKUP(AP$115&$U128,GTYF!$C:$AR,42,FALSE) -> 0 | AQ128: =VLOOKUP(AQ$115&$U128,GTYF!$C:$AR,42,FALSE) -> 0 | AR128: =VLOOKUP(AR$115&$U128,GTYF!$C:$AR,42,FALSE) -> 0 | AS128: =VLOOKUP(AS$115&$U128,GTYF!$C:$AR,42,FALSE) -> 0 | AT128: =VLOOKUP(AT$115&$U128,GTYF!$C:$AR,42,FALSE) -> 0 | AU128: =VLOOKUP(AU$115&$U128,GTYF!$C:$AR,42,FALSE) -> 0 | AV128: =VLOOKUP(AV$115&$U128,GTYF!$C:$AR,42,FALSE) -> 0 | AW128: =VLOOKUP(AW$115&$U128,GTYF!$C:$AR,42,FALSE) -> 0 | AX128: =VLOOKUP(AX$115&$U128,GTYF!$C:$AR,42,FALSE) -> 0 | AY128: =VLOOKUP(AY$115&$U128,GTYF!$C:$AR,42,FALSE) -> 0 | AZ128: 0 | BA128: =VLOOKUP(BA$115&$U128,GTYF!$C:$AR,42,FALSE) -> 0
B129: Sapinières | E129: - | F129: - | G129: - | H129: 50.02034914 | I129: 151.7506754 | J129: 126.8277652 | M129: =IFERROR(($AF129+$AG129+$AH129+$AI129)/$AJ129*5,"-") -> 50.02034914 | N129: 151.7506754 | P129: 50.02034914 | S129: Tableau 9. | T129: Sapinières | U129: (FCTYF_SAB) | V129: =VLOOKUP(V$115&$U129,GTYF!$C:$AR,42,FALSE) -> 577.42 | W129: =VLOOKUP(W$115&$U129,GTYF!$C:$AQ,6,FALSE) -> 6028.2 | X129: =VLOOKUP(X$115&$U129,GTYF!$C:$AR,42,FALSE) -> 76734.065 | Y129: =VLOOKUP(Y$115&$U129,GTYF!$C:$AR,42,FALSE) -> 605025.76 | Z129: =VLOOKUP(Z$115&$U129,GTYF!$C:$AR,42,FALSE) -> 87623.875 | AA129: =VLOOKUP(AA$115&$U129,GTYF!$C:$AR,42,FALSE) -> 0 | AB129: =VLOOKUP(AB$115&$U129,GTYF!$C:$AR,42,FALSE) -> 0 | AC129: =VLOOKUP(AC$115&$U129,GTYF!$C:$AR,42,FALSE) -> 0 | AD129: =VLOOKUP(AD$115&$U129,GTYF!$C:$AR,42,FALSE) -> 577.42 | AE129: =VLOOKUP(AE$115&$U129,GTYF!$C:$AR,42,FALSE) -> 0 | AF129: =VLOOKUP(AF$115&$U129,GTYF!$C:$AR,42,FALSE) -> 5776.55 | AG129: =VLOOKUP(AG$115&$U129,GTYF!$C:$AR,42,FALSE) -> 0 | AH129: =VLOOKUP(AH$115&$U129,GTYF!$C:$AR,42,FALSE) -> 0 | AI129: =VLOOKUP(AI$115&$U129,GTYF!$C:$AR,42,FALSE) -> 0 | AJ129: =VLOOKUP(AJ$115&$U129,GTYF!$C:$AR,42,FALSE) -> 577.42 | AK129: =VLOOKUP(AK$115&$U129,GTYF!$C:$AR,42,FALSE) -> 0 | AM129: =VLOOKUP(AM$115&$U129,GTYF!$C:$AR,42,FALSE) -> 0 | AN129: =VLOOKUP(AN$115&$U129,GTYF!$C:$AR,42,FALSE) -> 0 | AO129: =VLOOKUP(AO$115&$U129,GTYF!$C:$AR,42,FALSE) -> 0 | AP129: =VLOOKUP(AP$115&$U129,GTYF!$C:$AR,42,FALSE) -> 0 | AQ129: =VLOOKUP(AQ$115&$U129,GTYF!$C:$AR,42,FALSE) -> 0 | AR129: =VLOOKUP(AR$115&$U129,GTYF!$C:$AR,42,FALSE) -> 0 | AS129: =VLOOKUP(AS$115&$U129,GTYF!$C:$AR,42,FALSE) -> 0 | AT129: =VLOOKUP(AT$115&$U129,GTYF!$C:$AR,42,FALSE) -> 0 | AU129: =VLOOKUP(AU$115&$U129,GTYF!$C:$AR,42,FALSE) -> 0 | AV129: =VLOOKUP(AV$115&$U129,GTYF!$C:$AR,42,FALSE) -> 0 | AW129: =VLOOKUP(AW$115&$U129,GTYF!$C:$AR,42,FALSE) -> 0 | AX129: =VLOOKUP(AX$115&$U129,GTYF!$C:$AR,42,FALSE) -> 0 | AY129: =VLOOKUP(AY$115&$U129,GTYF!$C:$AR,42,FALSE) -> 0 | AZ129: 0 | BA129: =VLOOKUP(BA$115&$U129,GTYF!$C:$AR,42,FALSE) -> 0
S130: Tableau 9. | T130: Tous les GTYF | V130: =SUM(V116:V129) -> 35848.06 | W130: =SUM(W116:W129) -> 424725.3 | X130: 1209252.975 | Y130: 8019698.82 | Z130: 3741375.805 | AA130: 0 | AB130: 53675.55 | AC130: 0 | AD130: 20199.685 | AE130: 32066.9 | AF130: 350285.33 | AG130: 0 | AH130: 9482.4 | AI130: 0 | AJ130: 20199.685 | AK130: 3466.505
L131: Les statistiques portants sur les coupes partielles proviennent d'un Script R et sont disponibles ici:
L132: T:\Donnees\02_Courant\01_CPF\01_UA\0XXXX\70_Determination\72_Rapport\01_Cahier_DET\Tableau_9
L133: Données T:\Donnees\02_Courant\01_CPF\01_UA\07152\70_Determination\72_Rapport\01_Cahier_DET\Tableau_9\Coupes_partielles_P2_a_P6.xlsx intégrées.
B134: Tableau 10. Traitements non commerciaux supportant les possibilités forestières | L134: Pas de données de rotation moyenne pour les cédrières
B135: Traitements non commerciaux | F135: Superficie annuelle moyenne (ha/an) | G135: Superficie antérieure (ha/an) | H135: Écart (ha/an) | L135: Données colonne F selon résultat script R Coupes_partielles_P2_a_P6.xlsx | X135: Exemple U03772
K138: Le texte en rouge demande à l'analyste de valider la nature exacte du traitement et les superficies - variable selon la vague et l'UA - veuillez ensuite mettre en noir et supprimer la remarque si elle ne s'applique pas (si DEG_1 ne contient pas de regarni)
B139: Ligniculture (essences à croissance rapide) | F139: =ROUND(V139,-1) -> 0 | G139: =IFERROR(ROUND(VLOOKUP(O33,DataLocal!$A:$BH,47,FALSE),-1),0) -> 0 | H139: =F139-G139 -> 0 | I139: 0 | J139: 0 | S139: =LEFT(B$134,11) -> Tableau 10. | T139: Plantation ligniculture (pins, feuillus) | U139: OSUPPL_PPF | V139: =IFERROR(VLOOKUP(U139,Output!C:AR,42,FALSE),0)/5 -> 0
B140: Plantation intensive (2 000 plants/ha) | F140: =ROUND(V140,-1) -> 30 | G140: =IFERROR(ROUND(VLOOKUP(O33,DataLocal!$A:$BH,48,FALSE),-1),0) -> 0 | H140: =F140-G140 -> 30 | I140: 30 | J140: 0 | S140: =LEFT(B$134,11) -> Tableau 10. | T140: Plantation intensive | U140: OSUPPL_SEPM_I | V140: =IFERROR(VLOOKUP(U140,Output!C:AR,42,FALSE),0)/5 -> 26.795
B141: Plantation de base (1 600 plants/ha) | F141: =ROUND(V141,-1) -> 340 | G141: =IFERROR(ROUND(VLOOKUP(O33,DataLocal!$A:$BH,49,FALSE),-1),0) -> 620 | H141: -280 | I141: 340 | J141: 620 | S141: Tableau 10. | T141: Plantation de base | U141: OSUPPL_SEPM_E | V141: =IFERROR(VLOOKUP(U141,Output!C:AR,42,FALSE),0)/5 -> 343.205
B142: Regarni | F142: =ROUND(V142,-1) -> 150 | G142: =IFERROR(ROUND(VLOOKUP(O33,DataLocal!$A:$BH,50,FALSE),-1),0) -> 180 | H142: -30 | I142: 150 | J142: 180 | S142: Tableau 10. | T142: Regarni | U142: OSUPREG | V142: =IFERROR(VLOOKUP(U142,Output!C:AR,42,FALSE),0)/5 -> 150
B143: % des plantations dans les coupes totales | F143: =IFERROR(SUM(F139:F141)/G92,0) -> 0.09158415842 | G143: =IFERROR(SUM(G139:G141)/H92,0) -> 0.2605042017 | H143: -0.1689200433 | I143: 0.09158415842 | J143: 0.2605042017 | S143: Tableau 10.
B144: Total des travaux de reboisement | F144: =ROUND(SUM(F139:F142),-1) -> 520 | G144: =ROUND(SUM(G139:G142),-1) -> 800 | H144: -280 | I144: 520 | J144: 800 | S144: Tableau 10.
B145: Nettoiement (régénération naturelle et plantation) | F145: =ROUND(V145,-1) -> 810 | G145: =IFERROR(ROUND(VLOOKUP(O33,DataLocal!$A:$BH,51,FALSE),-1),0) -> 230 | H145: 580 | I145: 800 | J145: 230 | S145: Tableau 10. | T145: Nettoiement | U145: OSUPREALNET | V145: =IFERROR(VLOOKUP(U145,Output!C:AR,42,FALSE),0)/5 -> 806.373
B146: Éclaircie précommerciale | F146: =ROUND(V146,-1) -> 270 | G146: =IFERROR(ROUND(VLOOKUP(O33,DataLocal!$A:$BH,52,FALSE),-1),0) -> 70 | H146: 200 | I146: 270 | J146: 70 | S146: Tableau 10. | T146: Éclaircie précommerciale de la régénération naturelle | U146: OSUPREALEPC | V146: =IFERROR(VLOOKUP(U146,Output!C:AR,42,FALSE),0)/5 -> 269.948 | X146: Exemple U09751
B147: Dégagement de la régénération naturelle (et regarni) | F147: =ROUND(V147,-1) -> 150 | G147: =IFERROR(ROUND(VLOOKUP(O33,DataLocal!$A:$BH,53,FALSE),-1),0) -> 50 | H147: 100 | I147: 150 | J147: 50 | S147: Tableau 10. | T147: Dégagement de la régénération naturelle | U147: OSUPDEG_2 | V147: =IFERROR(VLOOKUP(U147,Output!C:AR,42,FALSE),0)/5 -> 150
B148: Dégagement des plantations | F148: =ROUND(V148,-1) -> 380 | G148: =IFERROR(ROUND(VLOOKUP(O33,DataLocal!$A:$BH,54,FALSE),-1),0) -> 680 | H148: -300 | I148: 380 | J148: 680 | S148: Tableau 10. | T148: Dégagement de plantation | U148: OSUPDEG_1 | V148: =IFERROR(VLOOKUP(U148,Output!C:AR,42,FALSE),0)/5 -> 375.058
B149: Élagage | F149: =ROUND(V149,-1) -> 140 | G149: =IFERROR(ROUND(VLOOKUP(O33,DataLocal!$A:$BN,66,FALSE),-1),0) -> 60 | H149: 80 | I149: 140 | J149: 60 | S149: Tableau 10. | T149: Élagage (plantation) | U149: OSUPELAG | V149: =IFERROR(VLOOKUP(U149,Output!C:AR,42,FALSE),0)/5 -> 140
B150: Total des travaux d'éducation | F150: =SUM(F145:F149) -> 1750 | G150: =SUM(G145:G149) -> 1090 | H150: 660 | I150: 1740 | J150: 1090 | S150: Tableau 10. | U150: OSUPSCA_LIGN | V150: =IFERROR(VLOOKUP(U150,Output!C:AR,42,FALSE),0)/5 -> 0
B151: Scarifiage partiel | F151: =ROUND(V152,-1) -> 240 | G151: =IFERROR(ROUND(VLOOKUP(O33,DataLocal!$A:$BH,58,FALSE),-1),0) -> 1450 | H151: -1210 | I151: 240 | J151: 1450 | S151: Tableau 10. | U151: OSUPSCA_LRD | V151: =IFERROR(VLOOKUP(U151,Output!C:AR,42,FALSE),0)/5 -> 0
B152: Scarifiage en plein | F152: =ROUND(V153+V150+V151,-1) -> 430 | G152: =IFERROR(ROUND(VLOOKUP(O33,DataLocal!$A:$BH,59,FALSE),-1),0) -> 630 | H152: -200 | I152: 430 | J152: 630 | S152: Tableau 10. | U152: OSUPSCA_PART | V152: =IFERROR(VLOOKUP(U152,Output!C:AR,42,FALSE),0)/5 -> 240
B153: Total de la préparation de terrain | F153: =IFERROR(SUM(F151:F152),0) -> 670 | G153: =IFERROR(SUM(G151:G152),0) -> 2080 | H153: -1410 | I153: 670 | J153: 2080 | S153: Tableau 10. | U153: OSUPSCA_REG | V153: =IFERROR(VLOOKUP(U153,Output!C:AR,42,FALSE),0)/5 -> 427.38
B154: Total des travaux sans récolte | F154: =F153+F150+F144 -> 2940 | G154: =G153+G150+G144 -> 3970 | H154: -1030 | I154: 2930 | J154: 3970
B160: Tableau 13 : Variation du volume sur pied à court, moyen et long terme | L160: % du volume total | U160: colonne | V160: 37 | W160: 38 | X160: 39 | Y160: 40 | AF160: 37 | AG160: 38 | AH160: 39 | AI160: 40
B161: Essences | C161: Volume moyen sur pied (m3) | G161: Volume moyen sur pied (%) | V161: Volume moyen sur pied (m3) | Z161: Volume moyen sur pied (%) | AF161: Volume dans courbe SNAT
C162: 2023 à 2048 | D162: 2048 à 2073 | E162: 2073 à 2118 | F162: 2118 à 2168 | G162: =C162 -> 2023 à 2048 | H162: =D162 -> 2048 à 2073 | I162: 2073 à 2118 | J162: 2118 à 2168 | L162: 2023 à 2048 | T162: Légende | U162: Name | V162: p 2 à 6 | W162: p 7 à 11 | X162: p 12 à 20 | Y162: p 21 à 30 | Z162: p 2 à 6 | AA162: p 7 à 11 | AB162: p 12 à 20 | AC162: p 21 à 30 | AE162: Name | AF162: p 2 à 6 | AG162: p 7 à 11 | AH162: p 12 à 20 | AI162: p 21 à 30
B163: =T163 -> Sapin baumier | C163: =ROUND(V163-AF163,-2) -> 5871300 | D163: =ROUND(W163-AG163,-2) -> 5008100 | E163: 4569200 | F163: 5453700 | G163: =C163/C$177 -> 0.09645511477 | H163: =D163/D$177 -> 0.08268612261 | I163: =E163/E$177 -> 0.07543967402 | J163: =F163/F$177 -> 0.09004319141 | L163: =C163/C$177 -> 0.09645511477 | S163: =LEFT(B$160,11) -> Tableau 13 | T163: Sapin baumier | U163: OVOLSABPIEDINC | V163: =VLOOKUP($U163,Output!$C:$AQ,V$160,FALSE) -> 5871252.866 | W163: =VLOOKUP($U163,Output!$C:$AQ,W$160,FALSE) -> 5008075.756 | X163: =VLOOKUP($U163,Output!$C:$AQ,X$160,FALSE) -> 4569195.246 | Y163: =VLOOKUP($U163,Output!$C:$AQ,Y$160,FALSE) -> 5453722.521 | Z163: =V163/V$178 -> 0.09645436871 | AA163: =W163/W$178 -> 0.08268579046 | AB163: =X163/X$178 -> 0.07543965767 | AC163: =Y163/Y$178 -> 0.09004363743 | AE163: OVOLSABPIEDSNAT | AF163: =IFERROR(VLOOKUP($AE163,Output!$C:$AQ,AF$160,FALSE),0) -> 0 | AG163: =IFERROR(VLOOKUP($AE163,Output!$C:$AQ,AG$160,FALSE),0) -> 0 | AH163: =IFERROR(VLOOKUP($AE163,Output!$C:$AQ,AH$160,FALSE),0) -> 0 | AI163: =IFERROR(VLOOKUP($AE163,Output!$C:$AQ,AI$160,FALSE),0) -> 0
B164: =T164 -> Épinettes | C164: =ROUND(V164-AF164,-2) -> 7316900 | D164: 7356800 | E164: 7878500 | F164: 8362700 | G164: 0.1202037759 | H164: 0.1214642812 | I164: 0.1300777974 | J164: 0.1380721706 | L164: 0.1202037759 | S164: Tableau 13 | T164: Épinettes | U164: OVOLgEpxPIEDINC | V164: =VLOOKUP($U164,Output!$C:$AQ,V$160,FALSE) -> 7316914.362 | W164: =VLOOKUP($U164,Output!$C:$AQ,W$160,FALSE) -> 7356754.89 | X164: =VLOOKUP($U164,Output!$C:$AQ,X$160,FALSE) -> 7878515.432 | Y164: =VLOOKUP($U164,Output!$C:$AQ,Y$160,FALSE) -> 8362730.497 | Z164: 0.120204047 | AA164: 0.1214636365 | AB164: 0.1300781593 | AC164: 0.1380727879 | AE164: OVOLgEpxPIEDSNAT | AF164: =IFERROR(VLOOKUP($AE164,Output!$C:$AQ,AF$160,FALSE),0) -> 0 | AG164: =IFERROR(VLOOKUP($AE164,Output!$C:$AQ,AG$160,FALSE),0) -> 0 | AH164: =IFERROR(VLOOKUP($AE164,Output!$C:$AQ,AH$160,FALSE),0) -> 0 | AI164: =IFERROR(VLOOKUP($AE164,Output!$C:$AQ,AI$160,FALSE),0) -> 0
B165: =T165 -> Pin gris | C165: 480600 | D165: 578000 | E165: 878600 | F165: 1028500 | G165: 0.007895411265 | H165: 0.009543056023 | I165: 0.01450610557 | J165: 0.01698102616 | L165: 0.007895411265 | S165: Tableau 13 | T165: Pin gris | U165: OVOLgPgPIEDINC | V165: =VLOOKUP($U165,Output!$C:$AQ,V$160,FALSE) -> 480625.568 | W165: =VLOOKUP($U165,Output!$C:$AQ,W$160,FALSE) -> 577950.616 | X165: =VLOOKUP($U165,Output!$C:$AQ,X$160,FALSE) -> 878558.2044 | Y165: =VLOOKUP($U165,Output!$C:$AQ,Y$160,FALSE) -> 1028538.271 | Z165: 0.007895833616 | AA165: 0.009542248532 | AB165: 0.01450542746 | AC165: 0.01698167202 | AE165: OVOLgPgPIEDSNAT | AF165: =IFERROR(VLOOKUP($AE165,Output!$C:$AQ,AF$160,FALSE),0) -> 0 | AG165: =IFERROR(VLOOKUP($AE165,Output!$C:$AQ,AG$160,FALSE),0) -> 0 | AH165: =IFERROR(VLOOKUP($AE165,Output!$C:$AQ,AH$160,FALSE),0) -> 0 | AI165: =IFERROR(VLOOKUP($AE165,Output!$C:$AQ,AI$160,FALSE),0) -> 0
B166: =T166 -> Mélèzes | C166: 66500 | D166: 44100 | E166: 38100 | F166: 33700 | G166: 0.001092477838 | H166: 0.0007281120599 | I166: 0.0006290491946 | J166: 0.0005564030934 | L166: 0.001092477838 | S166: Tableau 13 | T166: Mélèzes | U166: OVOLgMlPIEDINC | V166: =VLOOKUP($U166,Output!$C:$AQ,V$160,FALSE) -> 66452.618 | W166: =VLOOKUP($U166,Output!$C:$AQ,W$160,FALSE) -> 44061.51 | X166: =VLOOKUP($U166,Output!$C:$AQ,X$160,FALSE) -> 38120.82889 | Y166: =VLOOKUP($U166,Output!$C:$AQ,Y$160,FALSE) -> 33735.691 | Z166: 0.001091699756 | AA166: 0.000727477171 | AB166: 0.0006293936081 | AC166: 0.0005569928277 | AE166: OVOLGMlPIEDSNAT | AF166: =IFERROR(VLOOKUP($AE166,Output!$C:$AQ,AF$160,FALSE),0) -> 0 | AG166: =IFERROR(VLOOKUP($AE166,Output!$C:$AQ,AG$160,FALSE),0) -> 0 | AH166: =IFERROR(VLOOKUP($AE166,Output!$C:$AQ,AH$160,FALSE),0) -> 0 | AI166: =IFERROR(VLOOKUP($AE166,Output!$C:$AQ,AI$160,FALSE),0) -> 0
B167: Thuya | C167: =ROUND(V167-AF167,-2) -> 2927900 | D167: 2729000 | E167: 2712000 | F167: 2799200 | G167: 0.04810023854 | H167: 0.04505709323 | I167: 0.04477641511 | J167: 0.04621612876 | L167: 0.04810023854 | S167: Tableau 13 | T167: Thuya | U167: OVOLTHOPIEDINC | V167: =VLOOKUP($U167,Output!$C:$AQ,V$160,FALSE) -> 2927949.852 | W167: =VLOOKUP($U167,Output!$C:$AQ,W$160,FALSE) -> 2728965.678 | X167: =VLOOKUP($U167,Output!$C:$AQ,X$160,FALSE) -> 2711959.481 | Y167: =VLOOKUP($U167,Output!$C:$AQ,Y$160,FALSE) -> 2799197.115 | Z167: 0.04810107162 | AA167: 0.04505656368 | AB167: 0.04477578302 | AC167: 0.0462161192 | AE167: OVOLTHOPIEDSNAT | AF167: =IFERROR(VLOOKUP($AE167,Output!$C:$AQ,AF$160,FALSE),0) -> 0 | AG167: =IFERROR(VLOOKUP($AE167,Output!$C:$AQ,AG$160,FALSE),0) -> 0 | AH167: =IFERROR(VLOOKUP($AE167,Output!$C:$AQ,AH$160,FALSE),0) -> 0 | AI167: =IFERROR(VLOOKUP($AE167,Output!$C:$AQ,AI$160,FALSE),0) -> 0
B168: Pruche | C168: 938600 | D168: 862900 | E168: 700600 | F168: 586000 | G168: 0.01541954435 | H168: 0.01424689108 | I168: 0.01156724057 | J168: 0.009675139844 | L168: 0.01541954435 | S168: Tableau 13 | T168: Pruche | U168: OVOLPRUPIEDINC | V168: =VLOOKUP($U168,Output!$C:$AQ,V$160,FALSE) -> 938640.112 | W168: =VLOOKUP($U168,Output!$C:$AQ,W$160,FALSE) -> 862893.518 | X168: =VLOOKUP($U168,Output!$C:$AQ,X$160,FALSE) -> 700562.81 | Y168: =VLOOKUP($U168,Output!$C:$AQ,Y$160,FALSE) -> 585955.532 | Z168: 0.01542020784 | AA168: 0.01424679579 | AB168: 0.01156663608 | AC168: 0.009674413626 | AE168: OVOLPRUPIEDSNAT | AF168: =IFERROR(VLOOKUP($AE168,Output!$C:$AQ,AF$160,FALSE),0) -> 0 | AG168: =IFERROR(VLOOKUP($AE168,Output!$C:$AQ,AG$160,FALSE),0) -> 0 | AH168: =IFERROR(VLOOKUP($AE168,Output!$C:$AQ,AH$160,FALSE),0) -> 0 | AI168: =IFERROR(VLOOKUP($AE168,Output!$C:$AQ,AI$160,FALSE),0) -> 0
B169: Pins blanc et rouge | C169: 6564400 | D169: 6771400 | E169: 6071000 | F169: 3999300 | G169: 0.1078415266 | H169: 0.1117990477 | I169: 0.1002351092 | J169: 0.06603035286 | L169: 0.1078415266 | S169: Tableau 13 | T169: Pins blanc et rouge | U169: OVOLGPINSPIEDINC | V169: =VLOOKUP($U169,Output!$C:$AQ,V$160,FALSE) -> 6564385.148 | W169: =VLOOKUP($U169,Output!$C:$AQ,W$160,FALSE) -> 6771359.964 | X169: =VLOOKUP($U169,Output!$C:$AQ,X$160,FALSE) -> 6071041.567 | Y169: =VLOOKUP($U169,Output!$C:$AQ,Y$160,FALSE) -> 3999310.487 | Z169: 0.1078413143 | AA169: 0.1117984788 | AB169: 0.1002358781 | AC169: 0.06603058041 | AE169: OVOLGPINSCPIEDSNAT | AF169: =IFERROR(VLOOKUP($AE169,Output!$C:$AQ,AF$160,FALSE),0) -> 0 | AG169: =IFERROR(VLOOKUP($AE169,Output!$C:$AQ,AG$160,FALSE),0) -> 0 | AH169: =IFERROR(VLOOKUP($AE169,Output!$C:$AQ,AH$160,FALSE),0) -> 0 | AI169: =IFERROR(VLOOKUP($AE169,Output!$C:$AQ,AI$160,FALSE),0) -> 0
B170: Peupliers | C170: 3251700 | D170: 3179300 | E170: 3318100 | F170: 3808600 | G170: 0.05341970206 | H170: 0.05249176127 | I170: 0.05478341556 | J170: 0.06288180479 | L170: 0.05341970206 | N170: =(F171-C171)/C171 -> 1.345821605 | S170: Tableau 13 | T170: Peupliers | U170: OVOLGPEUPIEDINC | V170: =VLOOKUP($U170,Output!$C:$AQ,V$160,FALSE) -> 3251687.198 | W170: =VLOOKUP($U170,Output!$C:$AQ,W$160,FALSE) -> 3179254.586 | X170: =VLOOKUP($U170,Output!$C:$AQ,X$160,FALSE) -> 3318074.892 | Y170: =VLOOKUP($U170,Output!$C:$AQ,Y$160,FALSE) -> 3808595.455 | Z170: 0.0534195074 | AA170: 0.05249105471 | AB170: 0.05478304615 | AC170: 0.06288178156 | AE170: OVOLPEUPIEDSNAT | AF170: =IFERROR(VLOOKUP($AE170,Output!$C:$AQ,AF$160,FALSE),0) -> 0 | AG170: =IFERROR(VLOOKUP($AE170,Output!$C:$AQ,AG$160,FALSE),0) -> 0 | AH170: =IFERROR(VLOOKUP($AE170,Output!$C:$AQ,AH$160,FALSE),0) -> 0 | AI170: =IFERROR(VLOOKUP($AE170,Output!$C:$AQ,AI$160,FALSE),0) -> 0
B171: Bouleau à papier | C171: 5151500 | D171: 5208400 | E171: 7889000 | F171: 12084500 | G171: 0.08463006893 | H171: 0.08599317127 | I171: 0.1302511574 | J171: 0.1995208659 | L171: 0.08463006893 | N171: =(F172-C172)/C172 -> -0.5085900148 | S171: Tableau 13 | T171: Bouleau à papier | U171: OVOLgBpPIEDINC | V171: =VLOOKUP($U171,Output!$C:$AQ,V$160,FALSE) -> 5151481.538 | W171: =VLOOKUP($U171,Output!$C:$AQ,W$160,FALSE) -> 5208402.186 | X171: =VLOOKUP($U171,Output!$C:$AQ,X$160,FALSE) -> 7889048.71 | Y171: =VLOOKUP($U171,Output!$C:$AQ,Y$160,FALSE) -> 12084548.6 | Z171: 0.08462979044 | AA171: 0.08599327821 | AB171: 0.1302520689 | AC171: 0.1995218327 | AE171: OVOLgBpPIEDSNAT | AF171: =IFERROR(VLOOKUP($AE171,Output!$C:$AQ,AF$160,FALSE),0) -> 0 | AG171: =IFERROR(VLOOKUP($AE171,Output!$C:$AQ,AG$160,FALSE),0) -> 0 | AH171: =IFERROR(VLOOKUP($AE171,Output!$C:$AQ,AH$160,FALSE),0) -> 0 | AI171: =IFERROR(VLOOKUP($AE171,Output!$C:$AQ,AI$160,FALSE),0) -> 0
B172: Bouleau jaune | C172: 8178100 | D172: 7839300 | E172: 6300200 | F172: 4018800 | G172: 0.1343517746 | H172: 0.1294305867 | I172: 0.1040193107 | J172: 0.06635230717 | L172: 0.1343517746 | S172: Tableau 13 | T172: Bouleau jaune | U172: OVOLBOJPIEDINC | V172: =VLOOKUP($U172,Output!$C:$AQ,V$160,FALSE) -> 8178055.088 | W172: =VLOOKUP($U172,Output!$C:$AQ,W$160,FALSE) -> 7839307.758 | X172: =VLOOKUP($U172,Output!$C:$AQ,X$160,FALSE) -> 6300241.938 | Y172: =VLOOKUP($U172,Output!$C:$AQ,Y$160,FALSE) -> 4018821.142 | Z172: 0.1343510761 | AA172: 0.1294308214 | AB172: 0.1040200888 | AC172: 0.0663527109 | AE172: OVOLBOJPIEDSNAT | AF172: =IFERROR(VLOOKUP($AE172,Output!$C:$AQ,AF$160,FALSE),0) -> 0 | AG172: =IFERROR(VLOOKUP($AE172,Output!$C:$AQ,AG$160,FALSE),0) -> 0 | AH172: =IFERROR(VLOOKUP($AE172,Output!$C:$AQ,AH$160,FALSE),0) -> 0 | AI172: =IFERROR(VLOOKUP($AE172,Output!$C:$AQ,AI$160,FALSE),0) -> 0
B173: Érable rouge | C173: 4982000 | D173: 4545500 | E173: 3969600 | F173: 4049300 | G173: 0.08184548256 | H173: 0.0750483757 | I173: 0.06553999168 | J173: 0.06685587674 | L173: 0.08184548256 | S173: Tableau 13 | T173: Érable rouge | U173: OVOLgEroPIEDINC | V173: =VLOOKUP($U173,Output!$C:$AQ,V$160,FALSE) -> 4982015.706 | W173: =VLOOKUP($U173,Output!$C:$AQ,W$160,FALSE) -> 4545533.624 | X173: =VLOOKUP($U173,Output!$C:$AQ,X$160,FALSE) -> 3969582.86 | Y173: =VLOOKUP($U173,Output!$C:$AQ,Y$160,FALSE) -> 4049336.549 | Z173: 0.08184576458 | AA173: 0.07504899268 | AB173: 0.06553976269 | AC173: 0.06685653526 | AE173: OVOLgEroPIEDSNAT | AF173: =IFERROR(VLOOKUP($AE173,Output!$C:$AQ,AF$160,FALSE),0) -> 0 | AG173: =IFERROR(VLOOKUP($AE173,Output!$C:$AQ,AG$160,FALSE),0) -> 0 | AH173: =IFERROR(VLOOKUP($AE173,Output!$C:$AQ,AH$160,FALSE),0) -> 0 | AI173: =IFERROR(VLOOKUP($AE173,Output!$C:$AQ,AI$160,FALSE),0) -> 0
B174: Érable à sucre | C174: 8952600 | D174: 9561400 | E174: 9120000 | F174: 8334800 | G174: 0.147075445 | H174: 0.15786328 | I174: 0.1505755552 | J174: 0.1376115283 | L174: 0.147075445 | S174: Tableau 13 | T174: Érable à sucre | U174: OVOLERSPIEDINC | V174: =VLOOKUP($U174,Output!$C:$AQ,V$160,FALSE) -> 8952614.76 | W174: =VLOOKUP($U174,Output!$C:$AQ,W$160,FALSE) -> 9561397.796 | X174: =VLOOKUP($U174,Output!$C:$AQ,X$160,FALSE) -> 9119993.653 | Y174: =VLOOKUP($U174,Output!$C:$AQ,Y$160,FALSE) -> 8334788.68 | Z174: 0.1470757306 | AA174: 0.1578633737 | AB174: 0.1505755745 | AC174: 0.1376114548 | AE174: OVOLERSPIEDSNAT | AF174: =IFERROR(VLOOKUP($AE174,Output!$C:$AQ,AF$160,FALSE),0) -> 0 | AG174: =IFERROR(VLOOKUP($AE174,Output!$C:$AQ,AG$160,FALSE),0) -> 0 | AH174: =IFERROR(VLOOKUP($AE174,Output!$C:$AQ,AH$160,FALSE),0) -> 0 | AI174: =IFERROR(VLOOKUP($AE174,Output!$C:$AQ,AI$160,FALSE),0) -> 0
B175: Autres feuillus durs | C175: =ROUND(V175-AF175,-2) -> 6188700 | D175: 6883600 | E175: 7122700 | F175: 6008300 | G175: 0.1016694376 | H175: 0.1136515233 | I175: 0.1175991784 | J175: 0.09919990226 | L175: 0.1016694376 | S175: Tableau 13 | T175: Autres feuillus durs | V175: =V178-V176-V174-V173-V172-V171-V170-V169-V168-V167 -> 6188707.342 | W175: =W178-W176-W174-W173-W172-W171-W170-W169-W168-W167 -> 6883592.21 | X175: =X178-X176-X174-X173-X172-X171-X170-X169-X168-X167 -> 7122654.474 | Y175: =Y178-Y176-Y174-Y173-Y172-Y171-Y170-Y169-Y168-Y167 -> 6008269.565 | Z175: 0.101669588 | AA175: 0.1136514883 | AB175: 0.1175985237 | AC175: 0.09919948149 | AE175: Autres feuillus durs | AF175: =AF178-AF176-AF174-AF173-AF172-AF171-AF170-AF169-AF168-AF167 -> 0 | AG175: =AG178-AG176-AG174-AG173-AG172-AG171-AG170-AG169-AG168-AG167 -> 0 | AH175: =AH178-AH176-AH174-AH173-AH172-AH171-AH170-AH169-AH168-AH167 -> 0 | AI175: =AI178-AI176-AI174-AI173-AI172-AI171-AI170-AI169-AI168-AI167 -> 0
B176: Autres essences | C176: =IF($L$163<0.0095,C163,0)+IF($L$164<0.0095,C164,0)+IF($L$165<0.0095,C165,0)+IF($L$166<0.0095,C166,0)+IF($L$167<0.0095,C167,0)+IF($L$168<0.0095,C168,0)+IF($L$169<0.0095,C169,0)+IF($L$170<0.0095,C170,0)+IF($L$171<0.0095,C171,0)+IF($L$172<0.0095,C172,0)+IF($L$173<0.0095,C173,0)+IF($L$174<0.0095,C174+0)+IF($L$175<0.0095,C175,0) -> 547100 | D176: =IF($L$163<0.0095,D163,0)+IF($L$164<0.0095,D164,0)+IF($L$165<0.0095,D165,0)+IF($L$166<0.0095,D166,0)+IF($L$167<0.0095,D167,0)+IF($L$168<0.0095,D168,0)+IF($L$169<0.0095,D169,0)+IF($L$170<0.0095,D170,0)+IF($L$171<0.0095,D171,0)+IF($L$172<0.0095,D172,0)+IF($L$173<0.0095,D173,0)+IF($L$174<0.0095,D174+0)+IF($L$175<0.0095,D175,0) -> 622100 | E176: =IF($L$163<0.0095,E163,0)+IF($L$164<0.0095,E164,0)+IF($L$165<0.0095,E165,0)+IF($L$166<0.0095,E166,0)+IF($L$167<0.0095,E167,0)+IF($L$168<0.0095,E168,0)+IF($L$169<0.0095,E169,0)+IF($L$170<0.0095,E170,0)+IF($L$171<0.0095,E171,0)+IF($L$172<0.0095,E172,0)+IF($L$173<0.0095,E173,0)+IF($L$174<0.0095,E174+0)+IF($L$175<0.0095,E175,0) -> 916700 | F176: =IF($L$163<0.0095,F163,0)+IF($L$164<0.0095,F164,0)+IF($L$165<0.0095,F165,0)+IF($L$166<0.0095,F166,0)+IF($L$167<0.0095,F167,0)+IF($L$168<0.0095,F168,0)+IF($L$169<0.0095,F169,0)+IF($L$170<0.0095,F170,0)+IF($L$171<0.0095,F171,0)+IF($L$172<0.0095,F172,0)+IF($L$173<0.0095,F173,0)+IF($L$174<0.0095,F174+0)+IF($L$175<0.0095,F175,0) -> 1062200 | G176: 0.008987889103 | H176: 0.01027116808 | I176: 0.01513515477 | J176: 0.01753742925 | L176: 0.008987889103 | S176: Tableau 13 | T176: SEPM | U176: OVOLGSEPMPIEDINC | V176: =VLOOKUP($U176,Output!$C:$AQ,V$160,FALSE) -> 13735245.41 | W176: =VLOOKUP($U176,Output!$C:$AQ,W$160,FALSE) -> 12986842.78 | X176: =VLOOKUP($U176,Output!$C:$AQ,X$160,FALSE) -> 13364389.71 | Y176: =VLOOKUP($U176,Output!$C:$AQ,Y$160,FALSE) -> 14878726.98 | Z176: 0.2256459491 | AA176: 0.2144191528 | AB176: 0.2206526381 | AC176: 0.2456550901 | AE176: OVOLgSEPMPIEDSNAT | AF176: =IFERROR(VLOOKUP($AE176,Output!$C:$AQ,AF$160,FALSE),0) -> 0 | AG176: =IFERROR(VLOOKUP($AE176,Output!$C:$AQ,AG$160,FALSE),0) -> 0 | AH176: =IFERROR(VLOOKUP($AE176,Output!$C:$AQ,AH$160,FALSE),0) -> 0 | AI176: =IFERROR(VLOOKUP($AE176,Output!$C:$AQ,AI$160,FALSE),0) -> 0
B177: Total | C177: =ROUND(V178-AF178,-2) -> 60870800 | D177: =ROUND(W178-AG178,-2) -> 60567600 | E177: =ROUND(X178-AH178,-2) -> 60567600 | F177: =ROUND(Y178-AI178,-2) -> 60567600 | G177: 1 | H177: 1 | I177: 1 | J177: 1 | S177: Tableau 13 | T177: FN - ERS BOJ | U177: OVOLGFNPIEDINC | V177: =VLOOKUP($U177,Output!$C:$AQ,V$160,FALSE) -> 3551109.92 | W177: =VLOOKUP($U177,Output!$C:$AQ,W$160,FALSE) -> 3768100.854 | X177: =VLOOKUP($U177,Output!$C:$AQ,X$160,FALSE) -> 3979825.843 | Y177: =VLOOKUP($U177,Output!$C:$AQ,Y$160,FALSE) -> 3176841.343 | Z177: 0.05833849664 | AA177: 0.06221319581 | AB177: 0.06570887937 | AC177: 0.05245121088 | AE177: OVOLgFnPIEDSNAT | AF177: =IFERROR(VLOOKUP($AE177,Output!$C:$AQ,AF$160,FALSE),0) -> 0 | AG177: =IFERROR(VLOOKUP($AE177,Output!$C:$AQ,AG$160,FALSE),0) -> 0 | AH177: =IFERROR(VLOOKUP($AE177,Output!$C:$AQ,AH$160,FALSE),0) -> 0 | AI177: =IFERROR(VLOOKUP($AE177,Output!$C:$AQ,AI$160,FALSE),0) -> 0
L178: Masquer les lignes du tableau qui sont en surbrillance | S178: Tableau 13 | T178: TOT sur pied | U178: OVOLTOTPIEDINC | V178: =VLOOKUP($U178,Output!$C:$AQ,V$160,FALSE) -> 60870782.16 | W178: =VLOOKUP($U178,Output!$C:$AQ,W$160,FALSE) -> 60567550.1 | X178: =VLOOKUP($U178,Output!$C:$AQ,X$160,FALSE) -> 60567550.1 | Y178: =VLOOKUP($U178,Output!$C:$AQ,Y$160,FALSE) -> 60567550.1 | Z178: 1 | AA178: 1 | AB178: 1 | AC178: 1 | AE178: OVOLTOTPIEDSNAT | AF178: =IFERROR(VLOOKUP($AE178,Output!$C:$AQ,AF$160,FALSE),0) -> 0 | AG178: =IFERROR(VLOOKUP($AE178,Output!$C:$AQ,AG$160,FALSE),0) -> 0 | AH178: =IFERROR(VLOOKUP($AE178,Output!$C:$AQ,AH$160,FALSE),0) -> 0 | AI178: =IFERROR(VLOOKUP($AE178,Output!$C:$AQ,AI$160,FALSE),0) -> 0
L179: Ces volumes sont comptabilisés dans "Autres essences" | S179: Tableau 13 | T179: Érables à sucre et rouge
D182: P2 | E182: P3 | F182: P4 | G182: P5 | H182: P6
B183: Tableau 15 Statistiques sur les compartiments d’organisation spatiale admissibles à la récolte par période
B184: Compartiments d'organisation spatiale | D184: 2023-2028 | E184: 2028-2033 | F184: 2033-2038 | G184: 2038-2043 | H184: 2043-2048
B185: Nombre total | D185: =Cedule_COS!G6 -> 0
B186: En pessière | D186: =COUNTIF(Cedule_COS!$A$10:$A$1009,"<S*") -> 0 | J186: Fait la sommation automatique des COS débutant par la lettre "P" ou par "C", valider et corriger si nécessaire
B187: En sapinière | D187: =COUNTIF(Cedule_COS!$A$10:$A$1009,"S*") -> 0 | J187: Fait la sommation automatique des COS débutant par la lettre "S", valider et corriger si nécessaire
B188: Admissibles à la récolte | D188: =Cedule_COS!C7 -> 0 | E188: =Cedule_COS!D7 -> 0 | F188: =Cedule_COS!E7 -> 0 | G188: =Cedule_COS!F7 -> 0 | H188: =Cedule_COS!G7 -> 0
B189: % de compartiments admissibles | D189: =Cedule_COS!C8 ->  | E189: =Cedule_COS!D8 ->  | F189: =Cedule_COS!E8 ->  | G189: =Cedule_COS!F8 ->  | H189: =Cedule_COS!G8 -> 
B193: Tableau 17 Superficies considérées pour l'analyse de la mortalité d'ici la période 2023-2028 | S193: =LEFT(B$193,11) -> Tableau 17 | T193: Légende | V193: Output | W193: Valeur | X193: Période | Y193: Année
F194: ha | G194: % | S194: =LEFT(B$193,11) -> Tableau 17 | T194: Incluses aux activités de récolte | V194: OSUPINC | W194: =VLOOKUP($V194,Output!$C:$AQ,6,FALSE) -> 424725.3 | X194: P0 | Y194: 2018
B195: Épidémie sévère confirmée à la photo-interprétation | G195: =F195/W$194 -> 0 | J195: Faire une sélection sur le thème 8 = "INC" et seulement les années correspondant à l'épidémie actuelle | S195: =LEFT(B$193,11) -> Tableau 17 | T195: Épidémie sévère confirmée à la photo-interprétation | V195: Requete dans la table d'attribut
B196: Défoliation cumulative (cote ≥ 15) | F196: =ROUND(W196,-1) ->  | G196: =F196/W$194 ->  | J196: Des champs avaient été ajoutés par l'analyste à la fin de table d'attribut de la carte woodstock | S196: =LEFT(B$193,11) -> Tableau 17 | T196: Défoliation cumulative projetée 2023 ≥ 15 | V196: OSUPINC15+ | W196: =VLOOKUP($V196,Output!$C:$AQ,7,FALSE) ->  | X196: P1 | Y196: 2023
B197: Mortalité projetée | F197: =ROUND(SUM(W197:W198),-1) ->  | G197: =F197/W$194 ->  | J197: et c'est sur ces derniers que doivent se réaliser les requêtes | S197: =LEFT(B$193,11) -> Tableau 17 | T197: Mortalité projetée (sommation des 2 actions) | V197: osupaTBEmort | W197: =VLOOKUP($V197,Output!$C:$AQ,8,FALSE) ->  | X197: P2 | Y197: 2028
B198: Récupération prévue 2018-2023 | F198: =-ROUND(W199,-1) ->  | G198: =F198/W$194 ->  | V198: Osupactiontberetard | W198: =VLOOKUP($V198,Output!$C:$AQ,8,FALSE) ->  | X198: P2 | Y198: 2028
S199: =LEFT(B$193,11) -> Tableau 17 | T199: Récolte prévue à court terme (récupération) | V199: osuprealregapre_15+ | W199: =VLOOKUP($V199,Output!$C:$AQ,7,FALSE) ->  | X199: P1 | Y199: 2023

Sheet Figures
B2: Figure 2. Répartition du volume de bois marchand sur pied en début de calcul (m3). | N2: Volume sur pied en P0 | S2: Source: CahierDetermination_2018-2023 | V2: Volume sur pied en P0 - volume en SNAT | Z2: Volume dans courbe SNAT
L3: Conserver les GTYF même s'ils sont absents de l'UA | S3: Intrants | T3: Légende | U3: Name | V3: PERIOD0 | W3: % | X3: PERIOD0 | Z3: Name | AB3: PERIOD0
N4: Total | O4: =V19 -> 62741300 | S4: =LEFT(B$2,10) -> Figure 2. | T4: Autres feuillus durs | V4: =ROUND(V19-V17-V11-V12-V10-V8-V9-V6-V5-V7,-2) -> 5534100 | W4: =IFERROR(V4/$V$19,0) -> 0.08820505791 | X4: =X19-X17-X11-X12-X10-X8-X9-X6-X5-X7 -> 5534162.19 | Z4: Autres feuillus durs | AB4: =ROUND(AB19-AB17-AB11-AB12-AB10-AB8-AB9-AB6-AB5-AB7,-2) -> 0
N5: % R | O5: =(V17+V12+V11+V10)/V19 -> 0.3905688916 | S5: Figure 2. | T5: Érable à sucre | U5: OVOLERSPIEDINC | V5: =ROUND(X5-AB5,-2) -> 8500200 | W5: 0.1354801383 | X5: =VLOOKUP(U5,Output!$C:$AQ,6,FALSE) -> 8500165.58 | Z5: OVOLERSPIEDSNAT | AB5: =IFERROR(VLOOKUP(Z5,Output!$C:$AQ,6,FALSE),0) -> 0
N6: %SEPM | O6: =V17/V19 -> 0.233903346 | S6: Figure 2. | T6: Érable rouge | U6: OVOLgEroPIEDINC | V6: 5034200 | W6: 0.08023741937 | X6: =VLOOKUP(U6,Output!$C:$AQ,6,FALSE) -> 5034157.1 | Z6: OVOLgEroPIEDSNAT | AB6: =IFERROR(VLOOKUP(Z6,Output!$C:$AQ,6,FALSE),0) -> 0
N7: % Fi | O7: =W21 -> 0.257230883 | P7: =O7*O4 -> 16139000 | S7: Figure 2. | T7: Bouleau jaune | U7: OVOLBOJPIEDINC | V7: 8063100 | W7: 0.1285134353 | X7: =VLOOKUP(U7,Output!$C:$AQ,6,FALSE) -> 8063134.18 | Z7: OVOLBOJPIEDSNAT | AB7: =IFERROR(VLOOKUP(Z7,Output!$C:$AQ,6,FALSE),0) -> 0
N8: % FT | O8: =W22 -> 0.3522002254 | S8: Figure 2. | T8: Bouleau à papier | U8: OVOLgBpPIEDINC | V8: 6362900 | W8: 0.1014148575 | X8: =VLOOKUP(U8,Output!$C:$AQ,6,FALSE) -> 6362913.1 | Z8: OVOLgBpPIEDSNAT | AB8: =IFERROR(VLOOKUP(Z8,Output!$C:$AQ,6,FALSE),0) -> 0
N9: %Sapin | O9: =V16/V17 -> 0.4385161563 | S9: Figure 2. | T9: Peupliers | U9: OVOLGPEUPIEDINC | V9: 4742000 | W9: 0.07558019996 | X9: =VLOOKUP(U9,Output!$C:$AQ,6,FALSE) -> 4741976.62 | Z9: OVOLPEUPIEDSNAT | AB9: =IFERROR(VLOOKUP(Z9,Output!$C:$AQ,6,FALSE),0) -> 0
N10: %ERR | O10: =IFERROR(V6/(V5+V6),0) -> 0.371955905 | S10: Figure 2. | T10: Pins blanc et rouge | U10: OVOLGPINSPIEDINC | V10: 5836800 | W10: 0.0930296312 | X10: =VLOOKUP(U10,Output!$C:$AQ,6,FALSE) -> 5836779.86 | Z10: OVOLGPINSCPIEDSNAT | AB10: =IFERROR(VLOOKUP(Z10,Output!$C:$AQ,6,FALSE),0) -> 0
S11: Figure 2. | T11: Pruche | U11: OVOLPRUPIEDINC | V11: 906900 | W11: 0.0144545937 | X11: =VLOOKUP(U11,Output!$C:$AQ,6,FALSE) -> 906934.86 | Z11: OVOLPRUPIEDSNAT | AB11: =IFERROR(VLOOKUP(Z11,Output!$C:$AQ,6,FALSE),0) -> 0
N12: Volume sur pied au calcul 2015-2018 | P12: UA | S12: Figure 2. | T12: Thuya | U12: OVOLTHOPIEDINC | V12: 3085700 | W12: 0.04918132076 | X12: =VLOOKUP(U12,Output!$C:$AQ,6,FALSE) -> 3085733.46 | Z12: OVOLTHOPIEDSNAT | AB12: =IFERROR(VLOOKUP(Z12,Output!$C:$AQ,6,FALSE),0) -> 0
P13: =Tableaux!O33 -> 07152 | S13: Figure 2. | T13: Mélèzes | U13: OVOLgMlPIEDINC | V13: 69400 | W13: 0.001106129455 | X13: =VLOOKUP(U13,Output!$C:$AQ,6,FALSE) -> 69426.15 | Z13: OVOLGMlPIEDSNAT | AB13: =IFERROR(VLOOKUP(Z13,Output!$C:$AQ,6,FALSE),0) -> 0
N14: Total | O14: =VLOOKUP(P13,DataLocal!$A:$BM,61,FALSE) -> 59754280 | S14: Figure 2. | T14: Pin gris | U14: OVOLgPgPIEDINC | V14: 440900 | W14: 0.007027269119 | X14: =VLOOKUP(U14,Output!$C:$AQ,6,FALSE) -> 440871.25 | Z14: OVOLgPgPIEDSNAT | AB14: =IFERROR(VLOOKUP(Z14,Output!$C:$AQ,6,FALSE),0) -> 0
N15: % R | O15: =VLOOKUP(P13,DataLocal!$A:$BM,62,FALSE) -> 0.4 | S15: Figure 2. | T15: Épinettes | U15: OVOLgEpxPIEDINC | V15: 7729700 | W15: 0.1231995512 | X15: =VLOOKUP(U15,Output!$C:$AQ,6,FALSE) -> 7729669.6 | Z15: OVOLgEpxPIEDSNAT | AB15: =IFERROR(VLOOKUP(Z15,Output!$C:$AQ,6,FALSE),0) -> 0
N16: % SEPM | O16: =VLOOKUP(P13,DataLocal!$A:$BM,63,FALSE) -> 0.19 | S16: Figure 2. | T16: Sapin baumier | U16: OVOLSABPIEDINC | V16: =ROUND(X16-AB16,-2) -> 6435400 | W16: 0.1025703962 | X16: =VLOOKUP(U16,Output!$C:$AQ,6,FALSE) -> 6435387.39 | Z16: OVOLSABPIEDSNAT | AB16: =IFERROR(VLOOKUP(Z16,Output!$C:$AQ,6,FALSE),0) -> 0
N17: % Fi | O17: =VLOOKUP(P13,DataLocal!$A:$BM,64,FALSE) -> 0.29 | S17: Figure 2. | T17: SEPM | U17: OVOLGSEPMPIEDINC | V17: =ROUND(X17-AB17,-2) -> 14675400 | W17: =IFERROR(V17/$V$19,0) -> 0.233903346 | X17: =VLOOKUP(U17,Output!$C:$AQ,6,FALSE) -> 14675354.39 | Z17: OVOLgSEPMPIEDSNAT | AB17: =IFERROR(VLOOKUP(Z17,Output!$C:$AQ,6,FALSE),0) -> 0
N18: % Ft | O18: =VLOOKUP(P13,DataLocal!$A:$BM,65,FALSE) -> 0.31 | S18: Figure 2. | T18: FN - ERS BOJ | U18: OVOLGFNPIEDINC | V18: 3170400 | W18: 0.05053130872 | X18: =VLOOKUP(U18,Output!$C:$AQ,6,FALSE) -> 3170387.34 | Z18: OVOLgFnPIEDSNAT | AB18: =IFERROR(VLOOKUP(Z18,Output!$C:$AQ,6,FALSE),0) -> 0
S19: Figure 2. | T19: TOT sur pied | U19: OVOLTOTPIEDINC | V19: =ROUND(X19-AB19,-2) -> 62741300 | W19: 1 | X19: =VLOOKUP(U19,Output!$C:$AQ,6,FALSE) -> 62741311.34 | Z19: OVOLTOTPIEDSNAT | AB19: =IFERROR(VLOOKUP(Z19,Output!$C:$AQ,6,FALSE),0) -> 0
N20: Vol R | O20: =ROUND(O15*$O$14,-2) -> 23901700 | T20: Érables à sucre et rouge | U20: Érables à sucre et rouge | V20: =V5+V6 -> 13534400 | W20: 0.2157175577 | X20: =X5+X6 -> 13534322.68 | Z20: Érables à sucre et rouge | AB20: =IFERROR(VLOOKUP(Z20,Output!$C:$AQ,6,FALSE),0) -> 0
N21: Vol SEPM | O21: =ROUND(O16*$O$14,-2) -> 11353300 | P21: Traduits en m3 | T21: gFi | U21: OVOLgFiPIEDINC | V21: =ROUND(X21-AB21,-2) -> 16139000 | W21: 0.257230883 | X21: =VLOOKUP(U21,Output!$C:$AQ,6,FALSE) -> 16139046.82 | Z21: OVOLgFiPIEDSNAT | AB21: =IFERROR(VLOOKUP(Z21,Output!$C:$AQ,6,FALSE),0) -> 0
N22: Vol Fi | O22: =ROUND(O17*$O$14,-2) -> 17328700 | P22: approximativement | T22: gFt | U22: OVOLgFtPIEDINC | V22: 22097500 | W22: 0.3522002254 | X22: =VLOOKUP(U22,Output!$C:$AQ,6,FALSE) -> 22097461.94 | Z22: OVOLgFtPIEDSNAT | AB22: =IFERROR(VLOOKUP(Z22,Output!$C:$AQ,6,FALSE),0) -> 0
N23: Vol Ft | O23: =ROUND(O18*$O$14,-2) -> 18523800
B27: Type de couvert : | C27: =#REF! -> 
B28: Figure 3. Répartition de la superficie par grand type de forêt en début de calcul (ha). | S28: Intrants | T28: Légende | V28: PERIOD0 | W28: % | X28: PERIOD0
S29: =LEFT(B$28,10) -> Figure 3. | T29: Sapinières | U29: (FCTYF_SAB) | V29: =ROUND(X29,-1) -> 6030 | W29: =V29/V$44 -> 0.01426561602 | X29: =VLOOKUP("OSUPINC"&$U29,GTYF!$C:$AP,6,FALSE) -> 6028.2
S30: Figure 3. | T30: Résineux à feuillus | U30: (FCTYF_RF) | V30: =ROUND(X30,-1) -> 54020 | W30: 0.1277991008 | X30: =VLOOKUP("OSUPINC"&$U30,GTYF!$C:$AP,6,FALSE) -> 54016.8
S31: Figure 3. | T31: Prucheraies | U31: (FCTYF_PRU) | V31: 1870 | W31: 0.004423997009 | X31: =VLOOKUP("OSUPINC"&$U31,GTYF!$C:$AP,6,FALSE) -> 1874.8
S32: Figure 3. | T32: Pinèdes grises | U32: (FCTYF_PIG) | V32: 0 | W32: 0 | X32: =VLOOKUP("OSUPINC"&$U32,GTYF!$C:$AP,6,FALSE) -> 0
L33: Conserver les GTYF même s'ils sont absents de l'UA | S33: Figure 3. | T33: Pinèdes blanches | U33: (FCTYF_PIN) | V33: 47200 | W33: 0.1116645234 | X33: =VLOOKUP("OSUPINC"&$U33,GTYF!$C:$AP,6,FALSE) -> 47200.4
S34: Figure 3. | T34: Peupleraies à résineux | U34: (FCTYF_PEUR) | V34: 7810 | W34: 0.01847669339 | X34: =VLOOKUP("OSUPINC"&$U34,GTYF!$C:$AP,6,FALSE) -> 7813
S35: Figure 3. | T35: Peupleraies | U35: (FCTYF_PEU) | V35: 22680 | W35: 0.05365574982 | X35: =VLOOKUP("OSUPINC"&$U35,GTYF!$C:$AP,6,FALSE) -> 22682.8
S36: Figure 3. | T36: Pessières | U36: (FCTYF_EPX) | V36: 39020 | W36: 0.09231249374 | X36: =VLOOKUP("OSUPINC"&$U36,GTYF!$C:$AP,6,FALSE) -> 39020.2
S37: Figure 3. | T37: Feuillus tolérants à résineux | U37: (FCTYF_FTR) | V37: 47810 | W37: 0.1131076455 | X37: =VLOOKUP("OSUPINC"&$U37,GTYF!$C:$AP,6,FALSE) -> 47810.4
S38: Figure 3. | T38: Feuillus tolérants | U38: (FCTYF_FT) | V38: 124280 | W38: 0.2940183681 | X38: =VLOOKUP("OSUPINC"&$U38,GTYF!$C:$AP,6,FALSE) -> 124277.8
S39: Figure 3. | T39: Érablières rouges | U39: (FCTYF_ERO) | V39: 15030 | W39: 0.03555758024 | X39: =VLOOKUP("OSUPINC"&$U39,GTYF!$C:$AP,6,FALSE) -> 15034.5
S40: Figure 3. | T40: Cédrières | U40: (FCTYF_THO) | V40: 16070 | W40: 0.03801798499 | X40: =VLOOKUP("OSUPINC"&$U40,GTYF!$C:$AP,6,FALSE) -> 16071.3
S41: Figure 3. | T41: Bétulaies blanches à résineux | U41: (FCTYF_BOPR) | V41: 28010 | W41: 0.06626532418 | X41: =VLOOKUP("OSUPINC"&$U41,GTYF!$C:$AP,6,FALSE) -> 28005.3
S42: Figure 3. | T42: Bétulaies blanches | U42: (FCTYF_BOP) | V42: 14890 | W42: 0.03522637191 | X42: =VLOOKUP("OSUPINC"&$U42,GTYF!$C:$AP,6,FALSE) -> 14889.8
U43: Somme: | V43: =SUM(V29:V42) -> 424720 | X43: =SUM(X29:X42) -> 424725.3
T44: OSUPINC | U44: Tous | V44: =VLOOKUP("OSUPINC",Output!$C:$AP,7,FALSE) -> 422694.68
V45: =V43-V44 -> 2025.32 | W45: Écart
V49: 2018
B50: Figure 4. Superficie destinée à l'aménagement forestier par classe d'âge en début de calcul (ha). | S50: Intrants | U50: Name | V50: PERIOD0 | X50: Classe d'âge | Y50: OUTPUT | Z50: Superficie (ha) | AA50: Pourcentage (%)
S51: =LEFT(B$50,10) -> Figure 4. | T51: 10 ans | U51: OSUP_INC_CLASSEAGEFCAGEAGE1 | V51: =VLOOKUP(U51,Output!$C:$AQ,6,FALSE) -> 6501.8 | X51: 10 | Z51: =ROUND(SUM(V51:V54),-1) -> 30340 | AA51: =IFERROR(Z51/$V$89,0) -> 0.07143440713
S52: Figure 4. | T52: 10 ans | U52: OSUP_INC_CLASSEAGEFCAGEAGE2 | V52: =VLOOKUP(U52,Output!$C:$AQ,6,FALSE) -> 10799.2 | X52: 30 | Z52: =ROUND(SUM(V55:V58),-1) -> 19450 | AA52: 0.04579430517
S53: Figure 4. | T53: 10 ans | U53: OSUP_INC_CLASSEAGEFCAGEAGE3 | V53: =VLOOKUP(U53,Output!$C:$AQ,6,FALSE) -> 10560.4 | X53: 50 | Z53: =ROUND(SUM(V59:V62),-1) -> 69300 | AA53: 0.1631642852
S54: Figure 4. | T54: 10 ans | U54: OSUP_INC_CLASSEAGEFCAGEAGE4 | V54: =VLOOKUP(U54,Output!$C:$AQ,6,FALSE) -> 2481.1 | X54: 70 | Z54: =ROUND(SUM(V63:V66),-1) -> 26350 | AA54: 0.0620400998
S55: Figure 4. | T55: 30 ans | U55: OSUP_INC_CLASSEAGEFCAGEAGE5 | V55: =VLOOKUP(U55,Output!$C:$AQ,6,FALSE) -> 543.8 | X55: 90 | Z55: =ROUND(SUM(V67:V70),-1) -> 19940 | AA55: 0.04694799203
S56: Figure 4. | T56: 30 ans | U56: OSUP_INC_CLASSEAGEFCAGEAGE6 | V56: =VLOOKUP(U56,Output!$C:$AQ,6,FALSE) -> 1233 | X56: 120 et plus | Z56: =ROUND(SUM(V71:V80),-1) -> 7070 | AA56: 0.01664605334
S57: Figure 4. | T57: 30 ans | U57: OSUP_INC_CLASSEAGEFCAGEAGE7 | V57: =VLOOKUP(U57,Output!$C:$AQ,6,FALSE) -> 3844.1
S58: Figure 4. | T58: 30 ans | U58: OSUP_INC_CLASSEAGEFCAGEAGE8 | V58: =VLOOKUP(U58,Output!$C:$AQ,6,FALSE) -> 13832
S59: Figure 4. | T59: 50 ans | U59: OSUP_INC_CLASSEAGEFCAGEAGE9 | V59: =VLOOKUP(U59,Output!$C:$AQ,6,FALSE) -> 22253
S60: Figure 4. | T60: 50 ans | U60: OSUP_INC_CLASSEAGEFCAGEAGE10 | V60: =VLOOKUP(U60,Output!$C:$AQ,6,FALSE) -> 10439.8
S61: Figure 4. | T61: 50 ans | U61: OSUP_INC_CLASSEAGEFCAGEAGE11 | V61: =VLOOKUP(U61,Output!$C:$AQ,6,FALSE) -> 9299.9
N62: Proportion de la superficie dont l'évolution est suivi en âge: | S62: Figure 4. | T62: 50 ans | U62: OSUP_INC_CLASSEAGEFCAGEAGE12 | V62: =VLOOKUP(U62,Output!$C:$AQ,6,FALSE) -> 27311.3
N63: =IF(AND($W$81>=99.5%,$W$81<100%),"> 99%",IF(AND($W$81>=0.1%,$W$81<0.5%),"< 1%",$W$81)) -> 0.4060415049 | S63: Figure 4. | T63: 70 ans | U63: OSUP_INC_CLASSEAGEFCAGEAGE13 | V63: =VLOOKUP(U63,Output!$C:$AQ,6,FALSE) -> 11149.2
S64: Figure 4. | T64: 70 ans | U64: OSUP_INC_CLASSEAGEFCAGEAGE14 | V64: =VLOOKUP(U64,Output!$C:$AQ,6,FALSE) -> 9148.3
S65: Figure 4. | T65: 70 ans | U65: OSUP_INC_CLASSEAGEFCAGEAGE15 | V65: =VLOOKUP(U65,Output!$C:$AQ,6,FALSE) -> 2382.1
S66: Figure 4. | T66: 70 ans | U66: OSUP_INC_CLASSEAGEFCAGEAGE16 | V66: =VLOOKUP(U66,Output!$C:$AQ,6,FALSE) -> 3667.5
S67: Figure 4. | T67: 90 ans | U67: OSUP_INC_CLASSEAGEFCAGEAGE17 | V67: =VLOOKUP(U67,Output!$C:$AQ,6,FALSE) -> 6237.2
S68: Figure 4. | T68: 90 ans | U68: OSUP_INC_CLASSEAGEFCAGEAGE18 | V68: =VLOOKUP(U68,Output!$C:$AQ,6,FALSE) -> 6383.5
B69: Figure 5. Superficie destinée à l'aménagement forestier par classe de surface terrière en début de calcul (ha) | S69: Figure 4. | T69: 90 ans | U69: OSUP_INC_CLASSEAGEFCAGEAGE19 | V69: =VLOOKUP(U69,Output!$C:$AQ,6,FALSE) -> 3178.2
S70: Figure 4. | T70: 90 ans | U70: OSUP_INC_CLASSEAGEFCAGEAGE20 | V70: =VLOOKUP(U70,Output!$C:$AQ,6,FALSE) -> 4138
S71: Figure 4. | T71: 120 et plus | U71: OSUP_INC_CLASSEAGEFCAGEAGE21 | V71: =VLOOKUP(U71,Output!$C:$AQ,6,FALSE) -> 1046
S72: Figure 4. | T72: 120 et plus | U72: OSUP_INC_CLASSEAGEFCAGEAGE22 | V72: =VLOOKUP(U72,Output!$C:$AQ,6,FALSE) -> 1193.6
S73: Figure 4. | T73: 120 et plus | U73: OSUP_INC_CLASSEAGEFCAGEAGE23 | V73: =VLOOKUP(U73,Output!$C:$AQ,6,FALSE) -> 545.3
S74: Figure 4. | T74: 120 et plus | U74: OSUP_INC_CLASSEAGEFCAGEAGE24 | V74: =VLOOKUP(U74,Output!$C:$AQ,6,FALSE) -> 469.4
S75: Figure 4. | T75: 120 et plus | U75: OSUP_INC_CLASSEAGEFCAGEAGE25 | V75: =VLOOKUP(U75,Output!$C:$AQ,6,FALSE) -> 0
N76: Proportion de la superficie dont l'évolution est suivi en surface terrière: | S76: Figure 4. | T76: 120 et plus | U76: OSUP_INC_CLASSEAGEFCAGEAGE26 | V76: =VLOOKUP(U76,Output!$C:$AQ,6,FALSE) -> 778.8
N77: =IF(AND($W$88>=99.5%,$W$88<100%),"> 99%",IF(AND($W$88>=0.1%,$W$88<0.5%),"< 1%",$W$88)) -> 0.5939584951 | S77: Figure 4. | T77: 120 et plus | U77: OSUP_INC_CLASSEAGEFCAGEAGE27 | V77: =VLOOKUP(U77,Output!$C:$AQ,6,FALSE) -> 445.8
S78: Figure 4. | T78: 120 et plus | U78: OSUP_INC_CLASSEAGEFCAGEAGE28 | V78: =VLOOKUP(U78,Output!$C:$AQ,6,FALSE) -> 0
S79: Figure 4. | T79: 120 et plus | U79: OSUP_INC_CLASSEAGEFCAGEAGE29 | V79: =VLOOKUP(U79,Output!$C:$AQ,6,FALSE) -> 0
S80: Figure 4. | T80: 120 et plus | U80: OSUP_INC_CLASSEAGEFCAGEAGE30+ | V80: =VLOOKUP(U80,Output!$C:$AQ,6,FALSE) -> 2593.8
U81: Sous-total | V81: =SUM(V51:V80) -> 172456.1 | W81: =V81/V89 -> 0.4060415049
S82: =LEFT(B$69,10) -> Figure 5. | T82: <16 | U82: OSUPINC_ST016(FCST) | V82: =VLOOKUP(U82,GTYF!$C:$AQ,6,FALSE) -> 22404.9 | W82: =IFERROR(V82/$V$88,0) -> 0.088813458
S83: Figure 5. | T83: 16 à 18 | U83: OSUPINC_ST1619(FCST) | V83: =VLOOKUP(U83,GTYF!$C:$AQ,6,FALSE) -> 66493.7 | W83: 0.263582316
S84: Figure 5. | T84: 19 à 21 | U84: OSUPINC_ST1922(FCST) | V84: =VLOOKUP(U84,GTYF!$C:$AQ,6,FALSE) -> 18919 | W84: 0.07499528282
S85: Figure 5. | T85: 22 à 24 | U85: OSUPINC_ST2225(FCST) | V85: =VLOOKUP(U85,GTYF!$C:$AQ,6,FALSE) -> 90275.7 | W85: 0.3578546251
S86: Figure 5. | T86: 25 à 28 | U86: OSUPINC_ST2528(FCST) | V86: =VLOOKUP(U86,GTYF!$C:$AQ,6,FALSE) -> 17203.4 | W86: 0.06819461115
S87: Figure 5. | T87: 29+ | U87: OSUPINC_ST29+(FCST) | V87: =VLOOKUP(U87,GTYF!$C:$AQ,6,FALSE) -> 36972.5 | W87: 0.1465597069
S88: Figure 5. | T88: Total 0-29+ | U88: Sous-total | V88: =SUM(V82:V87) -> 252269.2 | W88: =V88/V89 -> 0.5939584951
U89: OSUPINC | V89: =VLOOKUP(U89,Output!$C:$AQ,6,FALSE) -> 424725.3
A91: 80 | B91: Figure 6. Évolution des volumes et des possibilités forestières à rendement non-décroissant
U93: Période | V93: P0 | W93: P1 | X93: P2 | Y93: P3 | Z93: P4 | AA93: P5 | AB93: P6 | AC93: P7 | AD93: P8 | AE93: P9 | AF93: P10 | AG93: P11 | AH93: P12 | AI93: P13 | AJ93: P14 | AK93: P15 | AL93: P16 | AM93: P17 | AN93: P18 | AO93: P19 | AP93: P20 | AQ93: P21 | AR93: P22 | AS93: P23 | AT93: P24 | AU93: P25 | AV93: P26 | AW93: P27 | AX93: P28 | AY93: P29 | AZ93: P30
U94: Colonne | V94: 6 | W94: 7 | X94: 8 | Y94: 9 | Z94: 10 | AA94: 11 | AB94: 12 | AC94: 13 | AD94: 14 | AE94: 15 | AF94: 16 | AG94: 17 | AH94: 18 | AI94: 19 | AJ94: 20 | AK94: 21 | AL94: 22 | AM94: 23 | AN94: 24 | AO94: 25 | AP94: 26 | AQ94: 27 | AR94: 28 | AS94: 29 | AT94: 30 | AU94: 31 | AV94: 32 | AW94: 33 | AX94: 34 | AY94: 35 | AZ94: 36
S95: =LEFT(B$91,10) -> Figure 6. | T95: Légende | U95: Axe des "X" Début de période | W95: 2018 | X95: 2023 | Y95: 2028 | Z95: 2033 | AA95: 2038 | AB95: 2043 | AC95: 2048 | AD95: 2053 | AE95: 2058 | AF95: 2063 | AG95: 2068 | AH95: 2073 | AI95: 2078 | AJ95: 2083 | AK95: 2088 | AL95: 2093 | AM95: 2098 | AN95: 2103 | AO95: 2108 | AP95: 2113 | AQ95: 2118 | AR95: 2123 | AS95: 2128 | AT95: 2133 | AU95: 2138 | AV95: 2143 | AW95: 2148 | AX95: 2153 | AY95: 2158 | AZ95: 2163
S96: =LEFT(B$91,10) -> Figure 6. | T96: Possibilités forestières quinquennales | U96: OVOLTOTREC | V96: =VLOOKUP($U96,Output!$C:$AM,V$94,FALSE) -> 0 | W96: =VLOOKUP($U96,Output!$C:$AM,W$94,FALSE) -> 3385800 | X96: =VLOOKUP($U96,Output!$C:$AM,X$94,FALSE) -> 5160421.93 | Y96: =VLOOKUP($U96,Output!$C:$AM,Y$94,FALSE) -> 5160403.05 | Z96: =VLOOKUP($U96,Output!$C:$AM,Z$94,FALSE) -> 4385100 | AA96: =VLOOKUP($U96,Output!$C:$AM,AA$94,FALSE) -> 4385100 | AB96: =VLOOKUP($U96,Output!$C:$AM,AB$94,FALSE) -> 4385100 | AC96: =VLOOKUP($U96,Output!$C:$AM,AC$94,FALSE) -> 4385103.05 | AD96: =VLOOKUP($U96,Output!$C:$AM,AD$94,FALSE) -> 4589306.49 | AE96: =VLOOKUP($U96,Output!$C:$AM,AE$94,FALSE) -> 4673828.81 | AF96: =VLOOKUP($U96,Output!$C:$AM,AF$94,FALSE) -> 4673828.81 | AG96: =VLOOKUP($U96,Output!$C:$AM,AG$94,FALSE) -> 4673828.81 | AH96: =VLOOKUP($U96,Output!$C:$AM,AH$94,FALSE) -> 4673828.81 | AI96: =VLOOKUP($U96,Output!$C:$AM,AI$94,FALSE) -> 4673871.16 | AJ96: =VLOOKUP($U96,Output!$C:$AM,AJ$94,FALSE) -> 4673871.16 | AK96: =VLOOKUP($U96,Output!$C:$AM,AK$94,FALSE) -> 4673871.16 | AL96: =VLOOKUP($U96,Output!$C:$AM,AL$94,FALSE) -> 4673883.93 | AM96: =VLOOKUP($U96,Output!$C:$AM,AM$94,FALSE) -> 4673883.93 | AN96: =VLOOKUP($U96,Output!$C:$AM,AN$94,FALSE) -> 4673883.93 | AO96: =VLOOKUP($U96,Output!$C:$AM,AO$94,FALSE) -> 4673924.88 | AP96: =VLOOKUP($U96,Output!$C:$AM,AP$94,FALSE) -> 4673924.88 | AQ96: =VLOOKUP($U96,Output!$C:$AM,AQ$94,FALSE) -> 4673950.79 | AR96: =VLOOKUP($U96,Output!$C:$AM,AR$94,FALSE) -> 4673980.56 | AS96: =VLOOKUP($U96,Output!$C:$AM,AS$94,FALSE) -> 4754608.21 | AT96: =VLOOKUP($U96,Output!$C:$AM,AT$94,FALSE) -> 4884184.07 | AU96: =VLOOKUP($U96,Output!$C:$AM,AU$94,FALSE) -> 4933654.18 | AV96: =VLOOKUP($U96,Output!$C:$AM,AV$94,FALSE) -> 5225156.17 | AW96: =VLOOKUP($U96,Output!$C:$AM,AW$94,FALSE) -> 5348029.03 | AX96: =VLOOKUP($U96,Output!$C:$AM,AX$94,FALSE) -> 5348029.03 | AY96: =VLOOKUP($U96,Output!$C:$AM,AY$94,FALSE) -> 5348029.03 | AZ96: =VLOOKUP($U96,Output!$C:$AM,AZ$94,FALSE) -> 5348039.28
S97: =LEFT(B$91,10) -> Figure 6. | T97: Volume à maturité | U97: OVOLMATUREADM | V97: =VLOOKUP($U97,Output!$C:$AM,V$94,FALSE) -> 39663257.73 | W97: =VLOOKUP($U97,Output!$C:$AM,W$94,FALSE) -> 44005903.35 | X97: =VLOOKUP($U97,Output!$C:$AM,X$94,FALSE) -> 42403784.13 | Y97: =VLOOKUP($U97,Output!$C:$AM,Y$94,FALSE) -> 48565872.71 | Z97: =VLOOKUP($U97,Output!$C:$AM,Z$94,FALSE) -> 47875943.6 | AA97: =VLOOKUP($U97,Output!$C:$AM,AA$94,FALSE) -> 49382677.88 | AB97: =VLOOKUP($U97,Output!$C:$AM,AB$94,FALSE) -> 50094792.11 | AC97: =VLOOKUP($U97,Output!$C:$AM,AC$94,FALSE) -> 49642856.79 | AD97: =VLOOKUP($U97,Output!$C:$AM,AD$94,FALSE) -> 48256215.74 | AE97: =VLOOKUP($U97,Output!$C:$AM,AE$94,FALSE) -> 47570915.98 | AF97: =VLOOKUP($U97,Output!$C:$AM,AF$94,FALSE) -> 47020282.9 | AG97: =VLOOKUP($U97,Output!$C:$AM,AG$94,FALSE) -> 46811185.22 | AH97: =VLOOKUP($U97,Output!$C:$AM,AH$94,FALSE) -> 45491706.79 | AI97: =VLOOKUP($U97,Output!$C:$AM,AI$94,FALSE) -> 44780411.95 | AJ97: =VLOOKUP($U97,Output!$C:$AM,AJ$94,FALSE) -> 44447376.38 | AK97: =VLOOKUP($U97,Output!$C:$AM,AK$94,FALSE) -> 42933221.78 | AL97: =VLOOKUP($U97,Output!$C:$AM,AL$94,FALSE) -> 43365604.33 | AM97: =VLOOKUP($U97,Output!$C:$AM,AM$94,FALSE) -> 43795761.36 | AN97: =VLOOKUP($U97,Output!$C:$AM,AN$94,FALSE) -> 43069642.22 | AO97: =VLOOKUP($U97,Output!$C:$AM,AO$94,FALSE) -> 44902921.2 | AP97: =VLOOKUP($U97,Output!$C:$AM,AP$94,FALSE) -> 45009517.58 | AQ97: =VLOOKUP($U97,Output!$C:$AM,AQ$94,FALSE) -> 43512325.62 | AR97: =VLOOKUP($U97,Output!$C:$AM,AR$94,FALSE) -> 42118216.36 | AS97: =VLOOKUP($U97,Output!$C:$AM,AS$94,FALSE) -> 42452804.61 | AT97: =VLOOKUP($U97,Output!$C:$AM,AT$94,FALSE) -> 42978826.36 | AU97: =VLOOKUP($U97,Output!$C:$AM,AU$94,FALSE) -> 44016004.02 | AV97: =VLOOKUP($U97,Output!$C:$AM,AV$94,FALSE) -> 43149166.1 | AW97: =VLOOKUP($U97,Output!$C:$AM,AW$94,FALSE) -> 40274214.79 | AX97: =VLOOKUP($U97,Output!$C:$AM,AX$94,FALSE) -> 38201920.11 | AY97: =VLOOKUP($U97,Output!$C:$AM,AY$94,FALSE) -> 39391979.23 | AZ97: =VLOOKUP($U97,Output!$C:$AM,AZ$94,FALSE) -> 36673592.11
S98: =LEFT(B$91,10) -> Figure 6. | T98: Volume sur pied | U98: OVOLTOTPIEDINC | V98: =VLOOKUP($U98,Output!$C:$AM,V$94,FALSE) -> 62741311.34 | W98: =VLOOKUP($U98,Output!$C:$AM,W$94,FALSE) -> 63544339.09 | X98: =VLOOKUP($U98,Output!$C:$AM,X$94,FALSE) -> 62083710.38 | Y98: =VLOOKUP($U98,Output!$C:$AM,Y$94,FALSE) -> 60567550.1 | Z98: =VLOOKUP($U98,Output!$C:$AM,Z$94,FALSE) -> 60567550.1 | AA98: =VLOOKUP($U98,Output!$C:$AM,AA$94,FALSE) -> 60567550.1 | AB98: =VLOOKUP($U98,Output!$C:$AM,AB$94,FALSE) -> 60567550.1 | AC98: =VLOOKUP($U98,Output!$C:$AM,AC$94,FALSE) -> 60567550.1 | AD98: =VLOOKUP($U98,Output!$C:$AM,AD$94,FALSE) -> 60567550.1 | AE98: =VLOOKUP($U98,Output!$C:$AM,AE$94,FALSE) -> 60567550.1 | AF98: =VLOOKUP($U98,Output!$C:$AM,AF$94,FALSE) -> 60567550.1 | AG98: =VLOOKUP($U98,Output!$C:$AM,AG$94,FALSE) -> 60567550.1 | AH98: =VLOOKUP($U98,Output!$C:$AM,AH$94,FALSE) -> 60567550.1 | AI98: =VLOOKUP($U98,Output!$C:$AM,AI$94,FALSE) -> 60567550.1 | AJ98: =VLOOKUP($U98,Output!$C:$AM,AJ$94,FALSE) -> 60567550.1 | AK98: =VLOOKUP($U98,Output!$C:$AM,AK$94,FALSE) -> 60567550.1 | AL98: =VLOOKUP($U98,Output!$C:$AM,AL$94,FALSE) -> 60567550.1 | AM98: =VLOOKUP($U98,Output!$C:$AM,AM$94,FALSE) -> 60567550.1 | AN98: =VLOOKUP($U98,Output!$C:$AM,AN$94,FALSE) -> 60567550.1 | AO98: =VLOOKUP($U98,Output!$C:$AM,AO$94,FALSE) -> 60567550.1 | AP98: =VLOOKUP($U98,Output!$C:$AM,AP$94,FALSE) -> 60567550.1 | AQ98: =VLOOKUP($U98,Output!$C:$AM,AQ$94,FALSE) -> 60567550.1 | AR98: =VLOOKUP($U98,Output!$C:$AM,AR$94,FALSE) -> 60567550.1 | AS98: =VLOOKUP($U98,Output!$C:$AM,AS$94,FALSE) -> 60567550.1 | AT98: =VLOOKUP($U98,Output!$C:$AM,AT$94,FALSE) -> 60567550.1 | AU98: =VLOOKUP($U98,Output!$C:$AM,AU$94,FALSE) -> 60567550.1 | AV98: =VLOOKUP($U98,Output!$C:$AM,AV$94,FALSE) -> 60567550.1 | AW98: =VLOOKUP($U98,Output!$C:$AM,AW$94,FALSE) -> 60567550.1 | AX98: =VLOOKUP($U98,Output!$C:$AM,AX$94,FALSE) -> 60567550.1 | AY98: =VLOOKUP($U98,Output!$C:$AM,AY$94,FALSE) -> 60567550.1 | AZ98: =VLOOKUP($U98,Output!$C:$AM,AZ$94,FALSE) -> 60567550.1
S99: =LEFT(B$91,10) -> Figure 6. | T99: Volume récoltable | U99: OVOLTOTADMREGAPRE | V99: =VLOOKUP($U99,Output!$C:$AM,V$94,FALSE) -> 0 | W99: =VLOOKUP($U99,Output!$C:$AM,W$94,FALSE) -> 20832765.85 | X99: =VLOOKUP($U99,Output!$C:$AM,X$94,FALSE) -> 30197784.8 | Y99: =VLOOKUP($U99,Output!$C:$AM,Y$94,FALSE) -> 32032087.41 | Z99: =VLOOKUP($U99,Output!$C:$AM,Z$94,FALSE) -> 39621795.44 | AA99: =VLOOKUP($U99,Output!$C:$AM,AA$94,FALSE) -> 40279619.54 | AB99: =VLOOKUP($U99,Output!$C:$AM,AB$94,FALSE) -> 38716440.84 | AC99: =VLOOKUP($U99,Output!$C:$AM,AC$94,FALSE) -> 37009101.25 | AD99: =VLOOKUP($U99,Output!$C:$AM,AD$94,FALSE) -> 35796772.76 | AE99: =VLOOKUP($U99,Output!$C:$AM,AE$94,FALSE) -> 36177184.55 | AF99: =VLOOKUP($U99,Output!$C:$AM,AF$94,FALSE) -> 34478327.35 | AG99: =VLOOKUP($U99,Output!$C:$AM,AG$94,FALSE) -> 34792120.8 | AH99: =VLOOKUP($U99,Output!$C:$AM,AH$94,FALSE) -> 33381684.67 | AI99: =VLOOKUP($U99,Output!$C:$AM,AI$94,FALSE) -> 32476760.87 | AJ99: =VLOOKUP($U99,Output!$C:$AM,AJ$94,FALSE) -> 31963268.41 | AK99: =VLOOKUP($U99,Output!$C:$AM,AK$94,FALSE) -> 32018695.34 | AL99: =VLOOKUP($U99,Output!$C:$AM,AL$94,FALSE) -> 30508551.72 | AM99: =VLOOKUP($U99,Output!$C:$AM,AM$94,FALSE) -> 30127761.68 | AN99: =VLOOKUP($U99,Output!$C:$AM,AN$94,FALSE) -> 29740951.11 | AO99: =VLOOKUP($U99,Output!$C:$AM,AO$94,FALSE) -> 28875627.3 | AP99: =VLOOKUP($U99,Output!$C:$AM,AP$94,FALSE) -> 29242165.94 | AQ99: =VLOOKUP($U99,Output!$C:$AM,AQ$94,FALSE) -> 30455223.88 | AR99: =VLOOKUP($U99,Output!$C:$AM,AR$94,FALSE) -> 29615222.32 | AS99: =VLOOKUP($U99,Output!$C:$AM,AS$94,FALSE) -> 30262456.75 | AT99: =VLOOKUP($U99,Output!$C:$AM,AT$94,FALSE) -> 29756126.56 | AU99: =VLOOKUP($U99,Output!$C:$AM,AU$94,FALSE) -> 29892800.85 | AV99: =VLOOKUP($U99,Output!$C:$AM,AV$94,FALSE) -> 29118920.93 | AW99: =VLOOKUP($U99,Output!$C:$AM,AW$94,FALSE) -> 29517249.49 | AX99: =VLOOKUP($U99,Output!$C:$AM,AX$94,FALSE) -> 28069590 | AY99: =VLOOKUP($U99,Output!$C:$AM,AY$94,FALSE) -> 26897848.29 | AZ99: =VLOOKUP($U99,Output!$C:$AM,AZ$94,FALSE) -> 26679461.16
T116: * Source: Cahier_analyse, Tableau 13, onglet Budget | X116: Moyenne P2 à P6
B117: Figure 7. Répartition du budget annuel par familles de traitements prévus à la stratégie d’aménagement et coût moyen à l’hectare par famille de traitements
S118: =LEFT(B$117,10) -> Figure 7. | T118: Légende | U118: Output taux | V118: Output superficie | W118: $/ha | X118: ha | Y118: $
S119: =LEFT(B$117,10) -> Figure 7. | T119: Coupes avec protection de la régénération et des sols (CPRS) | U119: OTAUXCT_100 | V119: OSUPCT | W119: =IFERROR(VLOOKUP(U119,Output!$C:$AR,42,FALSE),0) -> 0 | X119: =IFERROR(VLOOKUP(V119,Output!$C:$AR,42,FALSE),"0000")/5 -> 4039.938 | Y119: =W119*X119 -> 0
S120: =LEFT(B$117,10) -> Figure 7. | T120: Coupe avec protection des petites tiges marchandes (CPPTM) | V120: OSUPREALaCPPTM | W120: =IFERROR(VLOOKUP(U120,Output!$C:$AQ,8,FALSE),0) -> 0 | X120: =IFERROR(VLOOKUP(V120,Output!$C:$AR,42,FALSE),"0000")/5 -> 0 | Y120: =W120*X120 -> 0
S121: =LEFT(B$117,10) -> Figure 7. | T121: Coupe avec réserve de semenciers (CRS) | V121: OSUPREALaCRS | W121: =IFERROR(VLOOKUP(U121,Output!$C:$AQ,8,FALSE),0) -> 0 | X121: =IFERROR(VLOOKUP(V121,Output!$C:$AR,42,FALSE),"0000")/5 -> 57.38 | Y121: 0
T122: Coupe à rétention variable (CRV, CPPTM, CPPTM, CPHR, CDL)
S123: =LEFT(B$117,10) -> Figure 7. | T123: Coupes finales | W123: =(ROUND(Y123/X123,0))&"$/ha" -> 0$/ha | X123: =SUM(X119:X121) -> 4097.318 | Y123: =SUM(Y119:Y121) -> 0
S124: Figure 7. | T124: Éclaircie commerciale (EC) | U124: OTAUXEC_SEPM_100 | V124: OSUPEC_SEPM | W124: =IFERROR(VLOOKUP(U124,Output!$C:$AR,42,FALSE),0) -> 1250 | X124: =IFERROR(VLOOKUP(V124,Output!$C:$AR,42,FALSE),"0000")/5 -> 7.5 | Y124: 9375
S125: Figure 7. | T125: Coupe progressive régulière initiale (CPROG) | U125: OTAUXCPROG_INI_100 | V125: OSUPCPROG_INI | W125: =IFERROR(VLOOKUP(U125,Output!$C:$AR,42,FALSE),0) -> 760 | X125: =IFERROR(VLOOKUP(V125,Output!$C:$AR,42,FALSE),"0000")/5 -> 0 | Y125: 0
S126: Figure 7. | T126: Coupe progressive régulière finale (CPROG) | U126: OTAUXCPROG_FIN_100 | V126: OSUPCPROG_FIN | W126: =IFERROR(VLOOKUP(U126,Output!$C:$AR,42,FALSE),0) -> 0 | X126: =IFERROR(VLOOKUP(V126,Output!$C:$AR,42,FALSE),"0000")/5 -> 0 | Y126: 0
S127: Figure 7. | T127: Coupe progessive irrégulière initiale (CPIRL) | U127: OTAUXCPIRL_INI_100 | V127: OSUPCPIRL_INI | W127: =IFERROR(VLOOKUP(U127,Output!$C:$AR,42,FALSE),0) -> 670 | X127: =IFERROR(VLOOKUP(V127,Output!$C:$AR,42,FALSE),"0000")/5 -> 1911.225 | Y127: 1280520.75
S128: Figure 7. | T128: Coupe progessive irrégulière finale (CPIRL) | U128: OTAUXCPIRL_FIN_100 | V128: OSUPCPIRL_FIN | W128: =IFERROR(VLOOKUP(U128,Output!$C:$AR,42,FALSE),0) -> 0 | X128: =IFERROR(VLOOKUP(V128,Output!$C:$AR,42,FALSE),"0000")/5 -> 50 | Y128: 0
S129: Figure 7. | T129: Coupe à couvert permanent (CPICP) | U129: OTAUXCPICP_100 | V129: OSUPCPICP | W129: =IFERROR(VLOOKUP(U129,Output!$C:$AR,42,FALSE),0) -> 600 | X129: =IFERROR(VLOOKUP(V129,Output!$C:$AR,42,FALSE),"0000")/5 -> 1160.95 | Y129: 696570
S130: Figure 7. | T130: Coupe de jardinage (CJ) | U130: OTAUXCJ_100 | V130: OSUPCJ | W130: =IFERROR(VLOOKUP(U130,Output!$C:$AR,42,FALSE),0) -> 676.16 | X130: =IFERROR(VLOOKUP(V130,Output!$C:$AR,42,FALSE),"0000")/5 -> 0 | Y130: 0
S131: Figure 7. | T131: Coupes partielles | W131: =(ROUND(Y131/X131,0))&"$/ha" -> 635$/ha | X131: =SUM(X124:X130) -> 3129.675 | Y131: =SUM(Y124:Y130) -> 1986465.75
S132: Figure 7. | T132: Plantation ligniculture (pins, feuillus) | U132: OTAUXPL_PPF_100 | V132: OSUPPL_PPF | W132: =IFERROR(VLOOKUP(U132,Output!$C:$AR,42,FALSE),0) -> 1650 | X132: =IFERROR(VLOOKUP(V132,Output!$C:$AR,42,FALSE),"0000")/5 -> 0 | Y132: 0
S133: Figure 7. | T133: Plantation intensive | U133: OTAUXPL_SEPM_I_100 | V133: OSUPPL_SEPM_I | W133: =IFERROR(VLOOKUP(U133,Output!$C:$AR,42,FALSE),0) -> 1630 | X133: =IFERROR(VLOOKUP(V133,Output!$C:$AR,42,FALSE),"0000")/5 -> 26.795 | Y133: 43675.85
S134: Figure 7. | T134: Plantation de base | U134: OTAUXPL_SEPM_E_100 | V134: OSUPPL_SEPM_E | W134: =IFERROR(VLOOKUP(U134,Output!$C:$AR,42,FALSE),0) -> 1310 | X134: =IFERROR(VLOOKUP(V134,Output!$C:$AR,42,FALSE),"0000")/5 -> 343.205 | Y134: 449598.55
S135: Figure 7. | T135: Regarni | U135: OTAUXREG_100 | V135: OSUPREG | W135: =IFERROR(VLOOKUP(U135,Output!$C:$AR,42,FALSE),0) -> 550 | X135: =IFERROR(VLOOKUP(V135,Output!$C:$AR,42,FALSE),"0000")/5 -> 150 | Y135: 82500
S136: Figure 7. | T136: Ensemencement (ENS) | U136: OTAUXENS_100 | V136: OSUPENS | W136: =IFERROR(VLOOKUP(U136,Output!$C:$AR,42,FALSE),0) -> 130 | X136: =IFERROR(VLOOKUP(V136,Output!$C:$AR,42,FALSE),"0000")/5 -> 0 | Y136: =W136*X136 -> 0
S137: Figure 7. | T137: Reboisement | W137: =(ROUND(Y137/X137,0))&"$/ha" -> 1107$/ha | X137: =SUM(X132:X136) -> 520 | Y137: =SUM(Y132:Y136) -> 575774.4
S138: Figure 7. | T138: Dégagement de la régénération naturelle | U138: OTAUXDEG_2_100 | V138: OSUPDEG_2 | W138: =IFERROR(VLOOKUP(U138,Output!$C:$AR,42,FALSE),0) -> 1650 | X138: =IFERROR(VLOOKUP(V138,Output!$C:$AR,42,FALSE),"0000")/5 -> 150 | Y138: 247500
S139: Figure 7. | T139: Dégagement de plantation | U139: OTAUXDEG_1_100 | V139: OSUPDEG_1 | W139: =IFERROR(VLOOKUP(U139,Output!$C:$AR,42,FALSE),0) -> 1650 | X139: =IFERROR(VLOOKUP(V139,Output!$C:$AR,42,FALSE),"0000")/5 -> 375.058 | Y139: 618845.7
S140: Figure 7. | T140: Nettoiement de la régénération naturelle | U140: OTAUXNETT_100 | V140: OSUPREALNET | W140: =IFERROR(VLOOKUP(U140,Output!$C:$AR,42,FALSE),0) -> 1060 | X140: =IFERROR(VLOOKUP(V140,Output!$C:$AR,42,FALSE),"0000")/5-X141 -> 482.503 | Y140: 511453.18
C141: $ /m3 | E141: $ /ha | S141: Figure 7. | T141: Nettoiement de plantation | U141: OTAUXNETT_100 | V141: OSUPTCADNETT_T100% | W141: =IFERROR(VLOOKUP(U141,Output!$C:$AR,42,FALSE),0) -> 1060 | X141: =IFERROR(VLOOKUP(V141,Output!$C:$AR,42,FALSE),"0000")/5 -> 323.87 | Y141: 343302.2
C142: =Y151/(Instructions!I5/5) -> 5.019707952 | E142: =Y151/Tableaux!F33 -> 12.19777788 | S142: Figure 7. | T142: Éclaircie précommerciale (EPC_1) | U142: OTAUXEPC_1_100 | V142: OSUPEPC_1 | W142: =IFERROR(VLOOKUP(U142,Output!$C:$AR,42,FALSE),0) -> 1160 | X142: =IFERROR(VLOOKUP(V142,Output!$C:$AR,42,FALSE),"0000")/5 -> 0 | Y142: 0
S143: Figure 7. | T143: Éclaircie précommerciale (EPC_2) | U143: OTAUXEPC_2_100 | V143: OSUPEPC_2 | W143: =IFERROR(VLOOKUP(U143,Output!$C:$AR,42,FALSE),0) -> 1160 | X143: =IFERROR(VLOOKUP(V143,Output!$C:$AR,42,FALSE),"0000")/5 -> 269.948 | Y143: 313139.68
S144: Figure 7. | T144: Éclaircie précommerciale de la régénération naturelle | V144: OSUPREALEPC | W144: =IFERROR(VLOOKUP(U144,Output!$C:$AR,42,FALSE),0) -> 0 | X144: =IFERROR(VLOOKUP(V144,Output!$C:$AR,42,FALSE),"0000")/5 -> 269.948 | Y144: 0
S145: Figure 7. | T145: Élagage (plantation) | U145: OTAUXELAG_100 | V145: OSUPELAG | W145: =IFERROR(VLOOKUP(U145,Output!$C:$AR,42,FALSE),0) -> 1100 | X145: =IFERROR(VLOOKUP(V145,Output!$C:$AR,42,FALSE),"0000")/5 -> 140 | Y145: 154000
S146: Figure 7. | T146: Travaux d'éducation | W146: =(ROUND(Y146/X146,0))&"$/ha" -> 1257$/ha | X146: =SUM(X138:X143)+X145 -> 1741.379 | Y146: =SUM(Y138:Y143)+Y145 -> 2188240.76
S147: Figure 7. | T147: Préparation terrain lignicult. + ferti + élagage (SCA_LIGN) | U147: OTAUXSCA_LIGN_100 | V147: OSUPSCA_LIGN | W147: =IFERROR(VLOOKUP(U147,Output!$C:$AR,42,FALSE),0) -> 1790 | X147: =IFERROR(VLOOKUP(V147,Output!$C:$AR,42,FALSE),"0000")/5 -> 0 | Y147: 0
S148: Figure 7. | T148: Préparation de terrain partielle (SCA_PART) | U148: OTAUXSCA_PART_100 | V148: OSUPSCA_PART | W148: =IFERROR(VLOOKUP(U148,Output!$C:$AR,42,FALSE),0) -> 760 | X148: =IFERROR(VLOOKUP(V148,Output!$C:$AR,42,FALSE),"0000")/5 -> 240 | Y148: 182400
S149: Figure 7. | T149: Préparation de terrain régulière, 1 passage (SCA_REG) | U149: OTAUXSCA_REG_100 | V149: OSUPSCA_REG | W149: =IFERROR(VLOOKUP(U149,Output!$C:$AR,42,FALSE),0) -> 580 | X149: =IFERROR(VLOOKUP(V149,Output!$C:$AR,42,FALSE),"0000")/5 -> 427.38 | Y149: 247880.4 | AA149: Valideur
B150: Figure 9b Évolution de la superficie des vieilles forêts selon leur degré d'altération | S150: Figure 7. | T150: Préparation de terrain | W150: =(ROUND(Y150/X150,0))&"$/ha" -> 645$/ha | X150: =SUM(X147:X149) -> 667.38 | Y150: =SUM(Y147:Y149) -> 430280.4 | Z150: =Y123+Y131+Y137+Y146+Y150 -> 5180761.31 | AA150: =Y151-Z150 -> 0.8899999997
S151: Figure 7. | T151: Investissement sylvicole annuel (O$INVESTISTS)* | V151: O$INVESTISTS | Y151: =IFERROR(VLOOKUP(V151,Output!$C:$AR,42,FALSE),"0000")/5 -> 5180762.2
S155: =LEFT(B$117,10) -> Figure 7. | T155: =T123 -> Coupes finales | U155: =Y123 -> 0 | V155: =W123 -> 0$/ha
S156: =LEFT(B$117,10) -> Figure 7. | T156: =T131 -> Coupes partielles | U156: =Y131 -> 1986465.75 | V156: =W131 -> 635$/ha
S157: =LEFT(B$117,10) -> Figure 7. | T157: =T137 -> Reboisement | U157: =Y137 -> 575774.4 | V157: =W137 -> 1107$/ha
S158: =LEFT(B$117,10) -> Figure 7. | T158: =T146 -> Travaux d'éducation | U158: =Y146 -> 2188240.76 | V158: =W146 -> 1257$/ha
S159: =LEFT(B$117,10) -> Figure 7. | T159: =T150 -> Préparation de terrain | U159: =Y150 -> 430280.4 | V159: =W150 -> 645$/ha
U161: Période | V161: P0 | W161: P1 | X161: P2 | Y161: P3 | Z161: P4 | AA161: P5 | AB161: P6 | AC161: P7 | AD161: P8 | AE161: P9 | AF161: P10 | AG161: P11 | AH161: P12 | AI161: P13 | AJ161: P14 | AK161: P15 | AL161: P16 | AM161: P17 | AN161: P18 | AO161: P19 | AP161: P20 | AQ161: P21 | AR161: P22 | AS161: P23 | AT161: P24 | AU161: P25 | AV161: P26 | AW161: P27 | AX161: P28 | AY161: P29 | AZ161: P30
S162: =LEFT(B$150,10) -> Figure 9b | U162: Axe des "X" Fin de période | V162: 2018 | W162: 2023 | X162: 2028 | Y162: 2033 | Z162: 2038 | AA162: 2043 | AB162: 2048 | AC162: 2053 | AD162: 2058 | AE162: 2063 | AF162: 2068 | AG162: 2073 | AH162: 2078 | AI162: 2083 | AJ162: 2088 | AK162: 2093 | AL162: 2098 | AM162: 2103 | AN162: 2108 | AO162: 2113 | AP162: 2118 | AQ162: 2123 | AR162: 2128 | AS162: 2133 | AT162: 2138 | AU162: 2143 | AV162: 2148 | AW162: 2153 | AX162: 2158 | AY162: 2163 | AZ162: 2168
S163: Figure 9b | U163: Colonne | V163: 6 | W163: 7 | X163: 8 | Y163: 9 | Z163: 10 | AA163: 11 | AB163: 12 | AC163: 13 | AD163: 14 | AE163: 15 | AF163: 16 | AG163: 17 | AH163: 18 | AI163: 19 | AJ163: 20 | AK163: 21 | AL163: 22 | AM163: 23 | AN163: 24 | AO163: 25 | AP163: 26 | AQ163: 27 | AR163: 28 | AS163: 29 | AT163: 30 | AU163: 31 | AV163: 32 | AW163: 33 | AX163: 34 | AY163: 35 | AZ163: 36
S164: Figure 9b | U164: OSUPREGECO | V164: =VLOOKUP($U164,Output!$C:$AL,V$163,FALSE) -> 498125.8 | W164: =VLOOKUP($U164,Output!$C:$AL,W$163,FALSE) -> 496095.18 | X164: =VLOOKUP($U164,Output!$C:$AL,X$163,FALSE) -> 494202.92 | Y164: =VLOOKUP($U164,Output!$C:$AL,Y$163,FALSE) -> 492455.45 | Z164: =VLOOKUP($U164,Output!$C:$AL,Z$163,FALSE) -> 491074.72 | AA164: =VLOOKUP($U164,Output!$C:$AL,AA$163,FALSE) -> 489912.28 | AB164: =VLOOKUP($U164,Output!$C:$AL,AB$163,FALSE) -> 488898.85 | AC164: =VLOOKUP($U164,Output!$C:$AL,AC$163,FALSE) -> 487788.08 | AD164: =VLOOKUP($U164,Output!$C:$AL,AD$163,FALSE) -> 487119.62 | AE164: =VLOOKUP($U164,Output!$C:$AL,AE$163,FALSE) -> 486615.41 | AF164: =VLOOKUP($U164,Output!$C:$AL,AF$163,FALSE) -> 486174.82 | AG164: =VLOOKUP($U164,Output!$C:$AL,AG$163,FALSE) -> 485873.45 | AH164: =VLOOKUP($U164,Output!$C:$AL,AH$163,FALSE) -> 485604.03 | AI164: =VLOOKUP($U164,Output!$C:$AL,AI$163,FALSE) -> 485324.63 | AJ164: =VLOOKUP($U164,Output!$C:$AL,AJ$163,FALSE) -> 485142.5 | AK164: =VLOOKUP($U164,Output!$C:$AL,AK$163,FALSE) -> 485082.4 | AL164: =VLOOKUP($U164,Output!$C:$AL,AL$163,FALSE) -> 484836.83 | AM164: =VLOOKUP($U164,Output!$C:$AL,AM$163,FALSE) -> 484657.27 | AN164: =VLOOKUP($U164,Output!$C:$AL,AN$163,FALSE) -> 484614.97 | AO164: =VLOOKUP($U164,Output!$C:$AL,AO$163,FALSE) -> 484551.31 | AP164: =VLOOKUP($U164,Output!$C:$AL,AP$163,FALSE) -> 484320.8 | AQ164: =VLOOKUP($U164,Output!$C:$AL,AQ$163,FALSE) -> 484247.6 | AR164: =VLOOKUP($U164,Output!$C:$AL,AR$163,FALSE) -> 484011.73 | AS164: =VLOOKUP($U164,Output!$C:$AL,AS$163,FALSE) -> 483818.82 | AT164: =VLOOKUP($U164,Output!$C:$AL,AT$163,FALSE) -> 483805.07 | AU164: =VLOOKUP($U164,Output!$C:$AL,AU$163,FALSE) -> 483735.74 | AV164: =VLOOKUP($U164,Output!$C:$AL,AV$163,FALSE) -> 483721.41 | AW164: =VLOOKUP($U164,Output!$C:$AL,AW$163,FALSE) -> 483707.66 | AX164: =VLOOKUP($U164,Output!$C:$AL,AX$163,FALSE) -> 483693.91 | AY164: =VLOOKUP($U164,Output!$C:$AL,AY$163,FALSE) -> 483680.16 | AZ164: =VLOOKUP($U164,Output!$C:$AL,AZ$163,FALSE) -> 483666.41
S165: Figure 9b | T165: Élevé | U165: OSUPVIEUXALERTEREGECO | V165: =VLOOKUP($U165,Output!$C:$AL,V$163,FALSE) -> 97856.7 | W165: =VLOOKUP($U165,Output!$C:$AL,W$163,FALSE) -> 97462.64 | X165: =VLOOKUP($U165,Output!$C:$AL,X$163,FALSE) -> 97092.66 | Y165: =VLOOKUP($U165,Output!$C:$AL,Y$163,FALSE) -> 96751.11 | Z165: =VLOOKUP($U165,Output!$C:$AL,Z$163,FALSE) -> 96474.53 | AA165: =VLOOKUP($U165,Output!$C:$AL,AA$163,FALSE) -> 96245.12 | AB165: =VLOOKUP($U165,Output!$C:$AL,AB$163,FALSE) -> 96047.85 | AC165: =VLOOKUP($U165,Output!$C:$AL,AC$163,FALSE) -> 95830.13 | AD165: =VLOOKUP($U165,Output!$C:$AL,AD$163,FALSE) -> 95701.54 | AE165: =VLOOKUP($U165,Output!$C:$AL,AE$163,FALSE) -> 95610.32 | AF165: =VLOOKUP($U165,Output!$C:$AL,AF$163,FALSE) -> 95523.99 | AG165: =VLOOKUP($U165,Output!$C:$AL,AG$163,FALSE) -> 95464.14 | AH165: =VLOOKUP($U165,Output!$C:$AL,AH$163,FALSE) -> 95412.19 | AI165: =VLOOKUP($U165,Output!$C:$AL,AI$163,FALSE) -> 95362.68 | AJ165: =VLOOKUP($U165,Output!$C:$AL,AJ$163,FALSE) -> 95329.3 | AK165: =VLOOKUP($U165,Output!$C:$AL,AK$163,FALSE) -> 95318.28 | AL165: =VLOOKUP($U165,Output!$C:$AL,AL$163,FALSE) -> 95270.46 | AM165: =VLOOKUP($U165,Output!$C:$AL,AM$163,FALSE) -> 95237.03 | AN165: =VLOOKUP($U165,Output!$C:$AL,AN$163,FALSE) -> 95228.66 | AO165: =VLOOKUP($U165,Output!$C:$AL,AO$163,FALSE) -> 95217.08 | AP165: =VLOOKUP($U165,Output!$C:$AL,AP$163,FALSE) -> 95173.47 | AQ165: =VLOOKUP($U165,Output!$C:$AL,AQ$163,FALSE) -> 95160.72 | AR165: =VLOOKUP($U165,Output!$C:$AL,AR$163,FALSE) -> 95109.77 | AS165: =VLOOKUP($U165,Output!$C:$AL,AS$163,FALSE) -> 95066.67 | AT165: =VLOOKUP($U165,Output!$C:$AL,AT$163,FALSE) -> 95063.73 | AU165: =VLOOKUP($U165,Output!$C:$AL,AU$163,FALSE) -> 95049.32 | AV165: =VLOOKUP($U165,Output!$C:$AL,AV$163,FALSE) -> 95046.36 | AW165: =VLOOKUP($U165,Output!$C:$AL,AW$163,FALSE) -> 95043.47 | AX165: =VLOOKUP($U165,Output!$C:$AL,AX$163,FALSE) -> 95040.62 | AY165: =VLOOKUP($U165,Output!$C:$AL,AY$163,FALSE) -> 95037.8 | AZ165: =VLOOKUP($U165,Output!$C:$AL,AZ$163,FALSE) -> 95034.89
S166: Figure 9b | U166: OSUPVIEUXACCEPTREGECO | V166: =VLOOKUP($U166,Output!$C:$AL,V$163,FALSE) -> 163094.49 | W166: =VLOOKUP($U166,Output!$C:$AL,W$163,FALSE) -> 162437.73 | X166: =VLOOKUP($U166,Output!$C:$AL,X$163,FALSE) -> 161821.1 | Y166: =VLOOKUP($U166,Output!$C:$AL,Y$163,FALSE) -> 161251.86 | Z166: =VLOOKUP($U166,Output!$C:$AL,Z$163,FALSE) -> 160790.89 | AA166: =VLOOKUP($U166,Output!$C:$AL,AA$163,FALSE) -> 160408.53 | AB166: =VLOOKUP($U166,Output!$C:$AL,AB$163,FALSE) -> 160079.75 | AC166: =VLOOKUP($U166,Output!$C:$AL,AC$163,FALSE) -> 159716.89 | AD166: =VLOOKUP($U166,Output!$C:$AL,AD$163,FALSE) -> 159502.57 | AE166: =VLOOKUP($U166,Output!$C:$AL,AE$163,FALSE) -> 159350.54 | AF166: =VLOOKUP($U166,Output!$C:$AL,AF$163,FALSE) -> 159206.66 | AG166: =VLOOKUP($U166,Output!$C:$AL,AG$163,FALSE) -> 159106.9 | AH166: =VLOOKUP($U166,Output!$C:$AL,AH$163,FALSE) -> 159020.32 | AI166: =VLOOKUP($U166,Output!$C:$AL,AI$163,FALSE) -> 158937.81 | AJ166: =VLOOKUP($U166,Output!$C:$AL,AJ$163,FALSE) -> 158882.17 | AK166: =VLOOKUP($U166,Output!$C:$AL,AK$163,FALSE) -> 158863.8 | AL166: =VLOOKUP($U166,Output!$C:$AL,AL$163,FALSE) -> 158784.1 | AM166: =VLOOKUP($U166,Output!$C:$AL,AM$163,FALSE) -> 158728.38 | AN166: =VLOOKUP($U166,Output!$C:$AL,AN$163,FALSE) -> 158714.43 | AO166: =VLOOKUP($U166,Output!$C:$AL,AO$163,FALSE) -> 158695.13 | AP166: =VLOOKUP($U166,Output!$C:$AL,AP$163,FALSE) -> 158622.45 | AQ166: =VLOOKUP($U166,Output!$C:$AL,AQ$163,FALSE) -> 158601.2 | AR166: =VLOOKUP($U166,Output!$C:$AL,AR$163,FALSE) -> 158516.29 | AS166: =VLOOKUP($U166,Output!$C:$AL,AS$163,FALSE) -> 158444.45 | AT166: =VLOOKUP($U166,Output!$C:$AL,AT$163,FALSE) -> 158439.55 | AU166: =VLOOKUP($U166,Output!$C:$AL,AU$163,FALSE) -> 158415.54 | AV166: =VLOOKUP($U166,Output!$C:$AL,AV$163,FALSE) -> 158410.6 | AW166: =VLOOKUP($U166,Output!$C:$AL,AW$163,FALSE) -> 158405.79 | AX166: =VLOOKUP($U166,Output!$C:$AL,AX$163,FALSE) -> 158401.03 | AY166: =VLOOKUP($U166,Output!$C:$AL,AY$163,FALSE) -> 158396.33 | AZ166: =VLOOKUP($U166,Output!$C:$AL,AZ$163,FALSE) -> 158391.49
S167: Figure 9b | T167: Moyen | V167: =V166-V165 -> 65237.79 | W167: =W166-W165 -> 64975.09 | X167: 64728.44 | Y167: 64500.75 | Z167: 64316.36 | AA167: 64163.41 | AB167: 64031.9 | AC167: 63886.76 | AD167: 63801.03 | AE167: 63740.22 | AF167: 63682.67 | AG167: 63642.76 | AH167: 63608.13 | AI167: 63575.13 | AJ167: 63552.87 | AK167: 63545.52 | AL167: 63513.64 | AM167: 63491.35 | AN167: 63485.77 | AO167: 63478.05 | AP167: 63448.98 | AQ167: 63440.48 | AR167: 63406.52 | AS167: 63377.78 | AT167: 63375.82 | AU167: 63366.22 | AV167: 63364.24 | AW167: 63362.32 | AX167: 63360.41 | AY167: 63358.53 | AZ167: 63356.6
S168: Figure 9b | T168: Faible | V168: =$V$164-V165-V167 -> 335031.31 | W168: 335688.07 | X168: 336304.7 | Y168: 336873.94 | Z168: 337334.91 | AA168: 337717.27 | AB168: 338046.05 | AC168: 338408.91 | AD168: 338623.23 | AE168: 338775.26 | AF168: 338919.14 | AG168: 339018.9 | AH168: 339105.48 | AI168: 339187.99 | AJ168: 339243.63 | AK168: 339262 | AL168: 339341.7 | AM168: 339397.42 | AN168: 339411.37 | AO168: 339430.67 | AP168: 339503.35 | AQ168: 339524.6 | AR168: 339609.51 | AS168: 339681.35 | AT168: 339686.25 | AU168: 339710.26 | AV168: 339715.2 | AW168: 339720.01 | AX168: 339724.77 | AY168: 339729.47 | AZ168: 339734.31
S169: Figure 9b | T169: Niveau prédit | U169: OSUPVIEUXTOTREGECO | V169: =VLOOKUP($U169,Output!$C:$AL,V$163,FALSE) -> 143390.6 | W169: =VLOOKUP($U169,Output!$C:$AL,W$163,FALSE) -> 165084.65 | X169: =VLOOKUP($U169,Output!$C:$AL,X$163,FALSE) -> 163608.9 | Y169: =VLOOKUP($U169,Output!$C:$AL,Y$163,FALSE) -> 197180.72 | Z169: =VLOOKUP($U169,Output!$C:$AL,Z$163,FALSE) -> 208424.51 | AA169: =VLOOKUP($U169,Output!$C:$AL,AA$163,FALSE) -> 214324.63 | AB169: =VLOOKUP($U169,Output!$C:$AL,AB$163,FALSE) -> 230672.78 | AC169: =VLOOKUP($U169,Output!$C:$AL,AC$163,FALSE) -> 238536.82 | AD169: =VLOOKUP($U169,Output!$C:$AL,AD$163,FALSE) -> 249235.78 | AE169: =VLOOKUP($U169,Output!$C:$AL,AE$163,FALSE) -> 249109.54 | AF169: =VLOOKUP($U169,Output!$C:$AL,AF$163,FALSE) -> 245032.88 | AG169: =VLOOKUP($U169,Output!$C:$AL,AG$163,FALSE) -> 237366.79 | AH169: =VLOOKUP($U169,Output!$C:$AL,AH$163,FALSE) -> 226399.31 | AI169: =VLOOKUP($U169,Output!$C:$AL,AI$163,FALSE) -> 223230.47 | AJ169: =VLOOKUP($U169,Output!$C:$AL,AJ$163,FALSE) -> 215663.16 | AK169: =VLOOKUP($U169,Output!$C:$AL,AK$163,FALSE) -> 217516.49 | AL169: =VLOOKUP($U169,Output!$C:$AL,AL$163,FALSE) -> 212735.52 | AM169: =VLOOKUP($U169,Output!$C:$AL,AM$163,FALSE) -> 210149.07 | AN169: =VLOOKUP($U169,Output!$C:$AL,AN$163,FALSE) -> 209517.29 | AO169: =VLOOKUP($U169,Output!$C:$AL,AO$163,FALSE) -> 210425.01 | AP169: =VLOOKUP($U169,Output!$C:$AL,AP$163,FALSE) -> 206786.49 | AQ169: =VLOOKUP($U169,Output!$C:$AL,AQ$163,FALSE) -> 204706.15 | AR169: =VLOOKUP($U169,Output!$C:$AL,AR$163,FALSE) -> 209074.18 | AS169: =VLOOKUP($U169,Output!$C:$AL,AS$163,FALSE) -> 205076.73 | AT169: =VLOOKUP($U169,Output!$C:$AL,AT$163,FALSE) -> 203396.97 | AU169: =VLOOKUP($U169,Output!$C:$AL,AU$163,FALSE) -> 208148.33 | AV169: =VLOOKUP($U169,Output!$C:$AL,AV$163,FALSE) -> 212101.04 | AW169: =VLOOKUP($U169,Output!$C:$AL,AW$163,FALSE) -> 213399.37 | AX169: =VLOOKUP($U169,Output!$C:$AL,AX$163,FALSE) -> 214427.18 | AY169: =VLOOKUP($U169,Output!$C:$AL,AY$163,FALSE) -> 208038.1 | AZ169: =VLOOKUP($U169,Output!$C:$AL,AZ$163,FALSE) -> 207887.39
S170: Figure 9b | T170: Portrait préindustriel
B176: Figure 9c Évolution de la superficie des peuplements en régénération selon leur degré d'altération
U177: Période | V177: P0 | W177: P1 | X177: P2 | Y177: P3 | Z177: P4 | AA177: P5 | AB177: P6 | AC177: P7 | AD177: P8 | AE177: P9 | AF177: P10 | AG177: P11 | AH177: P12 | AI177: P13 | AJ177: P14 | AK177: P15 | AL177: P16 | AM177: P17 | AN177: P18 | AO177: P19 | AP177: P20 | AQ177: P21 | AR177: P22 | AS177: P23 | AT177: P24 | AU177: P25 | AV177: P26 | AW177: P27 | AX177: P28 | AY177: P29 | AZ177: P30
U178: Axe des "X" Fin de période | V178: 2018 | W178: 2023 | X178: 2028 | Y178: 2033 | Z178: 2038 | AA178: 2043 | AB178: 2048 | AC178: 2053 | AD178: 2058 | AE178: 2063 | AF178: 2068 | AG178: 2073 | AH178: 2078 | AI178: 2083 | AJ178: 2088 | AK178: 2093 | AL178: 2098 | AM178: 2103 | AN178: 2108 | AO178: 2113 | AP178: 2118 | AQ178: 2123 | AR178: 2128 | AS178: 2133 | AT178: 2138 | AU178: 2143 | AV178: 2148 | AW178: 2153 | AX178: 2158 | AY178: 2163 | AZ178: 2168
S179: =LEFT(B$176,10) -> Figure 9c | U179: Colonne | V179: 6 | W179: 7 | X179: 8 | Y179: 9 | Z179: 10 | AA179: 11 | AB179: 12 | AC179: 13 | AD179: 14 | AE179: 15 | AF179: 16 | AG179: 17 | AH179: 18 | AI179: 19 | AJ179: 20 | AK179: 21 | AL179: 22 | AM179: 23 | AN179: 24 | AO179: 25 | AP179: 26 | AQ179: 27 | AR179: 28 | AS179: 29 | AT179: 30 | AU179: 31 | AV179: 32 | AW179: 33 | AX179: 34 | AY179: 35 | AZ179: 36
S180: Figure 9c | T180: Niveau prédit | U180: OSUPJEUNEREGECO | V180: =VLOOKUP($U180,Output!$C:$AL,V$179,FALSE) -> 24881.1 | W180: =VLOOKUP($U180,Output!$C:$AL,W$179,FALSE) -> 22505.28 | X180: =VLOOKUP($U180,Output!$C:$AL,X$179,FALSE) -> 31309.49 | Y180: =VLOOKUP($U180,Output!$C:$AL,Y$179,FALSE) -> 41617.5 | Z180: =VLOOKUP($U180,Output!$C:$AL,Z$179,FALSE) -> 44879.49 | AA180: =VLOOKUP($U180,Output!$C:$AL,AA$179,FALSE) -> 40381.02 | AB180: =VLOOKUP($U180,Output!$C:$AL,AB$179,FALSE) -> 35268.91 | AC180: =VLOOKUP($U180,Output!$C:$AL,AC$179,FALSE) -> 35487.53 | AD180: =VLOOKUP($U180,Output!$C:$AL,AD$179,FALSE) -> 33344.1 | AE180: =VLOOKUP($U180,Output!$C:$AL,AE$179,FALSE) -> 32772.07 | AF180: =VLOOKUP($U180,Output!$C:$AL,AF$179,FALSE) -> 28942.14 | AG180: =VLOOKUP($U180,Output!$C:$AL,AG$179,FALSE) -> 29831.08 | AH180: =VLOOKUP($U180,Output!$C:$AL,AH$179,FALSE) -> 31288.33 | AI180: =VLOOKUP($U180,Output!$C:$AL,AI$179,FALSE) -> 30611.37 | AJ180: =VLOOKUP($U180,Output!$C:$AL,AJ$179,FALSE) -> 27931.99 | AK180: =VLOOKUP($U180,Output!$C:$AL,AK$179,FALSE) -> 28635.85 | AL180: =VLOOKUP($U180,Output!$C:$AL,AL$179,FALSE) -> 29288.72 | AM180: =VLOOKUP($U180,Output!$C:$AL,AM$179,FALSE) -> 30971.79 | AN180: =VLOOKUP($U180,Output!$C:$AL,AN$179,FALSE) -> 33514.56 | AO180: =VLOOKUP($U180,Output!$C:$AL,AO$179,FALSE) -> 32586.02 | AP180: =VLOOKUP($U180,Output!$C:$AL,AP$179,FALSE) -> 29259.55 | AQ180: =VLOOKUP($U180,Output!$C:$AL,AQ$179,FALSE) -> 32339.67 | AR180: =VLOOKUP($U180,Output!$C:$AL,AR$179,FALSE) -> 30132.08 | AS180: =VLOOKUP($U180,Output!$C:$AL,AS$179,FALSE) -> 26694.77 | AT180: =VLOOKUP($U180,Output!$C:$AL,AT$179,FALSE) -> 22042.93 | AU180: =VLOOKUP($U180,Output!$C:$AL,AU$179,FALSE) -> 17687.63 | AV180: =VLOOKUP($U180,Output!$C:$AL,AV$179,FALSE) -> 15931.62 | AW180: =VLOOKUP($U180,Output!$C:$AL,AW$179,FALSE) -> 13977.07 | AX180: =VLOOKUP($U180,Output!$C:$AL,AX$179,FALSE) -> 14024.55 | AY180: =VLOOKUP($U180,Output!$C:$AL,AY$179,FALSE) -> 18733.12 | AZ180: =VLOOKUP($U180,Output!$C:$AL,AZ$179,FALSE) -> 27371.82
S181: Figure 9c | U181: OSUPREGECO | V181: =VLOOKUP($U181,Output!$C:$AL,V$179,FALSE) -> 498125.8 | W181: =VLOOKUP($U181,Output!$C:$AL,W$179,FALSE) -> 496095.18 | X181: =VLOOKUP($U181,Output!$C:$AL,X$179,FALSE) -> 494202.92 | Y181: =VLOOKUP($U181,Output!$C:$AL,Y$179,FALSE) -> 492455.45 | Z181: =VLOOKUP($U181,Output!$C:$AL,Z$179,FALSE) -> 491074.72 | AA181: =VLOOKUP($U181,Output!$C:$AL,AA$179,FALSE) -> 489912.28 | AB181: =VLOOKUP($U181,Output!$C:$AL,AB$179,FALSE) -> 488898.85 | AC181: =VLOOKUP($U181,Output!$C:$AL,AC$179,FALSE) -> 487788.08 | AD181: =VLOOKUP($U181,Output!$C:$AL,AD$179,FALSE) -> 487119.62 | AE181: =VLOOKUP($U181,Output!$C:$AL,AE$179,FALSE) -> 486615.41 | AF181: =VLOOKUP($U181,Output!$C:$AL,AF$179,FALSE) -> 486174.82 | AG181: =VLOOKUP($U181,Output!$C:$AL,AG$179,FALSE) -> 485873.45 | AH181: =VLOOKUP($U181,Output!$C:$AL,AH$179,FALSE) -> 485604.03 | AI181: =VLOOKUP($U181,Output!$C:$AL,AI$179,FALSE) -> 485324.63 | AJ181: =VLOOKUP($U181,Output!$C:$AL,AJ$179,FALSE) -> 485142.5 | AK181: =VLOOKUP($U181,Output!$C:$AL,AK$179,FALSE) -> 485082.4 | AL181: =VLOOKUP($U181,Output!$C:$AL,AL$179,FALSE) -> 484836.83 | AM181: =VLOOKUP($U181,Output!$C:$AL,AM$179,FALSE) -> 484657.27 | AN181: =VLOOKUP($U181,Output!$C:$AL,AN$179,FALSE) -> 484614.97 | AO181: =VLOOKUP($U181,Output!$C:$AL,AO$179,FALSE) -> 484551.31 | AP181: =VLOOKUP($U181,Output!$C:$AL,AP$179,FALSE) -> 484320.8 | AQ181: =VLOOKUP($U181,Output!$C:$AL,AQ$179,FALSE) -> 484247.6 | AR181: =VLOOKUP($U181,Output!$C:$AL,AR$179,FALSE) -> 484011.73 | AS181: =VLOOKUP($U181,Output!$C:$AL,AS$179,FALSE) -> 483818.82 | AT181: =VLOOKUP($U181,Output!$C:$AL,AT$179,FALSE) -> 483805.07 | AU181: =VLOOKUP($U181,Output!$C:$AL,AU$179,FALSE) -> 483735.74 | AV181: =VLOOKUP($U181,Output!$C:$AL,AV$179,FALSE) -> 483721.41 | AW181: =VLOOKUP($U181,Output!$C:$AL,AW$179,FALSE) -> 483707.66 | AX181: =VLOOKUP($U181,Output!$C:$AL,AX$179,FALSE) -> 483693.91 | AY181: =VLOOKUP($U181,Output!$C:$AL,AY$179,FALSE) -> 483680.16 | AZ181: =VLOOKUP($U181,Output!$C:$AL,AZ$179,FALSE) -> 483666.41
S182: Figure 9c | V182: =IFERROR(V180/V181,"0000") -> 0.04994943045 | W182: 0.04536484309 | X182: 0.06335351074 | Y182: 0.0845101826 | Z182: 0.09139034891 | AA182: 0.08242500066 | AB182: 0.07213948243 | AC182: 0.07275194179 | AD182: 0.06845156432 | AE182: 0.06734696297 | AF182: 0.05953031463 | AG182: 0.06139681022 | AH182: 0.06443177582 | AI182: 0.06307400883 | AJ182: 0.05757481565 | AK182: 0.05903296017 | AL182: 0.06040943713 | AM182: 0.06390451958 | AN182: 0.06915708774 | AO182: 0.06724988526 | AP182: 0.06041357299 | AQ182: 0.06678333563 | AR182: 0.06225485486 | AS182: 0.05517513767 | AT182: 0.04556159364 | AU182: 0.03656465408 | AV182: 0.03293552791 | AW182: 0.02889569704 | AX182: 0.02899467971 | AY182: 0.03873038745 | AZ182: 0.05659235257
S183: Figure 9c
S184: Figure 9c | U184: OSUPJEUNEALERTEREGECO | V184: =VLOOKUP($U184,Output!$C:$AL,V$179,FALSE) -> 149437.74 | W184: =VLOOKUP($U184,Output!$C:$AL,W$179,FALSE) -> 148828.56 | X184: =VLOOKUP($U184,Output!$C:$AL,X$179,FALSE) -> 148260.88 | Y184: =VLOOKUP($U184,Output!$C:$AL,Y$179,FALSE) -> 147736.63 | Z184: =VLOOKUP($U184,Output!$C:$AL,Z$179,FALSE) -> 147322.42 | AA184: =VLOOKUP($U184,Output!$C:$AL,AA$179,FALSE) -> 146973.68 | AB184: =VLOOKUP($U184,Output!$C:$AL,AB$179,FALSE) -> 146669.65 | AC184: =VLOOKUP($U184,Output!$C:$AL,AC$179,FALSE) -> 146336.43 | AD184: =VLOOKUP($U184,Output!$C:$AL,AD$179,FALSE) -> 146135.89 | AE184: =VLOOKUP($U184,Output!$C:$AL,AE$179,FALSE) -> 145984.62 | AF184: =VLOOKUP($U184,Output!$C:$AL,AF$179,FALSE) -> 145852.45 | AG184: =VLOOKUP($U184,Output!$C:$AL,AG$179,FALSE) -> 145762.03 | AH184: =VLOOKUP($U184,Output!$C:$AL,AH$179,FALSE) -> 145681.21 | AI184: =VLOOKUP($U184,Output!$C:$AL,AI$179,FALSE) -> 145597.39 | AJ184: =VLOOKUP($U184,Output!$C:$AL,AJ$179,FALSE) -> 145542.75 | AK184: =VLOOKUP($U184,Output!$C:$AL,AK$179,FALSE) -> 145524.72 | AL184: =VLOOKUP($U184,Output!$C:$AL,AL$179,FALSE) -> 145451.05 | AM184: =VLOOKUP($U184,Output!$C:$AL,AM$179,FALSE) -> 145397.18 | AN184: =VLOOKUP($U184,Output!$C:$AL,AN$179,FALSE) -> 145384.49 | AO184: =VLOOKUP($U184,Output!$C:$AL,AO$179,FALSE) -> 145365.39 | AP184: =VLOOKUP($U184,Output!$C:$AL,AP$179,FALSE) -> 145296.24 | AQ184: =VLOOKUP($U184,Output!$C:$AL,AQ$179,FALSE) -> 145274.28 | AR184: =VLOOKUP($U184,Output!$C:$AL,AR$179,FALSE) -> 145203.52 | AS184: =VLOOKUP($U184,Output!$C:$AL,AS$179,FALSE) -> 145145.65 | AT184: =VLOOKUP($U184,Output!$C:$AL,AT$179,FALSE) -> 145141.52 | AU184: =VLOOKUP($U184,Output!$C:$AL,AU$179,FALSE) -> 145120.72 | AV184: =VLOOKUP($U184,Output!$C:$AL,AV$179,FALSE) -> 145116.42 | AW184: =VLOOKUP($U184,Output!$C:$AL,AW$179,FALSE) -> 145112.3 | AX184: =VLOOKUP($U184,Output!$C:$AL,AX$179,FALSE) -> 145108.17 | AY184: =VLOOKUP($U184,Output!$C:$AL,AY$179,FALSE) -> 145104.05 | AZ184: =VLOOKUP($U184,Output!$C:$AL,AZ$179,FALSE) -> 145099.92
S185: Figure 9c | T185: Faible | U185: OSUPJEUNEACCEPTREGECO | V185: =VLOOKUP($U185,Output!$C:$AL,V$179,FALSE) -> 99625.16 | W185: =VLOOKUP($U185,Output!$C:$AL,W$179,FALSE) -> 99219.04 | X185: =VLOOKUP($U185,Output!$C:$AL,X$179,FALSE) -> 98840.58 | Y185: =VLOOKUP($U185,Output!$C:$AL,Y$179,FALSE) -> 98491.09 | Z185: =VLOOKUP($U185,Output!$C:$AL,Z$179,FALSE) -> 98214.94 | AA185: =VLOOKUP($U185,Output!$C:$AL,AA$179,FALSE) -> 97982.46 | AB185: =VLOOKUP($U185,Output!$C:$AL,AB$179,FALSE) -> 97779.77 | AC185: =VLOOKUP($U185,Output!$C:$AL,AC$179,FALSE) -> 97557.62 | AD185: =VLOOKUP($U185,Output!$C:$AL,AD$179,FALSE) -> 97423.92 | AE185: =VLOOKUP($U185,Output!$C:$AL,AE$179,FALSE) -> 97323.08 | AF185: =VLOOKUP($U185,Output!$C:$AL,AF$179,FALSE) -> 97234.96 | AG185: =VLOOKUP($U185,Output!$C:$AL,AG$179,FALSE) -> 97174.69 | AH185: =VLOOKUP($U185,Output!$C:$AL,AH$179,FALSE) -> 97120.81 | AI185: =VLOOKUP($U185,Output!$C:$AL,AI$179,FALSE) -> 97064.93 | AJ185: =VLOOKUP($U185,Output!$C:$AL,AJ$179,FALSE) -> 97028.5 | AK185: =VLOOKUP($U185,Output!$C:$AL,AK$179,FALSE) -> 97016.48 | AL185: =VLOOKUP($U185,Output!$C:$AL,AL$179,FALSE) -> 96967.37 | AM185: =VLOOKUP($U185,Output!$C:$AL,AM$179,FALSE) -> 96931.45 | AN185: =VLOOKUP($U185,Output!$C:$AL,AN$179,FALSE) -> 96922.99 | AO185: =VLOOKUP($U185,Output!$C:$AL,AO$179,FALSE) -> 96910.26 | AP185: =VLOOKUP($U185,Output!$C:$AL,AP$179,FALSE) -> 96864.16 | AQ185: =VLOOKUP($U185,Output!$C:$AL,AQ$179,FALSE) -> 96849.52 | AR185: =VLOOKUP($U185,Output!$C:$AL,AR$179,FALSE) -> 96802.35 | AS185: =VLOOKUP($U185,Output!$C:$AL,AS$179,FALSE) -> 96763.76 | AT185: =VLOOKUP($U185,Output!$C:$AL,AT$179,FALSE) -> 96761.01 | AU185: =VLOOKUP($U185,Output!$C:$AL,AU$179,FALSE) -> 96747.15 | AV185: =VLOOKUP($U185,Output!$C:$AL,AV$179,FALSE) -> 96744.28 | AW185: =VLOOKUP($U185,Output!$C:$AL,AW$179,FALSE) -> 96741.53 | AX185: =VLOOKUP($U185,Output!$C:$AL,AX$179,FALSE) -> 96738.78 | AY185: =VLOOKUP($U185,Output!$C:$AL,AY$179,FALSE) -> 96736.03 | AZ185: =VLOOKUP($U185,Output!$C:$AL,AZ$179,FALSE) -> 96733.28
S186: Figure 9c | T186: Moyen | V186: =V184-V185 -> 49812.58 | W186: 49609.52 | X186: 49420.3 | Y186: 49245.54 | Z186: 49107.48 | AA186: 48991.22 | AB186: 48889.88 | AC186: 48778.81 | AD186: 48711.97 | AE186: 48661.54 | AF186: 48617.49 | AG186: 48587.34 | AH186: 48560.4 | AI186: 48532.46 | AJ186: 48514.25 | AK186: 48508.24 | AL186: 48483.68 | AM186: 48465.73 | AN186: 48461.5 | AO186: 48455.13 | AP186: 48432.08 | AQ186: 48424.76 | AR186: 48401.17 | AS186: 48381.89 | AT186: 48380.51 | AU186: 48373.57 | AV186: 48372.14 | AW186: 48370.77 | AX186: 48369.39 | AY186: 48368.02 | AZ186: 48366.64
S187: Figure 9c | T187: Élevé | V187: =$V$181-V184 -> 348688.06 | W187: 349297.24 | X187: 349864.92 | Y187: 350389.17 | Z187: 350803.38 | AA187: 351152.12 | AB187: 351456.15 | AC187: 351789.37 | AD187: 351989.91 | AE187: 352141.18 | AF187: 352273.35 | AG187: 352363.77 | AH187: 352444.59 | AI187: 352528.41 | AJ187: 352583.05 | AK187: 352601.08 | AL187: 352674.75 | AM187: 352728.62 | AN187: 352741.31 | AO187: 352760.41 | AP187: 352829.56 | AQ187: 352851.52 | AR187: 352922.28 | AS187: 352980.15 | AT187: 352984.28 | AU187: 353005.08 | AV187: 353009.38 | AW187: 353013.5 | AX187: 353017.63 | AY187: 353021.75 | AZ187: 353025.88
U199: Période | V199: P0 | W199: P1 | X199: P2 | Y199: P3 | Z199: P4 | AA199: P5 | AB199: P6 | AC199: P7 | AD199: P8 | AE199: P9 | AF199: P10 | AG199: P11 | AH199: P12 | AI199: P13 | AJ199: P14 | AK199: P15 | AL199: P16 | AM199: P17 | AN199: P18 | AO199: P19 | AP199: P20 | AQ199: P21 | AR199: P22 | AS199: P23 | AT199: P24 | AU199: P25 | AV199: P26 | AW199: P27 | AX199: P28 | AY199: P29 | AZ199: P30
U200: Axe des "X" Fin de période | V200: 2018 | W200: 2023 | X200: 2028 | Y200: 2033 | Z200: 2038 | AA200: 2043 | AB200: 2048 | AC200: 2053 | AD200: 2058 | AE200: 2063 | AF200: 2068 | AG200: 2073 | AH200: 2078 | AI200: 2083 | AJ200: 2088 | AK200: 2093 | AL200: 2098 | AM200: 2103 | AN200: 2108 | AO200: 2113 | AP200: 2118 | AQ200: 2123 | AR200: 2128 | AS200: 2133 | AT200: 2138 | AU200: 2143 | AV200: 2148 | AW200: 2153 | AX200: 2158 | AY200: 2163 | AZ200: 2168
U201: Colonne | V201: 6 | W201: 7 | X201: 8 | Y201: 9 | Z201: 10 | AA201: 11 | AB201: 12 | AC201: 13 | AD201: 14 | AE201: 15 | AF201: 16 | AG201: 17 | AH201: 18 | AI201: 19 | AJ201: 20 | AK201: 21 | AL201: 22 | AM201: 23 | AN201: 24 | AO201: 25 | AP201: 26 | AQ201: 27 | AR201: 28 | AS201: 29 | AT201: 30 | AU201: 31 | AV201: 32 | AW201: 33 | AX201: 34 | AY201: 35 | AZ201: 36
B202: Figure 10a Évolution de la superficie selon le type de couvert | S202: =LEFT(B$202,10) -> Figure 10a | U202: OSUPINC
S203: Figure 10a | U203: Résineux | V203: =SUM(V214,V220,V221,V222,V224,V225) -> 110194.9 | W203: =SUM(W214,W220,W221,W222,W224,W225) -> 111968.92 | X203: 113951.75 | Y203: 113038.41 | Z203: 112978.91 | AA203: 112857.72 | AB203: 112826.54 | AC203: 112878.56 | AD203: 110428.88 | AE203: 108015.33 | AF203: 105923.29 | AG203: 102490.93 | AH203: 100901.59 | AI203: 99904.99 | AJ203: 96838.03 | AK203: 95587.49 | AL203: 93507.11 | AM203: 92324.94 | AN203: 92181.78 | AO203: 90788.79 | AP203: 89818.39 | AQ203: 89601.36 | AR203: 87492.38 | AS203: 85359.75 | AT203: 81816.39 | AU203: 78556.71 | AV203: 76501.74 | AW203: 71699.36 | AX203: 67117.32 | AY203: 63613.48 | AZ203: 57615.35
S204: Figure 10a | U204: Mixtes résineux | V204: =V223 -> 54016.8 | W204: =W223 -> 50828.95 | X204: 45793.86 | Y204: 45055.86 | Z204: 37886.81 | AA204: 30391.85 | AB204: 23293.89 | AC204: 17492.05 | AD204: 16327.56 | AE204: 18037.38 | AF204: 16842.35 | AG204: 17270.64 | AH204: 14270.06 | AI204: 14831.79 | AJ204: 17268.17 | AK204: 17481.19 | AL204: 19331.4 | AM204: 20410.11 | AN204: 20410.11 | AO204: 21770.96 | AP204: 22665.59 | AQ204: 22735.69 | AR204: 24832.21 | AS204: 26964.83 | AT204: 30508.19 | AU204: 33742.09 | AV204: 35797.07 | AW204: 40349.44 | AX204: 44648.31 | AY204: 47871.64 | AZ204: 53119.76
S205: Figure 10a | U205: Mixtes feuillus intolérants | V205: =V213+V219 -> 35818.3 | W205: =W213+W219 -> 35687.39 | X205: =X213+X219 -> 37585.66 | Y205: =Y213+Y219 -> 36360.87 | Z205: 41671.72 | AA205: 48222.25 | AB205: 53937.8 | AC205: 59729.07 | AD205: 63083.44 | AE205: 64997.8 | AF205: 71541.79 | AG205: 76775.71 | AH205: 84443.61 | AI205: 86782.47 | AJ205: 90592.49 | AK205: 93102.17 | AL205: 94147.77 | AM205: 97182.58 | AN205: 100575.19 | AO205: 101690.9 | AP205: 102654.69 | AQ205: 104985.37 | AR205: 106730.12 | AS205: 108815.5 | AT205: 109890.91 | AU205: 109890.91 | AV205: 109629.21 | AW205: 109124.96 | AX205: 109408.12 | AY205: 109688.65 | AZ205: 110438.65
S206: Figure 10a | U206: Mixtes feuillus tolérants | V206: =V217 -> 47810.4 | W206: =W217 -> 47261.13 | X206: 46901.32 | Y206: 46503.92 | Z206: 46089.34 | AA206: 45950.52 | AB206: 45865.72 | AC206: 44890.35 | AD206: 44744.67 | AE206: 42894.65 | AF206: 39186.74 | AG206: 36601.8 | AH206: 33303.01 | AI206: 31268.59 | AJ206: 27972.91 | AK206: 26995.04 | AL206: 25947.78 | AM206: 22850.62 | AN206: 19601.17 | AO206: 18470.27 | AP206: 17506.48 | AQ206: 15249.53 | AR206: 13504.78 | AS206: 11419.39 | AT206: 11813.79 | AU206: 15658.9 | AV206: 16380.02 | AW206: 16524.8 | AX206: 16524.8 | AY206: 16524.8 | AZ206: 16524.8
S207: Figure 10a | U207: Feuillus intolérants | V207: =V212+V215+V218 -> 52607.1 | W207: =W212+W215+W218 -> 53861.87 | X207: =X212+X215+X218 -> 54222.95 | Y207: 56355.64 | Z207: 57473.42 | AA207: 57681.95 | AB207: 58539.73 | AC207: 58456.92 | AD207: 59747.96 | AE207: 61622.91 | AF207: 62911.78 | AG207: 63509.52 | AH207: 63637.45 | AI207: 65085.55 | AJ207: 65617.6 | AK207: 66320.22 | AL207: 68375.68 | AM207: 68361.93 | AN207: 70097.84 | AO207: 73520.8 | AP207: 78722.39 | AQ207: 80427.71 | AR207: 81435.7 | AS207: 81421.38 | AT207: 81790.59 | AU207: 81776.84 | AV207: 81763.09 | AW207: 81749.34 | AX207: 81735.59 | AY207: 81721.84 | AZ207: 81708.09
S208: Figure 10a | U208: Feuillus tolérants | V208: =V216 -> 124277.8 | W208: =W216 -> 123086.44 | X208: 122346.87 | Y208: 121740.23 | Z208: 121574.03 | AA208: 121407.47 | AB208: 121034.68 | AC208: 120940.63 | AD208: 119386.59 | AE208: 117646.84 | AF208: 116368.36 | AG208: 115824.34 | AH208: 115647.81 | AI208: 114050.75 | AJ208: 113452.79 | AK208: 112195.8 | AL208: 110126.59 | AM208: 110126.59 | AN208: 108348.39 | AO208: 104909.09 | AP208: 99552.76 | AQ208: 97847.44 | AR208: 96616.05 | AS208: 96437.46 | AT208: 94584.7 | AU208: 90709.79 | AV208: 90249.79 | AW208: 90859.26 | AX208: 90859.26 | AY208: 90859.26 | AZ208: 90859.26
S209: Figure 10a | U209: Total | V209: =SUM(V203:V208) -> 424725.3 | W209: =SUM(W203:W208) -> 422694.7 | X209: =SUM(X203:X208) -> 420802.41 | Y209: 419054.93 | Z209: 417674.23 | AA209: 416511.76 | AB209: 415498.36 | AC209: 414387.58 | AD209: 413719.1 | AE209: 413214.91 | AF209: 412774.31 | AG209: 412472.94 | AH209: 412203.53 | AI209: 411924.14 | AJ209: 411741.99 | AK209: 411681.91 | AL209: 411436.33 | AM209: 411256.77 | AN209: 411214.48 | AO209: 411150.81 | AP209: 410920.3 | AQ209: 410847.1 | AR209: 410611.24 | AS209: 410418.31 | AT209: 410404.57 | AU209: 410335.24 | AV209: 410320.92 | AW209: 410307.16 | AX209: 410293.4 | AY209: 410279.67 | AZ209: 410265.91
S210: Figure 10a
S211: Figure 10a
S212: Figure 10a | T212: Bétulaies blanches | U212: (FCTYF_BOP) | V212: =VLOOKUP($U$202&$U212,GTYF!$C:$AP,V$201,FALSE) -> 14889.8 | W212: =VLOOKUP($U$202&$U212,GTYF!$C:$AP,W$201,FALSE) -> 14889.8 | X212: =VLOOKUP($U$202&$U212,GTYF!$C:$AP,X$201,FALSE) -> 14790.19 | Y212: =VLOOKUP($U$202&$U212,GTYF!$C:$AP,Y$201,FALSE) -> 14615.53 | Z212: =VLOOKUP($U$202&$U212,GTYF!$C:$AP,Z$201,FALSE) -> 14543.12 | AA212: =VLOOKUP($U$202&$U212,GTYF!$C:$AP,AA$201,FALSE) -> 14436.65 | AB212: =VLOOKUP($U$202&$U212,GTYF!$C:$AP,AB$201,FALSE) -> 14339.49 | AC212: =VLOOKUP($U$202&$U212,GTYF!$C:$AP,AC$201,FALSE) -> 14233.77 | AD212: =VLOOKUP($U$202&$U212,GTYF!$C:$AP,AD$201,FALSE) -> 15538.05 | AE212: =VLOOKUP($U$202&$U212,GTYF!$C:$AP,AE$201,FALSE) -> 17217.92 | AF212: =VLOOKUP($U$202&$U212,GTYF!$C:$AP,AF$201,FALSE) -> 18496.39 | AG212: =VLOOKUP($U$202&$U212,GTYF!$C:$AP,AG$201,FALSE) -> 18920.53 | AH212: =VLOOKUP($U$202&$U212,GTYF!$C:$AP,AH$201,FALSE) -> 19004.23 | AI212: =VLOOKUP($U$202&$U212,GTYF!$C:$AP,AI$201,FALSE) -> 20466.08 | AJ212: =VLOOKUP($U$202&$U212,GTYF!$C:$AP,AJ$201,FALSE) -> 21011.88 | AK212: =VLOOKUP($U$202&$U212,GTYF!$C:$AP,AK$201,FALSE) -> 21728.25 | AL212: =VLOOKUP($U$202&$U212,GTYF!$C:$AP,AL$201,FALSE) -> 23797.46 | AM212: =VLOOKUP($U$202&$U212,GTYF!$C:$AP,AM$201,FALSE) -> 23797.46 | AN212: =VLOOKUP($U$202&$U212,GTYF!$C:$AP,AN$201,FALSE) -> 25547.12 | AO212: =VLOOKUP($U$202&$U212,GTYF!$C:$AP,AO$201,FALSE) -> 28969.47 | AP212: =VLOOKUP($U$202&$U212,GTYF!$C:$AP,AP$201,FALSE) -> 34195.26 | AQ212: =VLOOKUP($U$202&$U212,GTYF!$C:$AP,AQ$201,FALSE) -> 35900.58 | AR212: =VLOOKUP($U$202&$U212,GTYF!$C:$AP,AR$201,FALSE) -> 36916.66 | AS212: =VLOOKUP($U$202&$U212,GTYF!$C:$AP,AS$201,FALSE) -> 36916.66 | AT212: =VLOOKUP($U$202&$U212,GTYF!$C:$AP,AT$201,FALSE) -> 37299.62 | AU212: =VLOOKUP($U$202&$U212,GTYF!$C:$AP,AU$201,FALSE) -> 37299.62 | AV212: =VLOOKUP($U$202&$U212,GTYF!$C:$AP,AV$201,FALSE) -> 37299.62 | AW212: =VLOOKUP($U$202&$U212,GTYF!$C:$AP,AW$201,FALSE) -> 37299.62 | AX212: =VLOOKUP($U$202&$U212,GTYF!$C:$AP,AX$201,FALSE) -> 37299.62 | AY212: =VLOOKUP($U$202&$U212,GTYF!$C:$AP,AY$201,FALSE) -> 37299.62 | AZ212: =VLOOKUP($U$202&$U212,GTYF!$C:$AP,AZ$201,FALSE) -> 37299.62
S213: Figure 10a | T213: Bétulaies blanches à résineux | U213: (FCTYF_BOPR) | V213: =VLOOKUP($U$202&$U213,GTYF!$C:$AP,V$201,FALSE) -> 28005.3 | W213: =VLOOKUP($U$202&$U213,GTYF!$C:$AP,W$201,FALSE) -> 29278.47 | X213: =VLOOKUP($U$202&$U213,GTYF!$C:$AP,X$201,FALSE) -> 33092.92 | Y213: =VLOOKUP($U$202&$U213,GTYF!$C:$AP,Y$201,FALSE) -> 34133.04 | Z213: =VLOOKUP($U$202&$U213,GTYF!$C:$AP,Z$201,FALSE) -> 39847.19 | AA213: =VLOOKUP($U$202&$U213,GTYF!$C:$AP,AA$201,FALSE) -> 46764.02 | AB213: =VLOOKUP($U$202&$U213,GTYF!$C:$AP,AB$201,FALSE) -> 53479.52 | AC213: =VLOOKUP($U$202&$U213,GTYF!$C:$AP,AC$201,FALSE) -> 59309.59 | AD213: =VLOOKUP($U$202&$U213,GTYF!$C:$AP,AD$201,FALSE) -> 62663.96 | AE213: =VLOOKUP($U$202&$U213,GTYF!$C:$AP,AE$201,FALSE) -> 64795.52 | AF213: =VLOOKUP($U$202&$U213,GTYF!$C:$AP,AF$201,FALSE) -> 71339.51 | AG213: =VLOOKUP($U$202&$U213,GTYF!$C:$AP,AG$201,FALSE) -> 76775.71 | AH213: =VLOOKUP($U$202&$U213,GTYF!$C:$AP,AH$201,FALSE) -> 84443.61 | AI213: =VLOOKUP($U$202&$U213,GTYF!$C:$AP,AI$201,FALSE) -> 86782.47 | AJ213: =VLOOKUP($U$202&$U213,GTYF!$C:$AP,AJ$201,FALSE) -> 90592.49 | AK213: =VLOOKUP($U$202&$U213,GTYF!$C:$AP,AK$201,FALSE) -> 93102.17 | AL213: =VLOOKUP($U$202&$U213,GTYF!$C:$AP,AL$201,FALSE) -> 94147.77 | AM213: =VLOOKUP($U$202&$U213,GTYF!$C:$AP,AM$201,FALSE) -> 97182.58 | AN213: =VLOOKUP($U$202&$U213,GTYF!$C:$AP,AN$201,FALSE) -> 100575.19 | AO213: =VLOOKUP($U$202&$U213,GTYF!$C:$AP,AO$201,FALSE) -> 101690.9 | AP213: =VLOOKUP($U$202&$U213,GTYF!$C:$AP,AP$201,FALSE) -> 102654.69 | AQ213: =VLOOKUP($U$202&$U213,GTYF!$C:$AP,AQ$201,FALSE) -> 104985.37 | AR213: =VLOOKUP($U$202&$U213,GTYF!$C:$AP,AR$201,FALSE) -> 106730.12 | AS213: =VLOOKUP($U$202&$U213,GTYF!$C:$AP,AS$201,FALSE) -> 108815.5 | AT213: =VLOOKUP($U$202&$U213,GTYF!$C:$AP,AT$201,FALSE) -> 109890.91 | AU213: =VLOOKUP($U$202&$U213,GTYF!$C:$AP,AU$201,FALSE) -> 109890.91 | AV213: =VLOOKUP($U$202&$U213,GTYF!$C:$AP,AV$201,FALSE) -> 109629.21 | AW213: =VLOOKUP($U$202&$U213,GTYF!$C:$AP,AW$201,FALSE) -> 109124.96 | AX213: =VLOOKUP($U$202&$U213,GTYF!$C:$AP,AX$201,FALSE) -> 109408.12 | AY213: =VLOOKUP($U$202&$U213,GTYF!$C:$AP,AY$201,FALSE) -> 109688.65 | AZ213: =VLOOKUP($U$202&$U213,GTYF!$C:$AP,AZ$201,FALSE) -> 110438.65
S214: Figure 10a | T214: Pessières | U214: (FCTYF_EPX) | V214: =VLOOKUP($U$202&$U214,GTYF!$C:$AP,V$201,FALSE) -> 39020.2 | W214: =VLOOKUP($U$202&$U214,GTYF!$C:$AP,W$201,FALSE) -> 41183.61 | X214: =VLOOKUP($U$202&$U214,GTYF!$C:$AP,X$201,FALSE) -> 43696.67 | Y214: =VLOOKUP($U$202&$U214,GTYF!$C:$AP,Y$201,FALSE) -> 43768.64 | Z214: =VLOOKUP($U$202&$U214,GTYF!$C:$AP,Z$201,FALSE) -> 44055.8 | AA214: =VLOOKUP($U$202&$U214,GTYF!$C:$AP,AA$201,FALSE) -> 44212.68 | AB214: =VLOOKUP($U$202&$U214,GTYF!$C:$AP,AB$201,FALSE) -> 44369.56 | AC214: =VLOOKUP($U$202&$U214,GTYF!$C:$AP,AC$201,FALSE) -> 44594.24 | AD214: =VLOOKUP($U$202&$U214,GTYF!$C:$AP,AD$201,FALSE) -> 44641.16 | AE214: =VLOOKUP($U$202&$U214,GTYF!$C:$AP,AE$201,FALSE) -> 44753.65 | AF214: =VLOOKUP($U$202&$U214,GTYF!$C:$AP,AF$201,FALSE) -> 44902.64 | AG214: =VLOOKUP($U$202&$U214,GTYF!$C:$AP,AG$201,FALSE) -> 45135.38 | AH214: =VLOOKUP($U$202&$U214,GTYF!$C:$AP,AH$201,FALSE) -> 45349.44 | AI214: =VLOOKUP($U$202&$U214,GTYF!$C:$AP,AI$201,FALSE) -> 45433.88 | AJ214: =VLOOKUP($U$202&$U214,GTYF!$C:$AP,AJ$201,FALSE) -> 44964.69 | AK214: =VLOOKUP($U$202&$U214,GTYF!$C:$AP,AK$201,FALSE) -> 43967.67 | AL214: =VLOOKUP($U$202&$U214,GTYF!$C:$AP,AL$201,FALSE) -> 43339.44 | AM214: =VLOOKUP($U$202&$U214,GTYF!$C:$AP,AM$201,FALSE) -> 43299.96 | AN214: =VLOOKUP($U$202&$U214,GTYF!$C:$AP,AN$201,FALSE) -> 43156.8 | AO214: =VLOOKUP($U$202&$U214,GTYF!$C:$AP,AO$201,FALSE) -> 42601.79 | AP214: =VLOOKUP($U$202&$U214,GTYF!$C:$AP,AP$201,FALSE) -> 42666.09 | AQ214: =VLOOKUP($U$202&$U214,GTYF!$C:$AP,AQ$201,FALSE) -> 43909.89 | AR214: =VLOOKUP($U$202&$U214,GTYF!$C:$AP,AR$201,FALSE) -> 44323.87 | AS214: =VLOOKUP($U$202&$U214,GTYF!$C:$AP,AS$201,FALSE) -> 44323.87 | AT214: =VLOOKUP($U$202&$U214,GTYF!$C:$AP,AT$201,FALSE) -> 44323.87 | AU214: =VLOOKUP($U$202&$U214,GTYF!$C:$AP,AU$201,FALSE) -> 44323.87 | AV214: =VLOOKUP($U$202&$U214,GTYF!$C:$AP,AV$201,FALSE) -> 44323.87 | AW214: =VLOOKUP($U$202&$U214,GTYF!$C:$AP,AW$201,FALSE) -> 42780.11 | AX214: =VLOOKUP($U$202&$U214,GTYF!$C:$AP,AX$201,FALSE) -> 42496.94 | AY214: =VLOOKUP($U$202&$U214,GTYF!$C:$AP,AY$201,FALSE) -> 41808.67 | AZ214: =VLOOKUP($U$202&$U214,GTYF!$C:$AP,AZ$201,FALSE) -> 36562.56
S215: Figure 10a | T215: Érablières rouges | U215: (FCTYF_ERO) | V215: =VLOOKUP($U$202&$U215,GTYF!$C:$AP,V$201,FALSE) -> 15034.5 | W215: =VLOOKUP($U$202&$U215,GTYF!$C:$AP,W$201,FALSE) -> 15020.75 | X215: =VLOOKUP($U$202&$U215,GTYF!$C:$AP,X$201,FALSE) -> 15007 | Y215: =VLOOKUP($U$202&$U215,GTYF!$C:$AP,Y$201,FALSE) -> 14993.25 | Z215: =VLOOKUP($U$202&$U215,GTYF!$C:$AP,Z$201,FALSE) -> 14979.5 | AA215: =VLOOKUP($U$202&$U215,GTYF!$C:$AP,AA$201,FALSE) -> 14965.75 | AB215: =VLOOKUP($U$202&$U215,GTYF!$C:$AP,AB$201,FALSE) -> 14952 | AC215: =VLOOKUP($U$202&$U215,GTYF!$C:$AP,AC$201,FALSE) -> 14938.25 | AD215: =VLOOKUP($U$202&$U215,GTYF!$C:$AP,AD$201,FALSE) -> 14925.01 | AE215: =VLOOKUP($U$202&$U215,GTYF!$C:$AP,AE$201,FALSE) -> 14911.26 | AF215: =VLOOKUP($U$202&$U215,GTYF!$C:$AP,AF$201,FALSE) -> 14911.26 | AG215: =VLOOKUP($U$202&$U215,GTYF!$C:$AP,AG$201,FALSE) -> 14882.58 | AH215: =VLOOKUP($U$202&$U215,GTYF!$C:$AP,AH$201,FALSE) -> 14882.58 | AI215: =VLOOKUP($U$202&$U215,GTYF!$C:$AP,AI$201,FALSE) -> 14868.83 | AJ215: =VLOOKUP($U$202&$U215,GTYF!$C:$AP,AJ$201,FALSE) -> 14855.08 | AK215: =VLOOKUP($U$202&$U215,GTYF!$C:$AP,AK$201,FALSE) -> 14841.33 | AL215: =VLOOKUP($U$202&$U215,GTYF!$C:$AP,AL$201,FALSE) -> 14827.58 | AM215: =VLOOKUP($U$202&$U215,GTYF!$C:$AP,AM$201,FALSE) -> 14813.83 | AN215: =VLOOKUP($U$202&$U215,GTYF!$C:$AP,AN$201,FALSE) -> 14800.08 | AO215: =VLOOKUP($U$202&$U215,GTYF!$C:$AP,AO$201,FALSE) -> 14786.33 | AP215: =VLOOKUP($U$202&$U215,GTYF!$C:$AP,AP$201,FALSE) -> 14772.58 | AQ215: =VLOOKUP($U$202&$U215,GTYF!$C:$AP,AQ$201,FALSE) -> 14772.58 | AR215: =VLOOKUP($U$202&$U215,GTYF!$C:$AP,AR$201,FALSE) -> 14764.49 | AS215: =VLOOKUP($U$202&$U215,GTYF!$C:$AP,AS$201,FALSE) -> 14750.74 | AT215: =VLOOKUP($U$202&$U215,GTYF!$C:$AP,AT$201,FALSE) -> 14736.99 | AU215: =VLOOKUP($U$202&$U215,GTYF!$C:$AP,AU$201,FALSE) -> 14723.24 | AV215: =VLOOKUP($U$202&$U215,GTYF!$C:$AP,AV$201,FALSE) -> 14709.49 | AW215: =VLOOKUP($U$202&$U215,GTYF!$C:$AP,AW$201,FALSE) -> 14695.74 | AX215: =VLOOKUP($U$202&$U215,GTYF!$C:$AP,AX$201,FALSE) -> 14681.99 | AY215: =VLOOKUP($U$202&$U215,GTYF!$C:$AP,AY$201,FALSE) -> 14668.24 | AZ215: =VLOOKUP($U$202&$U215,GTYF!$C:$AP,AZ$201,FALSE) -> 14654.49
S216: Figure 10a | T216: Feuillus tolérants | U216: (FCTYF_FT) | V216: =VLOOKUP($U$202&$U216,GTYF!$C:$AP,V$201,FALSE) -> 124277.8 | W216: =VLOOKUP($U$202&$U216,GTYF!$C:$AP,W$201,FALSE) -> 123086.44 | X216: =VLOOKUP($U$202&$U216,GTYF!$C:$AP,X$201,FALSE) -> 122346.87 | Y216: =VLOOKUP($U$202&$U216,GTYF!$C:$AP,Y$201,FALSE) -> 121740.23 | Z216: =VLOOKUP($U$202&$U216,GTYF!$C:$AP,Z$201,FALSE) -> 121574.03 | AA216: =VLOOKUP($U$202&$U216,GTYF!$C:$AP,AA$201,FALSE) -> 121407.47 | AB216: =VLOOKUP($U$202&$U216,GTYF!$C:$AP,AB$201,FALSE) -> 121034.68 | AC216: =VLOOKUP($U$202&$U216,GTYF!$C:$AP,AC$201,FALSE) -> 120940.63 | AD216: =VLOOKUP($U$202&$U216,GTYF!$C:$AP,AD$201,FALSE) -> 119386.59 | AE216: =VLOOKUP($U$202&$U216,GTYF!$C:$AP,AE$201,FALSE) -> 117646.84 | AF216: =VLOOKUP($U$202&$U216,GTYF!$C:$AP,AF$201,FALSE) -> 116368.36 | AG216: =VLOOKUP($U$202&$U216,GTYF!$C:$AP,AG$201,FALSE) -> 115824.34 | AH216: =VLOOKUP($U$202&$U216,GTYF!$C:$AP,AH$201,FALSE) -> 115647.81 | AI216: =VLOOKUP($U$202&$U216,GTYF!$C:$AP,AI$201,FALSE) -> 114050.75 | AJ216: =VLOOKUP($U$202&$U216,GTYF!$C:$AP,AJ$201,FALSE) -> 113452.79 | AK216: =VLOOKUP($U$202&$U216,GTYF!$C:$AP,AK$201,FALSE) -> 112195.8 | AL216: =VLOOKUP($U$202&$U216,GTYF!$C:$AP,AL$201,FALSE) -> 110126.59 | AM216: =VLOOKUP($U$202&$U216,GTYF!$C:$AP,AM$201,FALSE) -> 110126.59 | AN216: =VLOOKUP($U$202&$U216,GTYF!$C:$AP,AN$201,FALSE) -> 108348.39 | AO216: =VLOOKUP($U$202&$U216,GTYF!$C:$AP,AO$201,FALSE) -> 104909.09 | AP216: =VLOOKUP($U$202&$U216,GTYF!$C:$AP,AP$201,FALSE) -> 99552.76 | AQ216: =VLOOKUP($U$202&$U216,GTYF!$C:$AP,AQ$201,FALSE) -> 97847.44 | AR216: =VLOOKUP($U$202&$U216,GTYF!$C:$AP,AR$201,FALSE) -> 96616.05 | AS216: =VLOOKUP($U$202&$U216,GTYF!$C:$AP,AS$201,FALSE) -> 96437.46 | AT216: =VLOOKUP($U$202&$U216,GTYF!$C:$AP,AT$201,FALSE) -> 94584.7 | AU216: =VLOOKUP($U$202&$U216,GTYF!$C:$AP,AU$201,FALSE) -> 90709.79 | AV216: =VLOOKUP($U$202&$U216,GTYF!$C:$AP,AV$201,FALSE) -> 90249.79 | AW216: =VLOOKUP($U$202&$U216,GTYF!$C:$AP,AW$201,FALSE) -> 90859.26 | AX216: =VLOOKUP($U$202&$U216,GTYF!$C:$AP,AX$201,FALSE) -> 90859.26 | AY216: =VLOOKUP($U$202&$U216,GTYF!$C:$AP,AY$201,FALSE) -> 90859.26 | AZ216: =VLOOKUP($U$202&$U216,GTYF!$C:$AP,AZ$201,FALSE) -> 90859.26
S217: Figure 10a | T217: Feuillus tolérants à résineux | U217: (FCTYF_FTR) | V217: =VLOOKUP($U$202&$U217,GTYF!$C:$AP,V$201,FALSE) -> 47810.4 | W217: =VLOOKUP($U$202&$U217,GTYF!$C:$AP,W$201,FALSE) -> 47261.13 | X217: =VLOOKUP($U$202&$U217,GTYF!$C:$AP,X$201,FALSE) -> 46901.32 | Y217: =VLOOKUP($U$202&$U217,GTYF!$C:$AP,Y$201,FALSE) -> 46503.92 | Z217: =VLOOKUP($U$202&$U217,GTYF!$C:$AP,Z$201,FALSE) -> 46089.34 | AA217: =VLOOKUP($U$202&$U217,GTYF!$C:$AP,AA$201,FALSE) -> 45950.52 | AB217: =VLOOKUP($U$202&$U217,GTYF!$C:$AP,AB$201,FALSE) -> 45865.72 | AC217: =VLOOKUP($U$202&$U217,GTYF!$C:$AP,AC$201,FALSE) -> 44890.35 | AD217: =VLOOKUP($U$202&$U217,GTYF!$C:$AP,AD$201,FALSE) -> 44744.67 | AE217: =VLOOKUP($U$202&$U217,GTYF!$C:$AP,AE$201,FALSE) -> 42894.65 | AF217: =VLOOKUP($U$202&$U217,GTYF!$C:$AP,AF$201,FALSE) -> 39186.74 | AG217: =VLOOKUP($U$202&$U217,GTYF!$C:$AP,AG$201,FALSE) -> 36601.8 | AH217: =VLOOKUP($U$202&$U217,GTYF!$C:$AP,AH$201,FALSE) -> 33303.01 | AI217: =VLOOKUP($U$202&$U217,GTYF!$C:$AP,AI$201,FALSE) -> 31268.59 | AJ217: =VLOOKUP($U$202&$U217,GTYF!$C:$AP,AJ$201,FALSE) -> 27972.91 | AK217: =VLOOKUP($U$202&$U217,GTYF!$C:$AP,AK$201,FALSE) -> 26995.04 | AL217: =VLOOKUP($U$202&$U217,GTYF!$C:$AP,AL$201,FALSE) -> 25947.78 | AM217: =VLOOKUP($U$202&$U217,GTYF!$C:$AP,AM$201,FALSE) -> 22850.62 | AN217: =VLOOKUP($U$202&$U217,GTYF!$C:$AP,AN$201,FALSE) -> 19601.17 | AO217: =VLOOKUP($U$202&$U217,GTYF!$C:$AP,AO$201,FALSE) -> 18470.27 | AP217: =VLOOKUP($U$202&$U217,GTYF!$C:$AP,AP$201,FALSE) -> 17506.48 | AQ217: =VLOOKUP($U$202&$U217,GTYF!$C:$AP,AQ$201,FALSE) -> 15249.53 | AR217: =VLOOKUP($U$202&$U217,GTYF!$C:$AP,AR$201,FALSE) -> 13504.78 | AS217: =VLOOKUP($U$202&$U217,GTYF!$C:$AP,AS$201,FALSE) -> 11419.39 | AT217: =VLOOKUP($U$202&$U217,GTYF!$C:$AP,AT$201,FALSE) -> 11813.79 | AU217: =VLOOKUP($U$202&$U217,GTYF!$C:$AP,AU$201,FALSE) -> 15658.9 | AV217: =VLOOKUP($U$202&$U217,GTYF!$C:$AP,AV$201,FALSE) -> 16380.02 | AW217: =VLOOKUP($U$202&$U217,GTYF!$C:$AP,AW$201,FALSE) -> 16524.8 | AX217: =VLOOKUP($U$202&$U217,GTYF!$C:$AP,AX$201,FALSE) -> 16524.8 | AY217: =VLOOKUP($U$202&$U217,GTYF!$C:$AP,AY$201,FALSE) -> 16524.8 | AZ217: =VLOOKUP($U$202&$U217,GTYF!$C:$AP,AZ$201,FALSE) -> 16524.8
S218: Figure 10a | T218: Peupleraies | U218: (FCTYF_PEU) | V218: =VLOOKUP($U$202&$U218,GTYF!$C:$AP,V$201,FALSE) -> 22682.8 | W218: =VLOOKUP($U$202&$U218,GTYF!$C:$AP,W$201,FALSE) -> 23951.32 | X218: =VLOOKUP($U$202&$U218,GTYF!$C:$AP,X$201,FALSE) -> 24425.76 | Y218: =VLOOKUP($U$202&$U218,GTYF!$C:$AP,Y$201,FALSE) -> 26746.86 | Z218: =VLOOKUP($U$202&$U218,GTYF!$C:$AP,Z$201,FALSE) -> 27950.8 | AA218: =VLOOKUP($U$202&$U218,GTYF!$C:$AP,AA$201,FALSE) -> 28279.55 | AB218: =VLOOKUP($U$202&$U218,GTYF!$C:$AP,AB$201,FALSE) -> 29248.24 | AC218: =VLOOKUP($U$202&$U218,GTYF!$C:$AP,AC$201,FALSE) -> 29284.9 | AD218: =VLOOKUP($U$202&$U218,GTYF!$C:$AP,AD$201,FALSE) -> 29284.9 | AE218: =VLOOKUP($U$202&$U218,GTYF!$C:$AP,AE$201,FALSE) -> 29493.73 | AF218: =VLOOKUP($U$202&$U218,GTYF!$C:$AP,AF$201,FALSE) -> 29504.13 | AG218: =VLOOKUP($U$202&$U218,GTYF!$C:$AP,AG$201,FALSE) -> 29706.41 | AH218: =VLOOKUP($U$202&$U218,GTYF!$C:$AP,AH$201,FALSE) -> 29750.64 | AI218: =VLOOKUP($U$202&$U218,GTYF!$C:$AP,AI$201,FALSE) -> 29750.64 | AJ218: =VLOOKUP($U$202&$U218,GTYF!$C:$AP,AJ$201,FALSE) -> 29750.64 | AK218: =VLOOKUP($U$202&$U218,GTYF!$C:$AP,AK$201,FALSE) -> 29750.64 | AL218: =VLOOKUP($U$202&$U218,GTYF!$C:$AP,AL$201,FALSE) -> 29750.64 | AM218: =VLOOKUP($U$202&$U218,GTYF!$C:$AP,AM$201,FALSE) -> 29750.64 | AN218: =VLOOKUP($U$202&$U218,GTYF!$C:$AP,AN$201,FALSE) -> 29750.64 | AO218: =VLOOKUP($U$202&$U218,GTYF!$C:$AP,AO$201,FALSE) -> 29765 | AP218: =VLOOKUP($U$202&$U218,GTYF!$C:$AP,AP$201,FALSE) -> 29754.55 | AQ218: =VLOOKUP($U$202&$U218,GTYF!$C:$AP,AQ$201,FALSE) -> 29754.55 | AR218: =VLOOKUP($U$202&$U218,GTYF!$C:$AP,AR$201,FALSE) -> 29754.55 | AS218: =VLOOKUP($U$202&$U218,GTYF!$C:$AP,AS$201,FALSE) -> 29753.98 | AT218: =VLOOKUP($U$202&$U218,GTYF!$C:$AP,AT$201,FALSE) -> 29753.98 | AU218: =VLOOKUP($U$202&$U218,GTYF!$C:$AP,AU$201,FALSE) -> 29753.98 | AV218: =VLOOKUP($U$202&$U218,GTYF!$C:$AP,AV$201,FALSE) -> 29753.98 | AW218: =VLOOKUP($U$202&$U218,GTYF!$C:$AP,AW$201,FALSE) -> 29753.98 | AX218: =VLOOKUP($U$202&$U218,GTYF!$C:$AP,AX$201,FALSE) -> 29753.98 | AY218: =VLOOKUP($U$202&$U218,GTYF!$C:$AP,AY$201,FALSE) -> 29753.98 | AZ218: =VLOOKUP($U$202&$U218,GTYF!$C:$AP,AZ$201,FALSE) -> 29753.98
S219: Figure 10a | T219: Peupleraies à résineux | U219: (FCTYF_PEUR) | V219: =VLOOKUP($U$202&$U219,GTYF!$C:$AP,V$201,FALSE) -> 7813 | W219: =VLOOKUP($U$202&$U219,GTYF!$C:$AP,W$201,FALSE) -> 6408.92 | X219: =VLOOKUP($U$202&$U219,GTYF!$C:$AP,X$201,FALSE) -> 4492.74 | Y219: =VLOOKUP($U$202&$U219,GTYF!$C:$AP,Y$201,FALSE) -> 2227.83 | Z219: =VLOOKUP($U$202&$U219,GTYF!$C:$AP,Z$201,FALSE) -> 1824.53 | AA219: =VLOOKUP($U$202&$U219,GTYF!$C:$AP,AA$201,FALSE) -> 1458.23 | AB219: =VLOOKUP($U$202&$U219,GTYF!$C:$AP,AB$201,FALSE) -> 458.28 | AC219: =VLOOKUP($U$202&$U219,GTYF!$C:$AP,AC$201,FALSE) -> 419.48 | AD219: =VLOOKUP($U$202&$U219,GTYF!$C:$AP,AD$201,FALSE) -> 419.48 | AE219: =VLOOKUP($U$202&$U219,GTYF!$C:$AP,AE$201,FALSE) -> 202.28 | AF219: =VLOOKUP($U$202&$U219,GTYF!$C:$AP,AF$201,FALSE) -> 202.28 | AG219: =VLOOKUP($U$202&$U219,GTYF!$C:$AP,AG$201,FALSE) -> 0 | AH219: =VLOOKUP($U$202&$U219,GTYF!$C:$AP,AH$201,FALSE) -> 0 | AI219: =VLOOKUP($U$202&$U219,GTYF!$C:$AP,AI$201,FALSE) -> 0 | AJ219: =VLOOKUP($U$202&$U219,GTYF!$C:$AP,AJ$201,FALSE) -> 0 | AK219: =VLOOKUP($U$202&$U219,GTYF!$C:$AP,AK$201,FALSE) -> 0 | AL219: =VLOOKUP($U$202&$U219,GTYF!$C:$AP,AL$201,FALSE) -> 0 | AM219: =VLOOKUP($U$202&$U219,GTYF!$C:$AP,AM$201,FALSE) -> 0 | AN219: =VLOOKUP($U$202&$U219,GTYF!$C:$AP,AN$201,FALSE) -> 0 | AO219: =VLOOKUP($U$202&$U219,GTYF!$C:$AP,AO$201,FALSE) -> 0 | AP219: =VLOOKUP($U$202&$U219,GTYF!$C:$AP,AP$201,FALSE) -> 0 | AQ219: =VLOOKUP($U$202&$U219,GTYF!$C:$AP,AQ$201,FALSE) -> 0 | AR219: =VLOOKUP($U$202&$U219,GTYF!$C:$AP,AR$201,FALSE) -> 0 | AS219: =VLOOKUP($U$202&$U219,GTYF!$C:$AP,AS$201,FALSE) -> 0 | AT219: =VLOOKUP($U$202&$U219,GTYF!$C:$AP,AT$201,FALSE) -> 0 | AU219: =VLOOKUP($U$202&$U219,GTYF!$C:$AP,AU$201,FALSE) -> 0 | AV219: =VLOOKUP($U$202&$U219,GTYF!$C:$AP,AV$201,FALSE) -> 0 | AW219: =VLOOKUP($U$202&$U219,GTYF!$C:$AP,AW$201,FALSE) -> 0 | AX219: =VLOOKUP($U$202&$U219,GTYF!$C:$AP,AX$201,FALSE) -> 0 | AY219: =VLOOKUP($U$202&$U219,GTYF!$C:$AP,AY$201,FALSE) -> 0 | AZ219: =VLOOKUP($U$202&$U219,GTYF!$C:$AP,AZ$201,FALSE) -> 0
S220: Figure 10a | T220: Pinèdes grises | U220: (FCTYF_PIG) | V220: =VLOOKUP($U$202&$U220,GTYF!$C:$AP,V$201,FALSE) -> 0 | W220: =VLOOKUP($U$202&$U220,GTYF!$C:$AP,W$201,FALSE) -> 0 | X220: =VLOOKUP($U$202&$U220,GTYF!$C:$AP,X$201,FALSE) -> 0 | Y220: =VLOOKUP($U$202&$U220,GTYF!$C:$AP,Y$201,FALSE) -> 0 | Z220: =VLOOKUP($U$202&$U220,GTYF!$C:$AP,Z$201,FALSE) -> 0 | AA220: =VLOOKUP($U$202&$U220,GTYF!$C:$AP,AA$201,FALSE) -> 0 | AB220: =VLOOKUP($U$202&$U220,GTYF!$C:$AP,AB$201,FALSE) -> 0 | AC220: =VLOOKUP($U$202&$U220,GTYF!$C:$AP,AC$201,FALSE) -> 0 | AD220: =VLOOKUP($U$202&$U220,GTYF!$C:$AP,AD$201,FALSE) -> 0 | AE220: =VLOOKUP($U$202&$U220,GTYF!$C:$AP,AE$201,FALSE) -> 0 | AF220: =VLOOKUP($U$202&$U220,GTYF!$C:$AP,AF$201,FALSE) -> 0 | AG220: =VLOOKUP($U$202&$U220,GTYF!$C:$AP,AG$201,FALSE) -> 0 | AH220: =VLOOKUP($U$202&$U220,GTYF!$C:$AP,AH$201,FALSE) -> 0 | AI220: =VLOOKUP($U$202&$U220,GTYF!$C:$AP,AI$201,FALSE) -> 0 | AJ220: =VLOOKUP($U$202&$U220,GTYF!$C:$AP,AJ$201,FALSE) -> 0 | AK220: =VLOOKUP($U$202&$U220,GTYF!$C:$AP,AK$201,FALSE) -> 0 | AL220: =VLOOKUP($U$202&$U220,GTYF!$C:$AP,AL$201,FALSE) -> 0 | AM220: =VLOOKUP($U$202&$U220,GTYF!$C:$AP,AM$201,FALSE) -> 0 | AN220: =VLOOKUP($U$202&$U220,GTYF!$C:$AP,AN$201,FALSE) -> 0 | AO220: =VLOOKUP($U$202&$U220,GTYF!$C:$AP,AO$201,FALSE) -> 0 | AP220: =VLOOKUP($U$202&$U220,GTYF!$C:$AP,AP$201,FALSE) -> 0 | AQ220: =VLOOKUP($U$202&$U220,GTYF!$C:$AP,AQ$201,FALSE) -> 0 | AR220: =VLOOKUP($U$202&$U220,GTYF!$C:$AP,AR$201,FALSE) -> 0 | AS220: =VLOOKUP($U$202&$U220,GTYF!$C:$AP,AS$201,FALSE) -> 0 | AT220: =VLOOKUP($U$202&$U220,GTYF!$C:$AP,AT$201,FALSE) -> 0 | AU220: =VLOOKUP($U$202&$U220,GTYF!$C:$AP,AU$201,FALSE) -> 0 | AV220: =VLOOKUP($U$202&$U220,GTYF!$C:$AP,AV$201,FALSE) -> 0 | AW220: =VLOOKUP($U$202&$U220,GTYF!$C:$AP,AW$201,FALSE) -> 0 | AX220: =VLOOKUP($U$202&$U220,GTYF!$C:$AP,AX$201,FALSE) -> 0 | AY220: =VLOOKUP($U$202&$U220,GTYF!$C:$AP,AY$201,FALSE) -> 0 | AZ220: =VLOOKUP($U$202&$U220,GTYF!$C:$AP,AZ$201,FALSE) -> 0
S221: Figure 10a | T221: Pinèdes blanches | U221: (FCTYF_PIN) | V221: =VLOOKUP($U$202&$U221,GTYF!$C:$AP,V$201,FALSE) -> 47200.4 | W221: =VLOOKUP($U$202&$U221,GTYF!$C:$AP,W$201,FALSE) -> 46905.01 | X221: =VLOOKUP($U$202&$U221,GTYF!$C:$AP,X$201,FALSE) -> 46708.67 | Y221: =VLOOKUP($U$202&$U221,GTYF!$C:$AP,Y$201,FALSE) -> 46571.9 | Z221: =VLOOKUP($U$202&$U221,GTYF!$C:$AP,Z$201,FALSE) -> 46225.24 | AA221: =VLOOKUP($U$202&$U221,GTYF!$C:$AP,AA$201,FALSE) -> 46016.55 | AB221: =VLOOKUP($U$202&$U221,GTYF!$C:$AP,AB$201,FALSE) -> 45997.37 | AC221: =VLOOKUP($U$202&$U221,GTYF!$C:$AP,AC$201,FALSE) -> 45864.9 | AD221: =VLOOKUP($U$202&$U221,GTYF!$C:$AP,AD$201,FALSE) -> 43368.3 | AE221: =VLOOKUP($U$202&$U221,GTYF!$C:$AP,AE$201,FALSE) -> 40923.16 | AF221: =VLOOKUP($U$202&$U221,GTYF!$C:$AP,AF$201,FALSE) -> 38682.13 | AG221: =VLOOKUP($U$202&$U221,GTYF!$C:$AP,AG$201,FALSE) -> 35017.03 | AH221: =VLOOKUP($U$202&$U221,GTYF!$C:$AP,AH$201,FALSE) -> 33260.48 | AI221: =VLOOKUP($U$202&$U221,GTYF!$C:$AP,AI$201,FALSE) -> 32179.44 | AJ221: =VLOOKUP($U$202&$U221,GTYF!$C:$AP,AJ$201,FALSE) -> 29581.67 | AK221: =VLOOKUP($U$202&$U221,GTYF!$C:$AP,AK$201,FALSE) -> 29358.25 | AL221: =VLOOKUP($U$202&$U221,GTYF!$C:$AP,AL$201,FALSE) -> 27906.1 | AM221: =VLOOKUP($U$202&$U221,GTYF!$C:$AP,AM$201,FALSE) -> 26763.41 | AN221: =VLOOKUP($U$202&$U221,GTYF!$C:$AP,AN$201,FALSE) -> 26763.41 | AO221: =VLOOKUP($U$202&$U221,GTYF!$C:$AP,AO$201,FALSE) -> 25925.43 | AP221: =VLOOKUP($U$202&$U221,GTYF!$C:$AP,AP$201,FALSE) -> 25309.83 | AQ221: =VLOOKUP($U$202&$U221,GTYF!$C:$AP,AQ$201,FALSE) -> 25286 | AR221: =VLOOKUP($U$202&$U221,GTYF!$C:$AP,AR$201,FALSE) -> 25270 | AS221: =VLOOKUP($U$202&$U221,GTYF!$C:$AP,AS$201,FALSE) -> 23137.37 | AT221: =VLOOKUP($U$202&$U221,GTYF!$C:$AP,AT$201,FALSE) -> 19594.01 | AU221: =VLOOKUP($U$202&$U221,GTYF!$C:$AP,AU$201,FALSE) -> 16360.11 | AV221: =VLOOKUP($U$202&$U221,GTYF!$C:$AP,AV$201,FALSE) -> 14305.14 | AW221: =VLOOKUP($U$202&$U221,GTYF!$C:$AP,AW$201,FALSE) -> 11046.52 | AX221: =VLOOKUP($U$202&$U221,GTYF!$C:$AP,AX$201,FALSE) -> 6747.65 | AY221: =VLOOKUP($U$202&$U221,GTYF!$C:$AP,AY$201,FALSE) -> 3932.08 | AZ221: =VLOOKUP($U$202&$U221,GTYF!$C:$AP,AZ$201,FALSE) -> 3180.06
S222: Figure 10a | T222: Prucheraies | U222: (FCTYF_PRU) | V222: =VLOOKUP($U$202&$U222,GTYF!$C:$AP,V$201,FALSE) -> 1874.8 | W222: =VLOOKUP($U$202&$U222,GTYF!$C:$AP,W$201,FALSE) -> 1874.8 | X222: =VLOOKUP($U$202&$U222,GTYF!$C:$AP,X$201,FALSE) -> 1874.8 | Y222: =VLOOKUP($U$202&$U222,GTYF!$C:$AP,Y$201,FALSE) -> 1874.8 | Z222: =VLOOKUP($U$202&$U222,GTYF!$C:$AP,Z$201,FALSE) -> 1874.8 | AA222: =VLOOKUP($U$202&$U222,GTYF!$C:$AP,AA$201,FALSE) -> 1874.8 | AB222: =VLOOKUP($U$202&$U222,GTYF!$C:$AP,AB$201,FALSE) -> 1874.8 | AC222: =VLOOKUP($U$202&$U222,GTYF!$C:$AP,AC$201,FALSE) -> 1874.8 | AD222: =VLOOKUP($U$202&$U222,GTYF!$C:$AP,AD$201,FALSE) -> 1874.8 | AE222: =VLOOKUP($U$202&$U222,GTYF!$C:$AP,AE$201,FALSE) -> 1874.8 | AF222: =VLOOKUP($U$202&$U222,GTYF!$C:$AP,AF$201,FALSE) -> 1874.8 | AG222: =VLOOKUP($U$202&$U222,GTYF!$C:$AP,AG$201,FALSE) -> 1874.8 | AH222: =VLOOKUP($U$202&$U222,GTYF!$C:$AP,AH$201,FALSE) -> 1874.8 | AI222: =VLOOKUP($U$202&$U222,GTYF!$C:$AP,AI$201,FALSE) -> 1874.8 | AJ222: =VLOOKUP($U$202&$U222,GTYF!$C:$AP,AJ$201,FALSE) -> 1874.8 | AK222: =VLOOKUP($U$202&$U222,GTYF!$C:$AP,AK$201,FALSE) -> 1874.8 | AL222: =VLOOKUP($U$202&$U222,GTYF!$C:$AP,AL$201,FALSE) -> 1874.8 | AM222: =VLOOKUP($U$202&$U222,GTYF!$C:$AP,AM$201,FALSE) -> 1874.8 | AN222: =VLOOKUP($U$202&$U222,GTYF!$C:$AP,AN$201,FALSE) -> 1874.8 | AO222: =VLOOKUP($U$202&$U222,GTYF!$C:$AP,AO$201,FALSE) -> 1874.8 | AP222: =VLOOKUP($U$202&$U222,GTYF!$C:$AP,AP$201,FALSE) -> 1874.8 | AQ222: =VLOOKUP($U$202&$U222,GTYF!$C:$AP,AQ$201,FALSE) -> 1874.8 | AR222: =VLOOKUP($U$202&$U222,GTYF!$C:$AP,AR$201,FALSE) -> 1874.8 | AS222: =VLOOKUP($U$202&$U222,GTYF!$C:$AP,AS$201,FALSE) -> 1874.8 | AT222: =VLOOKUP($U$202&$U222,GTYF!$C:$AP,AT$201,FALSE) -> 1874.8 | AU222: =VLOOKUP($U$202&$U222,GTYF!$C:$AP,AU$201,FALSE) -> 1849.02 | AV222: =VLOOKUP($U$202&$U222,GTYF!$C:$AP,AV$201,FALSE) -> 1849.02 | AW222: =VLOOKUP($U$202&$U222,GTYF!$C:$AP,AW$201,FALSE) -> 1849.02 | AX222: =VLOOKUP($U$202&$U222,GTYF!$C:$AP,AX$201,FALSE) -> 1849.02 | AY222: =VLOOKUP($U$202&$U222,GTYF!$C:$AP,AY$201,FALSE) -> 1849.02 | AZ222: =VLOOKUP($U$202&$U222,GTYF!$C:$AP,AZ$201,FALSE) -> 1849.02
S223: Figure 10a | T223: Résineux à feuillus | U223: (FCTYF_RF) | V223: =VLOOKUP($U$202&$U223,GTYF!$C:$AP,V$201,FALSE) -> 54016.8 | W223: =VLOOKUP($U$202&$U223,GTYF!$C:$AP,W$201,FALSE) -> 50828.95 | X223: =VLOOKUP($U$202&$U223,GTYF!$C:$AP,X$201,FALSE) -> 45793.86 | Y223: =VLOOKUP($U$202&$U223,GTYF!$C:$AP,Y$201,FALSE) -> 45055.86 | Z223: =VLOOKUP($U$202&$U223,GTYF!$C:$AP,Z$201,FALSE) -> 37886.81 | AA223: =VLOOKUP($U$202&$U223,GTYF!$C:$AP,AA$201,FALSE) -> 30391.85 | AB223: =VLOOKUP($U$202&$U223,GTYF!$C:$AP,AB$201,FALSE) -> 23293.89 | AC223: =VLOOKUP($U$202&$U223,GTYF!$C:$AP,AC$201,FALSE) -> 17492.05 | AD223: =VLOOKUP($U$202&$U223,GTYF!$C:$AP,AD$201,FALSE) -> 16327.56 | AE223: =VLOOKUP($U$202&$U223,GTYF!$C:$AP,AE$201,FALSE) -> 18037.38 | AF223: =VLOOKUP($U$202&$U223,GTYF!$C:$AP,AF$201,FALSE) -> 16842.35 | AG223: =VLOOKUP($U$202&$U223,GTYF!$C:$AP,AG$201,FALSE) -> 17270.64 | AH223: =VLOOKUP($U$202&$U223,GTYF!$C:$AP,AH$201,FALSE) -> 14270.06 | AI223: =VLOOKUP($U$202&$U223,GTYF!$C:$AP,AI$201,FALSE) -> 14831.79 | AJ223: =VLOOKUP($U$202&$U223,GTYF!$C:$AP,AJ$201,FALSE) -> 17268.17 | AK223: =VLOOKUP($U$202&$U223,GTYF!$C:$AP,AK$201,FALSE) -> 17481.19 | AL223: =VLOOKUP($U$202&$U223,GTYF!$C:$AP,AL$201,FALSE) -> 19331.4 | AM223: =VLOOKUP($U$202&$U223,GTYF!$C:$AP,AM$201,FALSE) -> 20410.11 | AN223: =VLOOKUP($U$202&$U223,GTYF!$C:$AP,AN$201,FALSE) -> 20410.11 | AO223: =VLOOKUP($U$202&$U223,GTYF!$C:$AP,AO$201,FALSE) -> 21770.96 | AP223: =VLOOKUP($U$202&$U223,GTYF!$C:$AP,AP$201,FALSE) -> 22665.59 | AQ223: =VLOOKUP($U$202&$U223,GTYF!$C:$AP,AQ$201,FALSE) -> 22735.69 | AR223: =VLOOKUP($U$202&$U223,GTYF!$C:$AP,AR$201,FALSE) -> 24832.21 | AS223: =VLOOKUP($U$202&$U223,GTYF!$C:$AP,AS$201,FALSE) -> 26964.83 | AT223: =VLOOKUP($U$202&$U223,GTYF!$C:$AP,AT$201,FALSE) -> 30508.19 | AU223: =VLOOKUP($U$202&$U223,GTYF!$C:$AP,AU$201,FALSE) -> 33742.09 | AV223: =VLOOKUP($U$202&$U223,GTYF!$C:$AP,AV$201,FALSE) -> 35797.07 | AW223: =VLOOKUP($U$202&$U223,GTYF!$C:$AP,AW$201,FALSE) -> 40349.44 | AX223: =VLOOKUP($U$202&$U223,GTYF!$C:$AP,AX$201,FALSE) -> 44648.31 | AY223: =VLOOKUP($U$202&$U223,GTYF!$C:$AP,AY$201,FALSE) -> 47871.64 | AZ223: =VLOOKUP($U$202&$U223,GTYF!$C:$AP,AZ$201,FALSE) -> 53119.76
S224: Figure 10a | T224: Sapinières | U224: (FCTYF_SAB) | V224: =VLOOKUP($U$202&$U224,GTYF!$C:$AP,V$201,FALSE) -> 6028.2 | W224: =VLOOKUP($U$202&$U224,GTYF!$C:$AP,W$201,FALSE) -> 5954.2 | X224: =VLOOKUP($U$202&$U224,GTYF!$C:$AP,X$201,FALSE) -> 5627.9 | Y224: =VLOOKUP($U$202&$U224,GTYF!$C:$AP,Y$201,FALSE) -> 4799.36 | Z224: =VLOOKUP($U$202&$U224,GTYF!$C:$AP,Z$201,FALSE) -> 4799.36 | AA224: =VLOOKUP($U$202&$U224,GTYF!$C:$AP,AA$201,FALSE) -> 4729.98 | AB224: =VLOOKUP($U$202&$U224,GTYF!$C:$AP,AB$201,FALSE) -> 4561.1 | AC224: =VLOOKUP($U$202&$U224,GTYF!$C:$AP,AC$201,FALSE) -> 4520.91 | AD224: =VLOOKUP($U$202&$U224,GTYF!$C:$AP,AD$201,FALSE) -> 4520.91 | AE224: =VLOOKUP($U$202&$U224,GTYF!$C:$AP,AE$201,FALSE) -> 4440.01 | AF224: =VLOOKUP($U$202&$U224,GTYF!$C:$AP,AF$201,FALSE) -> 4440.01 | AG224: =VLOOKUP($U$202&$U224,GTYF!$C:$AP,AG$201,FALSE) -> 4440.01 | AH224: =VLOOKUP($U$202&$U224,GTYF!$C:$AP,AH$201,FALSE) -> 4393.16 | AI224: =VLOOKUP($U$202&$U224,GTYF!$C:$AP,AI$201,FALSE) -> 4393.16 | AJ224: =VLOOKUP($U$202&$U224,GTYF!$C:$AP,AJ$201,FALSE) -> 4393.16 | AK224: =VLOOKUP($U$202&$U224,GTYF!$C:$AP,AK$201,FALSE) -> 4363.06 | AL224: =VLOOKUP($U$202&$U224,GTYF!$C:$AP,AL$201,FALSE) -> 4363.06 | AM224: =VLOOKUP($U$202&$U224,GTYF!$C:$AP,AM$201,FALSE) -> 4363.06 | AN224: =VLOOKUP($U$202&$U224,GTYF!$C:$AP,AN$201,FALSE) -> 4363.06 | AO224: =VLOOKUP($U$202&$U224,GTYF!$C:$AP,AO$201,FALSE) -> 4363.06 | AP224: =VLOOKUP($U$202&$U224,GTYF!$C:$AP,AP$201,FALSE) -> 3943.96 | AQ224: =VLOOKUP($U$202&$U224,GTYF!$C:$AP,AQ$201,FALSE) -> 2506.96 | AR224: =VLOOKUP($U$202&$U224,GTYF!$C:$AP,AR$201,FALSE) -> 0 | AS224: =VLOOKUP($U$202&$U224,GTYF!$C:$AP,AS$201,FALSE) -> 0 | AT224: =VLOOKUP($U$202&$U224,GTYF!$C:$AP,AT$201,FALSE) -> 0 | AU224: =VLOOKUP($U$202&$U224,GTYF!$C:$AP,AU$201,FALSE) -> 0 | AV224: =VLOOKUP($U$202&$U224,GTYF!$C:$AP,AV$201,FALSE) -> 0 | AW224: =VLOOKUP($U$202&$U224,GTYF!$C:$AP,AW$201,FALSE) -> 0 | AX224: =VLOOKUP($U$202&$U224,GTYF!$C:$AP,AX$201,FALSE) -> 0 | AY224: =VLOOKUP($U$202&$U224,GTYF!$C:$AP,AY$201,FALSE) -> 0 | AZ224: =VLOOKUP($U$202&$U224,GTYF!$C:$AP,AZ$201,FALSE) -> 0
B225: * Attention, étant donné que le graphique fait appel aux GTYF, certains TYF ne paraissent pas dans les bons types de couvert (ex: EoRx, PbFx, PuFx, ToFx) | S225: Figure 10a | T225: Cédrières | U225: (FCTYF_THO) | V225: =VLOOKUP($U$202&$U225,GTYF!$C:$AP,V$201,FALSE) -> 16071.3 | W225: =VLOOKUP($U$202&$U225,GTYF!$C:$AP,W$201,FALSE) -> 16051.3 | X225: =VLOOKUP($U$202&$U225,GTYF!$C:$AP,X$201,FALSE) -> 16043.71 | Y225: =VLOOKUP($U$202&$U225,GTYF!$C:$AP,Y$201,FALSE) -> 16023.71 | Z225: =VLOOKUP($U$202&$U225,GTYF!$C:$AP,Z$201,FALSE) -> 16023.71 | AA225: =VLOOKUP($U$202&$U225,GTYF!$C:$AP,AA$201,FALSE) -> 16023.71 | AB225: =VLOOKUP($U$202&$U225,GTYF!$C:$AP,AB$201,FALSE) -> 16023.71 | AC225: =VLOOKUP($U$202&$U225,GTYF!$C:$AP,AC$201,FALSE) -> 16023.71 | AD225: =VLOOKUP($U$202&$U225,GTYF!$C:$AP,AD$201,FALSE) -> 16023.71 | AE225: =VLOOKUP($U$202&$U225,GTYF!$C:$AP,AE$201,FALSE) -> 16023.71 | AF225: =VLOOKUP($U$202&$U225,GTYF!$C:$AP,AF$201,FALSE) -> 16023.71 | AG225: =VLOOKUP($U$202&$U225,GTYF!$C:$AP,AG$201,FALSE) -> 16023.71 | AH225: =VLOOKUP($U$202&$U225,GTYF!$C:$AP,AH$201,FALSE) -> 16023.71 | AI225: =VLOOKUP($U$202&$U225,GTYF!$C:$AP,AI$201,FALSE) -> 16023.71 | AJ225: =VLOOKUP($U$202&$U225,GTYF!$C:$AP,AJ$201,FALSE) -> 16023.71 | AK225: =VLOOKUP($U$202&$U225,GTYF!$C:$AP,AK$201,FALSE) -> 16023.71 | AL225: =VLOOKUP($U$202&$U225,GTYF!$C:$AP,AL$201,FALSE) -> 16023.71 | AM225: =VLOOKUP($U$202&$U225,GTYF!$C:$AP,AM$201,FALSE) -> 16023.71 | AN225: =VLOOKUP($U$202&$U225,GTYF!$C:$AP,AN$201,FALSE) -> 16023.71 | AO225: =VLOOKUP($U$202&$U225,GTYF!$C:$AP,AO$201,FALSE) -> 16023.71 | AP225: =VLOOKUP($U$202&$U225,GTYF!$C:$AP,AP$201,FALSE) -> 16023.71 | AQ225: =VLOOKUP($U$202&$U225,GTYF!$C:$AP,AQ$201,FALSE) -> 16023.71 | AR225: =VLOOKUP($U$202&$U225,GTYF!$C:$AP,AR$201,FALSE) -> 16023.71 | AS225: =VLOOKUP($U$202&$U225,GTYF!$C:$AP,AS$201,FALSE) -> 16023.71 | AT225: =VLOOKUP($U$202&$U225,GTYF!$C:$AP,AT$201,FALSE) -> 16023.71 | AU225: =VLOOKUP($U$202&$U225,GTYF!$C:$AP,AU$201,FALSE) -> 16023.71 | AV225: =VLOOKUP($U$202&$U225,GTYF!$C:$AP,AV$201,FALSE) -> 16023.71 | AW225: =VLOOKUP($U$202&$U225,GTYF!$C:$AP,AW$201,FALSE) -> 16023.71 | AX225: =VLOOKUP($U$202&$U225,GTYF!$C:$AP,AX$201,FALSE) -> 16023.71 | AY225: =VLOOKUP($U$202&$U225,GTYF!$C:$AP,AY$201,FALSE) -> 16023.71 | AZ225: =VLOOKUP($U$202&$U225,GTYF!$C:$AP,AZ$201,FALSE) -> 16023.71
U228: Colonne | V228: 6 | W228: 7 | X228: 8 | Y228: 9 | Z228: 10 | AA228: 11 | AB228: 12 | AC228: 13 | AD228: 14 | AE228: 15 | AF228: 16 | AG228: 17 | AH228: 18 | AI228: 19 | AJ228: 20 | AK228: 21 | AL228: 22 | AM228: 23 | AN228: 24 | AO228: 25 | AP228: 26 | AQ228: 27 | AR228: 28 | AS228: 29 | AT228: 30 | AU228: 31 | AV228: 32 | AW228: 33 | AX228: 34 | AY228: 35 | AZ228: 36
B229: Figure 10c Évolution des superficies de hêtraie et d'érablière à hêtre | U229: Période | V229: P0 | W229: P1 | X229: P2 | Y229: P3 | Z229: P4 | AA229: P5 | AB229: P6 | AC229: P7 | AD229: P8 | AE229: P9 | AF229: P10 | AG229: P11 | AH229: P12 | AI229: P13 | AJ229: P14 | AK229: P15 | AL229: P16 | AM229: P17 | AN229: P18 | AO229: P19 | AP229: P20 | AQ229: P21 | AR229: P22 | AS229: P23 | AT229: P24 | AU229: P25 | AV229: P26 | AW229: P27 | AX229: P28 | AY229: P29 | AZ229: P30
U230: Axe des "X" Fin de période | V230: 2018 | W230: 2023 | X230: 2028 | Y230: 2033 | Z230: 2038 | AA230: 2043 | AB230: 2048 | AC230: 2053 | AD230: 2058 | AE230: 2063 | AF230: 2068 | AG230: 2073 | AH230: 2078 | AI230: 2083 | AJ230: 2088 | AK230: 2093 | AL230: 2098 | AM230: 2103 | AN230: 2108 | AO230: 2113 | AP230: 2118 | AQ230: 2123 | AR230: 2128 | AS230: 2133 | AT230: 2138 | AU230: 2143 | AV230: 2148 | AW230: 2153 | AX230: 2158 | AY230: 2163 | AZ230: 2168
S231: =LEFT(B$229,10) -> Figure 10c | T231: Hêtraie | U231: OSUPESHG_FX | V231: =VLOOKUP($U231,Output!$C:$AQ,V$228,FALSE) -> 7588.8 | W231: =VLOOKUP($U231,Output!$C:$AQ,W$228,FALSE) -> 8126.51 | X231: =VLOOKUP($U231,Output!$C:$AQ,X$228,FALSE) -> 8448.46 | Y231: =VLOOKUP($U231,Output!$C:$AQ,Y$228,FALSE) -> 9630.55 | Z231: =VLOOKUP($U231,Output!$C:$AQ,Z$228,FALSE) -> 10407.5 | AA231: =VLOOKUP($U231,Output!$C:$AQ,AA$228,FALSE) -> 11259.62 | AB231: =VLOOKUP($U231,Output!$C:$AQ,AB$228,FALSE) -> 13470.36 | AC231: =VLOOKUP($U231,Output!$C:$AQ,AC$228,FALSE) -> 13470.36 | AD231: =VLOOKUP($U231,Output!$C:$AQ,AD$228,FALSE) -> 13470.36 | AE231: =VLOOKUP($U231,Output!$C:$AQ,AE$228,FALSE) -> 13220.36 | AF231: =VLOOKUP($U231,Output!$C:$AQ,AF$228,FALSE) -> 13054.49 | AG231: =VLOOKUP($U231,Output!$C:$AQ,AG$228,FALSE) -> 13054.49 | AH231: =VLOOKUP($U231,Output!$C:$AQ,AH$228,FALSE) -> 13054.49 | AI231: =VLOOKUP($U231,Output!$C:$AQ,AI$228,FALSE) -> 13054.49 | AJ231: =VLOOKUP($U231,Output!$C:$AQ,AJ$228,FALSE) -> 13052.71 | AK231: =VLOOKUP($U231,Output!$C:$AQ,AK$228,FALSE) -> 13976.89 | AL231: =VLOOKUP($U231,Output!$C:$AQ,AL$228,FALSE) -> 13660.23 | AM231: =VLOOKUP($U231,Output!$C:$AQ,AM$228,FALSE) -> 13660.23 | AN231: =VLOOKUP($U231,Output!$C:$AQ,AN$228,FALSE) -> 13591.28 | AO231: =VLOOKUP($U231,Output!$C:$AQ,AO$228,FALSE) -> 14553.98 | AP231: =VLOOKUP($U231,Output!$C:$AQ,AP$228,FALSE) -> 14553.98 | AQ231: =VLOOKUP($U231,Output!$C:$AQ,AQ$228,FALSE) -> 14553.98 | AR231: =VLOOKUP($U231,Output!$C:$AQ,AR$228,FALSE) -> 14369.24 | AS231: =VLOOKUP($U231,Output!$C:$AQ,AS$228,FALSE) -> 15048.71 | AT231: =VLOOKUP($U231,Output!$C:$AQ,AT$228,FALSE) -> 15048.71 | AU231: =VLOOKUP($U231,Output!$C:$AQ,AU$228,FALSE) -> 15391.32 | AV231: =VLOOKUP($U231,Output!$C:$AQ,AV$228,FALSE) -> 15391.32 | AW231: =VLOOKUP($U231,Output!$C:$AQ,AW$228,FALSE) -> 15391.32 | AX231: =VLOOKUP($U231,Output!$C:$AQ,AX$228,FALSE) -> 15550.13 | AY231: =VLOOKUP($U231,Output!$C:$AQ,AY$228,FALSE) -> 15550.13 | AZ231: =VLOOKUP($U231,Output!$C:$AQ,AZ$228,FALSE) -> 15573.63
S232: =LEFT(B$229,10) -> Figure 10c | T232: Érablière à hêtre | U232: OSUPESHG | V232: =VLOOKUP($U232,Output!$C:$AQ,V$228,FALSE) -> 10809.5 | W232: =VLOOKUP($U232,Output!$C:$AQ,W$228,FALSE) -> 10203.15 | X232: =VLOOKUP($U232,Output!$C:$AQ,X$228,FALSE) -> 9749.01 | Y232: =VLOOKUP($U232,Output!$C:$AQ,Y$228,FALSE) -> 8398.28 | Z232: =VLOOKUP($U232,Output!$C:$AQ,Z$228,FALSE) -> 7603.09 | AA232: =VLOOKUP($U232,Output!$C:$AQ,AA$228,FALSE) -> 6738.07 | AB232: =VLOOKUP($U232,Output!$C:$AQ,AB$228,FALSE) -> 4420.92 | AC232: =VLOOKUP($U232,Output!$C:$AQ,AC$228,FALSE) -> 4170.92 | AD232: =VLOOKUP($U232,Output!$C:$AQ,AD$228,FALSE) -> 3920.92 | AE232: =VLOOKUP($U232,Output!$C:$AQ,AE$228,FALSE) -> 4170.92 | AF232: =VLOOKUP($U232,Output!$C:$AQ,AF$228,FALSE) -> 4252.66 | AG232: =VLOOKUP($U232,Output!$C:$AQ,AG$228,FALSE) -> 4002.66 | AH232: =VLOOKUP($U232,Output!$C:$AQ,AH$228,FALSE) -> 4002.66 | AI232: =VLOOKUP($U232,Output!$C:$AQ,AI$228,FALSE) -> 4002.66 | AJ232: =VLOOKUP($U232,Output!$C:$AQ,AJ$228,FALSE) -> 4002.66 | AK232: =VLOOKUP($U232,Output!$C:$AQ,AK$228,FALSE) -> 3077.84 | AL232: =VLOOKUP($U232,Output!$C:$AQ,AL$228,FALSE) -> 3235.7 | AM232: =VLOOKUP($U232,Output!$C:$AQ,AM$228,FALSE) -> 3235.7 | AN232: =VLOOKUP($U232,Output!$C:$AQ,AN$228,FALSE) -> 3281.14 | AO232: =VLOOKUP($U232,Output!$C:$AQ,AO$228,FALSE) -> 2318.44 | AP232: =VLOOKUP($U232,Output!$C:$AQ,AP$228,FALSE) -> 2318.44 | AQ232: =VLOOKUP($U232,Output!$C:$AQ,AQ$228,FALSE) -> 2318.44 | AR232: =VLOOKUP($U232,Output!$C:$AQ,AR$228,FALSE) -> 2503.18 | AS232: =VLOOKUP($U232,Output!$C:$AQ,AS$228,FALSE) -> 1787.98 | AT232: =VLOOKUP($U232,Output!$C:$AQ,AT$228,FALSE) -> 1787.98 | AU232: =VLOOKUP($U232,Output!$C:$AQ,AU$228,FALSE) -> 1204.81 | AV232: =VLOOKUP($U232,Output!$C:$AQ,AV$228,FALSE) -> 1204.81 | AW232: =VLOOKUP($U232,Output!$C:$AQ,AW$228,FALSE) -> 1204.81 | AX232: =VLOOKUP($U232,Output!$C:$AQ,AX$228,FALSE) -> 1204.81 | AY232: =VLOOKUP($U232,Output!$C:$AQ,AY$228,FALSE) -> 1204.81 | AZ232: =VLOOKUP($U232,Output!$C:$AQ,AZ$228,FALSE) -> 1204.81
S233: =LEFT(B$229,10) -> Figure 10c | T233: Total | U233: Total | V233: =SUM(V231:V232) -> 18398.3 | W233: =SUM(W231:W232) -> 18329.66 | X233: 18197.47 | Y233: 18028.83 | Z233: 18010.59 | AA233: 17997.69 | AB233: 17891.28 | AC233: 17641.28 | AD233: 17391.28 | AE233: 17391.28 | AF233: 17307.15 | AG233: 17057.15 | AH233: 17057.15 | AI233: 17057.15 | AJ233: 17055.37 | AK233: 17054.73 | AL233: 16895.93 | AM233: 16895.93 | AN233: 16872.42 | AO233: 16872.42 | AP233: 16872.42 | AQ233: 16872.42 | AR233: 16872.42 | AS233: 16836.69 | AT233: 16836.69 | AU233: 16596.13 | AV233: 16596.13 | AW233: 16596.13 | AX233: 16754.94 | AY233: 16754.94 | AZ233: 16778.44
B255: Figure 11b Évolution du volume de sapin et d'épinettes sur pied dans la composante SEPM
U262: Colonne | V262: 6 | W262: 7 | X262: 8 | Y262: 9 | Z262: 10 | AA262: 11 | AB262: 12 | AC262: 13 | AD262: 14 | AE262: 15 | AF262: 16 | AG262: 17 | AH262: 18 | AI262: 19 | AJ262: 20 | AK262: 21 | AL262: 22 | AM262: 23 | AN262: 24 | AO262: 25 | AP262: 26 | AQ262: 27 | AR262: 28 | AS262: 29 | AT262: 30 | AU262: 31 | AV262: 32 | AW262: 33 | AX262: 34 | AY262: 35 | AZ262: 36
U263: Axe des "X" Fin de période | V263: 2018 | W263: 2023 | X263: 2028 | Y263: 2033 | Z263: 2038 | AA263: 2043 | AB263: 2048 | AC263: 2053 | AD263: 2058 | AE263: 2063 | AF263: 2068 | AG263: 2073 | AH263: 2078 | AI263: 2083 | AJ263: 2088 | AK263: 2093 | AL263: 2098 | AM263: 2103 | AN263: 2108 | AO263: 2113 | AP263: 2118 | AQ263: 2123 | AR263: 2128 | AS263: 2133 | AT263: 2138 | AU263: 2143 | AV263: 2148 | AW263: 2153 | AX263: 2158 | AY263: 2163 | AZ263: 2168
S264: =LEFT(B$255,10) -> Figure 11b | U264: Période | V264: P0 | W264: P1 | X264: P2 | Y264: P3 | Z264: P4 | AA264: P5 | AB264: P6 | AC264: P7 | AD264: P8 | AE264: P9 | AF264: P10 | AG264: P11 | AH264: P12 | AI264: P13 | AJ264: P14 | AK264: P15 | AL264: P16 | AM264: P17 | AN264: P18 | AO264: P19 | AP264: P20 | AQ264: P21 | AR264: P22 | AS264: P23 | AT264: P24 | AU264: P25 | AV264: P26 | AW264: P27 | AX264: P28 | AY264: P29 | AZ264: P30
S265: Figure 11b | T265: Légende | Y265: PERIOD3 | Z265: PERIOD4 | AA265: PERIOD5 | AB265: PERIOD6 | AC265: PERIOD7 | AD265: PERIOD8 | AE265: PERIOD9 | AF265: PERIOD10 | AG265: PERIOD11 | AH265: PERIOD12 | AI265: PERIOD13 | AJ265: PERIOD14 | AK265: PERIOD15 | AL265: PERIOD16 | AM265: PERIOD17 | AN265: PERIOD18 | AO265: PERIOD19 | AP265: PERIOD20 | AQ265: PERIOD21 | AR265: PERIOD22 | AS265: PERIOD23 | AT265: PERIOD24 | AU265: PERIOD25 | AV265: PERIOD26 | AW265: PERIOD27 | AX265: PERIOD28 | AY265: PERIOD29 | AZ265: PERIOD30
S266: Figure 11b | T266: Volume Sapin | U266: OVOLSABPIEDINC(FCTYF_SEPM) | V266: =VLOOKUP($U266,GTYF!$C:$AL,Figures!V$262,FALSE) -> 1112667.74 | W266: =VLOOKUP($U266,GTYF!$C:$AL,Figures!W$262,FALSE) -> 1138408.14 | X266: =VLOOKUP($U266,GTYF!$C:$AL,Figures!X$262,FALSE) -> 1087778.25 | Y266: =VLOOKUP($U266,GTYF!$C:$AL,Figures!Y$262,FALSE) -> 948851.37 | Z266: =VLOOKUP($U266,GTYF!$C:$AL,Figures!Z$262,FALSE) -> 935404.35 | AA266: =VLOOKUP($U266,GTYF!$C:$AL,Figures!AA$262,FALSE) -> 931361.93 | AB266: =VLOOKUP($U266,GTYF!$C:$AL,Figures!AB$262,FALSE) -> 916224.27 | AC266: =VLOOKUP($U266,GTYF!$C:$AL,Figures!AC$262,FALSE) -> 842515.05 | AD266: =VLOOKUP($U266,GTYF!$C:$AL,Figures!AD$262,FALSE) -> 815116.3 | AE266: =VLOOKUP($U266,GTYF!$C:$AL,Figures!AE$262,FALSE) -> 665161.28 | AF266: =VLOOKUP($U266,GTYF!$C:$AL,Figures!AF$262,FALSE) -> 646715.91 | AG266: =VLOOKUP($U266,GTYF!$C:$AL,Figures!AG$262,FALSE) -> 645522.17 | AH266: =VLOOKUP($U266,GTYF!$C:$AL,Figures!AH$262,FALSE) -> 640163.13 | AI266: =VLOOKUP($U266,GTYF!$C:$AL,Figures!AI$262,FALSE) -> 638423.37 | AJ266: =VLOOKUP($U266,GTYF!$C:$AL,Figures!AJ$262,FALSE) -> 649698.53 | AK266: =VLOOKUP($U266,GTYF!$C:$AL,Figures!AK$262,FALSE) -> 625850.95 | AL266: =VLOOKUP($U266,GTYF!$C:$AL,Figures!AL$262,FALSE) -> 617304.27 | AM266: =VLOOKUP($U266,GTYF!$C:$AL,Figures!AM$262,FALSE) -> 613653.39 | AN266: =VLOOKUP($U266,GTYF!$C:$AL,Figures!AN$262,FALSE) -> 610954.99 | AO266: =VLOOKUP($U266,GTYF!$C:$AL,Figures!AO$262,FALSE) -> 607868.12 | AP266: =VLOOKUP($U266,GTYF!$C:$AL,Figures!AP$262,FALSE) -> 596904.32 | AQ266: =VLOOKUP($U266,GTYF!$C:$AL,Figures!AQ$262,FALSE) -> 549526.62 | AR266: =VLOOKUP($U266,GTYF!$C:$AL,Figures!AR$262,FALSE) -> 401573.65 | AS266: =VLOOKUP($U266,GTYF!$C:$AL,Figures!AS$262,FALSE) -> 411427.95 | AT266: =VLOOKUP($U266,GTYF!$C:$AL,Figures!AT$262,FALSE) -> 422326.38 | AU266: =VLOOKUP($U266,GTYF!$C:$AL,Figures!AU$262,FALSE) -> 436033.51 | AV266: =VLOOKUP($U266,GTYF!$C:$AL,Figures!AV$262,FALSE) -> 412199.44 | AW266: =VLOOKUP($U266,GTYF!$C:$AL,Figures!AW$262,FALSE) -> 371460.15 | AX266: =VLOOKUP($U266,GTYF!$C:$AL,Figures!AX$262,FALSE) -> 381893.22 | AY266: =VLOOKUP($U266,GTYF!$C:$AL,Figures!AY$262,FALSE) -> 347991.71 | AZ266: =VLOOKUP($U266,GTYF!$C:$AL,Figures!AZ$262,FALSE) -> 280886.42
S267: Figure 11b | T267: Volume Épinettes | U267: OVOLGEPXPIEDINC(FCTYF_SEPM) | V267: =VLOOKUP($U267,GTYF!$C:$AL,Figures!V$262,FALSE) -> 2544527.33 | W267: =VLOOKUP($U267,GTYF!$C:$AL,Figures!W$262,FALSE) -> 2548005.86 | X267: =VLOOKUP($U267,GTYF!$C:$AL,Figures!X$262,FALSE) -> 2614713.24 | Y267: =VLOOKUP($U267,GTYF!$C:$AL,Figures!Y$262,FALSE) -> 2522568.45 | Z267: =VLOOKUP($U267,GTYF!$C:$AL,Figures!Z$262,FALSE) -> 2657032.63 | AA267: =VLOOKUP($U267,GTYF!$C:$AL,Figures!AA$262,FALSE) -> 2942514.3 | AB267: =VLOOKUP($U267,GTYF!$C:$AL,Figures!AB$262,FALSE) -> 3187031.89 | AC267: =VLOOKUP($U267,GTYF!$C:$AL,Figures!AC$262,FALSE) -> 3457745.06 | AD267: =VLOOKUP($U267,GTYF!$C:$AL,Figures!AD$262,FALSE) -> 3554146.84 | AE267: =VLOOKUP($U267,GTYF!$C:$AL,Figures!AE$262,FALSE) -> 3637601.87 | AF267: =VLOOKUP($U267,GTYF!$C:$AL,Figures!AF$262,FALSE) -> 3806013.95 | AG267: =VLOOKUP($U267,GTYF!$C:$AL,Figures!AG$262,FALSE) -> 4141625.61 | AH267: =VLOOKUP($U267,GTYF!$C:$AL,Figures!AH$262,FALSE) -> 4479543.73 | AI267: =VLOOKUP($U267,GTYF!$C:$AL,Figures!AI$262,FALSE) -> 4452735.69 | AJ267: =VLOOKUP($U267,GTYF!$C:$AL,Figures!AJ$262,FALSE) -> 4450689.8 | AK267: =VLOOKUP($U267,GTYF!$C:$AL,Figures!AK$262,FALSE) -> 4391358.66 | AL267: =VLOOKUP($U267,GTYF!$C:$AL,Figures!AL$262,FALSE) -> 4373208.27 | AM267: =VLOOKUP($U267,GTYF!$C:$AL,Figures!AM$262,FALSE) -> 4418071.71 | AN267: =VLOOKUP($U267,GTYF!$C:$AL,Figures!AN$262,FALSE) -> 4494387.72 | AO267: =VLOOKUP($U267,GTYF!$C:$AL,Figures!AO$262,FALSE) -> 4523324.98 | AP267: =VLOOKUP($U267,GTYF!$C:$AL,Figures!AP$262,FALSE) -> 4607430.81 | AQ267: =VLOOKUP($U267,GTYF!$C:$AL,Figures!AQ$262,FALSE) -> 4654777.41 | AR267: =VLOOKUP($U267,GTYF!$C:$AL,Figures!AR$262,FALSE) -> 4713568.15 | AS267: =VLOOKUP($U267,GTYF!$C:$AL,Figures!AS$262,FALSE) -> 4784545.76 | AT267: =VLOOKUP($U267,GTYF!$C:$AL,Figures!AT$262,FALSE) -> 4871855.2 | AU267: =VLOOKUP($U267,GTYF!$C:$AL,Figures!AU$262,FALSE) -> 5001249.46 | AV267: =VLOOKUP($U267,GTYF!$C:$AL,Figures!AV$262,FALSE) -> 4793969.68 | AW267: =VLOOKUP($U267,GTYF!$C:$AL,Figures!AW$262,FALSE) -> 4433094.86 | AX267: =VLOOKUP($U267,GTYF!$C:$AL,Figures!AX$262,FALSE) -> 4533411.28 | AY267: =VLOOKUP($U267,GTYF!$C:$AL,Figures!AY$262,FALSE) -> 4176739.67 | AZ267: =VLOOKUP($U267,GTYF!$C:$AL,Figures!AZ$262,FALSE) -> 3377849.31
S268: Figure 11b
S269: Figure 11b | T269: SEPM sur pied | U269: OVOLGSEPMPIEDINC(FCTYF_SEPM) | V269: =VLOOKUP($U269,GTYF!$C:$AL,Figures!V$262,FALSE) -> 4053391 | W269: =VLOOKUP($U269,GTYF!$C:$AL,Figures!W$262,FALSE) -> 4103861.21 | X269: =VLOOKUP($U269,GTYF!$C:$AL,Figures!X$262,FALSE) -> 4122786.15 | Y269: =VLOOKUP($U269,GTYF!$C:$AL,Figures!Y$262,FALSE) -> 3889397.71 | Z269: =VLOOKUP($U269,GTYF!$C:$AL,Figures!Z$262,FALSE) -> 4020631.85 | AA269: =VLOOKUP($U269,GTYF!$C:$AL,Figures!AA$262,FALSE) -> 4317403.2 | AB269: =VLOOKUP($U269,GTYF!$C:$AL,Figures!AB$262,FALSE) -> 4562779.94 | AC269: =VLOOKUP($U269,GTYF!$C:$AL,Figures!AC$262,FALSE) -> 4768704.39 | AD269: =VLOOKUP($U269,GTYF!$C:$AL,Figures!AD$262,FALSE) -> 4851565.44 | AE269: =VLOOKUP($U269,GTYF!$C:$AL,Figures!AE$262,FALSE) -> 4814424.17 | AF269: =VLOOKUP($U269,GTYF!$C:$AL,Figures!AF$262,FALSE) -> 5005819.57 | AG269: =VLOOKUP($U269,GTYF!$C:$AL,Figures!AG$262,FALSE) -> 5381879.13 | AH269: =VLOOKUP($U269,GTYF!$C:$AL,Figures!AH$262,FALSE) -> 5775343.4 | AI269: =VLOOKUP($U269,GTYF!$C:$AL,Figures!AI$262,FALSE) -> 5815282.29 | AJ269: =VLOOKUP($U269,GTYF!$C:$AL,Figures!AJ$262,FALSE) -> 5852519.18 | AK269: =VLOOKUP($U269,GTYF!$C:$AL,Figures!AK$262,FALSE) -> 5850629.55 | AL269: =VLOOKUP($U269,GTYF!$C:$AL,Figures!AL$262,FALSE) -> 5842113.15 | AM269: =VLOOKUP($U269,GTYF!$C:$AL,Figures!AM$262,FALSE) -> 5887880.69 | AN269: =VLOOKUP($U269,GTYF!$C:$AL,Figures!AN$262,FALSE) -> 5969724.52 | AO269: =VLOOKUP($U269,GTYF!$C:$AL,Figures!AO$262,FALSE) -> 5983198.2 | AP269: =VLOOKUP($U269,GTYF!$C:$AL,Figures!AP$262,FALSE) -> 6065238.03 | AQ269: =VLOOKUP($U269,GTYF!$C:$AL,Figures!AQ$262,FALSE) -> 6126356.76 | AR269: =VLOOKUP($U269,GTYF!$C:$AL,Figures!AR$262,FALSE) -> 6066096.27 | AS269: =VLOOKUP($U269,GTYF!$C:$AL,Figures!AS$262,FALSE) -> 6142384.39 | AT269: =VLOOKUP($U269,GTYF!$C:$AL,Figures!AT$262,FALSE) -> 6236069.1 | AU269: =VLOOKUP($U269,GTYF!$C:$AL,Figures!AU$262,FALSE) -> 6383955.57 | AV269: =VLOOKUP($U269,GTYF!$C:$AL,Figures!AV$262,FALSE) -> 6172679.45 | AW269: =VLOOKUP($U269,GTYF!$C:$AL,Figures!AW$262,FALSE) -> 5779631.06 | AX269: =VLOOKUP($U269,GTYF!$C:$AL,Figures!AX$262,FALSE) -> 5893297.02 | AY269: =VLOOKUP($U269,GTYF!$C:$AL,Figures!AY$262,FALSE) -> 5472110.18 | AZ269: =VLOOKUP($U269,GTYF!$C:$AL,Figures!AZ$262,FALSE) -> 4386016.24
S270: Figure 11b
S271: Figure 11b | T271: % Sapin | V271: =IF(ISERROR(V266),0,V266/V269) -> 0.2745029384 | W271: 0.2773992788 | X271: 0.2638454216 | Y271: 0.2439584328 | Z271: 0.2326510819 | AA271: 0.2157227127 | AB271: 0.2008039577 | AC271: 0.1766758811 | AD271: 0.1680109874 | AE271: 0.1381600907 | AF271: 0.1291928127 | AG271: 0.1199436395 | AH271: 0.1108441673 | AI271: 0.1097837281 | AJ271: 0.1110117729 | AK271: 0.1069715566 | AL271: 0.1056645522 | AM271: 0.104223136 | AN271: 0.1023422417 | AO271: 0.1015958522 | AP271: 0.09841399745 | AQ271: 0.0896987625 | AR271: 0.06619968298 | AS271: 0.06698179793 | AT271: 0.06772317196 | AU271: 0.06830146376 | AV271: 0.06677804077 | AW271: 0.06427056436 | AX271: 0.06480128504 | AY271: 0.06359369577 | AZ271: 0.0640413543
S272: Figure 11b | T272: % Épinettes | V272: =IF(ISERROR(V267),0,V267/V269) -> 0.6277527458 | W272: =IF(ISERROR(W267),0,W267/W269) -> 0.6208801247 | X272: 0.6342102512 | Y272: 0.6485755991 | Z272: 0.6608495205 | AA272: 0.6815472551 | AB272: 0.6984846808 | AC272: 0.7250910892 | AD272: 0.7325773266 | AE272: 0.7555632287 | AF272: 0.7603178454 | AG272: 0.7695500976 | AH272: 0.7756324464 | AI272: 0.765695536 | AJ272: 0.7604741929 | AK272: 0.7505788262 | AL272: 0.7485661708 | AM272: 0.7503670578 | AN272: 0.752863504 | AO272: 0.7560045362 | AP272: 0.7596455056 | AQ272: 0.7597953551 | AR272: 0.7770348409 | AS272: 0.7789394893 | AT272: 0.7812381681 | AU272: 0.7834091897 | AV272: 0.7766432258 | AW272: 0.7670203883 | AX272: 0.7692487354 | AY272: 0.7632776996 | AZ272: 0.7701406299
S273: Figure 11b | T273: % Volume autre | V273: =1-(V272+V271) -> 0.09774431581 | W273: 0.1017205964 | X273: 0.1019443271 | Y273: 0.107465968 | Z273: 0.1064993976 | AA273: 0.1027300323 | AB273: 0.1007113615 | AC273: 0.09823302971 | AD273: 0.09941168597 | AE273: 0.1062766806 | AF273: 0.1104893419 | AG273: 0.1105062629 | AH273: 0.1135233863 | AI273: 0.1245207359 | AJ273: 0.1285140342 | AK273: 0.1424496172 | AL273: 0.145769277 | AM273: 0.1454098062 | AN273: 0.1447942543 | AO273: 0.1423996116 | AP273: 0.1419404969 | AQ273: 0.1505058824 | AR273: 0.1567654761 | AS273: 0.1540787127 | AT273: 0.1510386599 | AU273: 0.1482893466 | AV273: 0.1565787334 | AW273: 0.1687090473 | AX273: 0.1659499796 | AY273: 0.1731286047 | AZ273: 0.1658180158
B278: Figure 14 Indicateur de productivité
... 127 more rows

Sheet UTA
M1: Jeune forêt | R1: Niveau d'altération des vieilles forêts | W1: Niveau d'altération combiné | AA1: Info à récupérer par le SSP Niveau d'altération des vieilles forêts
A2: Inscrire la liste des numéros d'UTA de l'UA: | B2: VieuxAlerte (%) | C2: VieuxAccept (%) | D2: RegeAlerte (%) | E2: RegeAccept (%) | G2: VieuxAlerte (ha) | H2: VieuxAccept (ha) | I2: RegeAlerte (ha) | J2: RegeAccept (ha) | K2: SupUTA | M2: OSUPJEUNEREGECO PERIOD1 (%) | N2: État Jeune 2023 | O2: OSUPJEUNEREGECO PERIOD6 (%) | P2: État Jeune 2048 | R2: OSUPVIEUXTOTREGECO PERIOD1 (%) | S2: État Vielle 2023 | T2: OSUPVIEUXTOTREGECO PERIOD6 (%) | U2: État Vielle 2048 | W2: UTA | X2: 2023 | Y2: 2048 | AA2: UA | AB2: UTA | AC2: 2023 | AD2: 2048 | AE2: Mode de répartition spatiale | AP2: Mode de répartition spatiale
A3: UTA53 | B3: =ROUND(G3/$K3,3) -> 0.174 | C3: =ROUND(H3/$K3,3) -> 0.29 | D3: =ROUND(I3/$K3,3) -> 0.3 | E3: =ROUND(J3/$K3,3) -> 0.2 | G3: =VLOOKUP(CONCATENATE("OSUPVIEUXALERTEREGECO_"&A3),Output!$C:$AQ,6,FALSE) -> 5810.82 | H3: =VLOOKUP(CONCATENATE("OSUPVIEUXACCEPTREGECO_"&A3),Output!$C:$AQ,6,FALSE) -> 9684.7 | I3: =VLOOKUP(CONCATENATE("OSUPJEUNEALERTEREGECO_"&A3),Output!$C:$AQ,6,FALSE) -> 10018.65 | J3: =VLOOKUP(CONCATENATE("OSUPJEUNEACCEPTREGECO_"&A3),Output!$C:$AQ,6,FALSE) -> 6679.1 | K3: =VLOOKUP(CONCATENATE("OSUPREGECO_"&A3),Output!$C:$AQ,6,FALSE) -> 33395.5 | M3: =ROUND(VLOOKUP("OSUPJEUNEREGECO_"&A3,Output!$C:$AQ,7,FALSE)/VLOOKUP("OSUPREGECO_"&A3,Output!$C:$AQ,6,FALSE),3) -> 0.03 | N3: =IF(M3<=$E3,"Faible",IF(M3<$D3,"Modéré","Supérieur")) -> Faible | O3: =ROUND(VLOOKUP("OSUPJEUNEREGECO_"&$A3,Output!$C:$AQ,12,FALSE)/VLOOKUP("OSUPREGECO_"&A3,Output!$C:$AQ,6,FALSE),3) -> 0.039 | P3: =IF(O3<=$E3,"Faible",IF(O3<$D3,"Modéré","Supérieur")) -> Faible | R3: =ROUND(VLOOKUP("OSUPVIEUXTOTREGECO_"&$A3,Output!$C:$AQ,7,FALSE)/VLOOKUP("OSUPREGECO_"&A3,Output!$C:$AQ,6,FALSE),3) -> 0.317 | S3: =IF(R3<$B3,"Supérieur",IF(R3<$C3,"Modéré","Faible")) -> Faible | T3: =ROUND(VLOOKUP("OSUPVIEUXTOTREGECO_"&$A3,Output!$C:$AQ,12,FALSE)/VLOOKUP("OSUPREGECO_"&A3,Output!$C:$AQ,6,FALSE),3) -> 0.437 | U3: =IF(T3<$B3,"Supérieur",IF(T3<$C3,"Modéré","Faible")) -> Faible | W3: =A3 -> UTA53 | X3: =IF(S3>N3,S3,N3) -> Faible | Y3: =IF(U3>P3,U3,P3) -> Faible | AA3: =Tableaux!$O$33 -> 07152 | AB3: =W3 -> UTA53 | AC3: =S3 -> Faible | AD3: =U3 -> Faible | AE3: CMO | AG3: Note: "Élevé" a été renommé "Supérieur" pour le bon fonctionnement des formules. | AP3: COS sapinière
A4: UTA54 | B4: =ROUND(G4/$K4,3) -> 0.228 | C4: 0.38 | D4: 0.3 | E4: 0.2 | G4: =VLOOKUP(CONCATENATE("OSUPVIEUXALERTEREGECO_"&A4),Output!$C:$AQ,6,FALSE) -> 7290.6 | H4: =VLOOKUP(CONCATENATE("OSUPVIEUXACCEPTREGECO_"&A4),Output!$C:$AQ,6,FALSE) -> 12150.99 | I4: =VLOOKUP(CONCATENATE("OSUPJEUNEALERTEREGECO_"&A4),Output!$C:$AQ,6,FALSE) -> 9592.89 | J4: =VLOOKUP(CONCATENATE("OSUPJEUNEACCEPTREGECO_"&A4),Output!$C:$AQ,6,FALSE) -> 6395.26 | K4: =VLOOKUP(CONCATENATE("OSUPREGECO_"&A4),Output!$C:$AQ,6,FALSE) -> 31976.3 | M4: =ROUND(VLOOKUP("OSUPJEUNEREGECO_"&A4,Output!$C:$AQ,7,FALSE)/VLOOKUP("OSUPREGECO_"&A4,Output!$C:$AQ,6,FALSE),3) -> 0.019 | N4: =IF(M4<=$E4,"Faible",IF(M4<$D4,"Modéré","Supérieur")) -> Faible | O4: =ROUND(VLOOKUP("OSUPJEUNEREGECO_"&$A4,Output!$C:$AQ,12,FALSE)/VLOOKUP("OSUPREGECO_"&A4,Output!$C:$AQ,6,FALSE),3) -> 0.062 | P4: =IF(O4<=$E4,"Faible",IF(O4<$D4,"Modéré","Supérieur")) -> Faible | R4: =ROUND(VLOOKUP("OSUPVIEUXTOTREGECO_"&$A4,Output!$C:$AQ,7,FALSE)/VLOOKUP("OSUPREGECO_"&A4,Output!$C:$AQ,6,FALSE),3) -> 0.227 | S4: =IF(R4<$B4,"Supérieur",IF(R4<$C4,"Modéré","Faible")) -> Supérieur | T4: =ROUND(VLOOKUP("OSUPVIEUXTOTREGECO_"&$A4,Output!$C:$AQ,12,FALSE)/VLOOKUP("OSUPREGECO_"&A4,Output!$C:$AQ,6,FALSE),3) -> 0.491 | U4: =IF(T4<$B4,"Supérieur",IF(T4<$C4,"Modéré","Faible")) -> Faible | W4: =A4 -> UTA54 | X4: =IF(S4>N4,S4,N4) -> Supérieur | Y4: =IF(U4>P4,U4,P4) -> Faible | AA4: =Tableaux!$O$33 -> 07152 | AB4: =W4 -> UTA54 | AC4: =S4 -> Supérieur | AD4: =U4 -> Faible | AE4: CMO | AP4: COS pessière
A5: UTA55 | B5: 0.228 | C5: 0.38 | D5: 0.3 | E5: 0.2 | G5: =VLOOKUP(CONCATENATE("OSUPVIEUXALERTEREGECO_"&A5),Output!$C:$AQ,6,FALSE) -> 6132.13 | H5: =VLOOKUP(CONCATENATE("OSUPVIEUXACCEPTREGECO_"&A5),Output!$C:$AQ,6,FALSE) -> 10220.21 | I5: =VLOOKUP(CONCATENATE("OSUPJEUNEALERTEREGECO_"&A5),Output!$C:$AQ,6,FALSE) -> 8068.59 | J5: =VLOOKUP(CONCATENATE("OSUPJEUNEACCEPTREGECO_"&A5),Output!$C:$AQ,6,FALSE) -> 5379.06 | K5: =VLOOKUP(CONCATENATE("OSUPREGECO_"&A5),Output!$C:$AQ,6,FALSE) -> 26895.3 | M5: =ROUND(VLOOKUP("OSUPJEUNEREGECO_"&A5,Output!$C:$AQ,7,FALSE)/VLOOKUP("OSUPREGECO_"&A5,Output!$C:$AQ,6,FALSE),3) -> 0.019 | N5: Faible | O5: =ROUND(VLOOKUP("OSUPJEUNEREGECO_"&$A5,Output!$C:$AQ,12,FALSE)/VLOOKUP("OSUPREGECO_"&A5,Output!$C:$AQ,6,FALSE),3) -> 0.049 | P5: Faible | R5: =ROUND(VLOOKUP("OSUPVIEUXTOTREGECO_"&$A5,Output!$C:$AQ,7,FALSE)/VLOOKUP("OSUPREGECO_"&A5,Output!$C:$AQ,6,FALSE),3) -> 0.326 | S5: Modéré | T5: =ROUND(VLOOKUP("OSUPVIEUXTOTREGECO_"&$A5,Output!$C:$AQ,12,FALSE)/VLOOKUP("OSUPREGECO_"&A5,Output!$C:$AQ,6,FALSE),3) -> 0.439 | U5: Faible | W5: UTA55 | X5: Modéré | Y5: Faible | AA5: =Tableaux!$O$33 -> 07152 | AB5: =W5 -> UTA55 | AC5: =S5 -> Modéré | AD5: =U5 -> Faible | AE5: CMO | AP5: CMO
A6: UTA56 | B6: 0.228 | C6: 0.38 | D6: 0.3 | E6: 0.2 | G6: =VLOOKUP(CONCATENATE("OSUPVIEUXALERTEREGECO_"&A6),Output!$C:$AQ,6,FALSE) -> 6395.99 | H6: =VLOOKUP(CONCATENATE("OSUPVIEUXACCEPTREGECO_"&A6),Output!$C:$AQ,6,FALSE) -> 10659.99 | I6: =VLOOKUP(CONCATENATE("OSUPJEUNEALERTEREGECO_"&A6),Output!$C:$AQ,6,FALSE) -> 8415.78 | J6: =VLOOKUP(CONCATENATE("OSUPJEUNEACCEPTREGECO_"&A6),Output!$C:$AQ,6,FALSE) -> 5610.52 | K6: =VLOOKUP(CONCATENATE("OSUPREGECO_"&A6),Output!$C:$AQ,6,FALSE) -> 28052.6 | M6: =ROUND(VLOOKUP("OSUPJEUNEREGECO_"&A6,Output!$C:$AQ,7,FALSE)/VLOOKUP("OSUPREGECO_"&A6,Output!$C:$AQ,6,FALSE),3) -> 0.019 | N6: Faible | O6: =ROUND(VLOOKUP("OSUPJEUNEREGECO_"&$A6,Output!$C:$AQ,12,FALSE)/VLOOKUP("OSUPREGECO_"&A6,Output!$C:$AQ,6,FALSE),3) -> 0.061 | P6: Faible | R6: =ROUND(VLOOKUP("OSUPVIEUXTOTREGECO_"&$A6,Output!$C:$AQ,7,FALSE)/VLOOKUP("OSUPREGECO_"&A6,Output!$C:$AQ,6,FALSE),3) -> 0.397 | S6: Faible | T6: =ROUND(VLOOKUP("OSUPVIEUXTOTREGECO_"&$A6,Output!$C:$AQ,12,FALSE)/VLOOKUP("OSUPREGECO_"&A6,Output!$C:$AQ,6,FALSE),3) -> 0.53 | U6: Faible | W6: UTA56 | X6: Faible | Y6: Faible | AA6: =Tableaux!$O$33 -> 07152 | AB6: UTA56 | AC6: Faible | AD6: =U6 -> Faible | AE6: CMO | AP6: CMO entente Cris
A7: UTA57 | B7: 0.228 | C7: 0.38 | D7: 0.3 | E7: 0.2 | G7: =VLOOKUP(CONCATENATE("OSUPVIEUXALERTEREGECO_"&A7),Output!$C:$AQ,6,FALSE) -> 4664.79 | H7: =VLOOKUP(CONCATENATE("OSUPVIEUXACCEPTREGECO_"&A7),Output!$C:$AQ,6,FALSE) -> 7774.65 | I7: =VLOOKUP(CONCATENATE("OSUPJEUNEALERTEREGECO_"&A7),Output!$C:$AQ,6,FALSE) -> 6137.88 | J7: =VLOOKUP(CONCATENATE("OSUPJEUNEACCEPTREGECO_"&A7),Output!$C:$AQ,6,FALSE) -> 4091.92 | K7: =VLOOKUP(CONCATENATE("OSUPREGECO_"&A7),Output!$C:$AQ,6,FALSE) -> 20459.6 | M7: =ROUND(VLOOKUP("OSUPJEUNEREGECO_"&A7,Output!$C:$AQ,7,FALSE)/VLOOKUP("OSUPREGECO_"&A7,Output!$C:$AQ,6,FALSE),3) -> 0.054 | N7: Faible | O7: =ROUND(VLOOKUP("OSUPJEUNEREGECO_"&$A7,Output!$C:$AQ,12,FALSE)/VLOOKUP("OSUPREGECO_"&A7,Output!$C:$AQ,6,FALSE),3) -> 0.076 | P7: Faible | R7: =ROUND(VLOOKUP("OSUPVIEUXTOTREGECO_"&$A7,Output!$C:$AQ,7,FALSE)/VLOOKUP("OSUPREGECO_"&A7,Output!$C:$AQ,6,FALSE),3) -> 0.321 | S7: Modéré | T7: =ROUND(VLOOKUP("OSUPVIEUXTOTREGECO_"&$A7,Output!$C:$AQ,12,FALSE)/VLOOKUP("OSUPREGECO_"&A7,Output!$C:$AQ,6,FALSE),3) -> 0.343 | U7: Modéré | W7: UTA57 | X7: Modéré | Y7: Modéré | AA7: =Tableaux!$O$33 -> 07152 | AB7: UTA57 | AC7: =S7 -> Modéré | AD7: =U7 -> Modéré | AE7: CMO | AG7: Voir à renommer "Élevé" dans la légende des figures | AP7: CMO entente BM
A8: UTA58 | B8: 0.228 | C8: 0.38 | D8: 0.3 | E8: 0.2 | G8: =VLOOKUP(CONCATENATE("OSUPVIEUXALERTEREGECO_"&A8),Output!$C:$AQ,6,FALSE) -> 4669.33 | H8: =VLOOKUP(CONCATENATE("OSUPVIEUXACCEPTREGECO_"&A8),Output!$C:$AQ,6,FALSE) -> 7782.21 | I8: =VLOOKUP(CONCATENATE("OSUPJEUNEALERTEREGECO_"&A8),Output!$C:$AQ,6,FALSE) -> 6143.85 | J8: =VLOOKUP(CONCATENATE("OSUPJEUNEACCEPTREGECO_"&A8),Output!$C:$AQ,6,FALSE) -> 4095.9 | K8: =VLOOKUP(CONCATENATE("OSUPREGECO_"&A8),Output!$C:$AQ,6,FALSE) -> 20479.5 | M8: =ROUND(VLOOKUP("OSUPJEUNEREGECO_"&A8,Output!$C:$AQ,7,FALSE)/VLOOKUP("OSUPREGECO_"&A8,Output!$C:$AQ,6,FALSE),3) -> 0.079 | N8: Faible | O8: =ROUND(VLOOKUP("OSUPJEUNEREGECO_"&$A8,Output!$C:$AQ,12,FALSE)/VLOOKUP("OSUPREGECO_"&A8,Output!$C:$AQ,6,FALSE),3) -> 0.046 | P8: Faible | R8: =ROUND(VLOOKUP("OSUPVIEUXTOTREGECO_"&$A8,Output!$C:$AQ,7,FALSE)/VLOOKUP("OSUPREGECO_"&A8,Output!$C:$AQ,6,FALSE),3) -> 0.385 | S8: Faible | T8: =ROUND(VLOOKUP("OSUPVIEUXTOTREGECO_"&$A8,Output!$C:$AQ,12,FALSE)/VLOOKUP("OSUPREGECO_"&A8,Output!$C:$AQ,6,FALSE),3) -> 0.503 | U8: Faible | W8: UTA58 | X8: Faible | Y8: Faible | AA8: =Tableaux!$O$33 -> 07152 | AB8: UTA58 | AC8: Faible | AD8: Faible | AE8: CMO
A9: UTA59 | B9: 0.228 | C9: 0.38 | D9: 0.3 | E9: 0.2 | G9: =VLOOKUP(CONCATENATE("OSUPVIEUXALERTEREGECO_"&A9),Output!$C:$AQ,6,FALSE) -> 4996.8 | H9: =VLOOKUP(CONCATENATE("OSUPVIEUXACCEPTREGECO_"&A9),Output!$C:$AQ,6,FALSE) -> 8328 | I9: =VLOOKUP(CONCATENATE("OSUPJEUNEALERTEREGECO_"&A9),Output!$C:$AQ,6,FALSE) -> 6574.74 | J9: =VLOOKUP(CONCATENATE("OSUPJEUNEACCEPTREGECO_"&A9),Output!$C:$AQ,6,FALSE) -> 4383.16 | K9: =VLOOKUP(CONCATENATE("OSUPREGECO_"&A9),Output!$C:$AQ,6,FALSE) -> 21915.8 | M9: =ROUND(VLOOKUP("OSUPJEUNEREGECO_"&A9,Output!$C:$AQ,7,FALSE)/VLOOKUP("OSUPREGECO_"&A9,Output!$C:$AQ,6,FALSE),3) -> 0.099 | N9: Faible | O9: =ROUND(VLOOKUP("OSUPJEUNEREGECO_"&$A9,Output!$C:$AQ,12,FALSE)/VLOOKUP("OSUPREGECO_"&A9,Output!$C:$AQ,6,FALSE),3) -> 0.083 | P9: Faible | R9: =ROUND(VLOOKUP("OSUPVIEUXTOTREGECO_"&$A9,Output!$C:$AQ,7,FALSE)/VLOOKUP("OSUPREGECO_"&A9,Output!$C:$AQ,6,FALSE),3) -> 0.255 | S9: Modéré | T9: =ROUND(VLOOKUP("OSUPVIEUXTOTREGECO_"&$A9,Output!$C:$AQ,12,FALSE)/VLOOKUP("OSUPREGECO_"&A9,Output!$C:$AQ,6,FALSE),3) -> 0.303 | U9: Modéré | W9: UTA59 | X9: Modéré | Y9: Modéré | AA9: =Tableaux!$O$33 -> 07152 | AB9: UTA59 | AC9: Modéré | AD9: Modéré | AE9: CMO
A10: UTA60 | B10: 0.228 | C10: 0.38 | D10: 0.3 | E10: 0.2 | G10: =VLOOKUP(CONCATENATE("OSUPVIEUXALERTEREGECO_"&A10),Output!$C:$AQ,6,FALSE) -> 7212.64 | H10: =VLOOKUP(CONCATENATE("OSUPVIEUXACCEPTREGECO_"&A10),Output!$C:$AQ,6,FALSE) -> 12021.07 | I10: =VLOOKUP(CONCATENATE("OSUPJEUNEALERTEREGECO_"&A10),Output!$C:$AQ,6,FALSE) -> 9490.32 | J10: =VLOOKUP(CONCATENATE("OSUPJEUNEACCEPTREGECO_"&A10),Output!$C:$AQ,6,FALSE) -> 6326.88 | K10: =VLOOKUP(CONCATENATE("OSUPREGECO_"&A10),Output!$C:$AQ,6,FALSE) -> 31634.4 | M10: =ROUND(VLOOKUP("OSUPJEUNEREGECO_"&A10,Output!$C:$AQ,7,FALSE)/VLOOKUP("OSUPREGECO_"&A10,Output!$C:$AQ,6,FALSE),3) -> 0.04 | N10: Faible | O10: =ROUND(VLOOKUP("OSUPJEUNEREGECO_"&$A10,Output!$C:$AQ,12,FALSE)/VLOOKUP("OSUPREGECO_"&A10,Output!$C:$AQ,6,FALSE),3) -> 0.06 | P10: Faible | R10: =ROUND(VLOOKUP("OSUPVIEUXTOTREGECO_"&$A10,Output!$C:$AQ,7,FALSE)/VLOOKUP("OSUPREGECO_"&A10,Output!$C:$AQ,6,FALSE),3) -> 0.324 | S10: Modéré | T10: =ROUND(VLOOKUP("OSUPVIEUXTOTREGECO_"&$A10,Output!$C:$AQ,12,FALSE)/VLOOKUP("OSUPREGECO_"&A10,Output!$C:$AQ,6,FALSE),3) -> 0.465 | U10: Faible | W10: UTA60 | X10: Modéré | Y10: Faible | AA10: =Tableaux!$O$33 -> 07152 | AB10: UTA60 | AC10: Modéré | AD10: Faible | AE10: CMO
A11: UTA61 | B11: 0.174 | C11: 0.29 | D11: 0.3 | E11: =ROUND(J11/$K11,3) -> 0.2 | G11: =VLOOKUP(CONCATENATE("OSUPVIEUXALERTEREGECO_"&A11),Output!$C:$AQ,6,FALSE) -> 6752.07 | H11: =VLOOKUP(CONCATENATE("OSUPVIEUXACCEPTREGECO_"&A11),Output!$C:$AQ,6,FALSE) -> 11253.45 | I11: =VLOOKUP(CONCATENATE("OSUPJEUNEALERTEREGECO_"&A11),Output!$C:$AQ,6,FALSE) -> 11641.5 | J11: =VLOOKUP(CONCATENATE("OSUPJEUNEACCEPTREGECO_"&A11),Output!$C:$AQ,6,FALSE) -> 7761 | K11: =VLOOKUP(CONCATENATE("OSUPREGECO_"&A11),Output!$C:$AQ,6,FALSE) -> 38805 | M11: =ROUND(VLOOKUP("OSUPJEUNEREGECO_"&A11,Output!$C:$AQ,7,FALSE)/VLOOKUP("OSUPREGECO_"&A11,Output!$C:$AQ,6,FALSE),3) -> 0.054 | N11: Faible | O11: =ROUND(VLOOKUP("OSUPJEUNEREGECO_"&$A11,Output!$C:$AQ,12,FALSE)/VLOOKUP("OSUPREGECO_"&A11,Output!$C:$AQ,6,FALSE),3) -> 0.05 | P11: Faible | R11: =ROUND(VLOOKUP("OSUPVIEUXTOTREGECO_"&$A11,Output!$C:$AQ,7,FALSE)/VLOOKUP("OSUPREGECO_"&A11,Output!$C:$AQ,6,FALSE),3) -> 0.417 | S11: Faible | T11: =ROUND(VLOOKUP("OSUPVIEUXTOTREGECO_"&$A11,Output!$C:$AQ,12,FALSE)/VLOOKUP("OSUPREGECO_"&A11,Output!$C:$AQ,6,FALSE),3) -> 0.391 | U11: Faible | W11: UTA61 | X11: Faible | Y11: Faible | AA11: =Tableaux!$O$33 -> 07152 | AB11: UTA61 | AC11: Faible | AD11: Faible | AE11: CMO
A12: UTA62 | B12: 0.174 | C12: 0.29 | D12: 0.3 | E12: 0.2 | G12: =VLOOKUP(CONCATENATE("OSUPVIEUXALERTEREGECO_"&A12),Output!$C:$AQ,6,FALSE) -> 7192.66 | H12: =VLOOKUP(CONCATENATE("OSUPVIEUXACCEPTREGECO_"&A12),Output!$C:$AQ,6,FALSE) -> 11987.76 | I12: =VLOOKUP(CONCATENATE("OSUPJEUNEALERTEREGECO_"&A12),Output!$C:$AQ,6,FALSE) -> 12401.13 | J12: =VLOOKUP(CONCATENATE("OSUPJEUNEACCEPTREGECO_"&A12),Output!$C:$AQ,6,FALSE) -> 8267.42 | K12: =VLOOKUP(CONCATENATE("OSUPREGECO_"&A12),Output!$C:$AQ,6,FALSE) -> 41337.1 | M12: =ROUND(VLOOKUP("OSUPJEUNEREGECO_"&A12,Output!$C:$AQ,7,FALSE)/VLOOKUP("OSUPREGECO_"&A12,Output!$C:$AQ,6,FALSE),3) -> 0.025 | N12: Faible | O12: =ROUND(VLOOKUP("OSUPJEUNEREGECO_"&$A12,Output!$C:$AQ,12,FALSE)/VLOOKUP("OSUPREGECO_"&A12,Output!$C:$AQ,6,FALSE),3) -> 0.11 | P12: Faible | R12: =ROUND(VLOOKUP("OSUPVIEUXTOTREGECO_"&$A12,Output!$C:$AQ,7,FALSE)/VLOOKUP("OSUPREGECO_"&A12,Output!$C:$AQ,6,FALSE),3) -> 0.378 | S12: Faible | T12: =ROUND(VLOOKUP("OSUPVIEUXTOTREGECO_"&$A12,Output!$C:$AQ,12,FALSE)/VLOOKUP("OSUPREGECO_"&A12,Output!$C:$AQ,6,FALSE),3) -> 0.444 | U12: Faible | W12: UTA62 | X12: Faible | Y12: Faible | AA12: =Tableaux!$O$33 -> 07152 | AB12: UTA62 | AC12: Faible | AD12: Faible | AE12: CMO | AG12: Compléter cellules en jaune
A13: UTA63 | B13: 0.174 | C13: 0.29 | D13: 0.3 | E13: 0.2 | G13: =VLOOKUP(CONCATENATE("OSUPVIEUXALERTEREGECO_"&A13),Output!$C:$AQ,6,FALSE) -> 5464.87 | H13: =VLOOKUP(CONCATENATE("OSUPVIEUXACCEPTREGECO_"&A13),Output!$C:$AQ,6,FALSE) -> 9108.12 | I13: =VLOOKUP(CONCATENATE("OSUPJEUNEALERTEREGECO_"&A13),Output!$C:$AQ,6,FALSE) -> 9422.19 | J13: =VLOOKUP(CONCATENATE("OSUPJEUNEACCEPTREGECO_"&A13),Output!$C:$AQ,6,FALSE) -> 6281.46 | K13: =VLOOKUP(CONCATENATE("OSUPREGECO_"&A13),Output!$C:$AQ,6,FALSE) -> 31407.3 | M13: =ROUND(VLOOKUP("OSUPJEUNEREGECO_"&A13,Output!$C:$AQ,7,FALSE)/VLOOKUP("OSUPREGECO_"&A13,Output!$C:$AQ,6,FALSE),3) -> 0.03 | N13: Faible | O13: =ROUND(VLOOKUP("OSUPJEUNEREGECO_"&$A13,Output!$C:$AQ,12,FALSE)/VLOOKUP("OSUPREGECO_"&A13,Output!$C:$AQ,6,FALSE),3) -> 0.1 | P13: Faible | R13: =ROUND(VLOOKUP("OSUPVIEUXTOTREGECO_"&$A13,Output!$C:$AQ,7,FALSE)/VLOOKUP("OSUPREGECO_"&A13,Output!$C:$AQ,6,FALSE),3) -> 0.357 | S13: Faible | T13: =ROUND(VLOOKUP("OSUPVIEUXTOTREGECO_"&$A13,Output!$C:$AQ,12,FALSE)/VLOOKUP("OSUPREGECO_"&A13,Output!$C:$AQ,6,FALSE),3) -> 0.559 | U13: Faible | W13: UTA63 | X13: Faible | Y13: Faible | AA13: =Tableaux!$O$33 -> 07152 | AB13: UTA63 | AC13: Faible | AD13: Faible | AE13: CMO
A14: UTA64 | B14: 0.174 | C14: 0.29 | D14: 0.3 | E14: 0.2 | G14: =VLOOKUP(CONCATENATE("OSUPVIEUXALERTEREGECO_"&A14),Output!$C:$AQ,6,FALSE) -> 5494.85 | H14: =VLOOKUP(CONCATENATE("OSUPVIEUXACCEPTREGECO_"&A14),Output!$C:$AQ,6,FALSE) -> 9158.08 | I14: =VLOOKUP(CONCATENATE("OSUPJEUNEALERTEREGECO_"&A14),Output!$C:$AQ,6,FALSE) -> 9473.88 | J14: =VLOOKUP(CONCATENATE("OSUPJEUNEACCEPTREGECO_"&A14),Output!$C:$AQ,6,FALSE) -> 6315.92 | K14: =VLOOKUP(CONCATENATE("OSUPREGECO_"&A14),Output!$C:$AQ,6,FALSE) -> 31579.6 | M14: =ROUND(VLOOKUP("OSUPJEUNEREGECO_"&A14,Output!$C:$AQ,7,FALSE)/VLOOKUP("OSUPREGECO_"&A14,Output!$C:$AQ,6,FALSE),3) -> 0.052 | N14: Faible | O14: =ROUND(VLOOKUP("OSUPJEUNEREGECO_"&$A14,Output!$C:$AQ,12,FALSE)/VLOOKUP("OSUPREGECO_"&A14,Output!$C:$AQ,6,FALSE),3) -> 0.059 | P14: Faible | R14: =ROUND(VLOOKUP("OSUPVIEUXTOTREGECO_"&$A14,Output!$C:$AQ,7,FALSE)/VLOOKUP("OSUPREGECO_"&A14,Output!$C:$AQ,6,FALSE),3) -> 0.308 | S14: Faible | T14: =ROUND(VLOOKUP("OSUPVIEUXTOTREGECO_"&$A14,Output!$C:$AQ,12,FALSE)/VLOOKUP("OSUPREGECO_"&A14,Output!$C:$AQ,6,FALSE),3) -> 0.487 | U14: Faible | W14: UTA64 | X14: Faible | Y14: Faible | AA14: =Tableaux!$O$33 -> 07152 | AB14: UTA64 | AC14: Faible | AD14: Faible | AE14: CMO
A15: UTA65 | B15: 0.174 | C15: 0.29 | D15: 0.3 | E15: 0.2 | G15: =VLOOKUP(CONCATENATE("OSUPVIEUXALERTEREGECO_"&A15),Output!$C:$AQ,6,FALSE) -> 5291.1 | H15: =VLOOKUP(CONCATENATE("OSUPVIEUXACCEPTREGECO_"&A15),Output!$C:$AQ,6,FALSE) -> 8818.49 | I15: =VLOOKUP(CONCATENATE("OSUPJEUNEALERTEREGECO_"&A15),Output!$C:$AQ,6,FALSE) -> 9122.58 | J15: =VLOOKUP(CONCATENATE("OSUPJEUNEACCEPTREGECO_"&A15),Output!$C:$AQ,6,FALSE) -> 6081.72 | K15: =VLOOKUP(CONCATENATE("OSUPREGECO_"&A15),Output!$C:$AQ,6,FALSE) -> 30408.6 | M15: =ROUND(VLOOKUP("OSUPJEUNEREGECO_"&A15,Output!$C:$AQ,7,FALSE)/VLOOKUP("OSUPREGECO_"&A15,Output!$C:$AQ,6,FALSE),3) -> 0.063 | N15: Faible | O15: =ROUND(VLOOKUP("OSUPJEUNEREGECO_"&$A15,Output!$C:$AQ,12,FALSE)/VLOOKUP("OSUPREGECO_"&A15,Output!$C:$AQ,6,FALSE),3) -> 0.113 | P15: Faible | R15: =ROUND(VLOOKUP("OSUPVIEUXTOTREGECO_"&$A15,Output!$C:$AQ,7,FALSE)/VLOOKUP("OSUPREGECO_"&A15,Output!$C:$AQ,6,FALSE),3) -> 0.37 | S15: Faible | T15: =ROUND(VLOOKUP("OSUPVIEUXTOTREGECO_"&$A15,Output!$C:$AQ,12,FALSE)/VLOOKUP("OSUPREGECO_"&A15,Output!$C:$AQ,6,FALSE),3) -> 0.441 | U15: Faible | W15: UTA65 | X15: Faible | Y15: Faible | AA15: =Tableaux!$O$33 -> 07152 | AB15: UTA65 | AC15: Faible | AD15: Faible | AE15: CMO
A16: UTA66 | B16: 0.174 | C16: 0.29 | D16: 0.3 | E16: 0.2 | G16: =VLOOKUP(CONCATENATE("OSUPVIEUXALERTEREGECO_"&A16),Output!$C:$AQ,6,FALSE) -> 7079.68 | H16: =VLOOKUP(CONCATENATE("OSUPVIEUXACCEPTREGECO_"&A16),Output!$C:$AQ,6,FALSE) -> 11799.46 | I16: =VLOOKUP(CONCATENATE("OSUPJEUNEALERTEREGECO_"&A16),Output!$C:$AQ,6,FALSE) -> 12206.34 | J16: =VLOOKUP(CONCATENATE("OSUPJEUNEACCEPTREGECO_"&A16),Output!$C:$AQ,6,FALSE) -> 8137.56 | K16: =VLOOKUP(CONCATENATE("OSUPREGECO_"&A16),Output!$C:$AQ,6,FALSE) -> 40687.8 | M16: =ROUND(VLOOKUP("OSUPJEUNEREGECO_"&A16,Output!$C:$AQ,7,FALSE)/VLOOKUP("OSUPREGECO_"&A16,Output!$C:$AQ,6,FALSE),3) -> 0.1 | N16: Faible | O16: =ROUND(VLOOKUP("OSUPJEUNEREGECO_"&$A16,Output!$C:$AQ,12,FALSE)/VLOOKUP("OSUPREGECO_"&A16,Output!$C:$AQ,6,FALSE),3) -> 0.103 | P16: Faible | R16: =ROUND(VLOOKUP("OSUPVIEUXTOTREGECO_"&$A16,Output!$C:$AQ,7,FALSE)/VLOOKUP("OSUPREGECO_"&A16,Output!$C:$AQ,6,FALSE),3) -> 0.289 | S16: Modéré | T16: =ROUND(VLOOKUP("OSUPVIEUXTOTREGECO_"&$A16,Output!$C:$AQ,12,FALSE)/VLOOKUP("OSUPREGECO_"&A16,Output!$C:$AQ,6,FALSE),3) -> 0.394 | U16: Faible | W16: UTA66 | X16: Modéré | Y16: Faible | AA16: =Tableaux!$O$33 -> 07152 | AB16: UTA66 | AC16: Modéré | AD16: Faible | AE16: CMO
A17: UTA67 | B17: 0.174 | C17: 0.29 | D17: 0.3 | E17: 0.2 | G17: =VLOOKUP(CONCATENATE("OSUPVIEUXALERTEREGECO_"&A17),Output!$C:$AQ,6,FALSE) -> 7554.37 | H17: =VLOOKUP(CONCATENATE("OSUPVIEUXACCEPTREGECO_"&A17),Output!$C:$AQ,6,FALSE) -> 12590.61 | I17: =VLOOKUP(CONCATENATE("OSUPJEUNEALERTEREGECO_"&A17),Output!$C:$AQ,6,FALSE) -> 13024.77 | J17: =VLOOKUP(CONCATENATE("OSUPJEUNEACCEPTREGECO_"&A17),Output!$C:$AQ,6,FALSE) -> 8683.18 | K17: =VLOOKUP(CONCATENATE("OSUPREGECO_"&A17),Output!$C:$AQ,6,FALSE) -> 43415.9 | M17: =ROUND(VLOOKUP("OSUPJEUNEREGECO_"&A17,Output!$C:$AQ,7,FALSE)/VLOOKUP("OSUPREGECO_"&A17,Output!$C:$AQ,6,FALSE),3) -> 0.044 | N17: Faible | O17: =ROUND(VLOOKUP("OSUPJEUNEREGECO_"&$A17,Output!$C:$AQ,12,FALSE)/VLOOKUP("OSUPREGECO_"&A17,Output!$C:$AQ,6,FALSE),3) -> 0.077 | P17: Faible | R17: =ROUND(VLOOKUP("OSUPVIEUXTOTREGECO_"&$A17,Output!$C:$AQ,7,FALSE)/VLOOKUP("OSUPREGECO_"&A17,Output!$C:$AQ,6,FALSE),3) -> 0.33 | S17: Faible | T17: =ROUND(VLOOKUP("OSUPVIEUXTOTREGECO_"&$A17,Output!$C:$AQ,12,FALSE)/VLOOKUP("OSUPREGECO_"&A17,Output!$C:$AQ,6,FALSE),3) -> 0.539 | U17: Faible | W17: UTA67 | X17: Faible | Y17: Faible | AA17: =Tableaux!$O$33 -> 07152 | AB17: UTA67 | AC17: Faible | AD17: Faible | AE17: CMO
A18: UTA68 | B18: 0.228 | C18: 0.38 | D18: 0.3 | E18: 0.2 | G18: =VLOOKUP(CONCATENATE("OSUPVIEUXALERTEREGECO_"&A18),Output!$C:$AQ,6,FALSE) -> 5854.01 | H18: =VLOOKUP(CONCATENATE("OSUPVIEUXACCEPTREGECO_"&A18),Output!$C:$AQ,6,FALSE) -> 9756.69 | I18: =VLOOKUP(CONCATENATE("OSUPJEUNEALERTEREGECO_"&A18),Output!$C:$AQ,6,FALSE) -> 7702.65 | J18: =VLOOKUP(CONCATENATE("OSUPJEUNEACCEPTREGECO_"&A18),Output!$C:$AQ,6,FALSE) -> 5135.1 | K18: =VLOOKUP(CONCATENATE("OSUPREGECO_"&A18),Output!$C:$AQ,6,FALSE) -> 25675.5 | M18: =ROUND(VLOOKUP("OSUPJEUNEREGECO_"&A18,Output!$C:$AQ,7,FALSE)/VLOOKUP("OSUPREGECO_"&A18,Output!$C:$AQ,6,FALSE),3) -> 0.004 | N18: Faible | O18: =ROUND(VLOOKUP("OSUPJEUNEREGECO_"&$A18,Output!$C:$AQ,12,FALSE)/VLOOKUP("OSUPREGECO_"&A18,Output!$C:$AQ,6,FALSE),3) -> 0.01 | P18: Faible | R18: =ROUND(VLOOKUP("OSUPVIEUXTOTREGECO_"&$A18,Output!$C:$AQ,7,FALSE)/VLOOKUP("OSUPREGECO_"&A18,Output!$C:$AQ,6,FALSE),3) -> 0.272 | S18: Modéré | T18: =ROUND(VLOOKUP("OSUPVIEUXTOTREGECO_"&$A18,Output!$C:$AQ,12,FALSE)/VLOOKUP("OSUPREGECO_"&A18,Output!$C:$AQ,6,FALSE),3) -> 0.614 | U18: Faible | W18: UTA68 | X18: Modéré | Y18: Faible | AA18: =Tableaux!$O$33 -> 07152 | AB18: UTA68 | AC18: Modéré | AD18: Faible | AE18: CMO
G19: =VLOOKUP(CONCATENATE("OSUPVIEUXALERTEREGECO_"&A19),Output!$C:$AQ,6,FALSE) ->  | H19: =VLOOKUP(CONCATENATE("OSUPVIEUXACCEPTREGECO_"&A19),Output!$C:$AQ,6,FALSE) ->  | I19: =VLOOKUP(CONCATENATE("OSUPJEUNEALERTEREGECO_"&A19),Output!$C:$AQ,6,FALSE) ->  | J19: =VLOOKUP(CONCATENATE("OSUPJEUNEACCEPTREGECO_"&A19),Output!$C:$AQ,6,FALSE) ->  | K19: =VLOOKUP(CONCATENATE("OSUPREGECO_"&A19),Output!$C:$AQ,6,FALSE) ->  | M19: =ROUND(VLOOKUP("OSUPJEUNEREGECO_"&A19,Output!$C:$AQ,7,FALSE)/VLOOKUP("OSUPREGECO_"&A19,Output!$C:$AQ,6,FALSE),3) ->  | O19: =ROUND(VLOOKUP("OSUPJEUNEREGECO_"&$A19,Output!$C:$AQ,12,FALSE)/VLOOKUP("OSUPREGECO_"&A19,Output!$C:$AQ,6,FALSE),3) ->  | R19: =ROUND(VLOOKUP("OSUPVIEUXTOTREGECO_"&$A19,Output!$C:$AQ,7,FALSE)/VLOOKUP("OSUPREGECO_"&A19,Output!$C:$AQ,6,FALSE),3) ->  | T19: =ROUND(VLOOKUP("OSUPVIEUXTOTREGECO_"&$A19,Output!$C:$AQ,12,FALSE)/VLOOKUP("OSUPREGECO_"&A19,Output!$C:$AQ,6,FALSE),3) ->  | W19: 0 | AA19: =Tableaux!$O$33 -> 07152 | AB19: 0
G20: =VLOOKUP(CONCATENATE("OSUPVIEUXALERTEREGECO_"&A20),Output!$C:$AQ,6,FALSE) ->  | H20: =VLOOKUP(CONCATENATE("OSUPVIEUXACCEPTREGECO_"&A20),Output!$C:$AQ,6,FALSE) ->  | I20: =VLOOKUP(CONCATENATE("OSUPJEUNEALERTEREGECO_"&A20),Output!$C:$AQ,6,FALSE) ->  | J20: =VLOOKUP(CONCATENATE("OSUPJEUNEACCEPTREGECO_"&A20),Output!$C:$AQ,6,FALSE) ->  | K20: =VLOOKUP(CONCATENATE("OSUPREGECO_"&A20),Output!$C:$AQ,6,FALSE) ->  | M20: =ROUND(VLOOKUP("OSUPJEUNEREGECO_"&A20,Output!$C:$AQ,7,FALSE)/VLOOKUP("OSUPREGECO_"&A20,Output!$C:$AQ,6,FALSE),3) ->  | O20: =ROUND(VLOOKUP("OSUPJEUNEREGECO_"&$A20,Output!$C:$AQ,12,FALSE)/VLOOKUP("OSUPREGECO_"&A20,Output!$C:$AQ,6,FALSE),3) ->  | R20: =ROUND(VLOOKUP("OSUPVIEUXTOTREGECO_"&$A20,Output!$C:$AQ,7,FALSE)/VLOOKUP("OSUPREGECO_"&A20,Output!$C:$AQ,6,FALSE),3) ->  | T20: =ROUND(VLOOKUP("OSUPVIEUXTOTREGECO_"&$A20,Output!$C:$AQ,12,FALSE)/VLOOKUP("OSUPREGECO_"&A20,Output!$C:$AQ,6,FALSE),3) ->  | W20: 0 | AA20: =Tableaux!$O$33 -> 07152 | AB20: 0
B21: =ROUND(G21/$K21,2) ->  | C21: =H21/$K21 ->  | D21: =ROUND(I21/$K21,3) ->  | G21: =VLOOKUP(CONCATENATE("OSUPVIEUXALERTEREGECO_"&A21),Output!$C:$AQ,6,FALSE) ->  | H21: =VLOOKUP(CONCATENATE("OSUPVIEUXACCEPTREGECO_"&A21),Output!$C:$AQ,6,FALSE) ->  | I21: =VLOOKUP(CONCATENATE("OSUPJEUNEALERTEREGECO_"&A21),Output!$C:$AQ,6,FALSE) ->  | J21: =VLOOKUP(CONCATENATE("OSUPJEUNEACCEPTREGECO_"&A21),Output!$C:$AQ,6,FALSE) ->  | K21: =VLOOKUP(CONCATENATE("OSUPREGECO_"&A21),Output!$C:$AQ,6,FALSE) ->  | M21: =ROUND(VLOOKUP("OSUPJEUNEREGECO_"&A21,Output!$C:$AQ,7,FALSE)/VLOOKUP("OSUPREGECO_"&A21,Output!$C:$AQ,6,FALSE),3) ->  | O21: =ROUND(VLOOKUP("OSUPJEUNEREGECO_"&$A21,Output!$C:$AQ,12,FALSE)/VLOOKUP("OSUPREGECO_"&A21,Output!$C:$AQ,6,FALSE),3) ->  | R21: =ROUND(VLOOKUP("OSUPVIEUXTOTREGECO_"&$A21,Output!$C:$AQ,7,FALSE)/VLOOKUP("OSUPREGECO_"&A21,Output!$C:$AQ,6,FALSE),3) ->  | T21: =ROUND(VLOOKUP("OSUPVIEUXTOTREGECO_"&$A21,Output!$C:$AQ,12,FALSE)/VLOOKUP("OSUPREGECO_"&A21,Output!$C:$AQ,6,FALSE),3) ->  | W21: 0 | AA21: =Tableaux!$O$33 -> 07152 | AB21: 0
G22: =VLOOKUP(CONCATENATE("OSUPVIEUXALERTEREGECO_"&A22),Output!$C:$AQ,6,FALSE) ->  | H22: =VLOOKUP(CONCATENATE("OSUPVIEUXACCEPTREGECO_"&A22),Output!$C:$AQ,6,FALSE) ->  | I22: =VLOOKUP(CONCATENATE("OSUPJEUNEALERTEREGECO_"&A22),Output!$C:$AQ,6,FALSE) ->  | J22: =VLOOKUP(CONCATENATE("OSUPJEUNEACCEPTREGECO_"&A22),Output!$C:$AQ,6,FALSE) ->  | K22: =VLOOKUP(CONCATENATE("OSUPREGECO_"&A22),Output!$C:$AQ,6,FALSE) ->  | M22: =ROUND(VLOOKUP("OSUPJEUNEREGECO_"&A22,Output!$C:$AQ,7,FALSE)/VLOOKUP("OSUPREGECO_"&A22,Output!$C:$AQ,6,FALSE),3) ->  | O22: =ROUND(VLOOKUP("OSUPJEUNEREGECO_"&$A22,Output!$C:$AQ,12,FALSE)/VLOOKUP("OSUPREGECO_"&A22,Output!$C:$AQ,6,FALSE),3) ->  | R22: =ROUND(VLOOKUP("OSUPVIEUXTOTREGECO_"&$A22,Output!$C:$AQ,7,FALSE)/VLOOKUP("OSUPREGECO_"&A22,Output!$C:$AQ,6,FALSE),3) ->  | T22: =ROUND(VLOOKUP("OSUPVIEUXTOTREGECO_"&$A22,Output!$C:$AQ,12,FALSE)/VLOOKUP("OSUPREGECO_"&A22,Output!$C:$AQ,6,FALSE),3) ->  | W22: 0 | AA22: =Tableaux!$O$33 -> 07152 | AB22: 0
G23: =VLOOKUP(CONCATENATE("OSUPVIEUXALERTEREGECO_"&A23),Output!$C:$AQ,6,FALSE) ->  | H23: =VLOOKUP(CONCATENATE("OSUPVIEUXACCEPTREGECO_"&A23),Output!$C:$AQ,6,FALSE) ->  | I23: =VLOOKUP(CONCATENATE("OSUPJEUNEALERTEREGECO_"&A23),Output!$C:$AQ,6,FALSE) ->  | J23: =VLOOKUP(CONCATENATE("OSUPJEUNEACCEPTREGECO_"&A23),Output!$C:$AQ,6,FALSE) ->  | K23: =VLOOKUP(CONCATENATE("OSUPREGECO_"&A23),Output!$C:$AQ,6,FALSE) ->  | M23: =ROUND(VLOOKUP("OSUPJEUNEREGECO_"&A23,Output!$C:$AQ,7,FALSE)/VLOOKUP("OSUPREGECO_"&A23,Output!$C:$AQ,6,FALSE),3) ->  | O23: =ROUND(VLOOKUP("OSUPJEUNEREGECO_"&$A23,Output!$C:$AQ,12,FALSE)/VLOOKUP("OSUPREGECO_"&A23,Output!$C:$AQ,6,FALSE),3) ->  | R23: =ROUND(VLOOKUP("OSUPVIEUXTOTREGECO_"&$A23,Output!$C:$AQ,7,FALSE)/VLOOKUP("OSUPREGECO_"&A23,Output!$C:$AQ,6,FALSE),3) ->  | T23: =ROUND(VLOOKUP("OSUPVIEUXTOTREGECO_"&$A23,Output!$C:$AQ,12,FALSE)/VLOOKUP("OSUPREGECO_"&A23,Output!$C:$AQ,6,FALSE),3) ->  | W23: 0 | AA23: =Tableaux!$O$33 -> 07152 | AB23: 0
G24: =VLOOKUP(CONCATENATE("OSUPVIEUXALERTEREGECO_"&A24),Output!$C:$AQ,6,FALSE) ->  | H24: =VLOOKUP(CONCATENATE("OSUPVIEUXACCEPTREGECO_"&A24),Output!$C:$AQ,6,FALSE) ->  | I24: =VLOOKUP(CONCATENATE("OSUPJEUNEALERTEREGECO_"&A24),Output!$C:$AQ,6,FALSE) ->  | J24: =VLOOKUP(CONCATENATE("OSUPJEUNEACCEPTREGECO_"&A24),Output!$C:$AQ,6,FALSE) ->  | K24: =VLOOKUP(CONCATENATE("OSUPREGECO_"&A24),Output!$C:$AQ,6,FALSE) ->  | M24: =ROUND(VLOOKUP("OSUPJEUNEREGECO_"&A24,Output!$C:$AQ,7,FALSE)/VLOOKUP("OSUPREGECO_"&A24,Output!$C:$AQ,6,FALSE),3) ->  | O24: =ROUND(VLOOKUP("OSUPJEUNEREGECO_"&$A24,Output!$C:$AQ,12,FALSE)/VLOOKUP("OSUPREGECO_"&A24,Output!$C:$AQ,6,FALSE),3) ->  | R24: =ROUND(VLOOKUP("OSUPVIEUXTOTREGECO_"&$A24,Output!$C:$AQ,7,FALSE)/VLOOKUP("OSUPREGECO_"&A24,Output!$C:$AQ,6,FALSE),3) ->  | T24: =ROUND(VLOOKUP("OSUPVIEUXTOTREGECO_"&$A24,Output!$C:$AQ,12,FALSE)/VLOOKUP("OSUPREGECO_"&A24,Output!$C:$AQ,6,FALSE),3) ->  | W24: 0 | AA24: =Tableaux!$O$33 -> 07152 | AB24: 0
G25: =VLOOKUP(CONCATENATE("OSUPVIEUXALERTEREGECO_"&A25),Output!$C:$AQ,6,FALSE) ->  | H25: =VLOOKUP(CONCATENATE("OSUPVIEUXACCEPTREGECO_"&A25),Output!$C:$AQ,6,FALSE) ->  | I25: =VLOOKUP(CONCATENATE("OSUPJEUNEALERTEREGECO_"&A25),Output!$C:$AQ,6,FALSE) ->  | J25: =VLOOKUP(CONCATENATE("OSUPJEUNEACCEPTREGECO_"&A25),Output!$C:$AQ,6,FALSE) ->  | K25: =VLOOKUP(CONCATENATE("OSUPREGECO_"&A25),Output!$C:$AQ,6,FALSE) ->  | M25: =ROUND(VLOOKUP("OSUPJEUNEREGECO_"&A25,Output!$C:$AQ,7,FALSE)/VLOOKUP("OSUPREGECO_"&A25,Output!$C:$AQ,6,FALSE),3) ->  | O25: =ROUND(VLOOKUP("OSUPJEUNEREGECO_"&$A25,Output!$C:$AQ,12,FALSE)/VLOOKUP("OSUPREGECO_"&A25,Output!$C:$AQ,6,FALSE),3) ->  | R25: =ROUND(VLOOKUP("OSUPVIEUXTOTREGECO_"&$A25,Output!$C:$AQ,7,FALSE)/VLOOKUP("OSUPREGECO_"&A25,Output!$C:$AQ,6,FALSE),3) ->  | T25: =ROUND(VLOOKUP("OSUPVIEUXTOTREGECO_"&$A25,Output!$C:$AQ,12,FALSE)/VLOOKUP("OSUPREGECO_"&A25,Output!$C:$AQ,6,FALSE),3) ->  | W25: 0 | AA25: =Tableaux!$O$33 -> 07152 | AB25: 0
G26: =VLOOKUP(CONCATENATE("OSUPVIEUXALERTEREGECO_"&A26),Output!$C:$AQ,6,FALSE) ->  | H26: =VLOOKUP(CONCATENATE("OSUPVIEUXACCEPTREGECO_"&A26),Output!$C:$AQ,6,FALSE) ->  | I26: =VLOOKUP(CONCATENATE("OSUPJEUNEALERTEREGECO_"&A26),Output!$C:$AQ,6,FALSE) ->  | J26: =VLOOKUP(CONCATENATE("OSUPJEUNEACCEPTREGECO_"&A26),Output!$C:$AQ,6,FALSE) ->  | K26: =VLOOKUP(CONCATENATE("OSUPREGECO_"&A26),Output!$C:$AQ,6,FALSE) ->  | M26: =ROUND(VLOOKUP("OSUPJEUNEREGECO_"&A26,Output!$C:$AQ,7,FALSE)/VLOOKUP("OSUPREGECO_"&A26,Output!$C:$AQ,6,FALSE),3) ->  | O26: =ROUND(VLOOKUP("OSUPJEUNEREGECO_"&$A26,Output!$C:$AQ,12,FALSE)/VLOOKUP("OSUPREGECO_"&A26,Output!$C:$AQ,6,FALSE),3) ->  | R26: =ROUND(VLOOKUP("OSUPVIEUXTOTREGECO_"&$A26,Output!$C:$AQ,7,FALSE)/VLOOKUP("OSUPREGECO_"&A26,Output!$C:$AQ,6,FALSE),3) ->  | T26: =ROUND(VLOOKUP("OSUPVIEUXTOTREGECO_"&$A26,Output!$C:$AQ,12,FALSE)/VLOOKUP("OSUPREGECO_"&A26,Output!$C:$AQ,6,FALSE),3) ->  | W26: 0 | AA26: =Tableaux!$O$33 -> 07152 | AB26: 0
C27: =ROUND(H27/$K27,3) ->  | G27: =VLOOKUP(CONCATENATE("OSUPVIEUXALERTEREGECO_"&A27),Output!$C:$AQ,6,FALSE) ->  | H27: =VLOOKUP(CONCATENATE("OSUPVIEUXACCEPTREGECO_"&A27),Output!$C:$AQ,6,FALSE) ->  | I27: =VLOOKUP(CONCATENATE("OSUPJEUNEALERTEREGECO_"&A27),Output!$C:$AQ,6,FALSE) ->  | J27: =VLOOKUP(CONCATENATE("OSUPJEUNEACCEPTREGECO_"&A27),Output!$C:$AQ,6,FALSE) ->  | K27: =VLOOKUP(CONCATENATE("OSUPREGECO_"&A27),Output!$C:$AQ,6,FALSE) ->  | M27: =ROUND(VLOOKUP("OSUPJEUNEREGECO_"&A27,Output!$C:$AQ,7,FALSE)/VLOOKUP("OSUPREGECO_"&A27,Output!$C:$AQ,6,FALSE),3) ->  | O27: =ROUND(VLOOKUP("OSUPJEUNEREGECO_"&$A27,Output!$C:$AQ,12,FALSE)/VLOOKUP("OSUPREGECO_"&A27,Output!$C:$AQ,6,FALSE),3) ->  | R27: =ROUND(VLOOKUP("OSUPVIEUXTOTREGECO_"&$A27,Output!$C:$AQ,7,FALSE)/VLOOKUP("OSUPREGECO_"&A27,Output!$C:$AQ,6,FALSE),3) ->  | T27: =ROUND(VLOOKUP("OSUPVIEUXTOTREGECO_"&$A27,Output!$C:$AQ,12,FALSE)/VLOOKUP("OSUPREGECO_"&A27,Output!$C:$AQ,6,FALSE),3) ->  | W27: 0 | AA27: =Tableaux!$O$33 -> 07152 | AB27: 0
G28: =VLOOKUP(CONCATENATE("OSUPVIEUXALERTEREGECO_"&A28),Output!$C:$AQ,6,FALSE) ->  | H28: =VLOOKUP(CONCATENATE("OSUPVIEUXACCEPTREGECO_"&A28),Output!$C:$AQ,6,FALSE) ->  | I28: =VLOOKUP(CONCATENATE("OSUPJEUNEALERTEREGECO_"&A28),Output!$C:$AQ,6,FALSE) ->  | J28: =VLOOKUP(CONCATENATE("OSUPJEUNEACCEPTREGECO_"&A28),Output!$C:$AQ,6,FALSE) ->  | K28: =VLOOKUP(CONCATENATE("OSUPREGECO_"&A28),Output!$C:$AQ,6,FALSE) ->  | M28: =ROUND(VLOOKUP("OSUPJEUNEREGECO_"&A28,Output!$C:$AQ,7,FALSE)/VLOOKUP("OSUPREGECO_"&A28,Output!$C:$AQ,6,FALSE),3) ->  | O28: =ROUND(VLOOKUP("OSUPJEUNEREGECO_"&$A28,Output!$C:$AQ,12,FALSE)/VLOOKUP("OSUPREGECO_"&A28,Output!$C:$AQ,6,FALSE),3) ->  | R28: =ROUND(VLOOKUP("OSUPVIEUXTOTREGECO_"&$A28,Output!$C:$AQ,7,FALSE)/VLOOKUP("OSUPREGECO_"&A28,Output!$C:$AQ,6,FALSE),3) ->  | T28: =ROUND(VLOOKUP("OSUPVIEUXTOTREGECO_"&$A28,Output!$C:$AQ,12,FALSE)/VLOOKUP("OSUPREGECO_"&A28,Output!$C:$AQ,6,FALSE),3) ->  | W28: 0 | AA28: =Tableaux!$O$33 -> 07152 | AB28: 0
G29: =VLOOKUP(CONCATENATE("OSUPVIEUXALERTEREGECO_"&A29),Output!$C:$AQ,6,FALSE) ->  | H29: =VLOOKUP(CONCATENATE("OSUPVIEUXACCEPTREGECO_"&A29),Output!$C:$AQ,6,FALSE) ->  | I29: =VLOOKUP(CONCATENATE("OSUPJEUNEALERTEREGECO_"&A29),Output!$C:$AQ,6,FALSE) ->  | J29: =VLOOKUP(CONCATENATE("OSUPJEUNEACCEPTREGECO_"&A29),Output!$C:$AQ,6,FALSE) ->  | K29: =VLOOKUP(CONCATENATE("OSUPREGECO_"&A29),Output!$C:$AQ,6,FALSE) ->  | M29: =ROUND(VLOOKUP("OSUPJEUNEREGECO_"&A29,Output!$C:$AQ,7,FALSE)/VLOOKUP("OSUPREGECO_"&A29,Output!$C:$AQ,6,FALSE),3) ->  | O29: =ROUND(VLOOKUP("OSUPJEUNEREGECO_"&$A29,Output!$C:$AQ,12,FALSE)/VLOOKUP("OSUPREGECO_"&A29,Output!$C:$AQ,6,FALSE),3) ->  | R29: =ROUND(VLOOKUP("OSUPVIEUXTOTREGECO_"&$A29,Output!$C:$AQ,7,FALSE)/VLOOKUP("OSUPREGECO_"&A29,Output!$C:$AQ,6,FALSE),3) ->  | T29: =ROUND(VLOOKUP("OSUPVIEUXTOTREGECO_"&$A29,Output!$C:$AQ,12,FALSE)/VLOOKUP("OSUPREGECO_"&A29,Output!$C:$AQ,6,FALSE),3) ->  | W29: 0 | AA29: =Tableaux!$O$33 -> 07152 | AB29: 0
G30: =VLOOKUP(CONCATENATE("OSUPVIEUXALERTEREGECO_"&A30),Output!$C:$AQ,6,FALSE) ->  | H30: =VLOOKUP(CONCATENATE("OSUPVIEUXACCEPTREGECO_"&A30),Output!$C:$AQ,6,FALSE) ->  | I30: =VLOOKUP(CONCATENATE("OSUPJEUNEALERTEREGECO_"&A30),Output!$C:$AQ,6,FALSE) ->  | J30: =VLOOKUP(CONCATENATE("OSUPJEUNEACCEPTREGECO_"&A30),Output!$C:$AQ,6,FALSE) ->  | K30: =VLOOKUP(CONCATENATE("OSUPREGECO_"&A30),Output!$C:$AQ,6,FALSE) ->  | M30: =ROUND(VLOOKUP("OSUPJEUNEREGECO_"&A30,Output!$C:$AQ,7,FALSE)/VLOOKUP("OSUPREGECO_"&A30,Output!$C:$AQ,6,FALSE),3) ->  | O30: =ROUND(VLOOKUP("OSUPJEUNEREGECO_"&$A30,Output!$C:$AQ,12,FALSE)/VLOOKUP("OSUPREGECO_"&A30,Output!$C:$AQ,6,FALSE),3) ->  | R30: =ROUND(VLOOKUP("OSUPVIEUXTOTREGECO_"&$A30,Output!$C:$AQ,7,FALSE)/VLOOKUP("OSUPREGECO_"&A30,Output!$C:$AQ,6,FALSE),3) ->  | T30: =ROUND(VLOOKUP("OSUPVIEUXTOTREGECO_"&$A30,Output!$C:$AQ,12,FALSE)/VLOOKUP("OSUPREGECO_"&A30,Output!$C:$AQ,6,FALSE),3) ->  | W30: 0 | AA30: =Tableaux!$O$33 -> 07152 | AB30: 0
G31: =VLOOKUP(CONCATENATE("OSUPVIEUXALERTEREGECO_"&A31),Output!$C:$AQ,6,FALSE) ->  | H31: =VLOOKUP(CONCATENATE("OSUPVIEUXACCEPTREGECO_"&A31),Output!$C:$AQ,6,FALSE) ->  | I31: =VLOOKUP(CONCATENATE("OSUPJEUNEALERTEREGECO_"&A31),Output!$C:$AQ,6,FALSE) ->  | J31: =VLOOKUP(CONCATENATE("OSUPJEUNEACCEPTREGECO_"&A31),Output!$C:$AQ,6,FALSE) ->  | K31: =VLOOKUP(CONCATENATE("OSUPREGECO_"&A31),Output!$C:$AQ,6,FALSE) ->  | M31: =ROUND(VLOOKUP("OSUPJEUNEREGECO_"&A31,Output!$C:$AQ,7,FALSE)/VLOOKUP("OSUPREGECO_"&A31,Output!$C:$AQ,6,FALSE),3) ->  | O31: =ROUND(VLOOKUP("OSUPJEUNEREGECO_"&$A31,Output!$C:$AQ,12,FALSE)/VLOOKUP("OSUPREGECO_"&A31,Output!$C:$AQ,6,FALSE),3) ->  | R31: =ROUND(VLOOKUP("OSUPVIEUXTOTREGECO_"&$A31,Output!$C:$AQ,7,FALSE)/VLOOKUP("OSUPREGECO_"&A31,Output!$C:$AQ,6,FALSE),3) ->  | T31: =ROUND(VLOOKUP("OSUPVIEUXTOTREGECO_"&$A31,Output!$C:$AQ,12,FALSE)/VLOOKUP("OSUPREGECO_"&A31,Output!$C:$AQ,6,FALSE),3) ->  | W31: 0 | AA31: =Tableaux!$O$33 -> 07152 | AB31: 0
G32: =VLOOKUP(CONCATENATE("OSUPVIEUXALERTEREGECO_"&A32),Output!$C:$AQ,6,FALSE) ->  | H32: =VLOOKUP(CONCATENATE("OSUPVIEUXACCEPTREGECO_"&A32),Output!$C:$AQ,6,FALSE) ->  | I32: =VLOOKUP(CONCATENATE("OSUPJEUNEALERTEREGECO_"&A32),Output!$C:$AQ,6,FALSE) ->  | J32: =VLOOKUP(CONCATENATE("OSUPJEUNEACCEPTREGECO_"&A32),Output!$C:$AQ,6,FALSE) ->  | K32: =VLOOKUP(CONCATENATE("OSUPREGECO_"&A32),Output!$C:$AQ,6,FALSE) ->  | M32: =ROUND(VLOOKUP("OSUPJEUNEREGECO_"&A32,Output!$C:$AQ,7,FALSE)/VLOOKUP("OSUPREGECO_"&A32,Output!$C:$AQ,6,FALSE),3) ->  | O32: =ROUND(VLOOKUP("OSUPJEUNEREGECO_"&$A32,Output!$C:$AQ,12,FALSE)/VLOOKUP("OSUPREGECO_"&A32,Output!$C:$AQ,6,FALSE),3) ->  | R32: =ROUND(VLOOKUP("OSUPVIEUXTOTREGECO_"&$A32,Output!$C:$AQ,7,FALSE)/VLOOKUP("OSUPREGECO_"&A32,Output!$C:$AQ,6,FALSE),3) ->  | T32: =ROUND(VLOOKUP("OSUPVIEUXTOTREGECO_"&$A32,Output!$C:$AQ,12,FALSE)/VLOOKUP("OSUPREGECO_"&A32,Output!$C:$AQ,6,FALSE),3) ->  | W32: 0 | AA32: =Tableaux!$O$33 -> 07152 | AB32: 0
G33: =VLOOKUP(CONCATENATE("OSUPVIEUXALERTEREGECO_"&A33),Output!$C:$AQ,6,FALSE) ->  | H33: =VLOOKUP(CONCATENATE("OSUPVIEUXACCEPTREGECO_"&A33),Output!$C:$AQ,6,FALSE) ->  | I33: =VLOOKUP(CONCATENATE("OSUPJEUNEALERTEREGECO_"&A33),Output!$C:$AQ,6,FALSE) ->  | J33: =VLOOKUP(CONCATENATE("OSUPJEUNEACCEPTREGECO_"&A33),Output!$C:$AQ,6,FALSE) ->  | K33: =VLOOKUP(CONCATENATE("OSUPREGECO_"&A33),Output!$C:$AQ,6,FALSE) ->  | M33: =ROUND(VLOOKUP("OSUPJEUNEREGECO_"&A33,Output!$C:$AQ,7,FALSE)/VLOOKUP("OSUPREGECO_"&A33,Output!$C:$AQ,6,FALSE),3) ->  | O33: =ROUND(VLOOKUP("OSUPJEUNEREGECO_"&$A33,Output!$C:$AQ,12,FALSE)/VLOOKUP("OSUPREGECO_"&A33,Output!$C:$AQ,6,FALSE),3) ->  | R33: =ROUND(VLOOKUP("OSUPVIEUXTOTREGECO_"&$A33,Output!$C:$AQ,7,FALSE)/VLOOKUP("OSUPREGECO_"&A33,Output!$C:$AQ,6,FALSE),3) ->  | T33: =ROUND(VLOOKUP("OSUPVIEUXTOTREGECO_"&$A33,Output!$C:$AQ,12,FALSE)/VLOOKUP("OSUPREGECO_"&A33,Output!$C:$AQ,6,FALSE),3) ->  | W33: 0 | AA33: =Tableaux!$O$33 -> 07152 | AB33: =W33 -> 0
G34: =VLOOKUP(CONCATENATE("OSUPVIEUXALERTEREGECO_"&A34),Output!$C:$AQ,6,FALSE) ->  | H34: =VLOOKUP(CONCATENATE("OSUPVIEUXACCEPTREGECO_"&A34),Output!$C:$AQ,6,FALSE) ->  | I34: =VLOOKUP(CONCATENATE("OSUPJEUNEALERTEREGECO_"&A34),Output!$C:$AQ,6,FALSE) ->  | J34: =VLOOKUP(CONCATENATE("OSUPJEUNEACCEPTREGECO_"&A34),Output!$C:$AQ,6,FALSE) ->  | K34: =VLOOKUP(CONCATENATE("OSUPREGECO_"&A34),Output!$C:$AQ,6,FALSE) ->  | M34: =ROUND(VLOOKUP("OSUPJEUNEREGECO_"&A34,Output!$C:$AQ,7,FALSE)/VLOOKUP("OSUPREGECO_"&A34,Output!$C:$AQ,6,FALSE),3) ->  | O34: =ROUND(VLOOKUP("OSUPJEUNEREGECO_"&$A34,Output!$C:$AQ,12,FALSE)/VLOOKUP("OSUPREGECO_"&A34,Output!$C:$AQ,6,FALSE),3) ->  | R34: =ROUND(VLOOKUP("OSUPVIEUXTOTREGECO_"&$A34,Output!$C:$AQ,7,FALSE)/VLOOKUP("OSUPREGECO_"&A34,Output!$C:$AQ,6,FALSE),3) ->  | T34: =ROUND(VLOOKUP("OSUPVIEUXTOTREGECO_"&$A34,Output!$C:$AQ,12,FALSE)/VLOOKUP("OSUPREGECO_"&A34,Output!$C:$AQ,6,FALSE),3) ->  | W34: 0 | AA34: =Tableaux!$O$33 -> 07152 | AB34: 0
G35: =VLOOKUP(CONCATENATE("OSUPVIEUXALERTEREGECO_"&A35),Output!$C:$AQ,6,FALSE) ->  | H35: =VLOOKUP(CONCATENATE("OSUPVIEUXACCEPTREGECO_"&A35),Output!$C:$AQ,6,FALSE) ->  | I35: =VLOOKUP(CONCATENATE("OSUPJEUNEALERTEREGECO_"&A35),Output!$C:$AQ,6,FALSE) ->  | J35: =VLOOKUP(CONCATENATE("OSUPJEUNEACCEPTREGECO_"&A35),Output!$C:$AQ,6,FALSE) ->  | K35: =VLOOKUP(CONCATENATE("OSUPREGECO_"&A35),Output!$C:$AQ,6,FALSE) ->  | M35: =ROUND(VLOOKUP("OSUPJEUNEREGECO_"&A35,Output!$C:$AQ,7,FALSE)/VLOOKUP("OSUPREGECO_"&A35,Output!$C:$AQ,6,FALSE),3) ->  | O35: =ROUND(VLOOKUP("OSUPJEUNEREGECO_"&$A35,Output!$C:$AQ,12,FALSE)/VLOOKUP("OSUPREGECO_"&A35,Output!$C:$AQ,6,FALSE),3) ->  | R35: =ROUND(VLOOKUP("OSUPVIEUXTOTREGECO_"&$A35,Output!$C:$AQ,7,FALSE)/VLOOKUP("OSUPREGECO_"&A35,Output!$C:$AQ,6,FALSE),3) ->  | T35: =ROUND(VLOOKUP("OSUPVIEUXTOTREGECO_"&$A35,Output!$C:$AQ,12,FALSE)/VLOOKUP("OSUPREGECO_"&A35,Output!$C:$AQ,6,FALSE),3) ->  | W35: 0 | AA35: =Tableaux!$O$33 -> 07152 | AB35: 0
G36: =VLOOKUP(CONCATENATE("OSUPVIEUXALERTEREGECO_"&A36),Output!$C:$AQ,6,FALSE) ->  | H36: =VLOOKUP(CONCATENATE("OSUPVIEUXACCEPTREGECO_"&A36),Output!$C:$AQ,6,FALSE) ->  | I36: =VLOOKUP(CONCATENATE("OSUPJEUNEALERTEREGECO_"&A36),Output!$C:$AQ,6,FALSE) ->  | J36: =VLOOKUP(CONCATENATE("OSUPJEUNEACCEPTREGECO_"&A36),Output!$C:$AQ,6,FALSE) ->  | K36: =VLOOKUP(CONCATENATE("OSUPREGECO_"&A36),Output!$C:$AQ,6,FALSE) ->  | M36: =ROUND(VLOOKUP("OSUPJEUNEREGECO_"&A36,Output!$C:$AQ,7,FALSE)/VLOOKUP("OSUPREGECO_"&A36,Output!$C:$AQ,6,FALSE),3) ->  | O36: =ROUND(VLOOKUP("OSUPJEUNEREGECO_"&$A36,Output!$C:$AQ,12,FALSE)/VLOOKUP("OSUPREGECO_"&A36,Output!$C:$AQ,6,FALSE),3) ->  | R36: =ROUND(VLOOKUP("OSUPVIEUXTOTREGECO_"&$A36,Output!$C:$AQ,7,FALSE)/VLOOKUP("OSUPREGECO_"&A36,Output!$C:$AQ,6,FALSE),3) ->  | T36: =ROUND(VLOOKUP("OSUPVIEUXTOTREGECO_"&$A36,Output!$C:$AQ,12,FALSE)/VLOOKUP("OSUPREGECO_"&A36,Output!$C:$AQ,6,FALSE),3) ->  | W36: 0 | AA36: =Tableaux!$O$33 -> 07152 | AB36: 0
G37: =VLOOKUP(CONCATENATE("OSUPVIEUXALERTEREGECO_"&A37),Output!$C:$AQ,6,FALSE) ->  | H37: =VLOOKUP(CONCATENATE("OSUPVIEUXACCEPTREGECO_"&A37),Output!$C:$AQ,6,FALSE) ->  | I37: =VLOOKUP(CONCATENATE("OSUPJEUNEALERTEREGECO_"&A37),Output!$C:$AQ,6,FALSE) ->  | J37: =VLOOKUP(CONCATENATE("OSUPJEUNEACCEPTREGECO_"&A37),Output!$C:$AQ,6,FALSE) ->  | K37: =VLOOKUP(CONCATENATE("OSUPREGECO_"&A37),Output!$C:$AQ,6,FALSE) ->  | M37: =ROUND(VLOOKUP("OSUPJEUNEREGECO_"&A37,Output!$C:$AQ,7,FALSE)/VLOOKUP("OSUPREGECO_"&A37,Output!$C:$AQ,6,FALSE),3) ->  | O37: =ROUND(VLOOKUP("OSUPJEUNEREGECO_"&$A37,Output!$C:$AQ,12,FALSE)/VLOOKUP("OSUPREGECO_"&A37,Output!$C:$AQ,6,FALSE),3) ->  | R37: =ROUND(VLOOKUP("OSUPVIEUXTOTREGECO_"&$A37,Output!$C:$AQ,7,FALSE)/VLOOKUP("OSUPREGECO_"&A37,Output!$C:$AQ,6,FALSE),3) ->  | T37: =ROUND(VLOOKUP("OSUPVIEUXTOTREGECO_"&$A37,Output!$C:$AQ,12,FALSE)/VLOOKUP("OSUPREGECO_"&A37,Output!$C:$AQ,6,FALSE),3) ->  | W37: 0 | AA37: =Tableaux!$O$33 -> 07152 | AB37: 0
G38: =VLOOKUP(CONCATENATE("OSUPVIEUXALERTEREGECO_"&A38),Output!$C:$AQ,6,FALSE) ->  | H38: =VLOOKUP(CONCATENATE("OSUPVIEUXACCEPTREGECO_"&A38),Output!$C:$AQ,6,FALSE) ->  | I38: =VLOOKUP(CONCATENATE("OSUPJEUNEALERTEREGECO_"&A38),Output!$C:$AQ,6,FALSE) ->  | J38: =VLOOKUP(CONCATENATE("OSUPJEUNEACCEPTREGECO_"&A38),Output!$C:$AQ,6,FALSE) ->  | K38: =VLOOKUP(CONCATENATE("OSUPREGECO_"&A38),Output!$C:$AQ,6,FALSE) ->  | M38: =ROUND(VLOOKUP("OSUPJEUNEREGECO_"&A38,Output!$C:$AQ,7,FALSE)/VLOOKUP("OSUPREGECO_"&A38,Output!$C:$AQ,6,FALSE),3) ->  | O38: =ROUND(VLOOKUP("OSUPJEUNEREGECO_"&$A38,Output!$C:$AQ,12,FALSE)/VLOOKUP("OSUPREGECO_"&A38,Output!$C:$AQ,6,FALSE),3) ->  | R38: =ROUND(VLOOKUP("OSUPVIEUXTOTREGECO_"&$A38,Output!$C:$AQ,7,FALSE)/VLOOKUP("OSUPREGECO_"&A38,Output!$C:$AQ,6,FALSE),3) ->  | T38: =ROUND(VLOOKUP("OSUPVIEUXTOTREGECO_"&$A38,Output!$C:$AQ,12,FALSE)/VLOOKUP("OSUPREGECO_"&A38,Output!$C:$AQ,6,FALSE),3) ->  | W38: 0 | AA38: =Tableaux!$O$33 -> 07152 | AB38: 0
G39: =VLOOKUP(CONCATENATE("OSUPVIEUXALERTEREGECO_"&A39),Output!$C:$AQ,6,FALSE) ->  | H39: =VLOOKUP(CONCATENATE("OSUPVIEUXACCEPTREGECO_"&A39),Output!$C:$AQ,6,FALSE) ->  | I39: =VLOOKUP(CONCATENATE("OSUPJEUNEALERTEREGECO_"&A39),Output!$C:$AQ,6,FALSE) ->  | J39: =VLOOKUP(CONCATENATE("OSUPJEUNEACCEPTREGECO_"&A39),Output!$C:$AQ,6,FALSE) ->  | K39: =VLOOKUP(CONCATENATE("OSUPREGECO_"&A39),Output!$C:$AQ,6,FALSE) ->  | M39: =ROUND(VLOOKUP("OSUPJEUNEREGECO_"&A39,Output!$C:$AQ,7,FALSE)/VLOOKUP("OSUPREGECO_"&A39,Output!$C:$AQ,6,FALSE),3) ->  | O39: =ROUND(VLOOKUP("OSUPJEUNEREGECO_"&$A39,Output!$C:$AQ,12,FALSE)/VLOOKUP("OSUPREGECO_"&A39,Output!$C:$AQ,6,FALSE),3) ->  | R39: =ROUND(VLOOKUP("OSUPVIEUXTOTREGECO_"&$A39,Output!$C:$AQ,7,FALSE)/VLOOKUP("OSUPREGECO_"&A39,Output!$C:$AQ,6,FALSE),3) ->  | T39: =ROUND(VLOOKUP("OSUPVIEUXTOTREGECO_"&$A39,Output!$C:$AQ,12,FALSE)/VLOOKUP("OSUPREGECO_"&A39,Output!$C:$AQ,6,FALSE),3) ->  | W39: 0 | AA39: =Tableaux!$O$33 -> 07152 | AB39: 0
G40: =VLOOKUP(CONCATENATE("OSUPVIEUXALERTEREGECO_"&A40),Output!$C:$AQ,6,FALSE) ->  | H40: =VLOOKUP(CONCATENATE("OSUPVIEUXACCEPTREGECO_"&A40),Output!$C:$AQ,6,FALSE) ->  | I40: =VLOOKUP(CONCATENATE("OSUPJEUNEALERTEREGECO_"&A40),Output!$C:$AQ,6,FALSE) ->  | J40: =VLOOKUP(CONCATENATE("OSUPJEUNEACCEPTREGECO_"&A40),Output!$C:$AQ,6,FALSE) ->  | K40: =VLOOKUP(CONCATENATE("OSUPREGECO_"&A40),Output!$C:$AQ,6,FALSE) ->  | M40: =ROUND(VLOOKUP("OSUPJEUNEREGECO_"&A40,Output!$C:$AQ,7,FALSE)/VLOOKUP("OSUPREGECO_"&A40,Output!$C:$AQ,6,FALSE),3) ->  | O40: =ROUND(VLOOKUP("OSUPJEUNEREGECO_"&$A40,Output!$C:$AQ,12,FALSE)/VLOOKUP("OSUPREGECO_"&A40,Output!$C:$AQ,6,FALSE),3) ->  | R40: =ROUND(VLOOKUP("OSUPVIEUXTOTREGECO_"&$A40,Output!$C:$AQ,7,FALSE)/VLOOKUP("OSUPREGECO_"&A40,Output!$C:$AQ,6,FALSE),3) ->  | T40: =ROUND(VLOOKUP("OSUPVIEUXTOTREGECO_"&$A40,Output!$C:$AQ,12,FALSE)/VLOOKUP("OSUPREGECO_"&A40,Output!$C:$AQ,6,FALSE),3) ->  | W40: 0 | AA40: =Tableaux!$O$33 -> 07152 | AB40: 0
G41: =VLOOKUP(CONCATENATE("OSUPVIEUXALERTEREGECO_"&A41),Output!$C:$AQ,6,FALSE) ->  | H41: =VLOOKUP(CONCATENATE("OSUPVIEUXACCEPTREGECO_"&A41),Output!$C:$AQ,6,FALSE) ->  | I41: =VLOOKUP(CONCATENATE("OSUPJEUNEALERTEREGECO_"&A41),Output!$C:$AQ,6,FALSE) ->  | J41: =VLOOKUP(CONCATENATE("OSUPJEUNEACCEPTREGECO_"&A41),Output!$C:$AQ,6,FALSE) ->  | K41: =VLOOKUP(CONCATENATE("OSUPREGECO_"&A41),Output!$C:$AQ,6,FALSE) ->  | M41: =ROUND(VLOOKUP("OSUPJEUNEREGECO_"&A41,Output!$C:$AQ,7,FALSE)/VLOOKUP("OSUPREGECO_"&A41,Output!$C:$AQ,6,FALSE),3) ->  | O41: =ROUND(VLOOKUP("OSUPJEUNEREGECO_"&$A41,Output!$C:$AQ,12,FALSE)/VLOOKUP("OSUPREGECO_"&A41,Output!$C:$AQ,6,FALSE),3) ->  | R41: =ROUND(VLOOKUP("OSUPVIEUXTOTREGECO_"&$A41,Output!$C:$AQ,7,FALSE)/VLOOKUP("OSUPREGECO_"&A41,Output!$C:$AQ,6,FALSE),3) ->  | T41: =ROUND(VLOOKUP("OSUPVIEUXTOTREGECO_"&$A41,Output!$C:$AQ,12,FALSE)/VLOOKUP("OSUPREGECO_"&A41,Output!$C:$AQ,6,FALSE),3) ->  | W41: 0 | AA41: =Tableaux!$O$33 -> 07152 | AB41: 0
G42: =VLOOKUP(CONCATENATE("OSUPVIEUXALERTEREGECO_"&A42),Output!$C:$AQ,6,FALSE) ->  | H42: =VLOOKUP(CONCATENATE("OSUPVIEUXACCEPTREGECO_"&A42),Output!$C:$AQ,6,FALSE) ->  | I42: =VLOOKUP(CONCATENATE("OSUPJEUNEALERTEREGECO_"&A42),Output!$C:$AQ,6,FALSE) ->  | J42: =VLOOKUP(CONCATENATE("OSUPJEUNEACCEPTREGECO_"&A42),Output!$C:$AQ,6,FALSE) ->  | K42: =VLOOKUP(CONCATENATE("OSUPREGECO_"&A42),Output!$C:$AQ,6,FALSE) ->  | M42: =ROUND(VLOOKUP("OSUPJEUNEREGECO_"&A42,Output!$C:$AQ,7,FALSE)/VLOOKUP("OSUPREGECO_"&A42,Output!$C:$AQ,6,FALSE),3) ->  | O42: =ROUND(VLOOKUP("OSUPJEUNEREGECO_"&$A42,Output!$C:$AQ,12,FALSE)/VLOOKUP("OSUPREGECO_"&A42,Output!$C:$AQ,6,FALSE),3) ->  | R42: =ROUND(VLOOKUP("OSUPVIEUXTOTREGECO_"&$A42,Output!$C:$AQ,7,FALSE)/VLOOKUP("OSUPREGECO_"&A42,Output!$C:$AQ,6,FALSE),3) ->  | T42: =ROUND(VLOOKUP("OSUPVIEUXTOTREGECO_"&$A42,Output!$C:$AQ,12,FALSE)/VLOOKUP("OSUPREGECO_"&A42,Output!$C:$AQ,6,FALSE),3) ->  | W42: 0 | AA42: =Tableaux!$O$33 -> 07152 | AB42: 0

Sheet Output
C1: 1 | D1: 2 | E1: 3 | F1: 4 | G1: 5 | H1: 6 | I1: 7 | J1: 8 | K1: 9 | L1: 10 | M1: 11 | N1: 12 | O1: 13 | P1: 14 | Q1: 15 | R1: 16 | S1: 17 | T1: 18 | U1: 19 | V1: 20 | W1: 21 | X1: 22 | Y1: 23 | Z1: 24 | AA1: 25 | AB1: 26 | AC1: 27 | AD1: 28 | AE1: 29 | AF1: 30 | AG1: 31 | AH1: 32 | AI1: 33 | AJ1: 34 | AK1: 35 | AL1: 36 | AM1: 37 | AN1: 38 | AO1: 39 | AP1: 40 | AQ1: 41 | AR1: 42
A2: Record | B2: GROUP | C2: NAME | D2: DESCRIPTIO | E2: ATTRIBUTE | F2: MINIMUM | G2: MAXIMUM | H2: PERIOD0 | I2: PERIOD1 | J2: PERIOD2 | K2: PERIOD3 | L2: PERIOD4 | M2: PERIOD5 | N2: PERIOD6 | O2: PERIOD7 | P2: PERIOD8 | Q2: PERIOD9 | R2: PERIOD10 | S2: PERIOD11 | T2: PERIOD12 | U2: PERIOD13 | V2: PERIOD14 | W2: PERIOD15 | X2: PERIOD16 | Y2: PERIOD17 | Z2: PERIOD18 | AA2: PERIOD19 | AB2: PERIOD20 | AC2: PERIOD21 | AD2: PERIOD22 | AE2: PERIOD23 | AF2: PERIOD24 | AG2: PERIOD25 | AH2: PERIOD26 | AI2: PERIOD27 | AJ2: PERIOD28 | AK2: PERIOD29 | AL2: PERIOD30 | AM2: Moyenne P2 à P6 | AN2: Moyenne P7 à P11 | AO2: Moyenne P12 à P20 | AP2: Moyenne P21 à P30 | AQ2: Moyenne P2 à P30 | AR2: Moyenne P2 à P3
B3: <Non regroupÚ(s)> | C3: OSUPTOT | D3: Superficie Totale | F3: 570221.6 | G3: 570221.6 | H3: 570221.6 | I3: 570221.6 | J3: 570221.6 | K3: 570221.6 | L3: 570221.6 | M3: 570221.6 | N3: 570221.6 | O3: 570221.6 | P3: 570221.6 | Q3: 570221.6 | R3: 570221.6 | S3: 570221.6 | T3: 570221.6 | U3: 570221.6 | V3: 570221.6 | W3: 570221.6 | X3: 570221.6 | Y3: 570221.6 | Z3: 570221.6 | AA3: 570221.6 | AB3: 570221.6 | AC3: 570221.6 | AD3: 570221.6 | AE3: 570221.6 | AF3: 570221.6 | AG3: 570221.6 | AH3: 570221.6 | AI3: 570221.6 | AJ3: 570221.6 | AK3: 570221.6 | AL3: 570221.6 | AM3: =AVERAGE(J3:N3) -> 570221.6 | AN3: =AVERAGE(O3:S3) -> 570221.6 | AO3: =AVERAGE(T3:AB3) -> 570221.6 | AP3: =AVERAGE(AC3:AL3) -> 570221.6 | AQ3: =AVERAGE(J3:AL3) -> 570221.6 | AR3: =AVERAGE(J3:K3) -> 570221.6
B4: <Non regroupÚ(s)> | C4: OSUPINC | D4: Superficie InclusActions par courbe | F4: 410265.91 | G4: 424725.3 | H4: 424725.3 | I4: 422694.68 | J4: 420802.42 | K4: 419054.95 | L4: 417674.22 | M4: 416511.78 | N4: 415498.35 | O4: 414387.58 | P4: 413719.12 | Q4: 413214.91 | R4: 412774.32 | S4: 412472.95 | T4: 412203.53 | U4: 411924.13 | V4: 411742 | W4: 411681.9 | X4: 411436.33 | Y4: 411256.77 | Z4: 411214.47 | AA4: 411150.81 | AB4: 410920.3 | AC4: 410847.1 | AD4: 410611.23 | AE4: 410418.32 | AF4: 410404.57 | AG4: 410335.24 | AH4: 410320.91 | AI4: 410307.16 | AJ4: 410293.41 | AK4: 410279.66 | AL4: 410265.91 | AM4: =AVERAGE(J4:N4) -> 417908.344 | AN4: =AVERAGE(O4:S4) -> 413313.776 | AO4: =AVERAGE(T4:AB4) -> 411503.36 | AP4: =AVERAGE(AC4:AL4) -> 410408.351 | AQ4: =AVERAGE(J4:AL4) -> 412542.219 | AR4: =AVERAGE(J4:K4) -> 419928.685
B5: <Non regroupÚ(s)> | C5: OSUPregECO | D5: Superficie Disponible aux RÚsultats ╔cologiques | F5: 483666.41 | G5: 498125.8 | H5: 498125.8 | I5: 496095.18 | J5: 494202.92 | K5: 492455.45 | L5: 491074.72 | M5: 489912.28 | N5: 488898.85 | O5: 487788.08 | P5: 487119.62 | Q5: 486615.41 | R5: 486174.82 | S5: 485873.45 | T5: 485604.03 | U5: 485324.63 | V5: 485142.5 | W5: 485082.4 | X5: 484836.83 | Y5: 484657.27 | Z5: 484614.97 | AA5: 484551.31 | AB5: 484320.8 | AC5: 484247.6 | AD5: 484011.73 | AE5: 483818.82 | AF5: 483805.07 | AG5: 483735.74 | AH5: 483721.41 | AI5: 483707.66 | AJ5: 483693.91 | AK5: 483680.16 | AL5: 483666.41 | AM5: 491308.844 | AN5: 486714.276 | AO5: 484903.86 | AP5: 483808.851 | AQ5: 485942.719 | AR5: 493329.185
B6: <Non regroupÚ(s)> | C6: OSUPEXIN | D6: Superficie ExcluActionsInclus | F6: 73400.5 | G6: 73400.5 | H6: 73400.5 | I6: 73400.5 | J6: 73400.5 | K6: 73400.5 | L6: 73400.5 | M6: 73400.5 | N6: 73400.5 | O6: 73400.5 | P6: 73400.5 | Q6: 73400.5 | R6: 73400.5 | S6: 73400.5 | T6: 73400.5 | U6: 73400.5 | V6: 73400.5 | W6: 73400.5 | X6: 73400.5 | Y6: 73400.5 | Z6: 73400.5 | AA6: 73400.5 | AB6: 73400.5 | AC6: 73400.5 | AD6: 73400.5 | AE6: 73400.5 | AF6: 73400.5 | AG6: 73400.5 | AH6: 73400.5 | AI6: 73400.5 | AJ6: 73400.5 | AK6: 73400.5 | AL6: 73400.5 | AM6: 73400.5 | AN6: 73400.5 | AO6: 73400.5 | AP6: 73400.5 | AQ6: 73400.5 | AR6: 73400.5
B7: <Non regroupÚ(s)> | C7: OSUPEXTI | D7: Superficie Improductive | F7: 12733.2 | G7: 12733.2 | H7: 12733.2 | I7: 12733.2 | J7: 12733.2 | K7: 12733.2 | L7: 12733.2 | M7: 12733.2 | N7: 12733.2 | O7: 12733.2 | P7: 12733.2 | Q7: 12733.2 | R7: 12733.2 | S7: 12733.2 | T7: 12733.2 | U7: 12733.2 | V7: 12733.2 | W7: 12733.2 | X7: 12733.2 | Y7: 12733.2 | Z7: 12733.2 | AA7: 12733.2 | AB7: 12733.2 | AC7: 12733.2 | AD7: 12733.2 | AE7: 12733.2 | AF7: 12733.2 | AG7: 12733.2 | AH7: 12733.2 | AI7: 12733.2 | AJ7: 12733.2 | AK7: 12733.2 | AL7: 12733.2 | AM7: 12733.2 | AN7: 12733.2 | AO7: 12733.2 | AP7: 12733.2 | AQ7: 12733.2 | AR7: 12733.2
B8: <Non regroupÚ(s)> | C8: OSUPLOCK | D8: Superficie Sous Verrous | F8: 85493.1 | G8: 249793.97 | H8: 229916.6 | I8: 249793.97 | J8: 162477.14 | K8: 131588.88 | L8: 85493.1 | M8: 86067.95 | N8: 101756.48 | O8: 107786.19 | P8: 110297.28 | Q8: 103015.96 | R8: 104724 | S8: 100379.38 | T8: 103003.62 | U8: 103263.37 | V8: 99449.33 | W8: 101621.58 | X8: 102757.23 | Y8: 107005.12 | Z8: 106390.85 | AA8: 109745.66 | AB8: 109462.69 | AC8: 106852.15 | AD8: 110660.46 | AE8: 106699.55 | AF8: 108231.22 | AG8: 110934.44 | AH8: 116690.23 | AI8: 119022.31 | AJ8: 124480.47 | AK8: 124184.96 | AL8: 129392.85 | AM8: 113476.71 | AN8: 105240.562 | AO8: 104744.3833 | AP8: 115714.864 | AQ8: 110118.4293 | AR8: 147033.01
B9: Economique | C9: oSupTcsdDEG_1_T100% | D9: oSupTcsdDEG_1_T100% | F9: 0 | G9: 4921.24 | H9: 0 | I9: 4921.24 | J9: 1900.58 | K9: 1850 | L9: 1993.16 | M9: 1942.65 | N9: 1850 | O9: 2845.7 | P9: 2750 | Q9: 2750 | R9: 2750 | S9: 2750 | T9: 2690.55 | U9: 2750 | V9: 2750 | W9: 2254.16 | X9: 2750 | Y9: 2750 | Z9: 2750 | AA9: 2750 | AB9: 2750 | AC9: 2702.13 | AD9: 2602.16 | AE9: 2750 | AF9: 2588.96 | AG9: 2100 | AH9: 2030.53 | AI9: 1850 | AJ9: 1850 | AK9: 1850 | AL9: 1850 | AM9: 1907.278 | AN9: 2769.14 | AO9: 2688.301111 | AP9: 2217.378 | AQ9: 2405.192414 | AR9: 1875.29
B10: Economique | C10: oSupTcsdDEG_2_T100% | D10: oSupTcsdDEG_2_T100% | F10: 0 | G10: 800 | H10: 0 | I10: 0 | J10: 700 | K10: 800 | L10: 800 | M10: 800 | N10: 800 | O10: 0 | P10: 382.63 | Q10: 76.21 | R10: 0 | S10: 246.56 | T10: 139.37 | U10: 8.48 | V10: 127.31 | W10: 0 | X10: 0 | Y10: 0 | Z10: 0 | AA10: 0 | AB10: 0 | AC10: 0 | AD10: 0 | AE10: 0 | AF10: 0 | AG10: 0 | AH10: 0 | AI10: 0 | AJ10: 0 | AK10: 0 | AL10: 0 | AM10: 780 | AN10: 141.08 | AO10: 30.57333333 | AP10: 0 | AQ10: 168.2951724 | AR10: 750
B11: Economique | C11: oSupDEG_1_T100% | D11: oSupDEG_1_T100% | F11: 0 | G11: 4921.24 | H11: 0 | I11: 4921.24 | J11: 1900.58 | K11: 1850 | L11: 1993.16 | M11: 1942.65 | N11: 1850 | O11: 2845.7 | P11: 2750 | Q11: 2750 | R11: 2750 | S11: 2750 | T11: 2690.55 | U11: 2750 | V11: 2750 | W11: 2254.16 | X11: 2750 | Y11: 2750 | Z11: 2750 | AA11: 2750 | AB11: 2750 | AC11: 2702.13 | AD11: 2602.16 | AE11: 2750 | AF11: 2588.96 | AG11: 2100 | AH11: 2030.53 | AI11: 1850 | AJ11: 1850 | AK11: 1850 | AL11: 1850 | AM11: 1907.278 | AN11: 2769.14 | AO11: 2688.301111 | AP11: 2217.378 | AQ11: 2405.192414 | AR11: 1875.29
B12: Economique | C12: oSupDEG_2_T100% | D12: oSupDEG_2_T100% | F12: 0 | G12: 800 | H12: 0 | I12: 0 | J12: 700 | K12: 800 | L12: 800 | M12: 800 | N12: 800 | O12: 0 | P12: 382.63 | Q12: 76.21 | R12: 0 | S12: 246.56 | T12: 139.37 | U12: 8.48 | V12: 127.31 | W12: 0 | X12: 0 | Y12: 0 | Z12: 0 | AA12: 0 | AB12: 0 | AC12: 0 | AD12: 0 | AE12: 0 | AF12: 0 | AG12: 0 | AH12: 0 | AI12: 0 | AJ12: 0 | AK12: 0 | AL12: 0 | AM12: 780 | AN12: 141.08 | AO12: 30.57333333 | AP12: 0 | AQ12: 168.2951724 | AR12: 750
B13: Economique | C13: oSupDEG_1 | D13: oSupDEG_1 | F13: 0 | G13: 4921.24 | H13: 0 | I13: 4921.24 | J13: 1900.58 | K13: 1850 | L13: 1993.16 | M13: 1942.65 | N13: 1850 | O13: 2845.7 | P13: 2750 | Q13: 2750 | R13: 2750 | S13: 2750 | T13: 2690.55 | U13: 2750 | V13: 2750 | W13: 2254.16 | X13: 2750 | Y13: 2750 | Z13: 2750 | AA13: 2750 | AB13: 2750 | AC13: 2702.13 | AD13: 2602.16 | AE13: 2750 | AF13: 2588.96 | AG13: 2100 | AH13: 2030.53 | AI13: 1850 | AJ13: 1850 | AK13: 1850 | AL13: 1850 | AM13: 1907.278 | AN13: 2769.14 | AO13: 2688.301111 | AP13: 2217.378 | AQ13: 2405.192414 | AR13: 1875.29
B14: Economique | C14: oSupDEG_2 | D14: oSupDEG_2 | F14: 0 | G14: 800 | H14: 0 | I14: 0 | J14: 700 | K14: 800 | L14: 800 | M14: 800 | N14: 800 | O14: 0 | P14: 382.63 | Q14: 76.21 | R14: 0 | S14: 246.56 | T14: 139.37 | U14: 8.48 | V14: 127.31 | W14: 0 | X14: 0 | Y14: 0 | Z14: 0 | AA14: 0 | AB14: 0 | AC14: 0 | AD14: 0 | AE14: 0 | AF14: 0 | AG14: 0 | AH14: 0 | AI14: 0 | AJ14: 0 | AK14: 0 | AL14: 0 | AM14: 780 | AN14: 141.08 | AO14: 30.57333333 | AP14: 0 | AQ14: 168.2951724 | AR14: 750
B15: Economique | C15: oSupTcsdSCA_PART_T100% | D15: oSupTcsdSCA_PART_T100% | F15: 0 | G15: 2749.12 | H15: 0 | I15: 0 | J15: 1200 | K15: 1200 | L15: 1200 | M15: 1200 | N15: 1200 | O15: 500 | P15: 750 | Q15: 826.21 | R15: 750 | S15: 750 | T15: 889.37 | U15: 1258.89 | V15: 2749.12 | W15: 1067.78 | X15: 750 | Y15: 750 | Z15: 750 | AA15: 750 | AB15: 750 | AC15: 750 | AD15: 750 | AE15: 750 | AF15: 1953.97 | AG15: 1420.83 | AH15: 750 | AI15: 750 | AJ15: 750 | AK15: 750 | AL15: 500 | AM15: 1200 | AN15: 715.242 | AO15: 1079.462222 | AP15: 912.48 | AQ15: 979.867931 | AR15: 1200
B16: Economique | C16: oSupTcsdSCA_REG_T100% | D16: oSupTcsdSCA_REG_T100% | F16: 0 | G16: 3937.74 | H16: 0 | I16: 3238.7 | J16: 2394.4 | K16: 1879.4 | L16: 1850 | M16: 1850 | N16: 1850 | O16: 2500 | P16: 2500 | Q16: 2500 | R16: 3937.74 | S16: 3801.66 | T16: 2500 | U16: 2500 | V16: 2962.21 | W16: 2004.16 | X16: 2500 | Y16: 2500 | Z16: 2500 | AA16: 2500 | AB16: 2500 | AC16: 2452.13 | AD16: 2352.16 | AE16: 2500 | AF16: 2338.96 | AG16: 1850 | AH16: 1850 | AI16: 1850 | AJ16: 1850 | AK16: 1850 | AL16: 1850 | AM16: 1964.76 | AN16: 3047.88 | AO16: 2496.263333 | AP16: 2074.325 | AQ16: 2354.235172 | AR16: 2136.9
B17: Economique | C17: oSupSCA_PART_T100% | D17: oSupSCA_PART_T100% | F17: 0 | G17: 2749.12 | H17: 0 | I17: 0 | J17: 1200 | K17: 1200 | L17: 1200 | M17: 1200 | N17: 1200 | O17: 500 | P17: 750 | Q17: 826.21 | R17: 750 | S17: 750 | T17: 889.37 | U17: 1258.89 | V17: 2749.12 | W17: 1067.78 | X17: 750 | Y17: 750 | Z17: 750 | AA17: 750 | AB17: 750 | AC17: 750 | AD17: 750 | AE17: 750 | AF17: 1953.97 | AG17: 1420.83 | AH17: 750 | AI17: 750 | AJ17: 750 | AK17: 750 | AL17: 500 | AM17: 1200 | AN17: 715.242 | AO17: 1079.462222 | AP17: 912.48 | AQ17: 979.867931 | AR17: 1200
B18: Economique | C18: oSupSCA_REG_T100% | D18: oSupSCA_REG_T100% | F18: 0 | G18: 3937.74 | H18: 0 | I18: 3238.7 | J18: 2394.4 | K18: 1879.4 | L18: 1850 | M18: 1850 | N18: 1850 | O18: 2500 | P18: 2500 | Q18: 2500 | R18: 3937.74 | S18: 3801.66 | T18: 2500 | U18: 2500 | V18: 2962.21 | W18: 2004.16 | X18: 2500 | Y18: 2500 | Z18: 2500 | AA18: 2500 | AB18: 2500 | AC18: 2452.13 | AD18: 2352.16 | AE18: 2500 | AF18: 2338.96 | AG18: 1850 | AH18: 1850 | AI18: 1850 | AJ18: 1850 | AK18: 1850 | AL18: 1850 | AM18: 1964.76 | AN18: 3047.88 | AO18: 2496.263333 | AP18: 2074.325 | AQ18: 2354.235172 | AR18: 2136.9
B19: Economique | C19: oSupSCA_PART | D19: oSupSCA_PART | F19: 0 | G19: 2749.12 | H19: 0 | I19: 0 | J19: 1200 | K19: 1200 | L19: 1200 | M19: 1200 | N19: 1200 | O19: 500 | P19: 750 | Q19: 826.21 | R19: 750 | S19: 750 | T19: 889.37 | U19: 1258.89 | V19: 2749.12 | W19: 1067.78 | X19: 750 | Y19: 750 | Z19: 750 | AA19: 750 | AB19: 750 | AC19: 750 | AD19: 750 | AE19: 750 | AF19: 1953.97 | AG19: 1420.83 | AH19: 750 | AI19: 750 | AJ19: 750 | AK19: 750 | AL19: 500 | AM19: 1200 | AN19: 715.242 | AO19: 1079.462222 | AP19: 912.48 | AQ19: 979.867931 | AR19: 1200
B20: Economique | C20: oSupSCA_REG | D20: oSupSCA_REG | F20: 0 | G20: 3937.74 | H20: 0 | I20: 3238.7 | J20: 2394.4 | K20: 1879.4 | L20: 1850 | M20: 1850 | N20: 1850 | O20: 2500 | P20: 2500 | Q20: 2500 | R20: 3937.74 | S20: 3801.66 | T20: 2500 | U20: 2500 | V20: 2962.21 | W20: 2004.16 | X20: 2500 | Y20: 2500 | Z20: 2500 | AA20: 2500 | AB20: 2500 | AC20: 2452.13 | AD20: 2352.16 | AE20: 2500 | AF20: 2338.96 | AG20: 1850 | AH20: 1850 | AI20: 1850 | AJ20: 1850 | AK20: 1850 | AL20: 1850 | AM20: 1964.76 | AN20: 3047.88 | AO20: 2496.263333 | AP20: 2074.325 | AQ20: 2354.235172 | AR20: 2136.9
B21: Economique | C21: oSupTcsdREG_T100% | D21: oSupTcsdREG_T100% | F21: 0 | G21: 800 | H21: 0 | I21: 0 | J21: 700 | K21: 800 | L21: 800 | M21: 800 | N21: 800 | O21: 0 | P21: 382.63 | Q21: 76.21 | R21: 0 | S21: 246.56 | T21: 139.37 | U21: 8.48 | V21: 127.31 | W21: 0 | X21: 0 | Y21: 0 | Z21: 0 | AA21: 0 | AB21: 0 | AC21: 0 | AD21: 0 | AE21: 0 | AF21: 0 | AG21: 0 | AH21: 0 | AI21: 0 | AJ21: 0 | AK21: 0 | AL21: 0 | AM21: 780 | AN21: 141.08 | AO21: 30.57333333 | AP21: 0 | AQ21: 168.2951724 | AR21: 750
B22: Economique | C22: oSupREG_T100% | D22: oSupREG_T100% | F22: 0 | G22: 800 | H22: 0 | I22: 0 | J22: 700 | K22: 800 | L22: 800 | M22: 800 | N22: 800 | O22: 0 | P22: 382.63 | Q22: 76.21 | R22: 0 | S22: 246.56 | T22: 139.37 | U22: 8.48 | V22: 127.31 | W22: 0 | X22: 0 | Y22: 0 | Z22: 0 | AA22: 0 | AB22: 0 | AC22: 0 | AD22: 0 | AE22: 0 | AF22: 0 | AG22: 0 | AH22: 0 | AI22: 0 | AJ22: 0 | AK22: 0 | AL22: 0 | AM22: 780 | AN22: 141.08 | AO22: 30.57333333 | AP22: 0 | AQ22: 168.2951724 | AR22: 750
B23: Economique | C23: oSupREG | D23: oSupREG | F23: 0 | G23: 800 | H23: 0 | I23: 0 | J23: 700 | K23: 800 | L23: 800 | M23: 800 | N23: 800 | O23: 0 | P23: 382.63 | Q23: 76.21 | R23: 0 | S23: 246.56 | T23: 139.37 | U23: 8.48 | V23: 127.31 | W23: 0 | X23: 0 | Y23: 0 | Z23: 0 | AA23: 0 | AB23: 0 | AC23: 0 | AD23: 0 | AE23: 0 | AF23: 0 | AG23: 0 | AH23: 0 | AI23: 0 | AJ23: 0 | AK23: 0 | AL23: 0 | AM23: 780 | AN23: 141.08 | AO23: 30.57333333 | AP23: 0 | AQ23: 168.2951724 | AR23: 750
B24: Economique | C24: oSupTcsdELAG_T100% | D24: oSupTcsdELAG_T100% | F24: 0 | G24: 700 | H24: 0 | I24: 0 | J24: 700 | K24: 700 | L24: 700 | M24: 700 | N24: 700 | O24: 0 | P24: 0 | Q24: 76.21 | R24: 0 | S24: 0 | T24: 139.37 | U24: 8.48 | V24: 127.31 | W24: 0 | X24: 0 | Y24: 0 | Z24: 0 | AA24: 0 | AB24: 0 | AC24: 0 | AD24: 0 | AE24: 0 | AF24: 0 | AG24: 0 | AH24: 0 | AI24: 0 | AJ24: 0 | AK24: 0 | AL24: 0 | AM24: 700 | AN24: 15.242 | AO24: 30.57333333 | AP24: 0 | AQ24: 132.8058621 | AR24: 700
B25: Economique | C25: oSupELAG_T100% | D25: oSupELAG_T100% | F25: 0 | G25: 700 | H25: 0 | I25: 0 | J25: 700 | K25: 700 | L25: 700 | M25: 700 | N25: 700 | O25: 0 | P25: 0 | Q25: 76.21 | R25: 0 | S25: 0 | T25: 139.37 | U25: 8.48 | V25: 127.31 | W25: 0 | X25: 0 | Y25: 0 | Z25: 0 | AA25: 0 | AB25: 0 | AC25: 0 | AD25: 0 | AE25: 0 | AF25: 0 | AG25: 0 | AH25: 0 | AI25: 0 | AJ25: 0 | AK25: 0 | AL25: 0 | AM25: 700 | AN25: 15.242 | AO25: 30.57333333 | AP25: 0 | AQ25: 132.8058621 | AR25: 700
B26: Economique | C26: oSupELAG | D26: oSupELAG | F26: 0 | G26: 700 | H26: 0 | I26: 0 | J26: 700 | K26: 700 | L26: 700 | M26: 700 | N26: 700 | O26: 0 | P26: 0 | Q26: 76.21 | R26: 0 | S26: 0 | T26: 139.37 | U26: 8.48 | V26: 127.31 | W26: 0 | X26: 0 | Y26: 0 | Z26: 0 | AA26: 0 | AB26: 0 | AC26: 0 | AD26: 0 | AE26: 0 | AF26: 0 | AG26: 0 | AH26: 0 | AI26: 0 | AJ26: 0 | AK26: 0 | AL26: 0 | AM26: 700 | AN26: 15.242 | AO26: 30.57333333 | AP26: 0 | AQ26: 132.8058621 | AR26: 700
B27: Economique | C27: oSupActCPICP_T100% | D27: oSupActCPICP_T100% | F27: 0 | G27: 15232.71 | H27: 0 | I27: 12532.75 | J27: 4996.59 | K27: 6612.91 | L27: 4057.09 | M27: 7568.71 | N27: 5203.19 | O27: 5009.47 | P27: 4771.43 | Q27: 7424.75 | R27: 6951.92 | S27: 8032.61 | T27: 10364.35 | U27: 7820.81 | V27: 7580.22 | W27: 14299.98 | X27: 7338.38 | Y27: 12027.66 | Z27: 11621.93 | AA27: 10549.36 | AB27: 8526 | AC27: 11993.53 | AD27: 8971.53 | AE27: 12816.42 | AF27: 13409.45 | AG27: 10462.46 | AH27: 8599.07 | AI27: 14008.36 | AJ27: 10818.38 | AK27: 11418.16 | AL27: 15232.71 | AM27: 5687.698 | AN27: 6438.036 | AO27: 10014.29889 | AP27: 11773.007 | AQ27: 9258.187241 | AR27: 5804.75
B28: Economique | C28: oSupActCPIRL_FIN_T100% | D28: oSupActCPIRL_FIN_T100% | F28: 0 | G28: 12516.49 | H28: 0 | I28: 250 | J28: 250 | K28: 250 | L28: 250 | M28: 250 | N28: 250 | O28: 193.29 | P28: 4348.13 | Q28: 5992.25 | R28: 9092.53 | S28: 6737.28 | T28: 5778.76 | U28: 7263.42 | V28: 8347.72 | W28: 4005.89 | X28: 6865.41 | Y28: 3985.82 | Z28: 5091.56 | AA28: 5440.34 | AB28: 6376.55 | AC28: 3859.68 | AD28: 6159.3 | AE28: 8348.23 | AF28: 10429.42 | AG28: 12516.49 | AH28: 12279.09 | AI28: 12223.55 | AJ28: 11373.83 | AK28: 10024.6 | AL28: 4391.34 | AM28: 250 | AN28: 5272.696 | AO28: 5906.163333 | AP28: 9160.553 | AQ28: 5943.947586 | AR28: 250
B29: Economique | C29: oSupActCPIRL_INI_T100% | D29: oSupActCPIRL_INI_T100% | F29: 0 | G29: 13068.8 | H29: 0 | I29: 8921.75 | J29: 10645.3 | K29: 8466.95 | L29: 11947.7 | M29: 9077.48 | N29: 9507.83 | O29: 13068.8 | P29: 10782.03 | Q29: 8639.05 | R29: 5131.24 | S29: 6910.09 | T29: 6188.45 | U29: 8578.69 | V29: 6051.13 | W29: 5973.02 | X29: 9307.7 | Y29: 4210.65 | Z29: 4575.6 | AA29: 6610.74 | AB29: 8248.62 | AC29: 5618.41 | AD29: 8310.18 | AE29: 4656.27 | AF29: 3768.53 | AG29: 5164.19 | AH29: 12162.92 | AI29: 8523.99 | AJ29: 11476.5 | AK29: 8167.79 | AL29: 7898.03 | AM29: 9929.052 | AN29: 8906.242 | AO29: 6638.288889 | AP29: 7574.681 | AQ29: 7919.582069 | AR29: 9556.125
B30: Economique | C30: oSupCPICP_T100% | D30: oSupCPICP_T100% | F30: 0 | G30: 15232.71 | H30: 0 | I30: 12532.75 | J30: 4996.59 | K30: 6612.91 | L30: 4057.09 | M30: 7568.71 | N30: 5203.19 | O30: 5009.47 | P30: 4771.43 | Q30: 7424.75 | R30: 6951.92 | S30: 8032.61 | T30: 10364.35 | U30: 7820.81 | V30: 7580.22 | W30: 14299.98 | X30: 7338.38 | Y30: 12027.66 | Z30: 11621.93 | AA30: 10549.36 | AB30: 8526 | AC30: 11993.53 | AD30: 8971.53 | AE30: 12816.42 | AF30: 13409.45 | AG30: 10462.46 | AH30: 8599.07 | AI30: 14008.36 | AJ30: 10818.38 | AK30: 11418.16 | AL30: 15232.71 | AM30: 5687.698 | AN30: 6438.036 | AO30: 10014.29889 | AP30: 11773.007 | AQ30: 9258.187241 | AR30: 5804.75
B31: Economique | C31: oSupCPIRL_FIN_T100% | D31: oSupCPIRL_FIN_T100% | F31: 0 | G31: 12516.49 | H31: 0 | I31: 250 | J31: 250 | K31: 250 | L31: 250 | M31: 250 | N31: 250 | O31: 193.29 | P31: 4348.13 | Q31: 5992.25 | R31: 9092.53 | S31: 6737.28 | T31: 5778.76 | U31: 7263.42 | V31: 8347.72 | W31: 4005.89 | X31: 6865.41 | Y31: 3985.82 | Z31: 5091.56 | AA31: 5440.34 | AB31: 6376.55 | AC31: 3859.68 | AD31: 6159.3 | AE31: 8348.23 | AF31: 10429.42 | AG31: 12516.49 | AH31: 12279.09 | AI31: 12223.55 | AJ31: 11373.83 | AK31: 10024.6 | AL31: 4391.34 | AM31: 250 | AN31: 5272.696 | AO31: 5906.163333 | AP31: 9160.553 | AQ31: 5943.947586 | AR31: 250
B32: Economique | C32: oSupCPIRL_INI_T100% | D32: oSupCPIRL_INI_T100% | F32: 0 | G32: 13068.8 | H32: 0 | I32: 8921.75 | J32: 10645.3 | K32: 8466.95 | L32: 11947.7 | M32: 9077.48 | N32: 9507.83 | O32: 13068.8 | P32: 10782.03 | Q32: 8639.05 | R32: 5131.24 | S32: 6910.09 | T32: 6188.45 | U32: 8578.69 | V32: 6051.13 | W32: 5973.02 | X32: 9307.7 | Y32: 4210.65 | Z32: 4575.6 | AA32: 6610.74 | AB32: 8248.62 | AC32: 5618.41 | AD32: 8310.18 | AE32: 4656.27 | AF32: 3768.53 | AG32: 5164.19 | AH32: 12162.92 | AI32: 8523.99 | AJ32: 11476.5 | AK32: 8167.79 | AL32: 7898.03 | AM32: 9929.052 | AN32: 8906.242 | AO32: 6638.288889 | AP32: 7574.681 | AQ32: 7919.582069 | AR32: 9556.125
B33: Economique | C33: oSupCPICP | D33: oSupCPICP | F33: 0 | G33: 15232.71 | H33: 0 | I33: 12532.75 | J33: 4996.59 | K33: 6612.91 | L33: 4057.09 | M33: 7568.71 | N33: 5203.19 | O33: 5009.47 | P33: 4771.43 | Q33: 7424.75 | R33: 6951.92 | S33: 8032.61 | T33: 10364.35 | U33: 7820.81 | V33: 7580.22 | W33: 14299.98 | X33: 7338.38 | Y33: 12027.66 | Z33: 11621.93 | AA33: 10549.36 | AB33: 8526 | AC33: 11993.53 | AD33: 8971.53 | AE33: 12816.42 | AF33: 13409.45 | AG33: 10462.46 | AH33: 8599.07 | AI33: 14008.36 | AJ33: 10818.38 | AK33: 11418.16 | AL33: 15232.71 | AM33: 5687.698 | AN33: 6438.036 | AO33: 10014.29889 | AP33: 11773.007 | AQ33: 9258.187241 | AR33: 5804.75
B34: Economique | C34: oSupCPIRL_FIN | D34: oSupCPIRL_FIN | F34: 0 | G34: 12516.49 | H34: 0 | I34: 250 | J34: 250 | K34: 250 | L34: 250 | M34: 250 | N34: 250 | O34: 193.29 | P34: 4348.13 | Q34: 5992.25 | R34: 9092.53 | S34: 6737.28 | T34: 5778.76 | U34: 7263.42 | V34: 8347.72 | W34: 4005.89 | X34: 6865.41 | Y34: 3985.82 | Z34: 5091.56 | AA34: 5440.34 | AB34: 6376.55 | AC34: 3859.68 | AD34: 6159.3 | AE34: 8348.23 | AF34: 10429.42 | AG34: 12516.49 | AH34: 12279.09 | AI34: 12223.55 | AJ34: 11373.83 | AK34: 10024.6 | AL34: 4391.34 | AM34: 250 | AN34: 5272.696 | AO34: 5906.163333 | AP34: 9160.553 | AQ34: 5943.947586 | AR34: 250
B35: Economique | C35: oSupCPIRL_INI | D35: oSupCPIRL_INI | F35: 0 | G35: 13068.8 | H35: 0 | I35: 8921.75 | J35: 10645.3 | K35: 8466.95 | L35: 11947.7 | M35: 9077.48 | N35: 9507.83 | O35: 13068.8 | P35: 10782.03 | Q35: 8639.05 | R35: 5131.24 | S35: 6910.09 | T35: 6188.45 | U35: 8578.69 | V35: 6051.13 | W35: 5973.02 | X35: 9307.7 | Y35: 4210.65 | Z35: 4575.6 | AA35: 6610.74 | AB35: 8248.62 | AC35: 5618.41 | AD35: 8310.18 | AE35: 4656.27 | AF35: 3768.53 | AG35: 5164.19 | AH35: 12162.92 | AI35: 8523.99 | AJ35: 11476.5 | AK35: 8167.79 | AL35: 7898.03 | AM35: 9929.052 | AN35: 8906.242 | AO35: 6638.288889 | AP35: 7574.681 | AQ35: 7919.582069 | AR35: 9556.125
B36: Economique | C36: oSupActCT_T100% | D36: oSupActCT_T100% | F36: 0 | G36: 21350.54 | H36: 0 | I36: 8788.62 | J36: 21350.54 | K36: 19048.84 | L36: 14899.55 | M36: 14917.83 | N36: 14606.52 | O36: 14030.89 | P36: 13060.01 | Q36: 12787.79 | R36: 11322.45 | S36: 13052.16 | T36: 13480.47 | U36: 10220.33 | V36: 11271.25 | W36: 11978.43 | X36: 11164.66 | Y36: 13650.18 | Z36: 12946.69 | AA36: 11514.6 | AB36: 11779.61 | AC36: 13223.5 | AD36: 10903.65 | AE36: 8470.55 | AF36: 6837.21 | AG36: 6426.11 | AH36: 6312.45 | AI36: 4830.47 | AJ36: 6053.27 | AK36: 10255.78 | AL36: 13626.48 | AM36: 16964.656 | AN36: 12850.66 | AO36: 12000.69111 | AP36: 8693.947 | AQ36: 11862.8369 | AR36: 20199.69
B37: Economique | C37: oSupCT_T100% | D37: oSupCT_T100% | F37: 0 | G37: 21350.54 | H37: 0 | I37: 8788.62 | J37: 21350.54 | K37: 19048.84 | L37: 14899.55 | M37: 14917.83 | N37: 14606.52 | O37: 14030.89 | P37: 13060.01 | Q37: 12787.79 | R37: 11322.45 | S37: 13052.16 | T37: 13480.47 | U37: 10220.33 | V37: 11271.25 | W37: 11978.43 | X37: 11164.66 | Y37: 13650.18 | Z37: 12946.69 | AA37: 11514.6 | AB37: 11779.61 | AC37: 13223.5 | AD37: 10903.65 | AE37: 8470.55 | AF37: 6837.21 | AG37: 6426.11 | AH37: 6312.45 | AI37: 4830.47 | AJ37: 6053.27 | AK37: 10255.78 | AL37: 13626.48 | AM37: 16964.656 | AN37: 12850.66 | AO37: 12000.69111 | AP37: 8693.947 | AQ37: 11862.8369 | AR37: 20199.69
B38: Economique | C38: oSupCT | D38: oSupCT | F38: 0 | G38: 21350.54 | H38: 0 | I38: 8788.62 | J38: 21350.54 | K38: 19048.84 | L38: 14899.55 | M38: 14917.83 | N38: 14606.52 | O38: 14030.89 | P38: 13060.01 | Q38: 12787.79 | R38: 11322.45 | S38: 13052.16 | T38: 13480.47 | U38: 10220.33 | V38: 11271.25 | W38: 11978.43 | X38: 11164.66 | Y38: 13650.18 | Z38: 12946.69 | AA38: 11514.6 | AB38: 11779.61 | AC38: 13223.5 | AD38: 10903.65 | AE38: 8470.55 | AF38: 6837.21 | AG38: 6426.11 | AH38: 6312.45 | AI38: 4830.47 | AJ38: 6053.27 | AK38: 10255.78 | AL38: 13626.48 | AM38: 16964.656 | AN38: 12850.66 | AO38: 12000.69111 | AP38: 8693.947 | AQ38: 11862.8369 | AR38: 20199.69
B39: Economique | C39: oSupActPL_SEPM_E_T100% | D39: oSupActPL_SEPM_E_T100% | F39: 0 | G39: 2309.45 | H39: 0 | I39: 1064.19 | J39: 1746.87 | K39: 1685.18 | L39: 1706.84 | M39: 1669.38 | N39: 1850 | O39: 2154.3 | P39: 1846.11 | Q39: 1086.21 | R39: 1252.67 | S39: 2250 | T39: 2309.45 | U39: 2161.17 | V39: 2216.83 | W39: 1744.33 | X39: 2250 | Y39: 2250 | Z39: 0 | AA39: 2250 | AB39: 2232.52 | AC39: 2200.05 | AD39: 1104.83 | AE39: 2250 | AF39: 2088.96 | AG39: 1600 | AH39: 1485.81 | AI39: 1566.47 | AJ39: 1850 | AK39: 1850 | AL39: 1850 | AM39: 1731.654 | AN39: 1717.858 | AO39: 1934.922222 | AP39: 1784.612 | AQ39: 1810.62 | AR39: 1716.025
B40: Economique | C40: oSupActPL_SEPM_I_T100% | D40: oSupActPL_SEPM_I_T100% | F40: 0 | G40: 2500 | H40: 0 | I40: 2174.51 | J40: 103.13 | K40: 164.82 | L40: 143.16 | M40: 180.62 | N40: 0 | O40: 345.7 | P40: 653.89 | Q40: 1413.79 | R40: 1247.33 | S40: 250 | T40: 190.55 | U40: 338.83 | V40: 283.17 | W40: 259.83 | X40: 250 | Y40: 250 | Z40: 2500 | AA40: 250 | AB40: 267.48 | AC40: 252.08 | AD40: 1247.33 | AE40: 250 | AF40: 250 | AG40: 250 | AH40: 364.19 | AI40: 283.53 | AJ40: 0 | AK40: 0 | AL40: 0 | AM40: 118.346 | AN40: 782.142 | AO40: 509.9844444 | AP40: 289.713 | AQ40: 413.4286207 | AR40: 133.975
B41: Economique | C41: oSupPL_SEPM_E_T100% | D41: oSupPL_SEPM_E_T100% | F41: 0 | G41: 2309.45 | H41: 0 | I41: 1064.19 | J41: 1746.87 | K41: 1685.18 | L41: 1706.84 | M41: 1669.38 | N41: 1850 | O41: 2154.3 | P41: 1846.11 | Q41: 1086.21 | R41: 1252.67 | S41: 2250 | T41: 2309.45 | U41: 2161.17 | V41: 2216.83 | W41: 1744.33 | X41: 2250 | Y41: 2250 | Z41: 0 | AA41: 2250 | AB41: 2232.52 | AC41: 2200.05 | AD41: 1104.83 | AE41: 2250 | AF41: 2088.96 | AG41: 1600 | AH41: 1485.81 | AI41: 1566.47 | AJ41: 1850 | AK41: 1850 | AL41: 1850 | AM41: 1731.654 | AN41: 1717.858 | AO41: 1934.922222 | AP41: 1784.612 | AQ41: 1810.62 | AR41: 1716.025
B42: Economique | C42: oSupPL_SEPM_I_T100% | D42: oSupPL_SEPM_I_T100% | F42: 0 | G42: 2500 | H42: 0 | I42: 2174.51 | J42: 103.13 | K42: 164.82 | L42: 143.16 | M42: 180.62 | N42: 0 | O42: 345.7 | P42: 653.89 | Q42: 1413.79 | R42: 1247.33 | S42: 250 | T42: 190.55 | U42: 338.83 | V42: 283.17 | W42: 259.83 | X42: 250 | Y42: 250 | Z42: 2500 | AA42: 250 | AB42: 267.48 | AC42: 252.08 | AD42: 1247.33 | AE42: 250 | AF42: 250 | AG42: 250 | AH42: 364.19 | AI42: 283.53 | AJ42: 0 | AK42: 0 | AL42: 0 | AM42: 118.346 | AN42: 782.142 | AO42: 509.9844444 | AP42: 289.713 | AQ42: 413.4286207 | AR42: 133.975
B43: Economique | C43: oSupPL_SEPM_E | D43: oSupPL_SEPM_E | F43: 0 | G43: 2309.45 | H43: 0 | I43: 1064.19 | J43: 1746.87 | K43: 1685.18 | L43: 1706.84 | M43: 1669.38 | N43: 1850 | O43: 2154.3 | P43: 1846.11 | Q43: 1086.21 | R43: 1252.67 | S43: 2250 | T43: 2309.45 | U43: 2161.17 | V43: 2216.83 | W43: 1744.33 | X43: 2250 | Y43: 2250 | Z43: 0 | AA43: 2250 | AB43: 2232.52 | AC43: 2200.05 | AD43: 1104.83 | AE43: 2250 | AF43: 2088.96 | AG43: 1600 | AH43: 1485.81 | AI43: 1566.47 | AJ43: 1850 | AK43: 1850 | AL43: 1850 | AM43: 1731.654 | AN43: 1717.858 | AO43: 1934.922222 | AP43: 1784.612 | AQ43: 1810.62 | AR43: 1716.025
B44: Economique | C44: oSupPL_SEPM_I | D44: oSupPL_SEPM_I | F44: 0 | G44: 2500 | H44: 0 | I44: 2174.51 | J44: 103.13 | K44: 164.82 | L44: 143.16 | M44: 180.62 | N44: 0 | O44: 345.7 | P44: 653.89 | Q44: 1413.79 | R44: 1247.33 | S44: 250 | T44: 190.55 | U44: 338.83 | V44: 283.17 | W44: 259.83 | X44: 250 | Y44: 250 | Z44: 2500 | AA44: 250 | AB44: 267.48 | AC44: 252.08 | AD44: 1247.33 | AE44: 250 | AF44: 250 | AG44: 250 | AH44: 364.19 | AI44: 283.53 | AJ44: 0 | AK44: 0 | AL44: 0 | AM44: 118.346 | AN44: 782.142 | AO44: 509.9844444 | AP44: 289.713 | AQ44: 413.4286207 | AR44: 133.975
B45: Economique | C45: oSupActEPC_2_T100% | D45: oSupActEPC_2_T100% | F45: 0 | G45: 1500 | H45: 0 | I45: 156.66 | J45: 1500 | K45: 1199.48 | L45: 1500 | M45: 1500 | N45: 879.12 | O45: 1500 | P45: 1500 | Q45: 1500 | R45: 1500 | S45: 1500 | T45: 1500 | U45: 1500 | V45: 1500 | W45: 1500 | X45: 1500 | Y45: 1500 | Z45: 1500 | AA45: 1500 | AB45: 1500 | AC45: 1500 | AD45: 1500 | AE45: 1500 | AF45: 1500 | AG45: 1500 | AH45: 1500 | AI45: 1500 | AJ45: 1500 | AK45: 1500 | AL45: 1500 | AM45: 1315.72 | AN45: 1500 | AO45: 1500 | AP45: 1500 | AQ45: 1468.227586 | AR45: 1349.74
B46: Economique | C46: oSupEPC_2_T100% | D46: oSupEPC_2_T100% | F46: 0 | G46: 1500 | H46: 0 | I46: 156.66 | J46: 1500 | K46: 1199.48 | L46: 1500 | M46: 1500 | N46: 879.12 | O46: 1500 | P46: 1500 | Q46: 1500 | R46: 1500 | S46: 1500 | T46: 1500 | U46: 1500 | V46: 1500 | W46: 1500 | X46: 1500 | Y46: 1500 | Z46: 1500 | AA46: 1500 | AB46: 1500 | AC46: 1500 | AD46: 1500 | AE46: 1500 | AF46: 1500 | AG46: 1500 | AH46: 1500 | AI46: 1500 | AJ46: 1500 | AK46: 1500 | AL46: 1500 | AM46: 1315.72 | AN46: 1500 | AO46: 1500 | AP46: 1500 | AQ46: 1468.227586 | AR46: 1349.74
B47: Economique | C47: oSupEPC_2 | D47: oSupEPC_2 | F47: 0 | G47: 1500 | H47: 0 | I47: 156.66 | J47: 1500 | K47: 1199.48 | L47: 1500 | M47: 1500 | N47: 879.12 | O47: 1500 | P47: 1500 | Q47: 1500 | R47: 1500 | S47: 1500 | T47: 1500 | U47: 1500 | V47: 1500 | W47: 1500 | X47: 1500 | Y47: 1500 | Z47: 1500 | AA47: 1500 | AB47: 1500 | AC47: 1500 | AD47: 1500 | AE47: 1500 | AF47: 1500 | AG47: 1500 | AH47: 1500 | AI47: 1500 | AJ47: 1500 | AK47: 1500 | AL47: 1500 | AM47: 1315.72 | AN47: 1500 | AO47: 1500 | AP47: 1500 | AQ47: 1468.227586 | AR47: 1349.74
B48: Economique | C48: oSupActEC_SEPM_T100% | D48: oSupActEC_SEPM_T100% | F48: 0 | G48: 2500 | H48: 0 | I48: 0 | J48: 75 | K48: 0 | L48: 0 | M48: 0 | N48: 1649.5 | O48: 0 | P48: 197.13 | Q48: 52.54 | R48: 1847.36 | S48: 50.58 | T48: 87.97 | U48: 143.16 | V48: 92.65 | W48: 0 | X48: 345.7 | Y48: 1247.33 | Z48: 250 | AA48: 250 | AB48: 338.83 | AC48: 223.72 | AD48: 259.83 | AE48: 250 | AF48: 250 | AG48: 2500 | AH48: 250 | AI48: 250 | AJ48: 250 | AK48: 1247.33 | AL48: 250 | AM48: 344.9 | AN48: 429.522 | AO48: 306.1822222 | AP48: 573.088 | AQ48: 426.1596552 | AR48: 37.5
B49: Economique | C49: oSupEC_SEPM_T100% | D49: oSupEC_SEPM_T100% | F49: 0 | G49: 2500 | H49: 0 | I49: 0 | J49: 75 | K49: 0 | L49: 0 | M49: 0 | N49: 1649.5 | O49: 0 | P49: 197.13 | Q49: 52.54 | R49: 1847.36 | S49: 50.58 | T49: 87.97 | U49: 143.16 | V49: 92.65 | W49: 0 | X49: 345.7 | Y49: 1247.33 | Z49: 250 | AA49: 250 | AB49: 338.83 | AC49: 223.72 | AD49: 259.83 | AE49: 250 | AF49: 250 | AG49: 2500 | AH49: 250 | AI49: 250 | AJ49: 250 | AK49: 1247.33 | AL49: 250 | AM49: 344.9 | AN49: 429.522 | AO49: 306.1822222 | AP49: 573.088 | AQ49: 426.1596552 | AR49: 37.5
B50: Economique | C50: oSupEC_SEPM | D50: oSupEC_SEPM | F50: 0 | G50: 2500 | H50: 0 | I50: 0 | J50: 75 | K50: 0 | L50: 0 | M50: 0 | N50: 1649.5 | O50: 0 | P50: 197.13 | Q50: 52.54 | R50: 1847.36 | S50: 50.58 | T50: 87.97 | U50: 143.16 | V50: 92.65 | W50: 0 | X50: 345.7 | Y50: 1247.33 | Z50: 250 | AA50: 250 | AB50: 338.83 | AC50: 223.72 | AD50: 259.83 | AE50: 250 | AF50: 250 | AG50: 2500 | AH50: 250 | AI50: 250 | AJ50: 250 | AK50: 1247.33 | AL50: 250 | AM50: 344.9 | AN50: 429.522 | AO50: 306.1822222 | AP50: 573.088 | AQ50: 426.1596552 | AR50: 37.5
B51: Economique | C51: oSupActNETT_T100% | D51: oSupActNETT_T100% | F51: 0 | G51: 2325.03 | H51: 0 | I51: 0 | J51: 2325.03 | K51: 0 | L51: 0 | M51: 0 | N51: 0 | O51: 0 | P51: 0 | Q51: 0 | R51: 0 | S51: 0 | T51: 0 | U51: 0 | V51: 0 | W51: 0 | X51: 0 | Y51: 0 | Z51: 0 | AA51: 0 | AB51: 0 | AC51: 0 | AD51: 0 | AE51: 0 | AF51: 0 | AG51: 0 | AH51: 0 | AI51: 0 | AJ51: 0 | AK51: 0 | AL51: 0 | AM51: 465.006 | AN51: 0 | AO51: 0 | AP51: 0 | AQ51: 80.17344828 | AR51: 1162.515
B52: Economique | C52: oSupTcsdNETT_T100% | D52: oSupTcsdNETT_T100% | F52: 0 | G52: 1406.2 | H52: 0 | I52: 0 | J52: 1200 | K52: 1300 | L52: 1406.2 | M52: 1300 | N52: 1300 | O52: 500 | P52: 882.63 | Q52: 576.21 | R52: 500 | S52: 746.56 | T52: 639.37 | U52: 508.48 | V52: 627.31 | W52: 500 | X52: 500 | Y52: 500 | Z52: 500 | AA52: 500 | AB52: 500 | AC52: 500 | AD52: 500 | AE52: 500 | AF52: 500 | AG52: 500 | AH52: 500 | AI52: 532.54 | AJ52: 557.58 | AK52: 1133.33 | AL52: 500 | AM52: 1301.24 | AN52: 641.08 | AO52: 530.5733333 | AP52: 572.345 | AQ52: 696.9037931 | AR52: 1250
B53: Economique | C53: oSupTcadNETT_T100% | D53: oSupTcadNETT_T100% | F53: 0 | G53: 3238.7 | H53: 0 | I53: 0 | J53: 0 | K53: 3238.7 | L53: 1850 | M53: 1850 | N53: 1850 | O53: 1850 | P53: 1850 | Q53: 2500 | R53: 2500 | S53: 2500 | T53: 2500 | U53: 2500 | V53: 2500 | W53: 2500 | X53: 2500 | Y53: 2004.16 | Z53: 2500 | AA53: 2500 | AB53: 2500 | AC53: 2500 | AD53: 2500 | AE53: 2452.13 | AF53: 2352.16 | AG53: 2500 | AH53: 2338.96 | AI53: 1850 | AJ53: 1850 | AK53: 1850 | AL53: 1850 | AM53: 1757.74 | AN53: 2240 | AO53: 2444.906667 | AP53: 2204.325 | AQ53: 2208.141724 | AR53: 1619.35
B54: Economique | C54: oSupNETT_T100% | D54: oSupNETT_T100% | F54: 0 | G54: 4538.7 | H54: 0 | I54: 0 | J54: 3525.03 | K54: 4538.7 | L54: 3256.2 | M54: 3150 | N54: 3150 | O54: 2350 | P54: 2732.63 | Q54: 3076.21 | R54: 3000 | S54: 3246.56 | T54: 3139.37 | U54: 3008.48 | V54: 3127.31 | W54: 3000 | X54: 3000 | Y54: 2504.16 | Z54: 3000 | AA54: 3000 | AB54: 3000 | AC54: 3000 | AD54: 3000 | AE54: 2952.13 | AF54: 2852.16 | AG54: 3000 | AH54: 2838.96 | AI54: 2382.54 | AJ54: 2407.58 | AK54: 2983.33 | AL54: 2350 | AM54: 3523.986 | AN54: 2881.08 | AO54: 2975.48 | AP54: 2776.67 | AQ54: 2985.218966 | AR54: 4031.865
B55: Economique | C55: oSupNETT | D55: oSupNETT | F55: 0 | G55: 4538.7 | H55: 0 | I55: 0 | J55: 3525.03 | K55: 4538.7 | L55: 3256.2 | M55: 3150 | N55: 3150 | O55: 2350 | P55: 2732.63 | Q55: 3076.21 | R55: 3000 | S55: 3246.56 | T55: 3139.37 | U55: 3008.48 | V55: 3127.31 | W55: 3000 | X55: 3000 | Y55: 2504.16 | Z55: 3000 | AA55: 3000 | AB55: 3000 | AC55: 3000 | AD55: 3000 | AE55: 2952.13 | AF55: 2852.16 | AG55: 3000 | AH55: 2838.96 | AI55: 2382.54 | AJ55: 2407.58 | AK55: 2983.33 | AL55: 2350 | AM55: 3523.986 | AN55: 2881.08 | AO55: 2975.48 | AP55: 2776.67 | AQ55: 2985.218966 | AR55: 4031.865
B56: Economique | C56: oTauxDEG | D56: oTauxDEG | F56: 0 | G56: 8120041.05 | H56: 0 | I56: 8120041.05 | J56: 4290964.34 | K56: 4372500 | L56: 4608714.27 | M56: 4525372.95 | N56: 4372500 | O56: 4695404.91 | P56: 5168847.7 | Q56: 4663249.29 | R56: 4537500 | S56: 4944325.09 | T56: 4669372.47 | U56: 4551490.72 | V56: 4747565.8 | W56: 3719368.45 | X56: 4537500 | Y56: 4537500 | Z56: 4537500 | AA56: 4537500 | AB56: 4537500 | AC56: 4458514.69 | AD56: 4293562.18 | AE56: 4537500 | AF56: 4271782.1 | AG56: 3465000 | AH56: 3350375.97 | AI56: 3052500 | AJ56: 3052500 | AK56: 3052500 | AL56: 3052500 | AM56: 4434010.312 | AN56: 4801865.398 | AO56: 4486144.16 | AP56: 3658673.494 | AQ56: 4246255.549 | AR56: 4331732.17
B57: Economique | C57: oTauxSCA | D57: oTauxSCA | F57: 0 | G57: 3807411.47 | H57: 0 | I57: 1878446 | J57: 2300752 | K57: 2002052 | L57: 1985000 | M57: 1985000 | N57: 1985000 | O57: 1830000 | P57: 2020000 | Q57: 2077920.89 | R57: 2853887.69 | S57: 2774964.31 | T57: 2125924.86 | U57: 2406757.39 | V57: 3807411.47 | W57: 1973929.34 | X57: 2020000 | Y57: 2020000 | Z57: 2020000 | AA57: 2020000 | AB57: 2020000 | AC57: 1992235.47 | AD57: 1934252.16 | AE57: 2020000 | AF57: 2841615.08 | AG57: 2152829.05 | AH57: 1643000 | AI57: 1643000 | AJ57: 1643000 | AK57: 1643000 | AL57: 1453000 | AM57: 2051560.8 | AN57: 2311354.578 | AO57: 2268224.784 | AP57: 1896593.176 | AQ57: 2110156.266 | AR57: 2151402
B58: Economique | C58: oTauxREG | D58: oTauxREG | F58: 0 | G58: 440000 | H58: 0 | I58: 0 | J58: 385000 | K58: 440000 | L58: 440000 | M58: 440000 | N58: 440000 | O58: 0 | P58: 210449.23 | Q58: 41916.43 | R58: 0 | S58: 135608.36 | T58: 76656.15 | U58: 4663.57 | V58: 70021.93 | W58: 0 | X58: 0 | Y58: 0 | Z58: 0 | AA58: 0 | AB58: 0 | AC58: 0 | AD58: 0 | AE58: 0 | AF58: 0 | AG58: 0 | AH58: 0 | AI58: 0 | AJ58: 0 | AK58: 0 | AL58: 0 | AM58: 429000 | AN58: 77594.804 | AO58: 16815.73889 | AP58: 0 | AQ58: 92562.60931 | AR58: 412500
B59: Economique | C59: oTauxELA | D59: oTauxELA | F59: 0 | G59: 770000 | H59: 0 | I59: 0 | J59: 770000 | K59: 770000 | L59: 770000 | M59: 770000 | N59: 770000 | O59: 0 | P59: 0 | Q59: 83832.86 | R59: 0 | S59: 0 | T59: 153312.3 | U59: 9327.15 | V59: 140043.87 | W59: 0 | X59: 0 | Y59: 0 | Z59: 0 | AA59: 0 | AB59: 0 | AC59: 0 | AD59: 0 | AE59: 0 | AF59: 0 | AG59: 0 | AH59: 0 | AI59: 0 | AJ59: 0 | AK59: 0 | AL59: 0 | AM59: 770000 | AN59: 16766.572 | AO59: 33631.48 | AP59: 0 | AQ59: 146086.7648 | AR59: 770000
B60: Economique | C60: oTauxCPI | D60: oTauxCPI | F60: 0 | G60: 14431311 | H60: 0 | I60: 13497222.5 | J60: 10130310.41 | K60: 9640600.63 | L60: 10439213.48 | M60: 10623139.89 | N60: 9492157.84 | O60: 11761782.11 | P60: 10086817.95 | Q60: 10243017.87 | R60: 7609082.87 | S60: 9449328.37 | T60: 10364871.4 | U60: 10440208.4 | V60: 8602389.47 | W60: 12581915.12 | X60: 10639186.07 | Y60: 10037734.46 | Z60: 10038811 | AA60: 10758811 | AB60: 10642179.1 | AC60: 10960458.38 | AD60: 10950737.5 | AE60: 10809553.08 | AF60: 10570589.31 | AG60: 9737481.95 | AH60: 13308598.16 | AI60: 14116089.15 | AJ60: 14180280.7 | AK60: 12323313.58 | AL60: 14431311 | AM60: 10065084.45 | AN60: 9830005.834 | AO60: 10456234 | AP60: 12138841.28 | AQ60: 10861033.46 | AR60: 9885455.52
B61: Economique | C61: oTauxCT | D61: oTauxCT | F61: 0 | G61: 0 | H61: 0 | I61: 0 | J61: 0 | K61: 0 | L61: 0 | M61: 0 | N61: 0 | O61: 0 | P61: 0 | Q61: 0 | R61: 0 | S61: 0 | T61: 0 | U61: 0 | V61: 0 | W61: 0 | X61: 0 | Y61: 0 | Z61: 0 | AA61: 0 | AB61: 0 | AC61: 0 | AD61: 0 | AE61: 0 | AF61: 0 | AG61: 0 | AH61: 0 | AI61: 0 | AJ61: 0 | AK61: 0 | AL61: 0 | AM61: 0 | AN61: 0 | AO61: 0 | AP61: 0 | AQ61: 0 | AR61: 0
B62: Economique | C62: oTauxPL | D62: oTauxPL | F62: 0 | G62: 4938540.52 | H62: 0 | I62: 4938540.52 | J62: 2456500.46 | K62: 2476241.94 | L62: 2469311.25 | M62: 2481298.15 | N62: 2423500 | O62: 3385623.98 | P62: 3484243.84 | Q62: 3727411.77 | R62: 3674146.01 | S62: 3355000 | T62: 3335975.33 | U62: 3383425.6 | V62: 3365614.24 | W62: 2708598.09 | X62: 3355000 | Y62: 3355000 | Z62: 4075000 | AA62: 3355000 | AB62: 3360594.4 | AC62: 3292955.73 | AD62: 3480474.16 | AE62: 3355000 | AF62: 3144036.09 | AG62: 2503500 | AH62: 2540040.49 | AI62: 2514228.64 | AJ62: 2423500 | AK62: 2423500 | AL62: 2423500 | AM62: 2461370.36 | AN62: 3525285.12 | AO62: 3366023.073 | AP62: 2810073.511 | AQ62: 3045800.696 | AR62: 2466371.2
B63: Economique | C63: oTauxEPC | D63: oTauxEPC | F63: 0 | G63: 1740000 | H63: 0 | I63: 181729.08 | J63: 1740000 | K63: 1391394.43 | L63: 1740000 | M63: 1740000 | N63: 1019778.16 | O63: 1740000 | P63: 1740000 | Q63: 1740000 | R63: 1740000 | S63: 1740000 | T63: 1740000 | U63: 1740000 | V63: 1740000 | W63: 1740000 | X63: 1740000 | Y63: 1740000 | Z63: 1740000 | AA63: 1740000 | AB63: 1740000 | AC63: 1740000 | AD63: 1740000 | AE63: 1740000 | AF63: 1740000 | AG63: 1740000 | AH63: 1740000 | AI63: 1740000 | AJ63: 1740000 | AK63: 1740000 | AL63: 1740000 | AM63: 1526234.518 | AN63: 1740000 | AO63: 1740000 | AP63: 1740000 | AQ63: 1703143.882 | AR63: 1565697.215
B64: Economique | C64: oTauxEC | D64: oTauxEC | F64: 0 | G64: 3125000 | H64: 0 | I64: 0 | J64: 93750 | K64: 0 | L64: 0 | M64: 0 | N64: 2061875 | O64: 0 | P64: 246417.5 | Q64: 65677.5 | R64: 2309194.44 | S64: 63230.56 | T64: 109961.19 | U64: 178950.2 | V64: 115812.84 | W64: 0 | X64: 432124.93 | Y64: 1559164.09 | Z64: 312500 | AA64: 312500 | AB64: 423537.5 | AC64: 279646.74 | AD64: 324785 | AE64: 312500 | AF64: 312500 | AG64: 3125000 | AH64: 312500 | AI64: 312500 | AJ64: 312500 | AK64: 1559164.09 | AL64: 312500 | AM64: 431125 | AN64: 536904 | AO64: 382727.8611 | AP64: 716359.583 | AQ64: 532699.7097 | AR64: 46875
B65: Economique | C65: oTauxNET | D65: oTauxNET | F65: 0 | G65: 4811022 | H65: 0 | I65: 0 | J65: 3736533.79 | K65: 4811022 | L65: 3451572 | M65: 3339000 | N65: 3339000 | O65: 2491000 | P65: 2896593.07 | Q65: 3260784.39 | R65: 3180000 | S65: 3441354.3 | T65: 3327737.31 | U65: 3188987.98 | V65: 3314951.37 | W65: 3180000 | X65: 3180000 | Y65: 2654412.46 | Z65: 3180000 | AA65: 3180000 | AB65: 3180000 | AC65: 3180000 | AD65: 3180000 | AE65: 3129257.92 | AF65: 3023288.43 | AG65: 3180000 | AH65: 3009296.38 | AI65: 2525493.21 | AJ65: 2552030.3 | AK65: 3162333.33 | AL65: 2491000 | AM65: 3735425.558 | AN65: 3053946.352 | AO65: 3154009.902 | AP65: 2943269.957 | AQ65: 3164332.698 | AR65: 4273777.895
B66: Economique | C66: oSupRealDEG | D66: oSupRealDEG | F66: 0 | G66: 4921.24 | H66: 0 | I66: 4921.24 | J66: 2600.58 | K66: 2650 | L66: 2793.16 | M66: 2742.65 | N66: 2650 | O66: 2845.7 | P66: 3132.63 | Q66: 2826.21 | R66: 2750 | S66: 2996.56 | T66: 2829.92 | U66: 2758.48 | V66: 2877.31 | W66: 2254.16 | X66: 2750 | Y66: 2750 | Z66: 2750 | AA66: 2750 | AB66: 2750 | AC66: 2702.13 | AD66: 2602.16 | AE66: 2750 | AF66: 2588.96 | AG66: 2100 | AH66: 2030.53 | AI66: 1850 | AJ66: 1850 | AK66: 1850 | AL66: 1850 | AM66: 2687.278 | AN66: 2910.22 | AO66: 2718.874444 | AP66: 2217.378 | AQ66: 2573.487586 | AR66: 2625.29
B67: Economique | C67: oSupRealSCA | D67: oSupRealSCA | F67: 0 | G67: 5711.33 | H67: 0 | I67: 3238.7 | J67: 3594.4 | K67: 3079.4 | L67: 3050 | M67: 3050 | N67: 3050 | O67: 3000 | P67: 3250 | Q67: 3326.21 | R67: 4687.74 | S67: 4551.66 | T67: 3389.37 | U67: 3758.89 | V67: 5711.33 | W67: 3071.95 | X67: 3250 | Y67: 3250 | Z67: 3250 | AA67: 3250 | AB67: 3250 | AC67: 3202.13 | AD67: 3102.16 | AE67: 3250 | AF67: 4292.93 | AG67: 3270.83 | AH67: 2600 | AI67: 2600 | AJ67: 2600 | AK67: 2600 | AL67: 2350 | AM67: 3164.76 | AN67: 3763.122 | AO67: 3575.726667 | AP67: 2986.805 | AQ67: 3334.103448 | AR67: 3336.9
B68: Economique | C68: oSupRealREG | D68: oSupRealREG | F68: 0 | G68: 800 | H68: 0 | I68: 0 | J68: 700 | K68: 800 | L68: 800 | M68: 800 | N68: 800 | O68: 0 | P68: 382.63 | Q68: 76.21 | R68: 0 | S68: 246.56 | T68: 139.37 | U68: 8.48 | V68: 127.31 | W68: 0 | X68: 0 | Y68: 0 | Z68: 0 | AA68: 0 | AB68: 0 | AC68: 0 | AD68: 0 | AE68: 0 | AF68: 0 | AG68: 0 | AH68: 0 | AI68: 0 | AJ68: 0 | AK68: 0 | AL68: 0 | AM68: =AVERAGE(J68:N68) -> 780 | AN68: =AVERAGE(O68:S68) -> 141.08 | AO68: =AVERAGE(T68:AB68) -> 30.57333333 | AP68: =AVERAGE(AC68:AL68) -> 0 | AQ68: =AVERAGE(J68:AL68) -> 168.2951724 | AR68: =AVERAGE(J68:K68) -> 750
B69: Economique | C69: oSupRealELA | D69: oSupRealELA | F69: 0 | G69: 700 | H69: 0 | I69: 0 | J69: 700 | K69: 700 | L69: 700 | M69: 700 | N69: 700 | O69: 0 | P69: 0 | Q69: 76.21 | R69: 0 | S69: 0 | T69: 139.37 | U69: 8.48 | V69: 127.31 | W69: 0 | X69: 0 | Y69: 0 | Z69: 0 | AA69: 0 | AB69: 0 | AC69: 0 | AD69: 0 | AE69: 0 | AF69: 0 | AG69: 0 | AH69: 0 | AI69: 0 | AJ69: 0 | AK69: 0 | AL69: 0 | AM69: 700 | AN69: 15.242 | AO69: 30.57333333 | AP69: 0 | AQ69: 132.8058621 | AR69: 700
B70: Economique | C70: oSupRealCPI | D70: oSupRealCPI | F70: 0 | G70: 34755.9 | H70: 0 | I70: 21704.5 | J70: 15891.9 | K70: 15329.86 | L70: 16254.79 | M70: 16896.19 | N70: 14961.02 | O70: 18271.57 | P70: 19901.59 | Q70: 22056.05 | R70: 21175.69 | S70: 21679.98 | T70: 22331.56 | U70: 23662.92 | V70: 21979.07 | W70: 24278.89 | X70: 23511.49 | Y70: 20224.14 | Z70: 21289.09 | AA70: 22600.44 | AB70: 23151.17 | AC70: 21471.63 | AD70: 23441.01 | AE70: 25820.92 | AF70: 27607.4 | AG70: 28143.14 | AH70: 33041.08 | AI70: 34755.9 | AJ70: 33668.7 | AK70: 29610.55 | AL70: 27522.09 | AM70: 15866.752 | AN70: 20616.976 | AO70: 22558.75222 | AP70: 28508.242 | AQ70: 23121.71828 | AR70: 15610.88
B71: Economique | C71: oSupRealCT | D71: oSupRealCT | F71: 0 | G71: 21350.54 | H71: 0 | I71: 8788.62 | J71: 21350.54 | K71: 19048.84 | L71: 14899.55 | M71: 14917.83 | N71: 14606.52 | O71: 14030.89 | P71: 13060.01 | Q71: 12787.79 | R71: 11322.45 | S71: 13052.16 | T71: 13480.47 | U71: 10220.33 | V71: 11271.25 | W71: 11978.43 | X71: 11164.66 | Y71: 13650.18 | Z71: 12946.69 | AA71: 11514.6 | AB71: 11779.61 | AC71: 13223.5 | AD71: 10903.65 | AE71: 8470.55 | AF71: 6837.21 | AG71: 6426.11 | AH71: 6312.45 | AI71: 4830.47 | AJ71: 6053.27 | AK71: 10255.78 | AL71: 13626.48 | AM71: 16964.656 | AN71: 12850.66 | AO71: 12000.69111 | AP71: 8693.947 | AQ71: 11862.8369 | AR71: 20199.69
B72: Economique | C72: oSupRealPL | D72: oSupRealPL | F72: 0 | G72: 3238.7 | H72: 0 | I72: 3238.7 | J72: 1850 | K72: 1850 | L72: 1850 | M72: 1850 | N72: 1850 | O72: 2500 | P72: 2500 | Q72: 2500 | R72: 2500 | S72: 2500 | T72: 2500 | U72: 2500 | V72: 2500 | W72: 2004.16 | X72: 2500 | Y72: 2500 | Z72: 2500 | AA72: 2500 | AB72: 2500 | AC72: 2452.13 | AD72: 2352.16 | AE72: 2500 | AF72: 2338.96 | AG72: 1850 | AH72: 1850 | AI72: 1850 | AJ72: 1850 | AK72: 1850 | AL72: 1850 | AM72: 1850 | AN72: 2500 | AO72: 2444.906667 | AP72: 2074.325 | AQ72: 2224.048621 | AR72: 1850
B73: Economique | C73: oSupRealEPC | D73: oSupRealEPC | F73: 0 | G73: 1500 | H73: 0 | I73: 156.66 | J73: 1500 | K73: 1199.48 | L73: 1500 | M73: 1500 | N73: 879.12 | O73: 1500 | P73: 1500 | Q73: 1500 | R73: 1500 | S73: 1500 | T73: 1500 | U73: 1500 | V73: 1500 | W73: 1500 | X73: 1500 | Y73: 1500 | Z73: 1500 | AA73: 1500 | AB73: 1500 | AC73: 1500 | AD73: 1500 | AE73: 1500 | AF73: 1500 | AG73: 1500 | AH73: 1500 | AI73: 1500 | AJ73: 1500 | AK73: 1500 | AL73: 1500 | AM73: 1315.72 | AN73: 1500 | AO73: 1500 | AP73: 1500 | AQ73: 1468.227586 | AR73: 1349.74
B74: Economique | C74: oSupRealEC | D74: oSupRealEC | F74: 0 | G74: 2500 | H74: 0 | I74: 0 | J74: 75 | K74: 0 | L74: 0 | M74: 0 | N74: 1649.5 | O74: 0 | P74: 197.13 | Q74: 52.54 | R74: 1847.36 | S74: 50.58 | T74: 87.97 | U74: 143.16 | V74: 92.65 | W74: 0 | X74: 345.7 | Y74: 1247.33 | Z74: 250 | AA74: 250 | AB74: 338.83 | AC74: 223.72 | AD74: 259.83 | AE74: 250 | AF74: 250 | AG74: 2500 | AH74: 250 | AI74: 250 | AJ74: 250 | AK74: 1247.33 | AL74: 250 | AM74: 344.9 | AN74: 429.522 | AO74: 306.1822222 | AP74: 573.088 | AQ74: 426.1596552 | AR74: 37.5
B75: Economique | C75: oSupRealNET | D75: oSupRealNET | F75: 0 | G75: 4538.7 | H75: 0 | I75: 0 | J75: 3525.03 | K75: 4538.7 | L75: 3256.2 | M75: 3150 | N75: 3150 | O75: 2350 | P75: 2732.63 | Q75: 3076.21 | R75: 3000 | S75: 3246.56 | T75: 3139.37 | U75: 3008.48 | V75: 3127.31 | W75: 3000 | X75: 3000 | Y75: 2504.16 | Z75: 3000 | AA75: 3000 | AB75: 3000 | AC75: 3000 | AD75: 3000 | AE75: 2952.13 | AF75: 2852.16 | AG75: 3000 | AH75: 2838.96 | AI75: 2382.54 | AJ75: 2407.58 | AK75: 2983.33 | AL75: 2350 | AM75: 3523.986 | AN75: 2881.08 | AO75: 2975.48 | AP75: 2776.67 | AQ75: 2985.218966 | AR75: 4031.865
B76: Economique | C76: oCoutProdPlants | D76: oCoutProdPlants | F76: 0 | G76: 0 | H76: 0 | I76: 0 | J76: 0 | K76: 0 | L76: 0 | M76: 0 | N76: 0 | O76: 0 | P76: 0 | Q76: 0 | R76: 0 | S76: 0 | T76: 0 | U76: 0 | V76: 0 | W76: 0 | X76: 0 | Y76: 0 | Z76: 0 | AA76: 0 | AB76: 0 | AC76: 0 | AD76: 0 | AE76: 0 | AF76: 0 | AG76: 0 | AH76: 0 | AI76: 0 | AJ76: 0 | AK76: 0 | AL76: 0 | AM76: 0 | AN76: 0 | AO76: 0 | AP76: 0 | AQ76: 0 | AR76: 0
B77: Economique | C77: oCoutTransPlants | D77: oCoutTransPlants | F77: 0 | G77: 0 | H77: 0 | I77: 0 | J77: 0 | K77: 0 | L77: 0 | M77: 0 | N77: 0 | O77: 0 | P77: 0 | Q77: 0 | R77: 0 | S77: 0 | T77: 0 | U77: 0 | V77: 0 | W77: 0 | X77: 0 | Y77: 0 | Z77: 0 | AA77: 0 | AB77: 0 | AC77: 0 | AD77: 0 | AE77: 0 | AF77: 0 | AG77: 0 | AH77: 0 | AI77: 0 | AJ77: 0 | AK77: 0 | AL77: 0 | AM77: 0 | AN77: 0 | AO77: 0 | AP77: 0 | AQ77: 0 | AR77: 0
B78: Economique | C78: o$InvestisTS | D78: o$InvestisTS | F78: 0 | G78: 28615979.15 | H78: 0 | I78: 28615979.15 | J78: 25903811 | K78: 25903811 | L78: 25903811 | M78: 25903811 | N78: 25903811 | O78: 25903811 | P78: 25853369.29 | Q78: 25903811 | R78: 25903811 | S78: 25903811 | T78: 25903811 | U78: 25903811 | V78: 25903811 | W78: 25903811 | X78: 25903811 | Y78: 25903811 | Z78: 25903811 | AA78: 25903811 | AB78: 25903811 | AC78: 25903811 | AD78: 25903811 | AE78: 25903811 | AF78: 25903811 | AG78: 25903811 | AH78: 25903811 | AI78: 25903811 | AJ78: 25903811 | AK78: 25903811 | AL78: 25903811 | AM78: 25903811 | AN78: 25893722.66 | AO78: 25903811 | AP78: 25903811 | AQ78: 25902071.63 | AR78: 25903811
B79: Economique | C79: oTauxREGAPAR | D79: oTauxREGAPAR | F79: 0 | G79: 14743811 | H79: 0 | I79: 13497222.5 | J79: 10224060.41 | K79: 9640600.63 | L79: 10439213.48 | M79: 10623139.89 | N79: 11554032.84 | O79: 11761782.11 | P79: 10333235.45 | Q79: 10308695.37 | R79: 9918277.3 | S79: 9512558.93 | T79: 10474832.59 | U79: 10619158.6 | V79: 8718202.31 | W79: 12581915.12 | X79: 11071311 | Y79: 11596898.54 | Z79: 10351311 | AA79: 11071311 | AB79: 11065716.6 | AC79: 11240105.12 | AD79: 11275522.5 | AE79: 11122053.08 | AF79: 10883089.31 | AG79: 12862481.95 | AH79: 13621098.16 | AI79: 14428589.15 | AJ79: 14492780.7 | AK79: 13882477.67 | AL79: 14743811 | AM79: 10496209.45 | AN79: 10366909.83 | AO79: 10838961.86 | AP79: 12855200.86 | AQ79: 11393733.17 | AR79: 9932330.52
B80: Economique | C80: oTauxREGAEDU | D80: oTauxREGAEDU | F80: 0 | G80: 10574916.43 | H80: 0 | I80: 8301770.13 | J80: 9767498.13 | K80: 10574916.43 | L80: 9800286.27 | M80: 9604372.95 | N80: 8731278.16 | O80: 8926404.91 | P80: 9805440.77 | Q80: 9664033.68 | R80: 9457500 | S80: 10125679.39 | T80: 9737109.78 | U80: 9480478.7 | V80: 9802517.17 | W80: 8639368.45 | X80: 9457500 | Y80: 8931912.46 | Z80: 9457500 | AA80: 9457500 | AB80: 9457500 | AC80: 9378514.69 | AD80: 9213562.18 | AE80: 9406757.92 | AF80: 9035070.53 | AG80: 8385000 | AH80: 8099672.35 | AI80: 7317993.21 | AJ80: 7344530.3 | AK80: 7954833.33 | AL80: 7283500 | AM80: 9695670.388 | AN80: 9595811.75 | AO80: 9380154.062 | AP80: 8341943.451 | AQ80: 9113732.13 | AR80: 10171207.28
B81: Economique | C81: oTauxAUTRES | D81: oTauxAUTRES | F81: 0 | G81: 3947455.34 | H81: 0 | I81: 1878446 | J81: 3070752 | K81: 2772052 | L81: 2755000 | M81: 2755000 | N81: 2755000 | O81: 1830000 | P81: 2020000 | Q81: 2161753.75 | R81: 2853887.69 | S81: 2774964.31 | T81: 2279237.16 | U81: 2416084.53 | V81: 3947455.34 | W81: 1973929.34 | X81: 2020000 | Y81: 2020000 | Z81: 2020000 | AA81: 2020000 | AB81: 2020000 | AC81: 1992235.47 | AD81: 1934252.16 | AE81: 2020000 | AF81: 2841615.08 | AG81: 2152829.05 | AH81: 1643000 | AI81: 1643000 | AJ81: 1643000 | AK81: 1643000 | AL81: 1453000 | AM81: 2821560.8 | AN81: 2328121.15 | AO81: 2301856.263 | AP81: 1896593.176 | AQ81: 2256243.03 | AR81: 2921402
B82: Economique | C82: oTauxREGAREG | D82: oTauxREGAREG | F82: 0 | G82: 4938540.52 | H82: 0 | I82: 4938540.52 | J82: 2841500.46 | K82: 2916241.94 | L82: 2909311.25 | M82: 2921298.15 | N82: 2863500 | O82: 3385623.98 | P82: 3694693.07 | Q82: 3769328.2 | R82: 3674146.01 | S82: 3490608.36 | T82: 3412631.47 | U82: 3388089.17 | V82: 3435636.17 | W82: 2708598.09 | X82: 3355000 | Y82: 3355000 | Z82: 4075000 | AA82: 3355000 | AB82: 3360594.4 | AC82: 3292955.73 | AD82: 3480474.16 | AE82: 3355000 | AF82: 3144036.09 | AG82: 2503500 | AH82: 2540040.49 | AI82: 2514228.64 | AJ82: 2423500 | AK82: 2423500 | AL82: 2423500 | AM82: 2890370.36 | AN82: 3602879.924 | AO82: 3382838.811 | AP82: 2810073.511 | AQ82: 3138363.304 | AR82: 2878871.2
B83: Economique | C83: oTauxREGAFIN | D83: oTauxREGAFIN | F83: 0 | G83: 0 | H83: 0 | I83: 0 | J83: 0 | K83: 0 | L83: 0 | M83: 0 | N83: 0 | O83: 0 | P83: 0 | Q83: 0 | R83: 0 | S83: 0 | T83: 0 | U83: 0 | V83: 0 | W83: 0 | X83: 0 | Y83: 0 | Z83: 0 | AA83: 0 | AB83: 0 | AC83: 0 | AD83: 0 | AE83: 0 | AF83: 0 | AG83: 0 | AH83: 0 | AI83: 0 | AJ83: 0 | AK83: 0 | AL83: 0 | AM83: 0 | AN83: 0 | AO83: 0 | AP83: 0 | AQ83: 0 | AR83: 0
B84: Economique | C84: oSupRealREGAPAR | D84: oSupRealREGAPAR | F84: 0 | G84: 35005.9 | H84: 0 | I84: 21704.5 | J84: 15966.9 | K84: 15329.86 | L84: 16254.79 | M84: 16896.19 | N84: 16610.52 | O84: 18271.57 | P84: 20098.72 | Q84: 22108.6 | R84: 23023.04 | S84: 21730.56 | T84: 22419.53 | U84: 23806.08 | V84: 22071.72 | W84: 24278.89 | X84: 23857.19 | Y84: 21471.47 | Z84: 21539.09 | AA84: 22850.44 | AB84: 23490 | AC84: 21695.35 | AD84: 23700.84 | AE84: 26070.92 | AF84: 27857.4 | AG84: 30643.14 | AH84: 33291.08 | AI84: 35005.9 | AJ84: 33918.7 | AK84: 30857.88 | AL84: 27772.09 | AM84: 16211.652 | AN84: 21046.498 | AO84: 22864.93444 | AP84: 29081.33 | AQ84: 23547.87793 | AR84: 15648.38
B85: Economique | C85: oSupRealREGAEDU | D85: oSupRealREGAEDU | F85: 0 | G85: 8388.18 | H85: 0 | I85: 5077.9 | J85: 7625.62 | K85: 8388.18 | L85: 7549.36 | M85: 7392.65 | N85: 6679.12 | O85: 6695.7 | P85: 7365.27 | Q85: 7402.42 | R85: 7250 | S85: 7743.12 | T85: 7469.3 | U85: 7266.96 | V85: 7504.63 | W85: 6754.16 | X85: 7250 | Y85: 6754.16 | Z85: 7250 | AA85: 7250 | AB85: 7250 | AC85: 7202.13 | AD85: 7102.16 | AE85: 7202.13 | AF85: 6941.12 | AG85: 6600 | AH85: 6369.49 | AI85: 5732.54 | AJ85: 5757.58 | AK85: 6333.33 | AL85: 5700 | AM85: 7526.986 | AN85: 7291.302 | AO85: 7194.356667 | AP85: 6494.048 | AQ85: 7026.935517 | AR85: 8006.9
B86: Economique | C86: oSupRealAUTRES | D86: oSupRealAUTRES | F86: 0 | G86: 5838.64 | H86: 0 | I86: 3238.7 | J86: 4294.4 | K86: 3779.4 | L86: 3750 | M86: 3750 | N86: 3750 | O86: 3000 | P86: 3250 | Q86: 3402.42 | R86: 4687.74 | S86: 4551.66 | T86: 3528.75 | U86: 3767.37 | V86: 5838.64 | W86: 3071.95 | X86: 3250 | Y86: 3250 | Z86: 3250 | AA86: 3250 | AB86: 3250 | AC86: 3202.13 | AD86: 3102.16 | AE86: 3250 | AF86: 4292.93 | AG86: 3270.83 | AH86: 2600 | AI86: 2600 | AJ86: 2600 | AK86: 2600 | AL86: 2350 | AM86: 3864.76 | AN86: 3778.364 | AO86: 3606.301111 | AP86: 2986.805 | AQ86: 3466.909655 | AR86: 4036.9
B87: Economique | C87: oSupRealREGAREG | D87: oSupRealREGAREG | F87: 0 | G87: 3238.7 | H87: 0 | I87: 3238.7 | J87: 2550 | K87: 2650 | L87: 2650 | M87: 2650 | N87: 2650 | O87: 2500 | P87: 2882.63 | Q87: 2576.21 | R87: 2500 | S87: 2746.56 | T87: 2639.37 | U87: 2508.48 | V87: 2627.31 | W87: 2004.16 | X87: 2500 | Y87: 2500 | Z87: 2500 | AA87: 2500 | AB87: 2500 | AC87: 2452.13 | AD87: 2352.16 | AE87: 2500 | AF87: 2338.96 | AG87: 1850 | AH87: 1850 | AI87: 1850 | AJ87: 1850 | AK87: 1850 | AL87: 1850 | AM87: 2630 | AN87: 2641.08 | AO87: 2475.48 | AP87: 2074.325 | AQ87: 2392.343793 | AR87: 2600
B88: Economique | C88: oSupRealREGAFIN | D88: oSupRealREGAFIN | F88: 0 | G88: 21350.54 | H88: 0 | I88: 8788.62 | J88: 21350.54 | K88: 19048.84 | L88: 14899.55 | M88: 14917.83 | N88: 14606.52 | O88: 14030.89 | P88: 13060.01 | Q88: 12787.79 | R88: 11322.45 | S88: 13052.16 | T88: 13480.47 | U88: 10220.33 | V88: 11271.25 | W88: 11978.43 | X88: 11164.66 | Y88: 13650.18 | Z88: 12946.69 | AA88: 11514.6 | AB88: 11779.61 | AC88: 13223.5 | AD88: 10903.65 | AE88: 8470.55 | AF88: 6837.21 | AG88: 6426.11 | AH88: 6312.45 | AI88: 4830.47 | AJ88: 6053.27 | AK88: 10255.78 | AL88: 13626.48 | AM88: 16964.656 | AN88: 12850.66 | AO88: 12000.69111 | AP88: 8693.947 | AQ88: 11862.8369 | AR88: 20199.69
